Workbook

Sheet Aylık Yİ-ÜFE (hidden)
E1: Yurt İçi Üretici Fiyat Endeksi (2003=100) | F1: Yurt İçi Üretici Fiyat Endeksi (2003=100)
A2: 2005 | B2: Ocak | C2: 2005-Ocak | D2: 2005-1 | E2: 114.83 | F2: 114.83
A3: 2005 | B3: Şubat | C3: 2005-Şubat | D3: 2005-2 | E3: 114.81 | F3: 114.81
A4: 2005 | B4: Mart | C4: 2005-Mart | D4: 2005-3 | E4: 117.25 | F4: 117.25
A5: 2005 | B5: Nisan | C5: 2005-Nisan | D5: 2005-4 | E5: 119.62 | F5: 119.62
A6: 2005 | B6: Mayıs | C6: 2005-Mayıs | D6: 2005-5 | E6: 119.23 | F6: 119.23
A7: 2005 | B7: Haziran | C7: 2005-Haziran | D7: 2005-6 | E7: 119.64 | F7: 119.64
A8: 2005 | B8: Temmuz | C8: 2005-Temmuz | D8: 2005-7 | E8: 119.33 | F8: 119.33
A9: 2005 | B9: Ağustos | C9: 2005-Ağustos | D9: 2005-8 | E9: 121.4 | F9: 121.4
A10: 2005 | B10: Eylül | C10: 2005-Eylül | D10: 2005-9 | E10: 123.4 | F10: 123.4
A11: 2005 | B11: Ekim | C11: 2005-Ekim | D11: 2005-10 | E11: 124.22 | F11: 124.22
A12: 2005 | B12: Kasım | C12: 2005-Kasım | D12: 2005-11 | E12: 121.4 | F12: 121.4
A13: 2005 | B13: Aralık | C13: 2005-Aralık | D13: 2005-12 | E13: 121.14 | F13: 121.14
A14: 2006 | B14: Ocak | C14: 2006-Ocak | D14: 2006-1 | E14: 123.51 | F14: 123.51
A15: 2006 | B15: Şubat | C15: 2006-Şubat | D15: 2006-2 | E15: 123.83 | F15: 123.83
A16: 2006 | B16: Mart | C16: 2006-Mart | D16: 2006-3 | E16: 124.14 | F16: 124.14
A17: 2006 | B17: Nisan | C17: 2006-Nisan | D17: 2006-4 | E17: 126.54 | F17: 126.54
A18: 2006 | B18: Mayıs | C18: 2006-Mayıs | D18: 2006-5 | E18: 130.05 | F18: 130.05
A19: 2006 | B19: Haziran | C19: 2006-Haziran | D19: 2006-6 | E19: 135.28 | F19: 135.28
A20: 2006 | B20: Temmuz | C20: 2006-Temmuz | D20: 2006-7 | E20: 136.45 | F20: 136.45
A21: 2006 | B21: Ağustos | C21: 2006-Ağustos | D21: 2006-8 | E21: 135.43 | F21: 135.43
A22: 2006 | B22: Eylül | C22: 2006-Eylül | D22: 2006-9 | E22: 135.11 | F22: 135.11
A23: 2006 | B23: Ekim | C23: 2006-Ekim | D23: 2006-10 | E23: 135.73 | F23: 135.73
A24: 2006 | B24: Kasım | C24: 2006-Kasım | D24: 2006-11 | E24: 135.33 | F24: 135.33
A25: 2006 | B25: Aralık | C25: 2006-Aralık | D25: 2006-12 | E25: 135.16 | F25: 135.16
A26: 2007 | B26: Ocak | C26: 2007-Ocak | D26: 2007-1 | E26: 135.09 | F26: 135.09
A27: 2007 | B27: Şubat | C27: 2007-Şubat | D27: 2007-2 | E27: 136.37 | F27: 136.37
A28: 2007 | B28: Mart | C28: 2007-Mart | D28: 2007-3 | E28: 137.7 | F28: 137.7
A29: 2007 | B29: Nisan | C29: 2007-Nisan | D29: 2007-4 | E29: 138.8 | F29: 138.8
A30: 2007 | B30: Mayıs | C30: 2007-Mayıs | D30: 2007-5 | E30: 139.34 | F30: 139.34
A31: 2007 | B31: Haziran | C31: 2007-Haziran | D31: 2007-6 | E31: 139.19 | F31: 139.19
A32: 2007 | B32: Temmuz | C32: 2007-Temmuz | D32: 2007-7 | E32: 139.28 | F32: 139.28
A33: 2007 | B33: Ağustos | C33: 2007-Ağustos | D33: 2007-8 | E33: 140.47 | F33: 140.47
A34: 2007 | B34: Eylül | C34: 2007-Eylül | D34: 2007-9 | E34: 141.9 | F34: 141.9
A35: 2007 | B35: Ekim | C35: 2007-Ekim | D35: 2007-10 | E35: 141.71 | F35: 141.71
A36: 2007 | B36: Kasım | C36: 2007-Kasım | D36: 2007-11 | E36: 142.98 | F36: 142.98
A37: 2007 | B37: Aralık | C37: 2007-Aralık | D37: 2007-12 | E37: 143.19 | F37: 143.19
A38: 2008 | B38: Ocak | C38: 2008-Ocak | D38: 2008-1 | E38: 143.8 | F38: 143.8
A39: 2008 | B39: Şubat | C39: 2008-Şubat | D39: 2008-2 | E39: 147.48 | F39: 147.48
A40: 2008 | B40: Mart | C40: 2008-Mart | D40: 2008-3 | E40: 152.16 | F40: 152.16
A41: 2008 | B41: Nisan | C41: 2008-Nisan | D41: 2008-4 | E41: 159 | F41: 159
A42: 2008 | B42: Mayıs | C42: 2008-Mayıs | D42: 2008-5 | E42: 162.37 | F42: 162.37
A43: 2008 | B43: Haziran | C43: 2008-Haziran | D43: 2008-6 | E43: 162.9 | F43: 162.9
A44: 2008 | B44: Temmuz | C44: 2008-Temmuz | D44: 2008-7 | E44: 164.93 | F44: 164.93
A45: 2008 | B45: Ağustos | C45: 2008-Ağustos | D45: 2008-8 | E45: 161.07 | F45: 161.07
A46: 2008 | B46: Eylül | C46: 2008-Eylül | D46: 2008-9 | E46: 159.63 | F46: 159.63
A47: 2008 | B47: Ekim | C47: 2008-Ekim | D47: 2008-10 | E47: 160.54 | F47: 160.54
A48: 2008 | B48: Kasım | C48: 2008-Kasım | D48: 2008-11 | E48: 160.49 | F48: 160.49
A49: 2008 | B49: Aralık | C49: 2008-Aralık | D49: 2008-12 | E49: 154.8 | F49: 154.8
A50: 2009 | B50: Ocak | C50: 2009-Ocak | D50: 2009-1 | E50: 155.16 | F50: 155.16
A51: 2009 | B51: Şubat | C51: 2009-Şubat | D51: 2009-2 | E51: 156.97 | F51: 156.97
A52: 2009 | B52: Mart | C52: 2009-Mart | D52: 2009-3 | E52: 157.43 | F52: 157.43
A53: 2009 | B53: Nisan | C53: 2009-Nisan | D53: 2009-4 | E53: 158.45 | F53: 158.45
A54: 2009 | B54: Mayıs | C54: 2009-Mayıs | D54: 2009-5 | E54: 158.37 | F54: 158.37
A55: 2009 | B55: Haziran | C55: 2009-Haziran | D55: 2009-6 | E55: 159.86 | F55: 159.86
A56: 2009 | B56: Temmuz | C56: 2009-Temmuz | D56: 2009-7 | E56: 158.74 | F56: 158.74
A57: 2009 | B57: Ağustos | C57: 2009-Ağustos | D57: 2009-8 | E57: 159.4 | F57: 159.4
A58: 2009 | B58: Eylül | C58: 2009-Eylül | D58: 2009-9 | E58: 160.38 | F58: 160.38
A59: 2009 | B59: Ekim | C59: 2009-Ekim | D59: 2009-10 | E59: 160.84 | F59: 160.84
A60: 2009 | B60: Kasım | C60: 2009-Kasım | D60: 2009-11 | E60: 162.92 | F60: 162.92
A61: 2009 | B61: Aralık | C61: 2009-Aralık | D61: 2009-12 | E61: 163.98 | F61: 163.98
A62: 2010 | B62: Ocak | C62: 2010-Ocak | D62: 2010-1 | E62: 164.94 | F62: 164.94
A63: 2010 | B63: Şubat | C63: 2010-Şubat | D63: 2010-2 | E63: 167.68 | F63: 167.68
A64: 2010 | B64: Mart | C64: 2010-Mart | D64: 2010-3 | E64: 170.94 | F64: 170.94
A65: 2010 | B65: Nisan | C65: 2010-Nisan | D65: 2010-4 | E65: 174.96 | F65: 174.96
A66: 2010 | B66: Mayıs | C66: 2010-Mayıs | D66: 2010-5 | E66: 172.95 | F66: 172.95
A67: 2010 | B67: Haziran | C67: 2010-Haziran | D67: 2010-6 | E67: 172.08 | F67: 172.08
A68: 2010 | B68: Temmuz | C68: 2010-Temmuz | D68: 2010-7 | E68: 171.81 | F68: 171.81
A69: 2010 | B69: Ağustos | C69: 2010-Ağustos | D69: 2010-8 | E69: 173.79 | F69: 173.79
A70: 2010 | B70: Eylül | C70: 2010-Eylül | D70: 2010-9 | E70: 174.67 | F70: 174.67
A71: 2010 | B71: Ekim | C71: 2010-Ekim | D71: 2010-10 | E71: 176.78 | F71: 176.78
A72: 2010 | B72: Kasım | C72: 2010-Kasım | D72: 2010-11 | E72: 176.23 | F72: 176.23
A73: 2010 | B73: Aralık | C73: 2010-Aralık | D73: 2010-12 | E73: 178.54 | F73: 178.54
A74: 2011 | B74: Ocak | C74: 2011-Ocak | D74: 2011-1 | E74: 182.75 | F74: 182.75
A75: 2011 | B75: Şubat | C75: 2011-Şubat | D75: 2011-2 | E75: 185.9 | F75: 185.9
A76: 2011 | B76: Mart | C76: 2011-Mart | D76: 2011-3 | E76: 188.17 | F76: 188.17
A77: 2011 | B77: Nisan | C77: 2011-Nisan | D77: 2011-4 | E77: 189.32 | F77: 189.32
A78: 2011 | B78: Mayıs | C78: 2011-Mayıs | D78: 2011-5 | E78: 189.61 | F78: 189.61
A79: 2011 | B79: Haziran | C79: 2011-Haziran | D79: 2011-6 | E79: 189.62 | F79: 189.62
A80: 2011 | B80: Temmuz | C80: 2011-Temmuz | D80: 2011-7 | E80: 189.57 | F80: 189.57
A81: 2011 | B81: Ağustos | C81: 2011-Ağustos | D81: 2011-8 | E81: 192.91 | F81: 192.91
A82: 2011 | B82: Eylül | C82: 2011-Eylül | D82: 2011-9 | E82: 195.89 | F82: 195.89
A83: 2011 | B83: Ekim | C83: 2011-Ekim | D83: 2011-10 | E83: 199.03 | F83: 199.03
A84: 2011 | B84: Kasım | C84: 2011-Kasım | D84: 2011-11 | E84: 200.32 | F84: 200.32
A85: 2011 | B85: Aralık | C85: 2011-Aralık | D85: 2011-12 | E85: 202.33 | F85: 202.33
A86: 2012 | B86: Ocak | C86: 2012-Ocak | D86: 2012-1 | E86: 203.1 | F86: 203.1
A87: 2012 | B87: Şubat | C87: 2012-Şubat | D87: 2012-2 | E87: 202.91 | F87: 202.91
A88: 2012 | B88: Mart | C88: 2012-Mart | D88: 2012-3 | E88: 203.64 | F88: 203.64
A89: 2012 | B89: Nisan | C89: 2012-Nisan | D89: 2012-4 | E89: 203.81 | F89: 203.81
A90: 2012 | B90: Mayıs | C90: 2012-Mayıs | D90: 2012-5 | E90: 204.89 | F90: 204.89
A91: 2012 | B91: Haziran | C91: 2012-Haziran | D91: 2012-6 | E91: 201.83 | F91: 201.83
A92: 2012 | B92: Temmuz | C92: 2012-Temmuz | D92: 2012-7 | E92: 201.2 | F92: 201.2
A93: 2012 | B93: Ağustos | C93: 2012-Ağustos | D93: 2012-8 | E93: 201.71 | F93: 201.71
A94: 2012 | B94: Eylül | C94: 2012-Eylül | D94: 2012-9 | E94: 203.79 | F94: 203.79
A95: 2012 | B95: Ekim | C95: 2012-Ekim | D95: 2012-10 | E95: 204.15 | F95: 204.15
A96: 2012 | B96: Kasım | C96: 2012-Kasım | D96: 2012-11 | E96: 207.54 | F96: 207.54
A97: 2012 | B97: Aralık | C97: 2012-Aralık | D97: 2012-12 | E97: 207.29 | F97: 207.29
A98: 2013 | B98: Ocak | C98: 2013-Ocak | D98: 2013-1 | E98: 206.91 | F98: 206.91
A99: 2013 | B99: Şubat | C99: 2013-Şubat | D99: 2013-2 | E99: 206.65 | F99: 206.65
A100: 2013 | B100: Mart | C100: 2013-Mart | D100: 2013-3 | E100: 208.33 | F100: 208.33
A101: 2013 | B101: Nisan | C101: 2013-Nisan | D101: 2013-4 | E101: 207.27 | F101: 207.27
A102: 2013 | B102: Mayıs | C102: 2013-Mayıs | D102: 2013-5 | E102: 209.34 | F102: 209.34
A103: 2013 | B103: Haziran | C103: 2013-Haziran | D103: 2013-6 | E103: 212.39 | F103: 212.39
A104: 2013 | B104: Temmuz | C104: 2013-Temmuz | D104: 2013-7 | E104: 214.5 | F104: 214.5
A105: 2013 | B105: Ağustos | C105: 2013-Ağustos | D105: 2013-8 | E105: 214.59 | F105: 214.59
A106: 2013 | B106: Eylül | C106: 2013-Eylül | D106: 2013-9 | E106: 216.48 | F106: 216.48
A107: 2013 | B107: Ekim | C107: 2013-Ekim | D107: 2013-10 | E107: 217.97 | F107: 217.97
A108: 2013 | B108: Kasım | C108: 2013-Kasım | D108: 2013-11 | E108: 219.31 | F108: 219.31
A109: 2013 | B109: Aralık | C109: 2013-Aralık | D109: 2013-12 | E109: 221.74 | F109: 221.74
A110: 2014 | B110: Ocak | C110: 2014-Ocak | D110: 2014-1 | E110: 229.1 | F110: 229.1
A111: 2014 | B111: Şubat | C111: 2014-Şubat | D111: 2014-2 | E111: 232.27 | F111: 232.27
A112: 2014 | B112: Mart | C112: 2014-Mart | D112: 2014-3 | E112: 233.98 | F112: 233.98
A113: 2014 | B113: Nisan | C113: 2014-Nisan | D113: 2014-4 | E113: 234.18 | F113: 234.18
A114: 2014 | B114: Mayıs | C114: 2014-Mayıs | D114: 2014-5 | E114: 232.96 | F114: 232.96
A115: 2014 | B115: Haziran | C115: 2014-Haziran | D115: 2014-6 | E115: 233.09 | F115: 233.09
A116: 2014 | B116: Temmuz | C116: 2014-Temmuz | D116: 2014-7 | E116: 234.79 | F116: 234.79
A117: 2014 | B117: Ağustos | C117: 2014-Ağustos | D117: 2014-8 | E117: 235.78 | F117: 235.78
A118: 2014 | B118: Eylül | C118: 2014-Eylül | D118: 2014-9 | E118: 237.79 | F118: 237.79
A119: 2014 | B119: Ekim | C119: 2014-Ekim | D119: 2014-10 | E119: 239.97 | F119: 239.97
A120: 2014 | B120: Kasım | C120: 2014-Kasım | D120: 2014-11 | E120: 237.65 | F120: 237.65
A121: 2014 | B121: Aralık | C121: 2014-Aralık | D121: 2014-12 | E121: 235.84 | F121: 235.84
A122: 2015 | B122: Ocak | C122: 2015-Ocak | D122: 2015-1 | E122: 236.61 | F122: 236.61
A123: 2015 | B123: Şubat | C123: 2015-Şubat | D123: 2015-2 | E123: 239.46 | F123: 239.46
A124: 2015 | B124: Mart | C124: 2015-Mart | D124: 2015-3 | E124: 241.97 | F124: 241.97
A125: 2015 | B125: Nisan | C125: 2015-Nisan | D125: 2015-4 | E125: 245.42 | F125: 245.42
A126: 2015 | B126: Mayıs | C126: 2015-Mayıs | D126: 2015-5 | E126: 248.15 | F126: 248.15
A127: 2015 | B127: Haziran | C127: 2015-Haziran | D127: 2015-6 | E127: 248.78 | F127: 248.78
A128: 2015 | B128: Temmuz | C128: 2015-Temmuz | D128: 2015-7 | E128: 247.99 | F128: 247.99
A129: 2015 | B129: Ağustos | C129: 2015-Ağustos | D129: 2015-8 | E129: 250.43 | F129: 250.43
A130: 2015 | B130: Eylül | C130: 2015-Eylül | D130: 2015-9 | E130: 254.25 | F130: 254.25
A131: 2015 | B131: Ekim | C131: 2015-Ekim | D131: 2015-10 | E131: 253.74 | F131: 253.74
A132: 2015 | B132: Kasım | C132: 2015-Kasım | D132: 2015-11 | E132: 250.13 | F132: 250.13
A133: 2015 | B133: Aralık | C133: 2015-Aralık | D133: 2015-12 | E133: 249.31 | F133: 249.31
A134: 2016 | B134: Ocak | C134: 2016-Ocak | D134: 2016-1 | E134: 250.67 | F134: 250.67
A135: 2016 | B135: Şubat | C135: 2016-Şubat | D135: 2016-2 | E135: 250.16 | F135: 250.16
A136: 2016 | B136: Mart | C136: 2016-Mart | D136: 2016-3 | E136: 251.17 | F136: 251.17
A137: 2016 | B137: Nisan | C137: 2016-Nisan | D137: 2016-4 | E137: 252.47 | F137: 252.47
A138: 2016 | B138: Mayıs | C138: 2016-Mayıs | D138: 2016-5 | E138: 256.21 | F138: 256.21
A139: 2016 | B139: Haziran | C139: 2016-Haziran | D139: 2016-6 | E139: 257.27 | F139: 257.27
A140: 2016 | B140: Temmuz | C140: 2016-Temmuz | D140: 2016-7 | E140: 257.81 | F140: 257.81
A141: 2016 | B141: Ağustos | C141: 2016-Ağustos | D141: 2016-8 | E141: 258.01 | F141: 258.01
A142: 2016 | B142: Eylül | C142: 2016-Eylül | D142: 2016-9 | E142: 258.77 | F142: 258.77
A143: 2016 | B143: Ekim | C143: 2016-Ekim | D143: 2016-10 | E143: 260.94 | F143: 260.94
A144: 2016 | B144: Kasım | C144: 2016-Kasım | D144: 2016-11 | E144: 266.16 | F144: 266.16
A145: 2016 | B145: Aralık | C145: 2016-Aralık | D145: 2016-12 | E145: 274.09 | F145: 274.09
A146: 2017 | B146: Ocak | C146: 2017-Ocak | D146: 2017-1 | E146: 284.99 | F146: 284.99
A147: 2017 | B147: Şubat | C147: 2017-Şubat | D147: 2017-2 | E147: 288.59 | F147: 288.59
A148: 2017 | B148: Mart | C148: 2017-Mart | D148: 2017-3 | E148: 291.58 | F148: 291.58
A149: 2017 | B149: Nisan | C149: 2017-Nisan | D149: 2017-4 | E149: 293.79 | F149: 293.79
A150: 2017 | B150: Mayıs | C150: 2017-Mayıs | D150: 2017-5 | E150: 295.31 | F150: 295.31
A151: 2017 | B151: Haziran | C151: 2017-Haziran | D151: 2017-6 | E151: 295.52 | F151: 295.52
A152: 2017 | B152: Temmuz | C152: 2017-Temmuz | D152: 2017-7 | E152: 297.65 | F152: 297.65
A153: 2017 | B153: Ağustos | C153: 2017-Ağustos | D153: 2017-8 | E153: 300.18 | F153: 300.18
A154: 2017 | B154: Eylül | C154: 2017-Eylül | D154: 2017-9 | E154: 300.9 | F154: 300.9
A155: 2017 | B155: Ekim | C155: 2017-Ekim | D155: 2017-10 | E155: 306.04 | F155: 306.04
A156: 2017 | B156: Kasım | C156: 2017-Kasım | D156: 2017-11 | E156: 312.21 | F156: 312.21
A157: 2017 | B157: Aralık | C157: 2017-Aralık | D157: 2017-12 | E157: 316.48 | F157: 316.48
A158: 2018 | B158: Ocak | C158: 2018-Ocak | D158: 2018-1 | E158: 319.6 | F158: 319.6
A159: 2018 | B159: Şubat | C159: 2018-Şubat | D159: 2018-2 | E159: 328.17 | F159: 328.17
A160: 2018 | B160: Mart | C160: 2018-Mart | D160: 2018-3 | E160: 333.21 | F160: 333.21
A161: 2018 | B161: Nisan | C161: 2018-Nisan | D161: 2018-4 | E161: 341.88 | F161: 341.88
A162: 2018 | B162: Mayıs | C162: 2018-Mayıs | D162: 2018-5 | E162: 354.85 | F162: 354.85
A163: 2018 | B163: Haziran | C163: 2018-Haziran | D163: 2018-6 | E163: 365.6 | F163: 365.6
A164: 2018 | B164: Temmuz | C164: 2018-Temmuz | D164: 2018-7 | E164: 372.06 | F164: 372.06
A165: 2018 | B165: Ağustos | C165: 2018-Ağustos | D165: 2018-8 | E165: 396.62 | F165: 396.62
A166: 2018 | B166: Eylül | C166: 2018-Eylül | D166: 2018-9 | E166: 439.78 | F166: 439.78
A167: 2018 | B167: Ekim | C167: 2018-Ekim | D167: 2018-10 | E167: 443.78 | F167: 443.78
A168: 2018 | B168: Kasım | C168: 2018-Kasım | D168: 2018-11 | E168: 432.55 | F168: 432.55
A169: 2018 | B169: Aralık | C169: 2018-Aralık | D169: 2018-12 | E169: 422.94 | F169: 422.94
A170: 2019 | B170: Ocak | C170: 2019-Ocak | D170: 2019-1 | E170: 424.86 | F170: 424.86
A171: 2019 | B171: Şubat | C171: 2019-Şubat | D171: 2019-2 | E171: 425.26 | F171: 425.26
A172: 2019 | B172: Mart | C172: 2019-Mart | D172: 2019-3 | E172: 431.98 | F172: 431.98
A173: 2019 | B173: Nisan | C173: 2019-Nisan | D173: 2019-4 | E173: 444.85 | F173: 444.85
A174: 2019 | B174: Mayıs | C174: 2019-Mayıs | D174: 2019-5 | E174: 456.74 | F174: 456.74
A175: 2019 | B175: Haziran | C175: 2019-Haziran | D175: 2019-6 | E175: 457.16 | F175: 457.16
A176: 2019 | B176: Temmuz | C176: 2019-Temmuz | D176: 2019-7 | E176: 452.63 | F176: 452.63
A177: 2019 | B177: Ağustos | C177: 2019-Ağustos | D177: 2019-8 | E177: 449.96 | F177: 449.96
A178: 2019 | B178: Eylül | C178: 2019-Eylül | D178: 2019-9 | E178: 450.55 | F178: 450.55
A179: 2019 | B179: Ekim | C179: 2019-Ekim | D179: 2019-10 | E179: 451.31 | F179: 451.31
A180: 2019 | B180: Kasım | C180: 2019-Kasım | D180: 2019-11 | E180: 450.97 | F180: 450.97
A181: 2019 | B181: Aralık | C181: 2019-Aralık | D181: 2019-12 | E181: 454.08 | F181: 454.08
A182: 2020 | B182: Ocak | C182: 2020-Ocak | D182: 2020-1 | E182: 462.42 | F182: 462.42
A183: 2020 | B183: Şubat | C183: 2020-Şubat | D183: 2020-2 | E183: 464.64 | F183: 464.64
A184: 2020 | B184: Mart | C184: 2020-Mart | D184: 2020-3 | E184: 468.69 | F184: 468.69
A185: 2020 | B185: Nisan | C185: 2020-Nisan | D185: 2020-4 | E185: 474.69 | F185: 474.69
A186: 2020 | B186: Mayıs | C186: 2020-Mayıs | D186: 2020-5 | E186: 482.02 | F186: 482.02
A187: 2020 | B187: Haziran | C187: 2020-Haziran | D187: 2020-6 | E187: 485.37 | F187: 485.37
A188: 2020 | B188: Temmuz | C188: 2020-Temmuz | D188: 2020-7 | E188: 490.33 | F188: 490.33
A189: 2020 | B189: Ağustos | C189: 2020-Ağustos | D189: 2020-8 | E189: 501.85 | F189: 501.85
A190: 2020 | B190: Eylül | C190: 2020-Eylül | D190: 2020-9 | E190: 515.13 | F190: 515.13
A191: 2020 | B191: Ekim | C191: 2020-Ekim | D191: 2020-10 | E191: 533.44 | F191: 533.44
A192: 2020 | B192: Kasım | C192: 2020-Kasım | D192: 2020-11 | E192: 555.18 | F192: 555.18
A193: 2020 | B193: Aralık | C193: 2020-Aralık | D193: 2020-12 | E193: 568.27 | F193: 568.27
A194: 2021 | B194: Ocak | C194: 2021-Ocak | D194: 2021-1 | E194: 583.38 | F194: 583.38
A195: 2021 | B195: Şubat | C195: 2021-Şubat | D195: 2021-2 | E195: 590.52 | F195: 590.52
A196: 2021 | B196: Mart | C196: 2021-Mart | D196: 2021-3 | E196: 614.93 | F196: 614.93
A197: 2021 | B197: Nisan | C197: 2021-Nisan | D197: 2021-4 | E197: 641.63 | F197: 641.63
A198: 2021 | B198: Mayıs | C198: 2021-Mayıs | D198: 2021-5 | E198: 666.79 | F198: 666.79
A199: 2021 | B199: Haziran | C199: 2021-Haziran | D199: 2021-6 | E199: 693.54 | F199: 693.54
A200: 2021 | B200: Temmuz | C200: 2021-Temmuz | D200: 2021-7 | E200: 710.61 | F200: 710.61
... 29 more rows

Sheet DOLDURULMASI GEREKEN TABLO
C2: İKTİSADİ KIYMETİN NİTELİĞİ | E2: 250- Arazi ve Arsalar | H2: ÖNEMLİ NOTLAR: * 31.12.2022 VE ÖNCESİNDE BİLANÇODA BULUNAN VARLIKLAR LİSTEYE ALINMALIDIR. / 2023 YILINDA EDİNİLEN VARLIKLAR LİSTEYE ALINMAMALIDIR. ** AMORTİSMAN SÜRESİNİ DOLDURMUŞ OLANLAR LİSTEYE ALINMAMALIDIR. *** GEÇİCİ 32 İÇİN; İLK YILDAN SONRAKİ VE MALİYETE EKLENMİŞ OLAN KREDİ FAİZLERİ İLE KUR FARKLARI PARÇALI YENİDEN DEĞERLEMEYE TABİ TUTULUR. İLGİLİ MALİYET UNSURU AKTİFLEŞTİRİLDİĞİ TARİH İKTİSAP TARİHİ ALANINA YAZILACAK VE AYRI BİR İKTİSADİ KIYMET OLARAK DEĞERLENDİRİLECEKTİR. MÜK.298 Ç İÇİN BU TÜR MALİYET UNSURLARI YENİDEN DEĞERLEMEYE TABİ TUTULMAYACAKTIR. **** GEÇİCİ 32 İÇİN : İNŞA OLUNAN BİNALARDA, ARSA MALİYETİ ARSANIN AKTİFLEŞTİRİLDİĞİ, DİĞER MALİYET UNSURLARI İSE BİNANIN AKTİFLEŞTİRİLDİĞİ TARİH İKTİSAP TARİHİ ALANINA AYRI AYRI YAZILACAKTIR. *****GEÇİCİ 31 /1 VEYA GEÇİCİ 31/7 YE GÖRE YENİDEN DEĞERLEME YAPILMIŞ OLMASI HALİNDE, TAŞINMAZ VEYA ATİK'İN İKTİSAP DEĞERİ SÜTÜNUNDAKİ HÜCRELERE BU YENİDEN DEĞERLEMELER SONRASI OLUŞAN YENİ DEĞERLERİNE YER VERİLMELİDİR. ****** 2023/II. DÖNEM İÇİN MÜK.298 Ç UYARINCA HESAPLANAN YENİDEN DEĞERLEME ARTIŞ TUTARI HESABI 6 AYLIK KÜMÜLATİF DÖNEMİ DİKAKTE ALARAK HESAPLANDIĞINDAN, 2023/I. GEÇİCİ VERGİ DÖNEMİ İÇİN MÜK.298/Ç UYARINCA HESAPLANMIŞ VE MUHASEBE KAYDINA KONU EDİLMİŞ MALİYET ARTIŞI, AMORTİSMAN ARTIŞI VE YENİDEN DEĞERLEME ARTIŞI TUTARI BULUNMASI HALİNDE, BU BİRİNCİ DÖNEME AİT MALİYET, AMORTİSMAN VE 522-YENİDEN DEĞERLEME DEĞER ARTIŞI HESABI TUTARLARININ 2023/II. DÖNEM İÇİN HESAPLANAN MALİYET, AMORTİSMAN VE 522-YENİDEN DEĞERLEME DEĞER ARTIŞI TUTARLARINDAN TENZİL EDİLİP, KALAN TUTARIN 2023/II. DÖNEM İÇİN MİHASEBELEŞTİRİLMESİ MÜKERRER HESAPLAMA YAPILMAMASI BAKIMINDAN ÖNEM ARZ ETMEKTEDİR.
C3: Amortismana tabi olmayan gayrimenkul (boş arazi ve boş arsalar) | E3: 251- Yer altı Yerüstü Düzenleri
C4: Amortismana tabi gayrimenkul (gayrimenkullerin mütemmim cüzüleri ve teferruatı dahil) | E4: 252- Binalar
C5: Tesis ve arazi düzenlemeleri (tarım işletmelerinde vücuda getirilen meyvalık, dutluk, fındıklık, zeytinlik ve güllüklerle incir bahçeleri ve bağlar gibi tarım tesisleri dahil) | E5: 253- Tesis Makine ve Cihazlar
C6: Makinalar | E6: 254- Taşıtlar
A7: ALIM | C7: Gemiler | E7: 255- Demirbaşlar
A8: TARİHİ | C8: Taşıtlar | E8: 256- Diğer Maddi Duran Varlıklar | F8: 2022 YILINDA HERHANGİ BİR İKTİSADİ KIYMET İÇİN MÜK. 298 Ç YAPILMIŞ İSE DAHA SONRADAN GEÇİCİ 32 YE GÖRE YENİDEN DEĞERLEME YAPMA İMKANI KALMAZ.
C9: Tesis ve arazi düzenlemeleri (tarım işletmelerinde vücuda getirilen meyvalık, dutluk, fındıklık, zeytinlik ve güllüklerle incir bahçeleri ve bağlar gibi tarım tesisleri dahil) | E9: 260- Haklar
C10: Demirbaşlar | E10: 261- Şerefiye
C11: Özel maliyet bedelleri | E11: 262- Kuruluş Ve Örgütlenme Giderleri
C12: Diğer amortismana tabi iktisadi kıymetler (şerefiye, aktifleştirilen ilk tesis ve taazzuv giderleri, araştırma-geliştirme harcamaları, sinema filmleri gibi) | E12: 263- Araştırma ve Geliştirme Giderleri | F12: 2022 YILINDA MÜK.298 Ç YE GÖRE YD YAPILMIŞ MIDIR? | G12: HAYIR
E13: 264- Özel Maliyetler | F13: 2023 YILINDA (2022 YILI SONUNA KADAR OLAN DÖNEM İÇİN ) GEÇİCİ 32 YAPMA İMKANI VAR MIDIR? | G13: =IF(G12="EVET","HAYIR","EVET") -> EVET
E14: 267- Diğer Maddi Olmayan Duran Varlıklar | V14: 2023-03-31 | W14: =V14 -> 45016
E15: 271- Arama Giderleri | K15: AMORTİSMANA TABİ DEĞİL | V15: 2023-06-30 | W15: =V15 -> 45107
E16: 272- Hazırlık Ve Geliştirme Giderleri | H16: 2023 YILINDA ALINANLAR HARİÇ | K16: NORMAL AMORTİSMAN | L16: EVET | M16: 2018-05-25 | N16: EVET | O16: 2021-06-09 | P16: EVET | Q16: EVET | S16: EVET | T16: EVET | U16: EVET | V16: 2023-09-30 | W16: =V16 -> 45199
E17: 277- Diğer Özel Tükenmeye Tabi Varlıklar | H17: ÖMRÜNÜ TAMAMLAYANLAR HARİÇ | K17: AZALAN BAKİYELERE GÖRE AMORTİSMAN | L17: HAYIR | M17: =M16 -> 43245 | N17: HAYIR | O17: =O16 -> 44356 | P17: HAYIR | Q17: HAYIR | S17: HAYIR | T17: HAYIR | U17: HAYIR | V17: 2023-12-31 | W17: =V17 -> 45291
B19: SIRA NO | C19: İKTİSADİ KIYMETİN NİTELİĞİ | D19: İKTİSADİ KIYMETİN ADI | E19: MUHASEBE ANA HESAP KODU | F19: İKTİSADİ KIYMETİN AKTİFLEŞTİRİLDİĞİ YILDAN SONRAKİ YILLARDA MALİYETE ATILAN KUR FARKI, KREDİ FAİZ NİTELİĞİNDE MİDİR? | G19: EKONOMİK ÖMRÜ | H19: İKTİSAPTARİHİ | I19: İKTİSAP TARİHİ KONTROLÜ (2023 YILINDAN ÖNCE AKTİFE ALINMASI DURUMU KONTROLÜ) | J19: TAŞINMAZ VEYA ATİK İN İKTİSAP DEĞERİ (GEÇİCİ 31/1 YA DA GEÇİCİ 31/7 YE GÖRE YD YAPILMIŞ İSE BUNLARA GÖRE HESAPLANAN YD SONRASI DEĞERLER DİKKATE ALINMALIDIR) | K19: AMORTİSMAN YÖNTEMİ | L19: KIST AMORTİSMANA TABİ Mİ | M19: 7144- GEÇİCİ 31/1 E GÖRE YD YAPILABİLME DURUUMU (25.05.2018 DEN ÖNCE AKTİFTE OLMA DURUMU) | N19: 7144 SAYILI KANUNA GÖRE VUK GEÇİCİ 31 / 1 YD YAPILMIŞ MIDIR? | O19: 7326 - GEÇİCİ 31/7 YE E GÖRE YD YAPILABİLME DURUUMU (09.06.2021 DEN ÖNCE AKTİFTE OLMA DURUMU) | P19: 7326 SAYILI KANUNA GÖRE VUK GEÇİCİ 31 / 7 YD YAPILMIŞ MIDIR? | Q19: 2022 YILINDA GEÇİCİ 32 YE GÖRE (31.12.2021 TARİHİNE KADAR OLAN KISIM İÇİN) YD YAPILMIŞ MIDIR? | R19: 2023 YILINDA (31.12.2022 TARİHİNE KADAR OLAN KISIM İÇİN) GEÇİCİ 32 YAPILABİLME DURUMU | S19: 2023 YILINDA GEÇİCİ 32 YE GÖRE (31.12.2022 TARİHİNE KADAR OLAN KISIM İÇİN) YENİDEN DEĞERLEME YAPILABİLECEK MİDİR? | T19: 2023 YILINDA GEÇİCİ 32 YE GÖRE (31.12.2022 TARİHİNE KADAR OLAN KISIM İÇİN) YENİDEN DEĞERLEME YAPILACAK MIDIR ? | U19: 2023 YILINDA MÜK. 298 Ç YAPILACAK MIDIR? | V19: MÜK 298 Ç YENİDEN DEĞERLEME TARİHİ | W19: MÜK. 298 Ç YENİDEN DEĞERLEME ORANI
A21: 2006-06-23 | B21: 1 | C21: Makinalar | D21: A | E21: 253- Tesis Makine ve Cihazlar | F21: HAYIR | G21: 5 | H21: 2020-09-01 | I21: =IF(H21>=44927,"2023 YILINDA ALINAN İKTİSADİ KIYMETLER YD YAPILAMAZ","2023 YILINDA YD YAPILABİLİR") -> 2023 YILINDA YD YAPILABİLİR | J21: 1000000 | K21: NORMAL AMORTİSMAN | L21: HAYIR | M21: =IF(H21<43245,"GEÇİCİ 31/1 E GÖRE YD YAPILABİLİRDİ", "GEÇİCİ 31/1 E GÖRE YD YAPILAMAZDI") -> GEÇİCİ 31/1 E GÖRE YD YAPILAMAZDI | N21: HAYIR | O21: =IF(H21<44356,"GEÇİCİ 31/7 E GÖRE YD YAPILABİLİRDİ", "GEÇİCİ 31/7 E GÖRE YD YAPILAMAZDI") -> GEÇİCİ 31/7 E GÖRE YD YAPILABİLİRDİ | P21: HAYIR | Q21: HAYIR | R21: =IF(OR(Q21="EVET",$G$12="EVET"),"2022 YILINDA GEÇİCİ 32 YA DA MÜK.298 Ç YAPILDIĞINDAN 2023 YILINDA (2022 YILI SONUNA KADAR OLAN) GEÇİCİ 32 YAPILAMAZ","2022 YILINDA GEÇİCİ 32 VE/VEYA MÜK. 298 Ç YAPILMADIĞINDAN 2023 YILINDA (2022 SONUNA KADAR OLAN DÖNEM İÇİN) GEÇİCİ 32 YAPILABİLİR") -> 2022 YILINDA GEÇİCİ 32 VE/VEYA MÜK. 298 Ç YAPILMADIĞINDAN 2023 YILINDA (2022 SONUNA KADAR OLAN DÖNEM İÇİN) GEÇİCİ 32 YAPILABİLİR | S21: =IF(OR(Q21="EVET",$G$12="EVET"),"HAYIR","EVET") -> EVET | T21: HAYIR | U21: EVET | V21: 2023-06-30 | W21: =TRUNC(IF(V21=45016,'Aylık Yİ-ÜFE'!$N$218,IF(V21=45107,'Aylık Yİ-ÜFE'!$N$221,IF(V21=45199,'Aylık Yİ-ÜFE'!$N$224,IF(V21=45291,'Aylık Yİ-ÜFE'!$N$227)))),5) -> 0.1895
A22: 2006-08-02 | B22: 2 | C22: Taşıtlar | D22: B | E22: 254- Taşıtlar | F22: HAYIR | G22: 5 | H22: 2020-09-01 | I22: =IF(H22>=44927,"2023 YILINDA ALINAN İKTİSADİ KIYMETLER YD YAPILAMAZ","2023 YILINDA YD YAPILABİLİR") -> 2023 YILINDA YD YAPILABİLİR | J22: 1000000 | K22: NORMAL AMORTİSMAN | L22: EVET | M22: =IF(H22<43245,"GEÇİCİ 31/1 E GÖRE YD YAPILABİLİRDİ", "GEÇİCİ 31/1 E GÖRE YD YAPILAMAZDI") -> GEÇİCİ 31/1 E GÖRE YD YAPILAMAZDI | N22: HAYIR | O22: =IF(H22<44356,"GEÇİCİ 31/7 E GÖRE YD YAPILABİLİRDİ", "GEÇİCİ 31/7 E GÖRE YD YAPILAMAZDI") -> GEÇİCİ 31/7 E GÖRE YD YAPILABİLİRDİ | P22: HAYIR | Q22: HAYIR | R22: 2022 YILINDA GEÇİCİ 32 VE/VEYA MÜK. 298 Ç YAPILMADIĞINDAN 2023 YILINDA (2022 SONUNA KADAR OLAN DÖNEM İÇİN) GEÇİCİ 32 YAPILABİLİR | S22: EVET | T22: HAYIR | U22: EVET | V22: 2023-06-30 | W22: =TRUNC(IF(V22=45016,'Aylık Yİ-ÜFE'!$N$218,IF(V22=45107,'Aylık Yİ-ÜFE'!$N$221,IF(V22=45199,'Aylık Yİ-ÜFE'!$N$224,IF(V22=45291,'Aylık Yİ-ÜFE'!$N$227)))),5) -> 0.1895
A23: 2011-07-08 | B23: 3 | C23: Demirbaşlar | D23: C | E23: 255- Demirbaşlar | F23: HAYIR | G23: 5 | H23: 2020-09-01 | I23: 2023 YILINDA YD YAPILABİLİR | J23: 1000000 | K23: AZALAN BAKİYELERE GÖRE AMORTİSMAN | L23: HAYIR | M23: GEÇİCİ 31/1 E GÖRE YD YAPILAMAZDI | N23: HAYIR | O23: GEÇİCİ 31/7 E GÖRE YD YAPILABİLİRDİ | P23: HAYIR | Q23: HAYIR | R23: 2022 YILINDA GEÇİCİ 32 VE/VEYA MÜK. 298 Ç YAPILMADIĞINDAN 2023 YILINDA (2022 SONUNA KADAR OLAN DÖNEM İÇİN) GEÇİCİ 32 YAPILABİLİR | S23: EVET | T23: HAYIR | U23: EVET | V23: 2023-06-30 | W23: =TRUNC(IF(V23=45016,'Aylık Yİ-ÜFE'!$N$218,IF(V23=45107,'Aylık Yİ-ÜFE'!$N$221,IF(V23=45199,'Aylık Yİ-ÜFE'!$N$224,IF(V23=45291,'Aylık Yİ-ÜFE'!$N$227)))),5) -> 0.1895
A24: 2008-10-09 | B24: 4 | C24: Özel maliyet bedelleri | D24: Ç | E24: 264- Özel Maliyetler | F24: HAYIR | G24: 5 | H24: 2020-09-01 | I24: 2023 YILINDA YD YAPILABİLİR | J24: 1000000 | K24: AZALAN BAKİYELERE GÖRE AMORTİSMAN | L24: HAYIR | M24: GEÇİCİ 31/1 E GÖRE YD YAPILAMAZDI | N24: HAYIR | O24: GEÇİCİ 31/7 E GÖRE YD YAPILABİLİRDİ | P24: HAYIR | Q24: HAYIR | R24: 2022 YILINDA GEÇİCİ 32 VE/VEYA MÜK. 298 Ç YAPILMADIĞINDAN 2023 YILINDA (2022 SONUNA KADAR OLAN DÖNEM İÇİN) GEÇİCİ 32 YAPILABİLİR | S24: EVET | T24: HAYIR | U24: EVET | V24: 2023-06-30 | W24: =TRUNC(IF(V24=45016,'Aylık Yİ-ÜFE'!$N$218,IF(V24=45107,'Aylık Yİ-ÜFE'!$N$221,IF(V24=45199,'Aylık Yİ-ÜFE'!$N$224,IF(V24=45291,'Aylık Yİ-ÜFE'!$N$227)))),5) -> 0.1895
A25: 2000-01-01 | B25: 5 | C25: Taşıtlar | D25: D | E25: 254- Taşıtlar | F25: HAYIR | G25: 5 | H25: 2020-09-01 | I25: 2023 YILINDA YD YAPILABİLİR | J25: 1000000 | K25: AZALAN BAKİYELERE GÖRE AMORTİSMAN | L25: EVET | M25: GEÇİCİ 31/1 E GÖRE YD YAPILAMAZDI | N25: HAYIR | O25: GEÇİCİ 31/7 E GÖRE YD YAPILABİLİRDİ | P25: HAYIR | Q25: HAYIR | R25: 2022 YILINDA GEÇİCİ 32 VE/VEYA MÜK. 298 Ç YAPILMADIĞINDAN 2023 YILINDA (2022 SONUNA KADAR OLAN DÖNEM İÇİN) GEÇİCİ 32 YAPILABİLİR | S25: EVET | T25: HAYIR | U25: EVET | V25: 2023-06-30 | W25: =TRUNC(IF(V25=45016,'Aylık Yİ-ÜFE'!$N$218,IF(V25=45107,'Aylık Yİ-ÜFE'!$N$221,IF(V25=45199,'Aylık Yİ-ÜFE'!$N$224,IF(V25=45291,'Aylık Yİ-ÜFE'!$N$227)))),5) -> 0.1895
A26: 2016-11-04 | B26: 6 | I26: 2023 YILINDA YD YAPILABİLİR | M26: GEÇİCİ 31/1 E GÖRE YD YAPILABİLİRDİ | O26: GEÇİCİ 31/7 E GÖRE YD YAPILABİLİRDİ | R26: 2022 YILINDA GEÇİCİ 32 VE/VEYA MÜK. 298 Ç YAPILMADIĞINDAN 2023 YILINDA (2022 SONUNA KADAR OLAN DÖNEM İÇİN) GEÇİCİ 32 YAPILABİLİR | S26: EVET | V26: 2023-06-30 | W26: =TRUNC(IF(V26=45016,'Aylık Yİ-ÜFE'!$N$218,IF(V26=45107,'Aylık Yİ-ÜFE'!$N$221,IF(V26=45199,'Aylık Yİ-ÜFE'!$N$224,IF(V26=45291,'Aylık Yİ-ÜFE'!$N$227)))),5) -> 0.1895
A27: 2016-11-10 | B27: 7 | I27: 2023 YILINDA YD YAPILABİLİR | M27: GEÇİCİ 31/1 E GÖRE YD YAPILABİLİRDİ | O27: GEÇİCİ 31/7 E GÖRE YD YAPILABİLİRDİ | R27: 2022 YILINDA GEÇİCİ 32 VE/VEYA MÜK. 298 Ç YAPILMADIĞINDAN 2023 YILINDA (2022 SONUNA KADAR OLAN DÖNEM İÇİN) GEÇİCİ 32 YAPILABİLİR | S27: EVET | V27: =V26 -> 2023-06-30 | W27: =TRUNC(IF(V27=45016,'Aylık Yİ-ÜFE'!$N$218,IF(V27=45107,'Aylık Yİ-ÜFE'!$N$221,IF(V27=45199,'Aylık Yİ-ÜFE'!$N$224,IF(V27=45291,'Aylık Yİ-ÜFE'!$N$227)))),5) -> 0.1895
A28: 2016-11-18 | B28: 8 | I28: 2023 YILINDA YD YAPILABİLİR | M28: GEÇİCİ 31/1 E GÖRE YD YAPILABİLİRDİ | O28: GEÇİCİ 31/7 E GÖRE YD YAPILABİLİRDİ | R28: 2022 YILINDA GEÇİCİ 32 VE/VEYA MÜK. 298 Ç YAPILMADIĞINDAN 2023 YILINDA (2022 SONUNA KADAR OLAN DÖNEM İÇİN) GEÇİCİ 32 YAPILABİLİR | S28: EVET | V28: 2023-06-30 | W28: =TRUNC(IF(V28=45016,'Aylık Yİ-ÜFE'!$N$218,IF(V28=45107,'Aylık Yİ-ÜFE'!$N$221,IF(V28=45199,'Aylık Yİ-ÜFE'!$N$224,IF(V28=45291,'Aylık Yİ-ÜFE'!$N$227)))),5) -> 0.1895
A29: 2016-11-30 | B29: 9 | I29: 2023 YILINDA YD YAPILABİLİR | M29: GEÇİCİ 31/1 E GÖRE YD YAPILABİLİRDİ | O29: GEÇİCİ 31/7 E GÖRE YD YAPILABİLİRDİ | R29: 2022 YILINDA GEÇİCİ 32 VE/VEYA MÜK. 298 Ç YAPILMADIĞINDAN 2023 YILINDA (2022 SONUNA KADAR OLAN DÖNEM İÇİN) GEÇİCİ 32 YAPILABİLİR | S29: EVET | V29: 2023-06-30 | W29: =TRUNC(IF(V29=45016,'Aylık Yİ-ÜFE'!$N$218,IF(V29=45107,'Aylık Yİ-ÜFE'!$N$221,IF(V29=45199,'Aylık Yİ-ÜFE'!$N$224,IF(V29=45291,'Aylık Yİ-ÜFE'!$N$227)))),5) -> 0.1895
A30: 2016-11-30 | B30: 10 | I30: 2023 YILINDA YD YAPILABİLİR | M30: GEÇİCİ 31/1 E GÖRE YD YAPILABİLİRDİ | O30: GEÇİCİ 31/7 E GÖRE YD YAPILABİLİRDİ | R30: 2022 YILINDA GEÇİCİ 32 VE/VEYA MÜK. 298 Ç YAPILMADIĞINDAN 2023 YILINDA (2022 SONUNA KADAR OLAN DÖNEM İÇİN) GEÇİCİ 32 YAPILABİLİR | S30: EVET | V30: 2023-06-30 | W30: =TRUNC(IF(V30=45016,'Aylık Yİ-ÜFE'!$N$218,IF(V30=45107,'Aylık Yİ-ÜFE'!$N$221,IF(V30=45199,'Aylık Yİ-ÜFE'!$N$224,IF(V30=45291,'Aylık Yİ-ÜFE'!$N$227)))),5) -> 0.1895
A31: 2016-11-30 | B31: 11 | I31: 2023 YILINDA YD YAPILABİLİR | M31: GEÇİCİ 31/1 E GÖRE YD YAPILABİLİRDİ | O31: GEÇİCİ 31/7 E GÖRE YD YAPILABİLİRDİ | R31: 2022 YILINDA GEÇİCİ 32 VE/VEYA MÜK. 298 Ç YAPILMADIĞINDAN 2023 YILINDA (2022 SONUNA KADAR OLAN DÖNEM İÇİN) GEÇİCİ 32 YAPILABİLİR | S31: EVET | V31: 2023-06-30 | W31: =TRUNC(IF(V31=45016,'Aylık Yİ-ÜFE'!$N$218,IF(V31=45107,'Aylık Yİ-ÜFE'!$N$221,IF(V31=45199,'Aylık Yİ-ÜFE'!$N$224,IF(V31=45291,'Aylık Yİ-ÜFE'!$N$227)))),5) -> 0.1895
A32: 2016-11-30 | B32: 12 | I32: 2023 YILINDA YD YAPILABİLİR | M32: GEÇİCİ 31/1 E GÖRE YD YAPILABİLİRDİ | O32: GEÇİCİ 31/7 E GÖRE YD YAPILABİLİRDİ | R32: 2022 YILINDA GEÇİCİ 32 VE/VEYA MÜK. 298 Ç YAPILMADIĞINDAN 2023 YILINDA (2022 SONUNA KADAR OLAN DÖNEM İÇİN) GEÇİCİ 32 YAPILABİLİR | S32: EVET | V32: 2023-06-30 | W32: =TRUNC(IF(V32=45016,'Aylık Yİ-ÜFE'!$N$218,IF(V32=45107,'Aylık Yİ-ÜFE'!$N$221,IF(V32=45199,'Aylık Yİ-ÜFE'!$N$224,IF(V32=45291,'Aylık Yİ-ÜFE'!$N$227)))),5) -> 0.1895
A33: 2016-12-05 | B33: 13 | I33: 2023 YILINDA YD YAPILABİLİR | M33: GEÇİCİ 31/1 E GÖRE YD YAPILABİLİRDİ | O33: GEÇİCİ 31/7 E GÖRE YD YAPILABİLİRDİ | R33: 2022 YILINDA GEÇİCİ 32 VE/VEYA MÜK. 298 Ç YAPILMADIĞINDAN 2023 YILINDA (2022 SONUNA KADAR OLAN DÖNEM İÇİN) GEÇİCİ 32 YAPILABİLİR | S33: EVET | V33: 2023-06-30 | W33: =TRUNC(IF(V33=45016,'Aylık Yİ-ÜFE'!$N$218,IF(V33=45107,'Aylık Yİ-ÜFE'!$N$221,IF(V33=45199,'Aylık Yİ-ÜFE'!$N$224,IF(V33=45291,'Aylık Yİ-ÜFE'!$N$227)))),5) -> 0.1895
A34: 2016-12-05 | B34: 14 | I34: 2023 YILINDA YD YAPILABİLİR | M34: GEÇİCİ 31/1 E GÖRE YD YAPILABİLİRDİ | O34: GEÇİCİ 31/7 E GÖRE YD YAPILABİLİRDİ | R34: 2022 YILINDA GEÇİCİ 32 VE/VEYA MÜK. 298 Ç YAPILMADIĞINDAN 2023 YILINDA (2022 SONUNA KADAR OLAN DÖNEM İÇİN) GEÇİCİ 32 YAPILABİLİR | S34: EVET | V34: 2023-06-30 | W34: =TRUNC(IF(V34=45016,'Aylık Yİ-ÜFE'!$N$218,IF(V34=45107,'Aylık Yİ-ÜFE'!$N$221,IF(V34=45199,'Aylık Yİ-ÜFE'!$N$224,IF(V34=45291,'Aylık Yİ-ÜFE'!$N$227)))),5) -> 0.1895
A35: 2017-02-04 | B35: 15 | I35: 2023 YILINDA YD YAPILABİLİR | M35: GEÇİCİ 31/1 E GÖRE YD YAPILABİLİRDİ | O35: GEÇİCİ 31/7 E GÖRE YD YAPILABİLİRDİ | R35: 2022 YILINDA GEÇİCİ 32 VE/VEYA MÜK. 298 Ç YAPILMADIĞINDAN 2023 YILINDA (2022 SONUNA KADAR OLAN DÖNEM İÇİN) GEÇİCİ 32 YAPILABİLİR | S35: EVET | V35: 2023-06-30 | W35: =TRUNC(IF(V35=45016,'Aylık Yİ-ÜFE'!$N$218,IF(V35=45107,'Aylık Yİ-ÜFE'!$N$221,IF(V35=45199,'Aylık Yİ-ÜFE'!$N$224,IF(V35=45291,'Aylık Yİ-ÜFE'!$N$227)))),5) -> 0.1895
A36: 2017-02-28 | B36: 16 | I36: 2023 YILINDA YD YAPILABİLİR | M36: GEÇİCİ 31/1 E GÖRE YD YAPILABİLİRDİ | O36: GEÇİCİ 31/7 E GÖRE YD YAPILABİLİRDİ | R36: 2022 YILINDA GEÇİCİ 32 VE/VEYA MÜK. 298 Ç YAPILMADIĞINDAN 2023 YILINDA (2022 SONUNA KADAR OLAN DÖNEM İÇİN) GEÇİCİ 32 YAPILABİLİR | S36: EVET | V36: 2023-06-30 | W36: =TRUNC(IF(V36=45016,'Aylık Yİ-ÜFE'!$N$218,IF(V36=45107,'Aylık Yİ-ÜFE'!$N$221,IF(V36=45199,'Aylık Yİ-ÜFE'!$N$224,IF(V36=45291,'Aylık Yİ-ÜFE'!$N$227)))),5) -> 0.1895
A37: 2001-01-01 | B37: 17 | I37: 2023 YILINDA YD YAPILABİLİR | M37: GEÇİCİ 31/1 E GÖRE YD YAPILABİLİRDİ | O37: GEÇİCİ 31/7 E GÖRE YD YAPILABİLİRDİ | R37: 2022 YILINDA GEÇİCİ 32 VE/VEYA MÜK. 298 Ç YAPILMADIĞINDAN 2023 YILINDA (2022 SONUNA KADAR OLAN DÖNEM İÇİN) GEÇİCİ 32 YAPILABİLİR | S37: EVET | V37: 2023-06-30 | W37: =TRUNC(IF(V37=45016,'Aylık Yİ-ÜFE'!$N$218,IF(V37=45107,'Aylık Yİ-ÜFE'!$N$221,IF(V37=45199,'Aylık Yİ-ÜFE'!$N$224,IF(V37=45291,'Aylık Yİ-ÜFE'!$N$227)))),5) -> 0.1895
A38: 2017-04-07 | B38: 18 | I38: 2023 YILINDA YD YAPILABİLİR | M38: GEÇİCİ 31/1 E GÖRE YD YAPILABİLİRDİ | O38: GEÇİCİ 31/7 E GÖRE YD YAPILABİLİRDİ | R38: 2022 YILINDA GEÇİCİ 32 VE/VEYA MÜK. 298 Ç YAPILMADIĞINDAN 2023 YILINDA (2022 SONUNA KADAR OLAN DÖNEM İÇİN) GEÇİCİ 32 YAPILABİLİR | S38: EVET | V38: 2023-06-30 | W38: =TRUNC(IF(V38=45016,'Aylık Yİ-ÜFE'!$N$218,IF(V38=45107,'Aylık Yİ-ÜFE'!$N$221,IF(V38=45199,'Aylık Yİ-ÜFE'!$N$224,IF(V38=45291,'Aylık Yİ-ÜFE'!$N$227)))),5) -> 0.1895
A39: 2017-10-17 | B39: 19 | I39: 2023 YILINDA YD YAPILABİLİR | M39: GEÇİCİ 31/1 E GÖRE YD YAPILABİLİRDİ | O39: GEÇİCİ 31/7 E GÖRE YD YAPILABİLİRDİ | R39: 2022 YILINDA GEÇİCİ 32 VE/VEYA MÜK. 298 Ç YAPILMADIĞINDAN 2023 YILINDA (2022 SONUNA KADAR OLAN DÖNEM İÇİN) GEÇİCİ 32 YAPILABİLİR | S39: EVET | V39: 2023-06-30 | W39: =TRUNC(IF(V39=45016,'Aylık Yİ-ÜFE'!$N$218,IF(V39=45107,'Aylık Yİ-ÜFE'!$N$221,IF(V39=45199,'Aylık Yİ-ÜFE'!$N$224,IF(V39=45291,'Aylık Yİ-ÜFE'!$N$227)))),5) -> 0.1895
A40: 2018-05-28 | B40: 20 | I40: 2023 YILINDA YD YAPILABİLİR | M40: GEÇİCİ 31/1 E GÖRE YD YAPILABİLİRDİ | O40: GEÇİCİ 31/7 E GÖRE YD YAPILABİLİRDİ | R40: 2022 YILINDA GEÇİCİ 32 VE/VEYA MÜK. 298 Ç YAPILMADIĞINDAN 2023 YILINDA (2022 SONUNA KADAR OLAN DÖNEM İÇİN) GEÇİCİ 32 YAPILABİLİR | S40: EVET | V40: 2023-06-30 | W40: =TRUNC(IF(V40=45016,'Aylık Yİ-ÜFE'!$N$218,IF(V40=45107,'Aylık Yİ-ÜFE'!$N$221,IF(V40=45199,'Aylık Yİ-ÜFE'!$N$224,IF(V40=45291,'Aylık Yİ-ÜFE'!$N$227)))),5) -> 0.1895
A41: 2018-05-28 | B41: 21 | I41: 2023 YILINDA YD YAPILABİLİR | M41: GEÇİCİ 31/1 E GÖRE YD YAPILABİLİRDİ | O41: GEÇİCİ 31/7 E GÖRE YD YAPILABİLİRDİ | R41: 2022 YILINDA GEÇİCİ 32 VE/VEYA MÜK. 298 Ç YAPILMADIĞINDAN 2023 YILINDA (2022 SONUNA KADAR OLAN DÖNEM İÇİN) GEÇİCİ 32 YAPILABİLİR | S41: EVET | V41: 2023-06-30 | W41: =TRUNC(IF(V41=45016,'Aylık Yİ-ÜFE'!$N$218,IF(V41=45107,'Aylık Yİ-ÜFE'!$N$221,IF(V41=45199,'Aylık Yİ-ÜFE'!$N$224,IF(V41=45291,'Aylık Yİ-ÜFE'!$N$227)))),5) -> 0.1895
A42: 2018-05-25 | B42: 22 | I42: 2023 YILINDA YD YAPILABİLİR | M42: GEÇİCİ 31/1 E GÖRE YD YAPILABİLİRDİ | O42: GEÇİCİ 31/7 E GÖRE YD YAPILABİLİRDİ | R42: 2022 YILINDA GEÇİCİ 32 VE/VEYA MÜK. 298 Ç YAPILMADIĞINDAN 2023 YILINDA (2022 SONUNA KADAR OLAN DÖNEM İÇİN) GEÇİCİ 32 YAPILABİLİR | S42: EVET | V42: 2023-06-30 | W42: =TRUNC(IF(V42=45016,'Aylık Yİ-ÜFE'!$N$218,IF(V42=45107,'Aylık Yİ-ÜFE'!$N$221,IF(V42=45199,'Aylık Yİ-ÜFE'!$N$224,IF(V42=45291,'Aylık Yİ-ÜFE'!$N$227)))),5) -> 0.1895
A43: 2018-05-31 | B43: 23 | I43: 2023 YILINDA YD YAPILABİLİR | M43: GEÇİCİ 31/1 E GÖRE YD YAPILABİLİRDİ | O43: GEÇİCİ 31/7 E GÖRE YD YAPILABİLİRDİ | R43: 2022 YILINDA GEÇİCİ 32 VE/VEYA MÜK. 298 Ç YAPILMADIĞINDAN 2023 YILINDA (2022 SONUNA KADAR OLAN DÖNEM İÇİN) GEÇİCİ 32 YAPILABİLİR | S43: EVET | V43: 2023-06-30 | W43: =TRUNC(IF(V43=45016,'Aylık Yİ-ÜFE'!$N$218,IF(V43=45107,'Aylık Yİ-ÜFE'!$N$221,IF(V43=45199,'Aylık Yİ-ÜFE'!$N$224,IF(V43=45291,'Aylık Yİ-ÜFE'!$N$227)))),5) -> 0.1895
A44: 2018-05-31 | B44: 24 | I44: 2023 YILINDA YD YAPILABİLİR | M44: GEÇİCİ 31/1 E GÖRE YD YAPILABİLİRDİ | O44: GEÇİCİ 31/7 E GÖRE YD YAPILABİLİRDİ | R44: 2022 YILINDA GEÇİCİ 32 VE/VEYA MÜK. 298 Ç YAPILMADIĞINDAN 2023 YILINDA (2022 SONUNA KADAR OLAN DÖNEM İÇİN) GEÇİCİ 32 YAPILABİLİR | S44: EVET | V44: 2023-06-30 | W44: =TRUNC(IF(V44=45016,'Aylık Yİ-ÜFE'!$N$218,IF(V44=45107,'Aylık Yİ-ÜFE'!$N$221,IF(V44=45199,'Aylık Yİ-ÜFE'!$N$224,IF(V44=45291,'Aylık Yİ-ÜFE'!$N$227)))),5) -> 0.1895
A45: 2019-10-01 | B45: 25 | I45: 2023 YILINDA YD YAPILABİLİR | M45: GEÇİCİ 31/1 E GÖRE YD YAPILABİLİRDİ | O45: GEÇİCİ 31/7 E GÖRE YD YAPILABİLİRDİ | R45: 2022 YILINDA GEÇİCİ 32 VE/VEYA MÜK. 298 Ç YAPILMADIĞINDAN 2023 YILINDA (2022 SONUNA KADAR OLAN DÖNEM İÇİN) GEÇİCİ 32 YAPILABİLİR | S45: EVET | V45: 2023-06-30 | W45: =TRUNC(IF(V45=45016,'Aylık Yİ-ÜFE'!$N$218,IF(V45=45107,'Aylık Yİ-ÜFE'!$N$221,IF(V45=45199,'Aylık Yİ-ÜFE'!$N$224,IF(V45=45291,'Aylık Yİ-ÜFE'!$N$227)))),5) -> 0.1895
A46: 2019-10-09 | B46: 26 | I46: 2023 YILINDA YD YAPILABİLİR | M46: GEÇİCİ 31/1 E GÖRE YD YAPILABİLİRDİ | O46: GEÇİCİ 31/7 E GÖRE YD YAPILABİLİRDİ | R46: 2022 YILINDA GEÇİCİ 32 VE/VEYA MÜK. 298 Ç YAPILMADIĞINDAN 2023 YILINDA (2022 SONUNA KADAR OLAN DÖNEM İÇİN) GEÇİCİ 32 YAPILABİLİR | S46: EVET | V46: 2023-06-30 | W46: =TRUNC(IF(V46=45016,'Aylık Yİ-ÜFE'!$N$218,IF(V46=45107,'Aylık Yİ-ÜFE'!$N$221,IF(V46=45199,'Aylık Yİ-ÜFE'!$N$224,IF(V46=45291,'Aylık Yİ-ÜFE'!$N$227)))),5) -> 0.1895
A47: 2019-10-12 | B47: 27 | I47: 2023 YILINDA YD YAPILABİLİR | M47: GEÇİCİ 31/1 E GÖRE YD YAPILABİLİRDİ | O47: GEÇİCİ 31/7 E GÖRE YD YAPILABİLİRDİ | R47: 2022 YILINDA GEÇİCİ 32 VE/VEYA MÜK. 298 Ç YAPILMADIĞINDAN 2023 YILINDA (2022 SONUNA KADAR OLAN DÖNEM İÇİN) GEÇİCİ 32 YAPILABİLİR | S47: EVET | V47: 2023-06-30 | W47: =TRUNC(IF(V47=45016,'Aylık Yİ-ÜFE'!$N$218,IF(V47=45107,'Aylık Yİ-ÜFE'!$N$221,IF(V47=45199,'Aylık Yİ-ÜFE'!$N$224,IF(V47=45291,'Aylık Yİ-ÜFE'!$N$227)))),5) -> 0.1895
A48: 2001-01-01 | B48: 28 | I48: 2023 YILINDA YD YAPILABİLİR | M48: GEÇİCİ 31/1 E GÖRE YD YAPILABİLİRDİ | O48: GEÇİCİ 31/7 E GÖRE YD YAPILABİLİRDİ | R48: 2022 YILINDA GEÇİCİ 32 VE/VEYA MÜK. 298 Ç YAPILMADIĞINDAN 2023 YILINDA (2022 SONUNA KADAR OLAN DÖNEM İÇİN) GEÇİCİ 32 YAPILABİLİR | S48: EVET | V48: 2023-06-30 | W48: =TRUNC(IF(V48=45016,'Aylık Yİ-ÜFE'!$N$218,IF(V48=45107,'Aylık Yİ-ÜFE'!$N$221,IF(V48=45199,'Aylık Yİ-ÜFE'!$N$224,IF(V48=45291,'Aylık Yİ-ÜFE'!$N$227)))),5) -> 0.1895
A49: 2006-01-01 | B49: 29 | I49: 2023 YILINDA YD YAPILABİLİR | M49: GEÇİCİ 31/1 E GÖRE YD YAPILABİLİRDİ | O49: GEÇİCİ 31/7 E GÖRE YD YAPILABİLİRDİ | R49: 2022 YILINDA GEÇİCİ 32 VE/VEYA MÜK. 298 Ç YAPILMADIĞINDAN 2023 YILINDA (2022 SONUNA KADAR OLAN DÖNEM İÇİN) GEÇİCİ 32 YAPILABİLİR | S49: EVET | V49: 2023-06-30 | W49: =TRUNC(IF(V49=45016,'Aylık Yİ-ÜFE'!$N$218,IF(V49=45107,'Aylık Yİ-ÜFE'!$N$221,IF(V49=45199,'Aylık Yİ-ÜFE'!$N$224,IF(V49=45291,'Aylık Yİ-ÜFE'!$N$227)))),5) -> 0.1895
A50: 2006-01-01 | B50: 30 | I50: 2023 YILINDA YD YAPILABİLİR | M50: GEÇİCİ 31/1 E GÖRE YD YAPILABİLİRDİ | O50: GEÇİCİ 31/7 E GÖRE YD YAPILABİLİRDİ | R50: 2022 YILINDA GEÇİCİ 32 VE/VEYA MÜK. 298 Ç YAPILMADIĞINDAN 2023 YILINDA (2022 SONUNA KADAR OLAN DÖNEM İÇİN) GEÇİCİ 32 YAPILABİLİR | S50: EVET | V50: 2023-06-30 | W50: =TRUNC(IF(V50=45016,'Aylık Yİ-ÜFE'!$N$218,IF(V50=45107,'Aylık Yİ-ÜFE'!$N$221,IF(V50=45199,'Aylık Yİ-ÜFE'!$N$224,IF(V50=45291,'Aylık Yİ-ÜFE'!$N$227)))),5) -> 0.1895
A51: 2018-06-26 | B51: 31 | I51: 2023 YILINDA YD YAPILABİLİR | M51: GEÇİCİ 31/1 E GÖRE YD YAPILABİLİRDİ | O51: GEÇİCİ 31/7 E GÖRE YD YAPILABİLİRDİ | R51: 2022 YILINDA GEÇİCİ 32 VE/VEYA MÜK. 298 Ç YAPILMADIĞINDAN 2023 YILINDA (2022 SONUNA KADAR OLAN DÖNEM İÇİN) GEÇİCİ 32 YAPILABİLİR | S51: EVET | V51: 2023-06-30 | W51: =TRUNC(IF(V51=45016,'Aylık Yİ-ÜFE'!$N$218,IF(V51=45107,'Aylık Yİ-ÜFE'!$N$221,IF(V51=45199,'Aylık Yİ-ÜFE'!$N$224,IF(V51=45291,'Aylık Yİ-ÜFE'!$N$227)))),5) -> 0.1895
A52: 2018-08-02 | B52: 32 | I52: 2023 YILINDA YD YAPILABİLİR | M52: GEÇİCİ 31/1 E GÖRE YD YAPILABİLİRDİ | O52: GEÇİCİ 31/7 E GÖRE YD YAPILABİLİRDİ | R52: 2022 YILINDA GEÇİCİ 32 VE/VEYA MÜK. 298 Ç YAPILMADIĞINDAN 2023 YILINDA (2022 SONUNA KADAR OLAN DÖNEM İÇİN) GEÇİCİ 32 YAPILABİLİR | S52: EVET | V52: 2023-06-30 | W52: =TRUNC(IF(V52=45016,'Aylık Yİ-ÜFE'!$N$218,IF(V52=45107,'Aylık Yİ-ÜFE'!$N$221,IF(V52=45199,'Aylık Yİ-ÜFE'!$N$224,IF(V52=45291,'Aylık Yİ-ÜFE'!$N$227)))),5) -> 0.1895
A53: 2018-08-03 | B53: 33 | I53: 2023 YILINDA YD YAPILABİLİR | M53: GEÇİCİ 31/1 E GÖRE YD YAPILABİLİRDİ | O53: GEÇİCİ 31/7 E GÖRE YD YAPILABİLİRDİ | R53: 2022 YILINDA GEÇİCİ 32 VE/VEYA MÜK. 298 Ç YAPILMADIĞINDAN 2023 YILINDA (2022 SONUNA KADAR OLAN DÖNEM İÇİN) GEÇİCİ 32 YAPILABİLİR | S53: EVET | V53: 2023-06-30 | W53: =TRUNC(IF(V53=45016,'Aylık Yİ-ÜFE'!$N$218,IF(V53=45107,'Aylık Yİ-ÜFE'!$N$221,IF(V53=45199,'Aylık Yİ-ÜFE'!$N$224,IF(V53=45291,'Aylık Yİ-ÜFE'!$N$227)))),5) -> 0.1895
A54: 2018-08-03 | B54: 34 | I54: 2023 YILINDA YD YAPILABİLİR | M54: GEÇİCİ 31/1 E GÖRE YD YAPILABİLİRDİ | O54: GEÇİCİ 31/7 E GÖRE YD YAPILABİLİRDİ | R54: 2022 YILINDA GEÇİCİ 32 VE/VEYA MÜK. 298 Ç YAPILMADIĞINDAN 2023 YILINDA (2022 SONUNA KADAR OLAN DÖNEM İÇİN) GEÇİCİ 32 YAPILABİLİR | S54: EVET | V54: 2023-06-30 | W54: =TRUNC(IF(V54=45016,'Aylık Yİ-ÜFE'!$N$218,IF(V54=45107,'Aylık Yİ-ÜFE'!$N$221,IF(V54=45199,'Aylık Yİ-ÜFE'!$N$224,IF(V54=45291,'Aylık Yİ-ÜFE'!$N$227)))),5) -> 0.1895
A55: 2018-07-31 | B55: 35 | I55: 2023 YILINDA YD YAPILABİLİR | M55: GEÇİCİ 31/1 E GÖRE YD YAPILABİLİRDİ | O55: GEÇİCİ 31/7 E GÖRE YD YAPILABİLİRDİ | R55: 2022 YILINDA GEÇİCİ 32 VE/VEYA MÜK. 298 Ç YAPILMADIĞINDAN 2023 YILINDA (2022 SONUNA KADAR OLAN DÖNEM İÇİN) GEÇİCİ 32 YAPILABİLİR | S55: EVET | V55: 2023-06-30 | W55: =TRUNC(IF(V55=45016,'Aylık Yİ-ÜFE'!$N$218,IF(V55=45107,'Aylık Yİ-ÜFE'!$N$221,IF(V55=45199,'Aylık Yİ-ÜFE'!$N$224,IF(V55=45291,'Aylık Yİ-ÜFE'!$N$227)))),5) -> 0.1895
A56: 2018-08-27 | B56: 36 | I56: 2023 YILINDA YD YAPILABİLİR | M56: GEÇİCİ 31/1 E GÖRE YD YAPILABİLİRDİ | O56: GEÇİCİ 31/7 E GÖRE YD YAPILABİLİRDİ | R56: 2022 YILINDA GEÇİCİ 32 VE/VEYA MÜK. 298 Ç YAPILMADIĞINDAN 2023 YILINDA (2022 SONUNA KADAR OLAN DÖNEM İÇİN) GEÇİCİ 32 YAPILABİLİR | S56: EVET | V56: 2023-06-30 | W56: =TRUNC(IF(V56=45016,'Aylık Yİ-ÜFE'!$N$218,IF(V56=45107,'Aylık Yİ-ÜFE'!$N$221,IF(V56=45199,'Aylık Yİ-ÜFE'!$N$224,IF(V56=45291,'Aylık Yİ-ÜFE'!$N$227)))),5) -> 0.1895
A57: 2018-09-13 | B57: 37 | I57: 2023 YILINDA YD YAPILABİLİR | M57: GEÇİCİ 31/1 E GÖRE YD YAPILABİLİRDİ | O57: GEÇİCİ 31/7 E GÖRE YD YAPILABİLİRDİ | R57: 2022 YILINDA GEÇİCİ 32 VE/VEYA MÜK. 298 Ç YAPILMADIĞINDAN 2023 YILINDA (2022 SONUNA KADAR OLAN DÖNEM İÇİN) GEÇİCİ 32 YAPILABİLİR | S57: EVET | V57: 2023-06-30 | W57: =TRUNC(IF(V57=45016,'Aylık Yİ-ÜFE'!$N$218,IF(V57=45107,'Aylık Yİ-ÜFE'!$N$221,IF(V57=45199,'Aylık Yİ-ÜFE'!$N$224,IF(V57=45291,'Aylık Yİ-ÜFE'!$N$227)))),5) -> 0.1895
A58: 2018-09-21 | B58: 38 | I58: 2023 YILINDA YD YAPILABİLİR | M58: GEÇİCİ 31/1 E GÖRE YD YAPILABİLİRDİ | O58: GEÇİCİ 31/7 E GÖRE YD YAPILABİLİRDİ | R58: 2022 YILINDA GEÇİCİ 32 VE/VEYA MÜK. 298 Ç YAPILMADIĞINDAN 2023 YILINDA (2022 SONUNA KADAR OLAN DÖNEM İÇİN) GEÇİCİ 32 YAPILABİLİR | S58: EVET | V58: 2023-06-30 | W58: =TRUNC(IF(V58=45016,'Aylık Yİ-ÜFE'!$N$218,IF(V58=45107,'Aylık Yİ-ÜFE'!$N$221,IF(V58=45199,'Aylık Yİ-ÜFE'!$N$224,IF(V58=45291,'Aylık Yİ-ÜFE'!$N$227)))),5) -> 0.1895
A59: 2019-05-15 | B59: 39 | I59: 2023 YILINDA YD YAPILABİLİR | M59: GEÇİCİ 31/1 E GÖRE YD YAPILABİLİRDİ | O59: GEÇİCİ 31/7 E GÖRE YD YAPILABİLİRDİ | R59: 2022 YILINDA GEÇİCİ 32 VE/VEYA MÜK. 298 Ç YAPILMADIĞINDAN 2023 YILINDA (2022 SONUNA KADAR OLAN DÖNEM İÇİN) GEÇİCİ 32 YAPILABİLİR | S59: EVET | V59: 2023-06-30 | W59: =TRUNC(IF(V59=45016,'Aylık Yİ-ÜFE'!$N$218,IF(V59=45107,'Aylık Yİ-ÜFE'!$N$221,IF(V59=45199,'Aylık Yİ-ÜFE'!$N$224,IF(V59=45291,'Aylık Yİ-ÜFE'!$N$227)))),5) -> 0.1895
A60: 2019-09-14 | B60: 40 | I60: 2023 YILINDA YD YAPILABİLİR | M60: GEÇİCİ 31/1 E GÖRE YD YAPILABİLİRDİ | O60: GEÇİCİ 31/7 E GÖRE YD YAPILABİLİRDİ | R60: 2022 YILINDA GEÇİCİ 32 VE/VEYA MÜK. 298 Ç YAPILMADIĞINDAN 2023 YILINDA (2022 SONUNA KADAR OLAN DÖNEM İÇİN) GEÇİCİ 32 YAPILABİLİR | S60: EVET | V60: 2023-06-30 | W60: =TRUNC(IF(V60=45016,'Aylık Yİ-ÜFE'!$N$218,IF(V60=45107,'Aylık Yİ-ÜFE'!$N$221,IF(V60=45199,'Aylık Yİ-ÜFE'!$N$224,IF(V60=45291,'Aylık Yİ-ÜFE'!$N$227)))),5) -> 0.1895
A61: 2019-09-15 | B61: 41 | I61: 2023 YILINDA YD YAPILABİLİR | M61: GEÇİCİ 31/1 E GÖRE YD YAPILABİLİRDİ | O61: GEÇİCİ 31/7 E GÖRE YD YAPILABİLİRDİ | R61: 2022 YILINDA GEÇİCİ 32 VE/VEYA MÜK. 298 Ç YAPILMADIĞINDAN 2023 YILINDA (2022 SONUNA KADAR OLAN DÖNEM İÇİN) GEÇİCİ 32 YAPILABİLİR | S61: EVET | V61: 2023-06-30 | W61: =TRUNC(IF(V61=45016,'Aylık Yİ-ÜFE'!$N$218,IF(V61=45107,'Aylık Yİ-ÜFE'!$N$221,IF(V61=45199,'Aylık Yİ-ÜFE'!$N$224,IF(V61=45291,'Aylık Yİ-ÜFE'!$N$227)))),5) -> 0.1895
A62: 2019-09-24 | B62: 42 | I62: 2023 YILINDA YD YAPILABİLİR | M62: GEÇİCİ 31/1 E GÖRE YD YAPILABİLİRDİ | O62: GEÇİCİ 31/7 E GÖRE YD YAPILABİLİRDİ | R62: 2022 YILINDA GEÇİCİ 32 VE/VEYA MÜK. 298 Ç YAPILMADIĞINDAN 2023 YILINDA (2022 SONUNA KADAR OLAN DÖNEM İÇİN) GEÇİCİ 32 YAPILABİLİR | S62: EVET | V62: 2023-06-30 | W62: =TRUNC(IF(V62=45016,'Aylık Yİ-ÜFE'!$N$218,IF(V62=45107,'Aylık Yİ-ÜFE'!$N$221,IF(V62=45199,'Aylık Yİ-ÜFE'!$N$224,IF(V62=45291,'Aylık Yİ-ÜFE'!$N$227)))),5) -> 0.1895
A63: 2019-10-01 | B63: 43 | I63: 2023 YILINDA YD YAPILABİLİR | M63: GEÇİCİ 31/1 E GÖRE YD YAPILABİLİRDİ | O63: GEÇİCİ 31/7 E GÖRE YD YAPILABİLİRDİ | R63: 2022 YILINDA GEÇİCİ 32 VE/VEYA MÜK. 298 Ç YAPILMADIĞINDAN 2023 YILINDA (2022 SONUNA KADAR OLAN DÖNEM İÇİN) GEÇİCİ 32 YAPILABİLİR | S63: EVET | V63: 2023-06-30 | W63: =TRUNC(IF(V63=45016,'Aylık Yİ-ÜFE'!$N$218,IF(V63=45107,'Aylık Yİ-ÜFE'!$N$221,IF(V63=45199,'Aylık Yİ-ÜFE'!$N$224,IF(V63=45291,'Aylık Yİ-ÜFE'!$N$227)))),5) -> 0.1895
A64: 2019-10-15 | B64: 44 | I64: 2023 YILINDA YD YAPILABİLİR | M64: GEÇİCİ 31/1 E GÖRE YD YAPILABİLİRDİ | O64: GEÇİCİ 31/7 E GÖRE YD YAPILABİLİRDİ | R64: 2022 YILINDA GEÇİCİ 32 VE/VEYA MÜK. 298 Ç YAPILMADIĞINDAN 2023 YILINDA (2022 SONUNA KADAR OLAN DÖNEM İÇİN) GEÇİCİ 32 YAPILABİLİR | S64: EVET | V64: 2023-06-30 | W64: =TRUNC(IF(V64=45016,'Aylık Yİ-ÜFE'!$N$218,IF(V64=45107,'Aylık Yİ-ÜFE'!$N$221,IF(V64=45199,'Aylık Yİ-ÜFE'!$N$224,IF(V64=45291,'Aylık Yİ-ÜFE'!$N$227)))),5) -> 0.1895
A65: 2020-05-29 | B65: 45 | I65: 2023 YILINDA YD YAPILABİLİR | M65: GEÇİCİ 31/1 E GÖRE YD YAPILABİLİRDİ | O65: GEÇİCİ 31/7 E GÖRE YD YAPILABİLİRDİ | R65: 2022 YILINDA GEÇİCİ 32 VE/VEYA MÜK. 298 Ç YAPILMADIĞINDAN 2023 YILINDA (2022 SONUNA KADAR OLAN DÖNEM İÇİN) GEÇİCİ 32 YAPILABİLİR | S65: EVET | V65: 2023-06-30 | W65: =TRUNC(IF(V65=45016,'Aylık Yİ-ÜFE'!$N$218,IF(V65=45107,'Aylık Yİ-ÜFE'!$N$221,IF(V65=45199,'Aylık Yİ-ÜFE'!$N$224,IF(V65=45291,'Aylık Yİ-ÜFE'!$N$227)))),5) -> 0.1895
A66: 2020-07-13 | B66: 46 | I66: 2023 YILINDA YD YAPILABİLİR | M66: GEÇİCİ 31/1 E GÖRE YD YAPILABİLİRDİ | O66: GEÇİCİ 31/7 E GÖRE YD YAPILABİLİRDİ | R66: 2022 YILINDA GEÇİCİ 32 VE/VEYA MÜK. 298 Ç YAPILMADIĞINDAN 2023 YILINDA (2022 SONUNA KADAR OLAN DÖNEM İÇİN) GEÇİCİ 32 YAPILABİLİR | S66: EVET | V66: 2023-06-30 | W66: =TRUNC(IF(V66=45016,'Aylık Yİ-ÜFE'!$N$218,IF(V66=45107,'Aylık Yİ-ÜFE'!$N$221,IF(V66=45199,'Aylık Yİ-ÜFE'!$N$224,IF(V66=45291,'Aylık Yİ-ÜFE'!$N$227)))),5) -> 0.1895
A67: 2020-07-20 | B67: 47 | I67: 2023 YILINDA YD YAPILABİLİR | M67: GEÇİCİ 31/1 E GÖRE YD YAPILABİLİRDİ | O67: GEÇİCİ 31/7 E GÖRE YD YAPILABİLİRDİ | R67: 2022 YILINDA GEÇİCİ 32 VE/VEYA MÜK. 298 Ç YAPILMADIĞINDAN 2023 YILINDA (2022 SONUNA KADAR OLAN DÖNEM İÇİN) GEÇİCİ 32 YAPILABİLİR | S67: EVET | V67: 2023-06-30 | W67: =TRUNC(IF(V67=45016,'Aylık Yİ-ÜFE'!$N$218,IF(V67=45107,'Aylık Yİ-ÜFE'!$N$221,IF(V67=45199,'Aylık Yİ-ÜFE'!$N$224,IF(V67=45291,'Aylık Yİ-ÜFE'!$N$227)))),5) -> 0.1895
A68: 2020-07-16 | B68: 48 | I68: 2023 YILINDA YD YAPILABİLİR | M68: GEÇİCİ 31/1 E GÖRE YD YAPILABİLİRDİ | O68: GEÇİCİ 31/7 E GÖRE YD YAPILABİLİRDİ | R68: 2022 YILINDA GEÇİCİ 32 VE/VEYA MÜK. 298 Ç YAPILMADIĞINDAN 2023 YILINDA (2022 SONUNA KADAR OLAN DÖNEM İÇİN) GEÇİCİ 32 YAPILABİLİR | S68: EVET | V68: 2023-06-30 | W68: =TRUNC(IF(V68=45016,'Aylık Yİ-ÜFE'!$N$218,IF(V68=45107,'Aylık Yİ-ÜFE'!$N$221,IF(V68=45199,'Aylık Yİ-ÜFE'!$N$224,IF(V68=45291,'Aylık Yİ-ÜFE'!$N$227)))),5) -> 0.1895
A69: 2020-07-22 | B69: 49 | I69: 2023 YILINDA YD YAPILABİLİR | M69: GEÇİCİ 31/1 E GÖRE YD YAPILABİLİRDİ | O69: GEÇİCİ 31/7 E GÖRE YD YAPILABİLİRDİ | R69: 2022 YILINDA GEÇİCİ 32 VE/VEYA MÜK. 298 Ç YAPILMADIĞINDAN 2023 YILINDA (2022 SONUNA KADAR OLAN DÖNEM İÇİN) GEÇİCİ 32 YAPILABİLİR | S69: EVET | V69: 2023-06-30 | W69: =TRUNC(IF(V69=45016,'Aylık Yİ-ÜFE'!$N$218,IF(V69=45107,'Aylık Yİ-ÜFE'!$N$221,IF(V69=45199,'Aylık Yİ-ÜFE'!$N$224,IF(V69=45291,'Aylık Yİ-ÜFE'!$N$227)))),5) -> 0.1895
A70: 2020-07-30 | B70: 50 | I70: 2023 YILINDA YD YAPILABİLİR | M70: GEÇİCİ 31/1 E GÖRE YD YAPILABİLİRDİ | O70: GEÇİCİ 31/7 E GÖRE YD YAPILABİLİRDİ | R70: 2022 YILINDA GEÇİCİ 32 VE/VEYA MÜK. 298 Ç YAPILMADIĞINDAN 2023 YILINDA (2022 SONUNA KADAR OLAN DÖNEM İÇİN) GEÇİCİ 32 YAPILABİLİR | S70: EVET | V70: 2023-06-30 | W70: =TRUNC(IF(V70=45016,'Aylık Yİ-ÜFE'!$N$218,IF(V70=45107,'Aylık Yİ-ÜFE'!$N$221,IF(V70=45199,'Aylık Yİ-ÜFE'!$N$224,IF(V70=45291,'Aylık Yİ-ÜFE'!$N$227)))),5) -> 0.1895
A71: 2020-07-30 | B71: 51 | I71: 2023 YILINDA YD YAPILABİLİR | M71: GEÇİCİ 31/1 E GÖRE YD YAPILABİLİRDİ | O71: GEÇİCİ 31/7 E GÖRE YD YAPILABİLİRDİ | R71: 2022 YILINDA GEÇİCİ 32 VE/VEYA MÜK. 298 Ç YAPILMADIĞINDAN 2023 YILINDA (2022 SONUNA KADAR OLAN DÖNEM İÇİN) GEÇİCİ 32 YAPILABİLİR | S71: EVET | V71: 2023-06-30 | W71: =TRUNC(IF(V71=45016,'Aylık Yİ-ÜFE'!$N$218,IF(V71=45107,'Aylık Yİ-ÜFE'!$N$221,IF(V71=45199,'Aylık Yİ-ÜFE'!$N$224,IF(V71=45291,'Aylık Yİ-ÜFE'!$N$227)))),5) -> 0.1895
A72: 2020-08-24 | B72: 52 | I72: 2023 YILINDA YD YAPILABİLİR | M72: GEÇİCİ 31/1 E GÖRE YD YAPILABİLİRDİ | O72: GEÇİCİ 31/7 E GÖRE YD YAPILABİLİRDİ | R72: 2022 YILINDA GEÇİCİ 32 VE/VEYA MÜK. 298 Ç YAPILMADIĞINDAN 2023 YILINDA (2022 SONUNA KADAR OLAN DÖNEM İÇİN) GEÇİCİ 32 YAPILABİLİR | S72: EVET | V72: 2023-06-30 | W72: =TRUNC(IF(V72=45016,'Aylık Yİ-ÜFE'!$N$218,IF(V72=45107,'Aylık Yİ-ÜFE'!$N$221,IF(V72=45199,'Aylık Yİ-ÜFE'!$N$224,IF(V72=45291,'Aylık Yİ-ÜFE'!$N$227)))),5) -> 0.1895
A73: 2020-10-14 | B73: 53 | I73: 2023 YILINDA YD YAPILABİLİR | M73: GEÇİCİ 31/1 E GÖRE YD YAPILABİLİRDİ | O73: GEÇİCİ 31/7 E GÖRE YD YAPILABİLİRDİ | R73: 2022 YILINDA GEÇİCİ 32 VE/VEYA MÜK. 298 Ç YAPILMADIĞINDAN 2023 YILINDA (2022 SONUNA KADAR OLAN DÖNEM İÇİN) GEÇİCİ 32 YAPILABİLİR | S73: EVET | V73: 2023-06-30 | W73: =TRUNC(IF(V73=45016,'Aylık Yİ-ÜFE'!$N$218,IF(V73=45107,'Aylık Yİ-ÜFE'!$N$221,IF(V73=45199,'Aylık Yİ-ÜFE'!$N$224,IF(V73=45291,'Aylık Yİ-ÜFE'!$N$227)))),5) -> 0.1895
A74: 2021-01-22 | B74: 54 | I74: 2023 YILINDA YD YAPILABİLİR | M74: GEÇİCİ 31/1 E GÖRE YD YAPILABİLİRDİ | O74: GEÇİCİ 31/7 E GÖRE YD YAPILABİLİRDİ | R74: 2022 YILINDA GEÇİCİ 32 VE/VEYA MÜK. 298 Ç YAPILMADIĞINDAN 2023 YILINDA (2022 SONUNA KADAR OLAN DÖNEM İÇİN) GEÇİCİ 32 YAPILABİLİR | S74: EVET | V74: 2023-06-30 | W74: =TRUNC(IF(V74=45016,'Aylık Yİ-ÜFE'!$N$218,IF(V74=45107,'Aylık Yİ-ÜFE'!$N$221,IF(V74=45199,'Aylık Yİ-ÜFE'!$N$224,IF(V74=45291,'Aylık Yİ-ÜFE'!$N$227)))),5) -> 0.1895
A75: 2021-03-31 | B75: 55 | I75: 2023 YILINDA YD YAPILABİLİR | M75: GEÇİCİ 31/1 E GÖRE YD YAPILABİLİRDİ | O75: GEÇİCİ 31/7 E GÖRE YD YAPILABİLİRDİ | R75: 2022 YILINDA GEÇİCİ 32 VE/VEYA MÜK. 298 Ç YAPILMADIĞINDAN 2023 YILINDA (2022 SONUNA KADAR OLAN DÖNEM İÇİN) GEÇİCİ 32 YAPILABİLİR | S75: EVET | V75: 2023-06-30 | W75: =TRUNC(IF(V75=45016,'Aylık Yİ-ÜFE'!$N$218,IF(V75=45107,'Aylık Yİ-ÜFE'!$N$221,IF(V75=45199,'Aylık Yİ-ÜFE'!$N$224,IF(V75=45291,'Aylık Yİ-ÜFE'!$N$227)))),5) -> 0.1895
A76: 2021-03-31 | B76: 56 | I76: 2023 YILINDA YD YAPILABİLİR | M76: GEÇİCİ 31/1 E GÖRE YD YAPILABİLİRDİ | O76: GEÇİCİ 31/7 E GÖRE YD YAPILABİLİRDİ | R76: 2022 YILINDA GEÇİCİ 32 VE/VEYA MÜK. 298 Ç YAPILMADIĞINDAN 2023 YILINDA (2022 SONUNA KADAR OLAN DÖNEM İÇİN) GEÇİCİ 32 YAPILABİLİR | S76: EVET | V76: 2023-06-30 | W76: =TRUNC(IF(V76=45016,'Aylık Yİ-ÜFE'!$N$218,IF(V76=45107,'Aylık Yİ-ÜFE'!$N$221,IF(V76=45199,'Aylık Yİ-ÜFE'!$N$224,IF(V76=45291,'Aylık Yİ-ÜFE'!$N$227)))),5) -> 0.1895
A77: 2021-06-09 | B77: 57 | I77: 2023 YILINDA YD YAPILABİLİR | M77: GEÇİCİ 31/1 E GÖRE YD YAPILABİLİRDİ | O77: GEÇİCİ 31/7 E GÖRE YD YAPILABİLİRDİ | R77: 2022 YILINDA GEÇİCİ 32 VE/VEYA MÜK. 298 Ç YAPILMADIĞINDAN 2023 YILINDA (2022 SONUNA KADAR OLAN DÖNEM İÇİN) GEÇİCİ 32 YAPILABİLİR | S77: EVET | V77: 2023-06-30 | W77: =TRUNC(IF(V77=45016,'Aylık Yİ-ÜFE'!$N$218,IF(V77=45107,'Aylık Yİ-ÜFE'!$N$221,IF(V77=45199,'Aylık Yİ-ÜFE'!$N$224,IF(V77=45291,'Aylık Yİ-ÜFE'!$N$227)))),5) -> 0.1895
A78: 2021-10-20 | B78: 58 | I78: 2023 YILINDA YD YAPILABİLİR | M78: GEÇİCİ 31/1 E GÖRE YD YAPILABİLİRDİ | O78: GEÇİCİ 31/7 E GÖRE YD YAPILABİLİRDİ | R78: 2022 YILINDA GEÇİCİ 32 VE/VEYA MÜK. 298 Ç YAPILMADIĞINDAN 2023 YILINDA (2022 SONUNA KADAR OLAN DÖNEM İÇİN) GEÇİCİ 32 YAPILABİLİR | S78: EVET | V78: 2023-06-30 | W78: =TRUNC(IF(V78=45016,'Aylık Yİ-ÜFE'!$N$218,IF(V78=45107,'Aylık Yİ-ÜFE'!$N$221,IF(V78=45199,'Aylık Yİ-ÜFE'!$N$224,IF(V78=45291,'Aylık Yİ-ÜFE'!$N$227)))),5) -> 0.1895
A79: 2021-11-09 | B79: 59 | I79: 2023 YILINDA YD YAPILABİLİR | M79: GEÇİCİ 31/1 E GÖRE YD YAPILABİLİRDİ | O79: GEÇİCİ 31/7 E GÖRE YD YAPILABİLİRDİ | R79: 2022 YILINDA GEÇİCİ 32 VE/VEYA MÜK. 298 Ç YAPILMADIĞINDAN 2023 YILINDA (2022 SONUNA KADAR OLAN DÖNEM İÇİN) GEÇİCİ 32 YAPILABİLİR | S79: EVET | V79: 2023-06-30 | W79: =TRUNC(IF(V79=45016,'Aylık Yİ-ÜFE'!$N$218,IF(V79=45107,'Aylık Yİ-ÜFE'!$N$221,IF(V79=45199,'Aylık Yİ-ÜFE'!$N$224,IF(V79=45291,'Aylık Yİ-ÜFE'!$N$227)))),5) -> 0.1895
A80: 2021-11-20 | B80: 60 | I80: 2023 YILINDA YD YAPILABİLİR | M80: GEÇİCİ 31/1 E GÖRE YD YAPILABİLİRDİ | O80: GEÇİCİ 31/7 E GÖRE YD YAPILABİLİRDİ | R80: 2022 YILINDA GEÇİCİ 32 VE/VEYA MÜK. 298 Ç YAPILMADIĞINDAN 2023 YILINDA (2022 SONUNA KADAR OLAN DÖNEM İÇİN) GEÇİCİ 32 YAPILABİLİR | S80: EVET | V80: 2023-06-30 | W80: =TRUNC(IF(V80=45016,'Aylık Yİ-ÜFE'!$N$218,IF(V80=45107,'Aylık Yİ-ÜFE'!$N$221,IF(V80=45199,'Aylık Yİ-ÜFE'!$N$224,IF(V80=45291,'Aylık Yİ-ÜFE'!$N$227)))),5) -> 0.1895
A81: 2021-11-26 | B81: 61 | I81: 2023 YILINDA YD YAPILABİLİR | M81: GEÇİCİ 31/1 E GÖRE YD YAPILABİLİRDİ | O81: GEÇİCİ 31/7 E GÖRE YD YAPILABİLİRDİ | R81: 2022 YILINDA GEÇİCİ 32 VE/VEYA MÜK. 298 Ç YAPILMADIĞINDAN 2023 YILINDA (2022 SONUNA KADAR OLAN DÖNEM İÇİN) GEÇİCİ 32 YAPILABİLİR | S81: EVET | V81: 2023-06-30 | W81: =TRUNC(IF(V81=45016,'Aylık Yİ-ÜFE'!$N$218,IF(V81=45107,'Aylık Yİ-ÜFE'!$N$221,IF(V81=45199,'Aylık Yİ-ÜFE'!$N$224,IF(V81=45291,'Aylık Yİ-ÜFE'!$N$227)))),5) -> 0.1895
A82: 2021-12-17 | B82: 62 | I82: 2023 YILINDA YD YAPILABİLİR | M82: GEÇİCİ 31/1 E GÖRE YD YAPILABİLİRDİ | O82: GEÇİCİ 31/7 E GÖRE YD YAPILABİLİRDİ | R82: 2022 YILINDA GEÇİCİ 32 VE/VEYA MÜK. 298 Ç YAPILMADIĞINDAN 2023 YILINDA (2022 SONUNA KADAR OLAN DÖNEM İÇİN) GEÇİCİ 32 YAPILABİLİR | S82: EVET | V82: 2023-06-30 | W82: =TRUNC(IF(V82=45016,'Aylık Yİ-ÜFE'!$N$218,IF(V82=45107,'Aylık Yİ-ÜFE'!$N$221,IF(V82=45199,'Aylık Yİ-ÜFE'!$N$224,IF(V82=45291,'Aylık Yİ-ÜFE'!$N$227)))),5) -> 0.1895
A83: 2021-12-24 | B83: 63 | I83: 2023 YILINDA YD YAPILABİLİR | M83: GEÇİCİ 31/1 E GÖRE YD YAPILABİLİRDİ | O83: GEÇİCİ 31/7 E GÖRE YD YAPILABİLİRDİ | R83: 2022 YILINDA GEÇİCİ 32 VE/VEYA MÜK. 298 Ç YAPILMADIĞINDAN 2023 YILINDA (2022 SONUNA KADAR OLAN DÖNEM İÇİN) GEÇİCİ 32 YAPILABİLİR | S83: EVET | V83: 2023-06-30 | W83: =TRUNC(IF(V83=45016,'Aylık Yİ-ÜFE'!$N$218,IF(V83=45107,'Aylık Yİ-ÜFE'!$N$221,IF(V83=45199,'Aylık Yİ-ÜFE'!$N$224,IF(V83=45291,'Aylık Yİ-ÜFE'!$N$227)))),5) -> 0.1895
A84: 2021-12-25 | B84: 64 | I84: 2023 YILINDA YD YAPILABİLİR | M84: GEÇİCİ 31/1 E GÖRE YD YAPILABİLİRDİ | O84: GEÇİCİ 31/7 E GÖRE YD YAPILABİLİRDİ | R84: 2022 YILINDA GEÇİCİ 32 VE/VEYA MÜK. 298 Ç YAPILMADIĞINDAN 2023 YILINDA (2022 SONUNA KADAR OLAN DÖNEM İÇİN) GEÇİCİ 32 YAPILABİLİR | S84: EVET | V84: 2023-06-30 | W84: =TRUNC(IF(V84=45016,'Aylık Yİ-ÜFE'!$N$218,IF(V84=45107,'Aylık Yİ-ÜFE'!$N$221,IF(V84=45199,'Aylık Yİ-ÜFE'!$N$224,IF(V84=45291,'Aylık Yİ-ÜFE'!$N$227)))),5) -> 0.1895
B85: 65 | I85: 2023 YILINDA YD YAPILABİLİR | M85: GEÇİCİ 31/1 E GÖRE YD YAPILABİLİRDİ | O85: GEÇİCİ 31/7 E GÖRE YD YAPILABİLİRDİ | R85: =IF(OR(Q85="EVET",$G$12="EVET"),"2022 YILINDA GEÇİCİ 32 YA DA MÜK.298 Ç YAPILDIĞINDAN 2023 YILINDA (2022 YILI SONUNA KADAR OLAN) GEÇİCİ 32 YAPILAMAZ","2022 YILINDA GEÇİCİ 32 VE/VEYA MÜK. 298 Ç YAPILMADIĞINDAN 2023 YILINDA (2022 SONUNA KADAR OLAN DÖNEM İÇİN) GEÇİCİ 32 YAPILABİLİR") -> 2022 YILINDA GEÇİCİ 32 VE/VEYA MÜK. 298 Ç YAPILMADIĞINDAN 2023 YILINDA (2022 SONUNA KADAR OLAN DÖNEM İÇİN) GEÇİCİ 32 YAPILABİLİR | S85: =IF(OR(Q85="EVET",$G$12="EVET"),"HAYIR","EVET") -> EVET | V85: 2023-06-30 | W85: =TRUNC(IF(V85=45016,'Aylık Yİ-ÜFE'!$N$218,IF(V85=45107,'Aylık Yİ-ÜFE'!$N$221,IF(V85=45199,'Aylık Yİ-ÜFE'!$N$224,IF(V85=45291,'Aylık Yİ-ÜFE'!$N$227)))),5) -> 0.1895
B86: 66 | I86: =IF(H86>=44927,"2023 YILINDA ALINAN İKTİSADİ KIYMETLER YD YAPILAMAZ","2023 YILINDA YD YAPILABİLİR") -> 2023 YILINDA YD YAPILABİLİR | M86: =IF(H86<43245,"GEÇİCİ 31/1 E GÖRE YD YAPILABİLİRDİ", "GEÇİCİ 31/1 E GÖRE YD YAPILAMAZDI") -> GEÇİCİ 31/1 E GÖRE YD YAPILABİLİRDİ | O86: =IF(H86<44356,"GEÇİCİ 31/7 E GÖRE YD YAPILABİLİRDİ", "GEÇİCİ 31/7 E GÖRE YD YAPILAMAZDI") -> GEÇİCİ 31/7 E GÖRE YD YAPILABİLİRDİ | R86: 2022 YILINDA GEÇİCİ 32 VE/VEYA MÜK. 298 Ç YAPILMADIĞINDAN 2023 YILINDA (2022 SONUNA KADAR OLAN DÖNEM İÇİN) GEÇİCİ 32 YAPILABİLİR | S86: EVET | V86: 2023-06-30 | W86: =TRUNC(IF(V86=45016,'Aylık Yİ-ÜFE'!$N$218,IF(V86=45107,'Aylık Yİ-ÜFE'!$N$221,IF(V86=45199,'Aylık Yİ-ÜFE'!$N$224,IF(V86=45291,'Aylık Yİ-ÜFE'!$N$227)))),5) -> 0.1895
B87: 67 | I87: 2023 YILINDA YD YAPILABİLİR | M87: GEÇİCİ 31/1 E GÖRE YD YAPILABİLİRDİ | O87: GEÇİCİ 31/7 E GÖRE YD YAPILABİLİRDİ | R87: 2022 YILINDA GEÇİCİ 32 VE/VEYA MÜK. 298 Ç YAPILMADIĞINDAN 2023 YILINDA (2022 SONUNA KADAR OLAN DÖNEM İÇİN) GEÇİCİ 32 YAPILABİLİR | S87: EVET | V87: =V86 -> 2023-06-30 | W87: =TRUNC(IF(V87=45016,'Aylık Yİ-ÜFE'!$N$218,IF(V87=45107,'Aylık Yİ-ÜFE'!$N$221,IF(V87=45199,'Aylık Yİ-ÜFE'!$N$224,IF(V87=45291,'Aylık Yİ-ÜFE'!$N$227)))),5) -> 0.1895
B88: 68 | I88: 2023 YILINDA YD YAPILABİLİR | M88: GEÇİCİ 31/1 E GÖRE YD YAPILABİLİRDİ | O88: GEÇİCİ 31/7 E GÖRE YD YAPILABİLİRDİ | R88: 2022 YILINDA GEÇİCİ 32 VE/VEYA MÜK. 298 Ç YAPILMADIĞINDAN 2023 YILINDA (2022 SONUNA KADAR OLAN DÖNEM İÇİN) GEÇİCİ 32 YAPILABİLİR | S88: EVET | V88: 2023-06-30 | W88: =TRUNC(IF(V88=45016,'Aylık Yİ-ÜFE'!$N$218,IF(V88=45107,'Aylık Yİ-ÜFE'!$N$221,IF(V88=45199,'Aylık Yİ-ÜFE'!$N$224,IF(V88=45291,'Aylık Yİ-ÜFE'!$N$227)))),5) -> 0.1895
B89: 69 | I89: 2023 YILINDA YD YAPILABİLİR | M89: GEÇİCİ 31/1 E GÖRE YD YAPILABİLİRDİ | O89: GEÇİCİ 31/7 E GÖRE YD YAPILABİLİRDİ | R89: 2022 YILINDA GEÇİCİ 32 VE/VEYA MÜK. 298 Ç YAPILMADIĞINDAN 2023 YILINDA (2022 SONUNA KADAR OLAN DÖNEM İÇİN) GEÇİCİ 32 YAPILABİLİR | S89: EVET | V89: 2023-06-30 | W89: =TRUNC(IF(V89=45016,'Aylık Yİ-ÜFE'!$N$218,IF(V89=45107,'Aylık Yİ-ÜFE'!$N$221,IF(V89=45199,'Aylık Yİ-ÜFE'!$N$224,IF(V89=45291,'Aylık Yİ-ÜFE'!$N$227)))),5) -> 0.1895
B90: 70 | I90: 2023 YILINDA YD YAPILABİLİR | M90: GEÇİCİ 31/1 E GÖRE YD YAPILABİLİRDİ | O90: GEÇİCİ 31/7 E GÖRE YD YAPILABİLİRDİ | R90: 2022 YILINDA GEÇİCİ 32 VE/VEYA MÜK. 298 Ç YAPILMADIĞINDAN 2023 YILINDA (2022 SONUNA KADAR OLAN DÖNEM İÇİN) GEÇİCİ 32 YAPILABİLİR | S90: EVET | V90: 2023-06-30 | W90: =TRUNC(IF(V90=45016,'Aylık Yİ-ÜFE'!$N$218,IF(V90=45107,'Aylık Yİ-ÜFE'!$N$221,IF(V90=45199,'Aylık Yİ-ÜFE'!$N$224,IF(V90=45291,'Aylık Yİ-ÜFE'!$N$227)))),5) -> 0.1895
B91: 71 | I91: 2023 YILINDA YD YAPILABİLİR | M91: GEÇİCİ 31/1 E GÖRE YD YAPILABİLİRDİ | O91: GEÇİCİ 31/7 E GÖRE YD YAPILABİLİRDİ | R91: 2022 YILINDA GEÇİCİ 32 VE/VEYA MÜK. 298 Ç YAPILMADIĞINDAN 2023 YILINDA (2022 SONUNA KADAR OLAN DÖNEM İÇİN) GEÇİCİ 32 YAPILABİLİR | S91: EVET | V91: 2023-06-30 | W91: =TRUNC(IF(V91=45016,'Aylık Yİ-ÜFE'!$N$218,IF(V91=45107,'Aylık Yİ-ÜFE'!$N$221,IF(V91=45199,'Aylık Yİ-ÜFE'!$N$224,IF(V91=45291,'Aylık Yİ-ÜFE'!$N$227)))),5) -> 0.1895
B92: 72 | I92: 2023 YILINDA YD YAPILABİLİR | M92: GEÇİCİ 31/1 E GÖRE YD YAPILABİLİRDİ | O92: GEÇİCİ 31/7 E GÖRE YD YAPILABİLİRDİ | R92: 2022 YILINDA GEÇİCİ 32 VE/VEYA MÜK. 298 Ç YAPILMADIĞINDAN 2023 YILINDA (2022 SONUNA KADAR OLAN DÖNEM İÇİN) GEÇİCİ 32 YAPILABİLİR | S92: EVET | V92: 2023-06-30 | W92: =TRUNC(IF(V92=45016,'Aylık Yİ-ÜFE'!$N$218,IF(V92=45107,'Aylık Yİ-ÜFE'!$N$221,IF(V92=45199,'Aylık Yİ-ÜFE'!$N$224,IF(V92=45291,'Aylık Yİ-ÜFE'!$N$227)))),5) -> 0.1895
B93: 73 | I93: 2023 YILINDA YD YAPILABİLİR | M93: GEÇİCİ 31/1 E GÖRE YD YAPILABİLİRDİ | O93: GEÇİCİ 31/7 E GÖRE YD YAPILABİLİRDİ | R93: 2022 YILINDA GEÇİCİ 32 VE/VEYA MÜK. 298 Ç YAPILMADIĞINDAN 2023 YILINDA (2022 SONUNA KADAR OLAN DÖNEM İÇİN) GEÇİCİ 32 YAPILABİLİR | S93: EVET | V93: 2023-06-30 | W93: =TRUNC(IF(V93=45016,'Aylık Yİ-ÜFE'!$N$218,IF(V93=45107,'Aylık Yİ-ÜFE'!$N$221,IF(V93=45199,'Aylık Yİ-ÜFE'!$N$224,IF(V93=45291,'Aylık Yİ-ÜFE'!$N$227)))),5) -> 0.1895
B94: 74 | I94: 2023 YILINDA YD YAPILABİLİR | M94: GEÇİCİ 31/1 E GÖRE YD YAPILABİLİRDİ | O94: GEÇİCİ 31/7 E GÖRE YD YAPILABİLİRDİ | R94: 2022 YILINDA GEÇİCİ 32 VE/VEYA MÜK. 298 Ç YAPILMADIĞINDAN 2023 YILINDA (2022 SONUNA KADAR OLAN DÖNEM İÇİN) GEÇİCİ 32 YAPILABİLİR | S94: EVET | V94: 2023-06-30 | W94: =TRUNC(IF(V94=45016,'Aylık Yİ-ÜFE'!$N$218,IF(V94=45107,'Aylık Yİ-ÜFE'!$N$221,IF(V94=45199,'Aylık Yİ-ÜFE'!$N$224,IF(V94=45291,'Aylık Yİ-ÜFE'!$N$227)))),5) -> 0.1895
B95: 75 | I95: 2023 YILINDA YD YAPILABİLİR | M95: GEÇİCİ 31/1 E GÖRE YD YAPILABİLİRDİ | O95: GEÇİCİ 31/7 E GÖRE YD YAPILABİLİRDİ | R95: 2022 YILINDA GEÇİCİ 32 VE/VEYA MÜK. 298 Ç YAPILMADIĞINDAN 2023 YILINDA (2022 SONUNA KADAR OLAN DÖNEM İÇİN) GEÇİCİ 32 YAPILABİLİR | S95: EVET | V95: 2023-06-30 | W95: =TRUNC(IF(V95=45016,'Aylık Yİ-ÜFE'!$N$218,IF(V95=45107,'Aylık Yİ-ÜFE'!$N$221,IF(V95=45199,'Aylık Yİ-ÜFE'!$N$224,IF(V95=45291,'Aylık Yİ-ÜFE'!$N$227)))),5) -> 0.1895
B96: 76 | I96: 2023 YILINDA YD YAPILABİLİR | M96: GEÇİCİ 31/1 E GÖRE YD YAPILABİLİRDİ | O96: GEÇİCİ 31/7 E GÖRE YD YAPILABİLİRDİ | R96: 2022 YILINDA GEÇİCİ 32 VE/VEYA MÜK. 298 Ç YAPILMADIĞINDAN 2023 YILINDA (2022 SONUNA KADAR OLAN DÖNEM İÇİN) GEÇİCİ 32 YAPILABİLİR | S96: EVET | V96: 2023-06-30 | W96: =TRUNC(IF(V96=45016,'Aylık Yİ-ÜFE'!$N$218,IF(V96=45107,'Aylık Yİ-ÜFE'!$N$221,IF(V96=45199,'Aylık Yİ-ÜFE'!$N$224,IF(V96=45291,'Aylık Yİ-ÜFE'!$N$227)))),5) -> 0.1895
B97: 77 | I97: 2023 YILINDA YD YAPILABİLİR | M97: GEÇİCİ 31/1 E GÖRE YD YAPILABİLİRDİ | O97: GEÇİCİ 31/7 E GÖRE YD YAPILABİLİRDİ | R97: 2022 YILINDA GEÇİCİ 32 VE/VEYA MÜK. 298 Ç YAPILMADIĞINDAN 2023 YILINDA (2022 SONUNA KADAR OLAN DÖNEM İÇİN) GEÇİCİ 32 YAPILABİLİR | S97: EVET | V97: 2023-06-30 | W97: =TRUNC(IF(V97=45016,'Aylık Yİ-ÜFE'!$N$218,IF(V97=45107,'Aylık Yİ-ÜFE'!$N$221,IF(V97=45199,'Aylık Yİ-ÜFE'!$N$224,IF(V97=45291,'Aylık Yİ-ÜFE'!$N$227)))),5) -> 0.1895
B98: 78 | I98: 2023 YILINDA YD YAPILABİLİR | M98: GEÇİCİ 31/1 E GÖRE YD YAPILABİLİRDİ | O98: GEÇİCİ 31/7 E GÖRE YD YAPILABİLİRDİ | R98: 2022 YILINDA GEÇİCİ 32 VE/VEYA MÜK. 298 Ç YAPILMADIĞINDAN 2023 YILINDA (2022 SONUNA KADAR OLAN DÖNEM İÇİN) GEÇİCİ 32 YAPILABİLİR | S98: EVET | V98: 2023-06-30 | W98: =TRUNC(IF(V98=45016,'Aylık Yİ-ÜFE'!$N$218,IF(V98=45107,'Aylık Yİ-ÜFE'!$N$221,IF(V98=45199,'Aylık Yİ-ÜFE'!$N$224,IF(V98=45291,'Aylık Yİ-ÜFE'!$N$227)))),5) -> 0.1895
B99: 79 | I99: 2023 YILINDA YD YAPILABİLİR | M99: GEÇİCİ 31/1 E GÖRE YD YAPILABİLİRDİ | O99: GEÇİCİ 31/7 E GÖRE YD YAPILABİLİRDİ | R99: 2022 YILINDA GEÇİCİ 32 VE/VEYA MÜK. 298 Ç YAPILMADIĞINDAN 2023 YILINDA (2022 SONUNA KADAR OLAN DÖNEM İÇİN) GEÇİCİ 32 YAPILABİLİR | S99: EVET | V99: 2023-06-30 | W99: =TRUNC(IF(V99=45016,'Aylık Yİ-ÜFE'!$N$218,IF(V99=45107,'Aylık Yİ-ÜFE'!$N$221,IF(V99=45199,'Aylık Yİ-ÜFE'!$N$224,IF(V99=45291,'Aylık Yİ-ÜFE'!$N$227)))),5) -> 0.1895
B100: 80 | I100: 2023 YILINDA YD YAPILABİLİR | M100: GEÇİCİ 31/1 E GÖRE YD YAPILABİLİRDİ | O100: GEÇİCİ 31/7 E GÖRE YD YAPILABİLİRDİ | R100: 2022 YILINDA GEÇİCİ 32 VE/VEYA MÜK. 298 Ç YAPILMADIĞINDAN 2023 YILINDA (2022 SONUNA KADAR OLAN DÖNEM İÇİN) GEÇİCİ 32 YAPILABİLİR | S100: EVET | V100: 2023-06-30 | W100: =TRUNC(IF(V100=45016,'Aylık Yİ-ÜFE'!$N$218,IF(V100=45107,'Aylık Yİ-ÜFE'!$N$221,IF(V100=45199,'Aylık Yİ-ÜFE'!$N$224,IF(V100=45291,'Aylık Yİ-ÜFE'!$N$227)))),5) -> 0.1895
B101: 81 | I101: 2023 YILINDA YD YAPILABİLİR | M101: GEÇİCİ 31/1 E GÖRE YD YAPILABİLİRDİ | O101: GEÇİCİ 31/7 E GÖRE YD YAPILABİLİRDİ | R101: 2022 YILINDA GEÇİCİ 32 VE/VEYA MÜK. 298 Ç YAPILMADIĞINDAN 2023 YILINDA (2022 SONUNA KADAR OLAN DÖNEM İÇİN) GEÇİCİ 32 YAPILABİLİR | S101: EVET | V101: 2023-06-30 | W101: =TRUNC(IF(V101=45016,'Aylık Yİ-ÜFE'!$N$218,IF(V101=45107,'Aylık Yİ-ÜFE'!$N$221,IF(V101=45199,'Aylık Yİ-ÜFE'!$N$224,IF(V101=45291,'Aylık Yİ-ÜFE'!$N$227)))),5) -> 0.1895
B102: 82 | I102: 2023 YILINDA YD YAPILABİLİR | M102: GEÇİCİ 31/1 E GÖRE YD YAPILABİLİRDİ | O102: GEÇİCİ 31/7 E GÖRE YD YAPILABİLİRDİ | R102: 2022 YILINDA GEÇİCİ 32 VE/VEYA MÜK. 298 Ç YAPILMADIĞINDAN 2023 YILINDA (2022 SONUNA KADAR OLAN DÖNEM İÇİN) GEÇİCİ 32 YAPILABİLİR | S102: EVET | V102: 2023-06-30 | W102: =TRUNC(IF(V102=45016,'Aylık Yİ-ÜFE'!$N$218,IF(V102=45107,'Aylık Yİ-ÜFE'!$N$221,IF(V102=45199,'Aylık Yİ-ÜFE'!$N$224,IF(V102=45291,'Aylık Yİ-ÜFE'!$N$227)))),5) -> 0.1895
B103: 83 | I103: 2023 YILINDA YD YAPILABİLİR | M103: GEÇİCİ 31/1 E GÖRE YD YAPILABİLİRDİ | O103: GEÇİCİ 31/7 E GÖRE YD YAPILABİLİRDİ | R103: 2022 YILINDA GEÇİCİ 32 VE/VEYA MÜK. 298 Ç YAPILMADIĞINDAN 2023 YILINDA (2022 SONUNA KADAR OLAN DÖNEM İÇİN) GEÇİCİ 32 YAPILABİLİR | S103: EVET | V103: 2023-06-30 | W103: =TRUNC(IF(V103=45016,'Aylık Yİ-ÜFE'!$N$218,IF(V103=45107,'Aylık Yİ-ÜFE'!$N$221,IF(V103=45199,'Aylık Yİ-ÜFE'!$N$224,IF(V103=45291,'Aylık Yİ-ÜFE'!$N$227)))),5) -> 0.1895
B104: 84 | I104: 2023 YILINDA YD YAPILABİLİR | M104: GEÇİCİ 31/1 E GÖRE YD YAPILABİLİRDİ | O104: GEÇİCİ 31/7 E GÖRE YD YAPILABİLİRDİ | R104: 2022 YILINDA GEÇİCİ 32 VE/VEYA MÜK. 298 Ç YAPILMADIĞINDAN 2023 YILINDA (2022 SONUNA KADAR OLAN DÖNEM İÇİN) GEÇİCİ 32 YAPILABİLİR | S104: EVET | V104: 2023-06-30 | W104: =TRUNC(IF(V104=45016,'Aylık Yİ-ÜFE'!$N$218,IF(V104=45107,'Aylık Yİ-ÜFE'!$N$221,IF(V104=45199,'Aylık Yİ-ÜFE'!$N$224,IF(V104=45291,'Aylık Yİ-ÜFE'!$N$227)))),5) -> 0.1895
B105: 85 | I105: 2023 YILINDA YD YAPILABİLİR | M105: GEÇİCİ 31/1 E GÖRE YD YAPILABİLİRDİ | O105: GEÇİCİ 31/7 E GÖRE YD YAPILABİLİRDİ | R105: 2022 YILINDA GEÇİCİ 32 VE/VEYA MÜK. 298 Ç YAPILMADIĞINDAN 2023 YILINDA (2022 SONUNA KADAR OLAN DÖNEM İÇİN) GEÇİCİ 32 YAPILABİLİR | S105: EVET | V105: 2023-06-30 | W105: =TRUNC(IF(V105=45016,'Aylık Yİ-ÜFE'!$N$218,IF(V105=45107,'Aylık Yİ-ÜFE'!$N$221,IF(V105=45199,'Aylık Yİ-ÜFE'!$N$224,IF(V105=45291,'Aylık Yİ-ÜFE'!$N$227)))),5) -> 0.1895
B106: 86 | I106: 2023 YILINDA YD YAPILABİLİR | M106: GEÇİCİ 31/1 E GÖRE YD YAPILABİLİRDİ | O106: GEÇİCİ 31/7 E GÖRE YD YAPILABİLİRDİ | R106: 2022 YILINDA GEÇİCİ 32 VE/VEYA MÜK. 298 Ç YAPILMADIĞINDAN 2023 YILINDA (2022 SONUNA KADAR OLAN DÖNEM İÇİN) GEÇİCİ 32 YAPILABİLİR | S106: EVET | V106: 2023-06-30 | W106: =TRUNC(IF(V106=45016,'Aylık Yİ-ÜFE'!$N$218,IF(V106=45107,'Aylık Yİ-ÜFE'!$N$221,IF(V106=45199,'Aylık Yİ-ÜFE'!$N$224,IF(V106=45291,'Aylık Yİ-ÜFE'!$N$227)))),5) -> 0.1895
A107: 2013-09-30 | B107: 87 | I107: 2023 YILINDA YD YAPILABİLİR | M107: GEÇİCİ 31/1 E GÖRE YD YAPILABİLİRDİ | O107: GEÇİCİ 31/7 E GÖRE YD YAPILABİLİRDİ | R107: 2022 YILINDA GEÇİCİ 32 VE/VEYA MÜK. 298 Ç YAPILMADIĞINDAN 2023 YILINDA (2022 SONUNA KADAR OLAN DÖNEM İÇİN) GEÇİCİ 32 YAPILABİLİR | S107: EVET | V107: 2023-06-30 | W107: =TRUNC(IF(V107=45016,'Aylık Yİ-ÜFE'!$N$218,IF(V107=45107,'Aylık Yİ-ÜFE'!$N$221,IF(V107=45199,'Aylık Yİ-ÜFE'!$N$224,IF(V107=45291,'Aylık Yİ-ÜFE'!$N$227)))),5) -> 0.1895
A108: 2013-09-30 | B108: 88 | I108: 2023 YILINDA YD YAPILABİLİR | M108: GEÇİCİ 31/1 E GÖRE YD YAPILABİLİRDİ | O108: GEÇİCİ 31/7 E GÖRE YD YAPILABİLİRDİ | R108: 2022 YILINDA GEÇİCİ 32 VE/VEYA MÜK. 298 Ç YAPILMADIĞINDAN 2023 YILINDA (2022 SONUNA KADAR OLAN DÖNEM İÇİN) GEÇİCİ 32 YAPILABİLİR | S108: EVET | V108: 2023-06-30 | W108: =TRUNC(IF(V108=45016,'Aylık Yİ-ÜFE'!$N$218,IF(V108=45107,'Aylık Yİ-ÜFE'!$N$221,IF(V108=45199,'Aylık Yİ-ÜFE'!$N$224,IF(V108=45291,'Aylık Yİ-ÜFE'!$N$227)))),5) -> 0.1895
A109: 2014-07-18 | B109: 89 | I109: 2023 YILINDA YD YAPILABİLİR | M109: GEÇİCİ 31/1 E GÖRE YD YAPILABİLİRDİ | O109: GEÇİCİ 31/7 E GÖRE YD YAPILABİLİRDİ | R109: 2022 YILINDA GEÇİCİ 32 VE/VEYA MÜK. 298 Ç YAPILMADIĞINDAN 2023 YILINDA (2022 SONUNA KADAR OLAN DÖNEM İÇİN) GEÇİCİ 32 YAPILABİLİR | S109: EVET | V109: 2023-06-30 | W109: =TRUNC(IF(V109=45016,'Aylık Yİ-ÜFE'!$N$218,IF(V109=45107,'Aylık Yİ-ÜFE'!$N$221,IF(V109=45199,'Aylık Yİ-ÜFE'!$N$224,IF(V109=45291,'Aylık Yİ-ÜFE'!$N$227)))),5) -> 0.1895
A110: 2014-08-11 | B110: 90 | I110: 2023 YILINDA YD YAPILABİLİR | M110: GEÇİCİ 31/1 E GÖRE YD YAPILABİLİRDİ | O110: GEÇİCİ 31/7 E GÖRE YD YAPILABİLİRDİ | R110: 2022 YILINDA GEÇİCİ 32 VE/VEYA MÜK. 298 Ç YAPILMADIĞINDAN 2023 YILINDA (2022 SONUNA KADAR OLAN DÖNEM İÇİN) GEÇİCİ 32 YAPILABİLİR | S110: EVET | V110: 2023-06-30 | W110: =TRUNC(IF(V110=45016,'Aylık Yİ-ÜFE'!$N$218,IF(V110=45107,'Aylık Yİ-ÜFE'!$N$221,IF(V110=45199,'Aylık Yİ-ÜFE'!$N$224,IF(V110=45291,'Aylık Yİ-ÜFE'!$N$227)))),5) -> 0.1895
A111: 2014-08-11 | B111: 91 | I111: 2023 YILINDA YD YAPILABİLİR | M111: GEÇİCİ 31/1 E GÖRE YD YAPILABİLİRDİ | O111: GEÇİCİ 31/7 E GÖRE YD YAPILABİLİRDİ | R111: 2022 YILINDA GEÇİCİ 32 VE/VEYA MÜK. 298 Ç YAPILMADIĞINDAN 2023 YILINDA (2022 SONUNA KADAR OLAN DÖNEM İÇİN) GEÇİCİ 32 YAPILABİLİR | S111: EVET | V111: 2023-06-30 | W111: =TRUNC(IF(V111=45016,'Aylık Yİ-ÜFE'!$N$218,IF(V111=45107,'Aylık Yİ-ÜFE'!$N$221,IF(V111=45199,'Aylık Yİ-ÜFE'!$N$224,IF(V111=45291,'Aylık Yİ-ÜFE'!$N$227)))),5) -> 0.1895
A112: 2014-08-11 | B112: 92 | I112: 2023 YILINDA YD YAPILABİLİR | M112: GEÇİCİ 31/1 E GÖRE YD YAPILABİLİRDİ | O112: GEÇİCİ 31/7 E GÖRE YD YAPILABİLİRDİ | R112: 2022 YILINDA GEÇİCİ 32 VE/VEYA MÜK. 298 Ç YAPILMADIĞINDAN 2023 YILINDA (2022 SONUNA KADAR OLAN DÖNEM İÇİN) GEÇİCİ 32 YAPILABİLİR | S112: EVET | V112: 2023-06-30 | W112: =TRUNC(IF(V112=45016,'Aylık Yİ-ÜFE'!$N$218,IF(V112=45107,'Aylık Yİ-ÜFE'!$N$221,IF(V112=45199,'Aylık Yİ-ÜFE'!$N$224,IF(V112=45291,'Aylık Yİ-ÜFE'!$N$227)))),5) -> 0.1895
A113: 2014-08-11 | B113: 93 | I113: 2023 YILINDA YD YAPILABİLİR | M113: GEÇİCİ 31/1 E GÖRE YD YAPILABİLİRDİ | O113: GEÇİCİ 31/7 E GÖRE YD YAPILABİLİRDİ | R113: 2022 YILINDA GEÇİCİ 32 VE/VEYA MÜK. 298 Ç YAPILMADIĞINDAN 2023 YILINDA (2022 SONUNA KADAR OLAN DÖNEM İÇİN) GEÇİCİ 32 YAPILABİLİR | S113: EVET | V113: 2023-06-30 | W113: =TRUNC(IF(V113=45016,'Aylık Yİ-ÜFE'!$N$218,IF(V113=45107,'Aylık Yİ-ÜFE'!$N$221,IF(V113=45199,'Aylık Yİ-ÜFE'!$N$224,IF(V113=45291,'Aylık Yİ-ÜFE'!$N$227)))),5) -> 0.1895
A114: 2014-08-11 | B114: 94 | I114: 2023 YILINDA YD YAPILABİLİR | M114: GEÇİCİ 31/1 E GÖRE YD YAPILABİLİRDİ | O114: GEÇİCİ 31/7 E GÖRE YD YAPILABİLİRDİ | R114: 2022 YILINDA GEÇİCİ 32 VE/VEYA MÜK. 298 Ç YAPILMADIĞINDAN 2023 YILINDA (2022 SONUNA KADAR OLAN DÖNEM İÇİN) GEÇİCİ 32 YAPILABİLİR | S114: EVET | V114: 2023-06-30 | W114: =TRUNC(IF(V114=45016,'Aylık Yİ-ÜFE'!$N$218,IF(V114=45107,'Aylık Yİ-ÜFE'!$N$221,IF(V114=45199,'Aylık Yİ-ÜFE'!$N$224,IF(V114=45291,'Aylık Yİ-ÜFE'!$N$227)))),5) -> 0.1895
A115: 2014-08-11 | B115: 95 | I115: 2023 YILINDA YD YAPILABİLİR | M115: GEÇİCİ 31/1 E GÖRE YD YAPILABİLİRDİ | O115: GEÇİCİ 31/7 E GÖRE YD YAPILABİLİRDİ | R115: 2022 YILINDA GEÇİCİ 32 VE/VEYA MÜK. 298 Ç YAPILMADIĞINDAN 2023 YILINDA (2022 SONUNA KADAR OLAN DÖNEM İÇİN) GEÇİCİ 32 YAPILABİLİR | S115: EVET | V115: 2023-06-30 | W115: =TRUNC(IF(V115=45016,'Aylık Yİ-ÜFE'!$N$218,IF(V115=45107,'Aylık Yİ-ÜFE'!$N$221,IF(V115=45199,'Aylık Yİ-ÜFE'!$N$224,IF(V115=45291,'Aylık Yİ-ÜFE'!$N$227)))),5) -> 0.1895
A116: 2014-08-11 | B116: 96 | I116: 2023 YILINDA YD YAPILABİLİR | M116: GEÇİCİ 31/1 E GÖRE YD YAPILABİLİRDİ | O116: GEÇİCİ 31/7 E GÖRE YD YAPILABİLİRDİ | R116: 2022 YILINDA GEÇİCİ 32 VE/VEYA MÜK. 298 Ç YAPILMADIĞINDAN 2023 YILINDA (2022 SONUNA KADAR OLAN DÖNEM İÇİN) GEÇİCİ 32 YAPILABİLİR | S116: EVET | V116: 2023-06-30 | W116: =TRUNC(IF(V116=45016,'Aylık Yİ-ÜFE'!$N$218,IF(V116=45107,'Aylık Yİ-ÜFE'!$N$221,IF(V116=45199,'Aylık Yİ-ÜFE'!$N$224,IF(V116=45291,'Aylık Yİ-ÜFE'!$N$227)))),5) -> 0.1895
A117: 2014-08-11 | B117: 97 | I117: 2023 YILINDA YD YAPILABİLİR | M117: GEÇİCİ 31/1 E GÖRE YD YAPILABİLİRDİ | O117: GEÇİCİ 31/7 E GÖRE YD YAPILABİLİRDİ | R117: 2022 YILINDA GEÇİCİ 32 VE/VEYA MÜK. 298 Ç YAPILMADIĞINDAN 2023 YILINDA (2022 SONUNA KADAR OLAN DÖNEM İÇİN) GEÇİCİ 32 YAPILABİLİR | S117: EVET | V117: 2023-06-30 | W117: =TRUNC(IF(V117=45016,'Aylık Yİ-ÜFE'!$N$218,IF(V117=45107,'Aylık Yİ-ÜFE'!$N$221,IF(V117=45199,'Aylık Yİ-ÜFE'!$N$224,IF(V117=45291,'Aylık Yİ-ÜFE'!$N$227)))),5) -> 0.1895
A118: 2014-08-11 | B118: 98 | I118: 2023 YILINDA YD YAPILABİLİR | M118: GEÇİCİ 31/1 E GÖRE YD YAPILABİLİRDİ | O118: GEÇİCİ 31/7 E GÖRE YD YAPILABİLİRDİ | R118: 2022 YILINDA GEÇİCİ 32 VE/VEYA MÜK. 298 Ç YAPILMADIĞINDAN 2023 YILINDA (2022 SONUNA KADAR OLAN DÖNEM İÇİN) GEÇİCİ 32 YAPILABİLİR | S118: EVET | V118: 2023-06-30 | W118: =TRUNC(IF(V118=45016,'Aylık Yİ-ÜFE'!$N$218,IF(V118=45107,'Aylık Yİ-ÜFE'!$N$221,IF(V118=45199,'Aylık Yİ-ÜFE'!$N$224,IF(V118=45291,'Aylık Yİ-ÜFE'!$N$227)))),5) -> 0.1895
A119: 2014-08-11 | B119: 99 | I119: 2023 YILINDA YD YAPILABİLİR | M119: GEÇİCİ 31/1 E GÖRE YD YAPILABİLİRDİ | O119: GEÇİCİ 31/7 E GÖRE YD YAPILABİLİRDİ | R119: 2022 YILINDA GEÇİCİ 32 VE/VEYA MÜK. 298 Ç YAPILMADIĞINDAN 2023 YILINDA (2022 SONUNA KADAR OLAN DÖNEM İÇİN) GEÇİCİ 32 YAPILABİLİR | S119: EVET | V119: 2023-06-30 | W119: =TRUNC(IF(V119=45016,'Aylık Yİ-ÜFE'!$N$218,IF(V119=45107,'Aylık Yİ-ÜFE'!$N$221,IF(V119=45199,'Aylık Yİ-ÜFE'!$N$224,IF(V119=45291,'Aylık Yİ-ÜFE'!$N$227)))),5) -> 0.1895
A120: 2014-08-11 | B120: 100 | I120: 2023 YILINDA YD YAPILABİLİR | M120: GEÇİCİ 31/1 E GÖRE YD YAPILABİLİRDİ | O120: GEÇİCİ 31/7 E GÖRE YD YAPILABİLİRDİ | R120: 2022 YILINDA GEÇİCİ 32 VE/VEYA MÜK. 298 Ç YAPILMADIĞINDAN 2023 YILINDA (2022 SONUNA KADAR OLAN DÖNEM İÇİN) GEÇİCİ 32 YAPILABİLİR | S120: EVET | V120: 2023-06-30 | W120: =TRUNC(IF(V120=45016,'Aylık Yİ-ÜFE'!$N$218,IF(V120=45107,'Aylık Yİ-ÜFE'!$N$221,IF(V120=45199,'Aylık Yİ-ÜFE'!$N$224,IF(V120=45291,'Aylık Yİ-ÜFE'!$N$227)))),5) -> 0.1895
A121: 2014-08-11 | B121: 101 | I121: 2023 YILINDA YD YAPILABİLİR | M121: GEÇİCİ 31/1 E GÖRE YD YAPILABİLİRDİ | O121: GEÇİCİ 31/7 E GÖRE YD YAPILABİLİRDİ | R121: 2022 YILINDA GEÇİCİ 32 VE/VEYA MÜK. 298 Ç YAPILMADIĞINDAN 2023 YILINDA (2022 SONUNA KADAR OLAN DÖNEM İÇİN) GEÇİCİ 32 YAPILABİLİR | S121: EVET | V121: 2023-06-30 | W121: =TRUNC(IF(V121=45016,'Aylık Yİ-ÜFE'!$N$218,IF(V121=45107,'Aylık Yİ-ÜFE'!$N$221,IF(V121=45199,'Aylık Yİ-ÜFE'!$N$224,IF(V121=45291,'Aylık Yİ-ÜFE'!$N$227)))),5) -> 0.1895
A122: 2014-08-11 | B122: 102 | I122: 2023 YILINDA YD YAPILABİLİR | M122: GEÇİCİ 31/1 E GÖRE YD YAPILABİLİRDİ | O122: GEÇİCİ 31/7 E GÖRE YD YAPILABİLİRDİ | R122: 2022 YILINDA GEÇİCİ 32 VE/VEYA MÜK. 298 Ç YAPILMADIĞINDAN 2023 YILINDA (2022 SONUNA KADAR OLAN DÖNEM İÇİN) GEÇİCİ 32 YAPILABİLİR | S122: EVET | V122: 2023-06-30 | W122: =TRUNC(IF(V122=45016,'Aylık Yİ-ÜFE'!$N$218,IF(V122=45107,'Aylık Yİ-ÜFE'!$N$221,IF(V122=45199,'Aylık Yİ-ÜFE'!$N$224,IF(V122=45291,'Aylık Yİ-ÜFE'!$N$227)))),5) -> 0.1895
A123: 2014-08-11 | B123: 103 | I123: 2023 YILINDA YD YAPILABİLİR | M123: GEÇİCİ 31/1 E GÖRE YD YAPILABİLİRDİ | O123: GEÇİCİ 31/7 E GÖRE YD YAPILABİLİRDİ | R123: 2022 YILINDA GEÇİCİ 32 VE/VEYA MÜK. 298 Ç YAPILMADIĞINDAN 2023 YILINDA (2022 SONUNA KADAR OLAN DÖNEM İÇİN) GEÇİCİ 32 YAPILABİLİR | S123: EVET | V123: 2023-06-30 | W123: =TRUNC(IF(V123=45016,'Aylık Yİ-ÜFE'!$N$218,IF(V123=45107,'Aylık Yİ-ÜFE'!$N$221,IF(V123=45199,'Aylık Yİ-ÜFE'!$N$224,IF(V123=45291,'Aylık Yİ-ÜFE'!$N$227)))),5) -> 0.1895
A124: 2014-08-11 | B124: 104 | I124: 2023 YILINDA YD YAPILABİLİR | M124: GEÇİCİ 31/1 E GÖRE YD YAPILABİLİRDİ | O124: GEÇİCİ 31/7 E GÖRE YD YAPILABİLİRDİ | R124: 2022 YILINDA GEÇİCİ 32 VE/VEYA MÜK. 298 Ç YAPILMADIĞINDAN 2023 YILINDA (2022 SONUNA KADAR OLAN DÖNEM İÇİN) GEÇİCİ 32 YAPILABİLİR | S124: EVET | V124: 2023-06-30 | W124: =TRUNC(IF(V124=45016,'Aylık Yİ-ÜFE'!$N$218,IF(V124=45107,'Aylık Yİ-ÜFE'!$N$221,IF(V124=45199,'Aylık Yİ-ÜFE'!$N$224,IF(V124=45291,'Aylık Yİ-ÜFE'!$N$227)))),5) -> 0.1895
A125: 2014-08-11 | B125: 105 | I125: 2023 YILINDA YD YAPILABİLİR | M125: GEÇİCİ 31/1 E GÖRE YD YAPILABİLİRDİ | O125: GEÇİCİ 31/7 E GÖRE YD YAPILABİLİRDİ | R125: 2022 YILINDA GEÇİCİ 32 VE/VEYA MÜK. 298 Ç YAPILMADIĞINDAN 2023 YILINDA (2022 SONUNA KADAR OLAN DÖNEM İÇİN) GEÇİCİ 32 YAPILABİLİR | S125: EVET | V125: 2023-06-30 | W125: =TRUNC(IF(V125=45016,'Aylık Yİ-ÜFE'!$N$218,IF(V125=45107,'Aylık Yİ-ÜFE'!$N$221,IF(V125=45199,'Aylık Yİ-ÜFE'!$N$224,IF(V125=45291,'Aylık Yİ-ÜFE'!$N$227)))),5) -> 0.1895
A126: 2014-08-11 | B126: 106 | I126: 2023 YILINDA YD YAPILABİLİR | M126: GEÇİCİ 31/1 E GÖRE YD YAPILABİLİRDİ | O126: GEÇİCİ 31/7 E GÖRE YD YAPILABİLİRDİ | R126: 2022 YILINDA GEÇİCİ 32 VE/VEYA MÜK. 298 Ç YAPILMADIĞINDAN 2023 YILINDA (2022 SONUNA KADAR OLAN DÖNEM İÇİN) GEÇİCİ 32 YAPILABİLİR | S126: EVET | V126: 2023-06-30 | W126: =TRUNC(IF(V126=45016,'Aylık Yİ-ÜFE'!$N$218,IF(V126=45107,'Aylık Yİ-ÜFE'!$N$221,IF(V126=45199,'Aylık Yİ-ÜFE'!$N$224,IF(V126=45291,'Aylık Yİ-ÜFE'!$N$227)))),5) -> 0.1895
A127: 2014-08-11 | B127: 107 | I127: 2023 YILINDA YD YAPILABİLİR | M127: GEÇİCİ 31/1 E GÖRE YD YAPILABİLİRDİ | O127: GEÇİCİ 31/7 E GÖRE YD YAPILABİLİRDİ | R127: 2022 YILINDA GEÇİCİ 32 VE/VEYA MÜK. 298 Ç YAPILMADIĞINDAN 2023 YILINDA (2022 SONUNA KADAR OLAN DÖNEM İÇİN) GEÇİCİ 32 YAPILABİLİR | S127: EVET | V127: 2023-06-30 | W127: =TRUNC(IF(V127=45016,'Aylık Yİ-ÜFE'!$N$218,IF(V127=45107,'Aylık Yİ-ÜFE'!$N$221,IF(V127=45199,'Aylık Yİ-ÜFE'!$N$224,IF(V127=45291,'Aylık Yİ-ÜFE'!$N$227)))),5) -> 0.1895
A128: 2014-08-11 | B128: 108 | I128: 2023 YILINDA YD YAPILABİLİR | M128: GEÇİCİ 31/1 E GÖRE YD YAPILABİLİRDİ | O128: GEÇİCİ 31/7 E GÖRE YD YAPILABİLİRDİ | R128: 2022 YILINDA GEÇİCİ 32 VE/VEYA MÜK. 298 Ç YAPILMADIĞINDAN 2023 YILINDA (2022 SONUNA KADAR OLAN DÖNEM İÇİN) GEÇİCİ 32 YAPILABİLİR | S128: EVET | V128: 2023-06-30 | W128: =TRUNC(IF(V128=45016,'Aylık Yİ-ÜFE'!$N$218,IF(V128=45107,'Aylık Yİ-ÜFE'!$N$221,IF(V128=45199,'Aylık Yİ-ÜFE'!$N$224,IF(V128=45291,'Aylık Yİ-ÜFE'!$N$227)))),5) -> 0.1895
A129: 2014-09-04 | B129: 109 | I129: 2023 YILINDA YD YAPILABİLİR | M129: GEÇİCİ 31/1 E GÖRE YD YAPILABİLİRDİ | O129: GEÇİCİ 31/7 E GÖRE YD YAPILABİLİRDİ | R129: 2022 YILINDA GEÇİCİ 32 VE/VEYA MÜK. 298 Ç YAPILMADIĞINDAN 2023 YILINDA (2022 SONUNA KADAR OLAN DÖNEM İÇİN) GEÇİCİ 32 YAPILABİLİR | S129: EVET | V129: 2023-06-30 | W129: =TRUNC(IF(V129=45016,'Aylık Yİ-ÜFE'!$N$218,IF(V129=45107,'Aylık Yİ-ÜFE'!$N$221,IF(V129=45199,'Aylık Yİ-ÜFE'!$N$224,IF(V129=45291,'Aylık Yİ-ÜFE'!$N$227)))),5) -> 0.1895
A130: 2014-09-04 | B130: 110 | I130: 2023 YILINDA YD YAPILABİLİR | M130: GEÇİCİ 31/1 E GÖRE YD YAPILABİLİRDİ | O130: GEÇİCİ 31/7 E GÖRE YD YAPILABİLİRDİ | R130: 2022 YILINDA GEÇİCİ 32 VE/VEYA MÜK. 298 Ç YAPILMADIĞINDAN 2023 YILINDA (2022 SONUNA KADAR OLAN DÖNEM İÇİN) GEÇİCİ 32 YAPILABİLİR | S130: EVET | V130: 2023-06-30 | W130: =TRUNC(IF(V130=45016,'Aylık Yİ-ÜFE'!$N$218,IF(V130=45107,'Aylık Yİ-ÜFE'!$N$221,IF(V130=45199,'Aylık Yİ-ÜFE'!$N$224,IF(V130=45291,'Aylık Yİ-ÜFE'!$N$227)))),5) -> 0.1895
A131: 2014-09-04 | B131: 111 | I131: 2023 YILINDA YD YAPILABİLİR | M131: GEÇİCİ 31/1 E GÖRE YD YAPILABİLİRDİ | O131: GEÇİCİ 31/7 E GÖRE YD YAPILABİLİRDİ | R131: 2022 YILINDA GEÇİCİ 32 VE/VEYA MÜK. 298 Ç YAPILMADIĞINDAN 2023 YILINDA (2022 SONUNA KADAR OLAN DÖNEM İÇİN) GEÇİCİ 32 YAPILABİLİR | S131: EVET | V131: 2023-06-30 | W131: =TRUNC(IF(V131=45016,'Aylık Yİ-ÜFE'!$N$218,IF(V131=45107,'Aylık Yİ-ÜFE'!$N$221,IF(V131=45199,'Aylık Yİ-ÜFE'!$N$224,IF(V131=45291,'Aylık Yİ-ÜFE'!$N$227)))),5) -> 0.1895
A132: 2014-09-04 | B132: 112 | I132: 2023 YILINDA YD YAPILABİLİR | M132: GEÇİCİ 31/1 E GÖRE YD YAPILABİLİRDİ | O132: GEÇİCİ 31/7 E GÖRE YD YAPILABİLİRDİ | R132: 2022 YILINDA GEÇİCİ 32 VE/VEYA MÜK. 298 Ç YAPILMADIĞINDAN 2023 YILINDA (2022 SONUNA KADAR OLAN DÖNEM İÇİN) GEÇİCİ 32 YAPILABİLİR | S132: EVET | V132: 2023-06-30 | W132: =TRUNC(IF(V132=45016,'Aylık Yİ-ÜFE'!$N$218,IF(V132=45107,'Aylık Yİ-ÜFE'!$N$221,IF(V132=45199,'Aylık Yİ-ÜFE'!$N$224,IF(V132=45291,'Aylık Yİ-ÜFE'!$N$227)))),5) -> 0.1895
A133: 2014-09-04 | B133: 113 | I133: 2023 YILINDA YD YAPILABİLİR | M133: GEÇİCİ 31/1 E GÖRE YD YAPILABİLİRDİ | O133: GEÇİCİ 31/7 E GÖRE YD YAPILABİLİRDİ | R133: 2022 YILINDA GEÇİCİ 32 VE/VEYA MÜK. 298 Ç YAPILMADIĞINDAN 2023 YILINDA (2022 SONUNA KADAR OLAN DÖNEM İÇİN) GEÇİCİ 32 YAPILABİLİR | S133: EVET | V133: 2023-06-30 | W133: =TRUNC(IF(V133=45016,'Aylık Yİ-ÜFE'!$N$218,IF(V133=45107,'Aylık Yİ-ÜFE'!$N$221,IF(V133=45199,'Aylık Yİ-ÜFE'!$N$224,IF(V133=45291,'Aylık Yİ-ÜFE'!$N$227)))),5) -> 0.1895
A134: 2014-09-04 | B134: 114 | I134: 2023 YILINDA YD YAPILABİLİR | M134: GEÇİCİ 31/1 E GÖRE YD YAPILABİLİRDİ | O134: GEÇİCİ 31/7 E GÖRE YD YAPILABİLİRDİ | R134: 2022 YILINDA GEÇİCİ 32 VE/VEYA MÜK. 298 Ç YAPILMADIĞINDAN 2023 YILINDA (2022 SONUNA KADAR OLAN DÖNEM İÇİN) GEÇİCİ 32 YAPILABİLİR | S134: EVET | V134: 2023-06-30 | W134: =TRUNC(IF(V134=45016,'Aylık Yİ-ÜFE'!$N$218,IF(V134=45107,'Aylık Yİ-ÜFE'!$N$221,IF(V134=45199,'Aylık Yİ-ÜFE'!$N$224,IF(V134=45291,'Aylık Yİ-ÜFE'!$N$227)))),5) -> 0.1895
A135: 2014-09-04 | B135: 115 | I135: 2023 YILINDA YD YAPILABİLİR | M135: GEÇİCİ 31/1 E GÖRE YD YAPILABİLİRDİ | O135: GEÇİCİ 31/7 E GÖRE YD YAPILABİLİRDİ | R135: 2022 YILINDA GEÇİCİ 32 VE/VEYA MÜK. 298 Ç YAPILMADIĞINDAN 2023 YILINDA (2022 SONUNA KADAR OLAN DÖNEM İÇİN) GEÇİCİ 32 YAPILABİLİR | S135: EVET | V135: 2023-06-30 | W135: =TRUNC(IF(V135=45016,'Aylık Yİ-ÜFE'!$N$218,IF(V135=45107,'Aylık Yİ-ÜFE'!$N$221,IF(V135=45199,'Aylık Yİ-ÜFE'!$N$224,IF(V135=45291,'Aylık Yİ-ÜFE'!$N$227)))),5) -> 0.1895
A136: 2014-09-04 | B136: 116 | I136: 2023 YILINDA YD YAPILABİLİR | M136: GEÇİCİ 31/1 E GÖRE YD YAPILABİLİRDİ | O136: GEÇİCİ 31/7 E GÖRE YD YAPILABİLİRDİ | R136: 2022 YILINDA GEÇİCİ 32 VE/VEYA MÜK. 298 Ç YAPILMADIĞINDAN 2023 YILINDA (2022 SONUNA KADAR OLAN DÖNEM İÇİN) GEÇİCİ 32 YAPILABİLİR | S136: EVET | V136: 2023-06-30 | W136: =TRUNC(IF(V136=45016,'Aylık Yİ-ÜFE'!$N$218,IF(V136=45107,'Aylık Yİ-ÜFE'!$N$221,IF(V136=45199,'Aylık Yİ-ÜFE'!$N$224,IF(V136=45291,'Aylık Yİ-ÜFE'!$N$227)))),5) -> 0.1895
A137: 2014-09-04 | B137: 117 | I137: 2023 YILINDA YD YAPILABİLİR | M137: GEÇİCİ 31/1 E GÖRE YD YAPILABİLİRDİ | O137: GEÇİCİ 31/7 E GÖRE YD YAPILABİLİRDİ | R137: 2022 YILINDA GEÇİCİ 32 VE/VEYA MÜK. 298 Ç YAPILMADIĞINDAN 2023 YILINDA (2022 SONUNA KADAR OLAN DÖNEM İÇİN) GEÇİCİ 32 YAPILABİLİR | S137: EVET | V137: 2023-06-30 | W137: =TRUNC(IF(V137=45016,'Aylık Yİ-ÜFE'!$N$218,IF(V137=45107,'Aylık Yİ-ÜFE'!$N$221,IF(V137=45199,'Aylık Yİ-ÜFE'!$N$224,IF(V137=45291,'Aylık Yİ-ÜFE'!$N$227)))),5) -> 0.1895
A138: 2014-09-04 | B138: 118 | I138: 2023 YILINDA YD YAPILABİLİR | M138: GEÇİCİ 31/1 E GÖRE YD YAPILABİLİRDİ | O138: GEÇİCİ 31/7 E GÖRE YD YAPILABİLİRDİ | R138: 2022 YILINDA GEÇİCİ 32 VE/VEYA MÜK. 298 Ç YAPILMADIĞINDAN 2023 YILINDA (2022 SONUNA KADAR OLAN DÖNEM İÇİN) GEÇİCİ 32 YAPILABİLİR | S138: EVET | V138: 2023-06-30 | W138: =TRUNC(IF(V138=45016,'Aylık Yİ-ÜFE'!$N$218,IF(V138=45107,'Aylık Yİ-ÜFE'!$N$221,IF(V138=45199,'Aylık Yİ-ÜFE'!$N$224,IF(V138=45291,'Aylık Yİ-ÜFE'!$N$227)))),5) -> 0.1895
A139: 2014-09-04 | B139: 119 | I139: 2023 YILINDA YD YAPILABİLİR | M139: GEÇİCİ 31/1 E GÖRE YD YAPILABİLİRDİ | O139: GEÇİCİ 31/7 E GÖRE YD YAPILABİLİRDİ | R139: 2022 YILINDA GEÇİCİ 32 VE/VEYA MÜK. 298 Ç YAPILMADIĞINDAN 2023 YILINDA (2022 SONUNA KADAR OLAN DÖNEM İÇİN) GEÇİCİ 32 YAPILABİLİR | S139: EVET | V139: 2023-06-30 | W139: =TRUNC(IF(V139=45016,'Aylık Yİ-ÜFE'!$N$218,IF(V139=45107,'Aylık Yİ-ÜFE'!$N$221,IF(V139=45199,'Aylık Yİ-ÜFE'!$N$224,IF(V139=45291,'Aylık Yİ-ÜFE'!$N$227)))),5) -> 0.1895
A140: 2014-09-04 | B140: 120 | I140: 2023 YILINDA YD YAPILABİLİR | M140: GEÇİCİ 31/1 E GÖRE YD YAPILABİLİRDİ | O140: GEÇİCİ 31/7 E GÖRE YD YAPILABİLİRDİ | R140: 2022 YILINDA GEÇİCİ 32 VE/VEYA MÜK. 298 Ç YAPILMADIĞINDAN 2023 YILINDA (2022 SONUNA KADAR OLAN DÖNEM İÇİN) GEÇİCİ 32 YAPILABİLİR | S140: EVET | V140: 2023-06-30 | W140: =TRUNC(IF(V140=45016,'Aylık Yİ-ÜFE'!$N$218,IF(V140=45107,'Aylık Yİ-ÜFE'!$N$221,IF(V140=45199,'Aylık Yİ-ÜFE'!$N$224,IF(V140=45291,'Aylık Yİ-ÜFE'!$N$227)))),5) -> 0.1895
A141: 2014-09-04 | B141: 121 | I141: 2023 YILINDA YD YAPILABİLİR | M141: GEÇİCİ 31/1 E GÖRE YD YAPILABİLİRDİ | O141: GEÇİCİ 31/7 E GÖRE YD YAPILABİLİRDİ | R141: 2022 YILINDA GEÇİCİ 32 VE/VEYA MÜK. 298 Ç YAPILMADIĞINDAN 2023 YILINDA (2022 SONUNA KADAR OLAN DÖNEM İÇİN) GEÇİCİ 32 YAPILABİLİR | S141: EVET | V141: 2023-06-30 | W141: =TRUNC(IF(V141=45016,'Aylık Yİ-ÜFE'!$N$218,IF(V141=45107,'Aylık Yİ-ÜFE'!$N$221,IF(V141=45199,'Aylık Yİ-ÜFE'!$N$224,IF(V141=45291,'Aylık Yİ-ÜFE'!$N$227)))),5) -> 0.1895
A142: 2014-09-04 | B142: 122 | I142: 2023 YILINDA YD YAPILABİLİR | M142: GEÇİCİ 31/1 E GÖRE YD YAPILABİLİRDİ | O142: GEÇİCİ 31/7 E GÖRE YD YAPILABİLİRDİ | R142: 2022 YILINDA GEÇİCİ 32 VE/VEYA MÜK. 298 Ç YAPILMADIĞINDAN 2023 YILINDA (2022 SONUNA KADAR OLAN DÖNEM İÇİN) GEÇİCİ 32 YAPILABİLİR | S142: EVET | V142: 2023-06-30 | W142: =TRUNC(IF(V142=45016,'Aylık Yİ-ÜFE'!$N$218,IF(V142=45107,'Aylık Yİ-ÜFE'!$N$221,IF(V142=45199,'Aylık Yİ-ÜFE'!$N$224,IF(V142=45291,'Aylık Yİ-ÜFE'!$N$227)))),5) -> 0.1895
A143: 2014-09-04 | B143: 123 | I143: 2023 YILINDA YD YAPILABİLİR | M143: GEÇİCİ 31/1 E GÖRE YD YAPILABİLİRDİ | O143: GEÇİCİ 31/7 E GÖRE YD YAPILABİLİRDİ | R143: 2022 YILINDA GEÇİCİ 32 VE/VEYA MÜK. 298 Ç YAPILMADIĞINDAN 2023 YILINDA (2022 SONUNA KADAR OLAN DÖNEM İÇİN) GEÇİCİ 32 YAPILABİLİR | S143: EVET | V143: 2023-06-30 | W143: =TRUNC(IF(V143=45016,'Aylık Yİ-ÜFE'!$N$218,IF(V143=45107,'Aylık Yİ-ÜFE'!$N$221,IF(V143=45199,'Aylık Yİ-ÜFE'!$N$224,IF(V143=45291,'Aylık Yİ-ÜFE'!$N$227)))),5) -> 0.1895
A144: 2014-09-04 | B144: 124 | I144: 2023 YILINDA YD YAPILABİLİR | M144: GEÇİCİ 31/1 E GÖRE YD YAPILABİLİRDİ | O144: GEÇİCİ 31/7 E GÖRE YD YAPILABİLİRDİ | R144: 2022 YILINDA GEÇİCİ 32 VE/VEYA MÜK. 298 Ç YAPILMADIĞINDAN 2023 YILINDA (2022 SONUNA KADAR OLAN DÖNEM İÇİN) GEÇİCİ 32 YAPILABİLİR | S144: EVET | V144: 2023-06-30 | W144: =TRUNC(IF(V144=45016,'Aylık Yİ-ÜFE'!$N$218,IF(V144=45107,'Aylık Yİ-ÜFE'!$N$221,IF(V144=45199,'Aylık Yİ-ÜFE'!$N$224,IF(V144=45291,'Aylık Yİ-ÜFE'!$N$227)))),5) -> 0.1895
A145: 2014-09-04 | B145: 125 | I145: 2023 YILINDA YD YAPILABİLİR | M145: GEÇİCİ 31/1 E GÖRE YD YAPILABİLİRDİ | O145: GEÇİCİ 31/7 E GÖRE YD YAPILABİLİRDİ | R145: 2022 YILINDA GEÇİCİ 32 VE/VEYA MÜK. 298 Ç YAPILMADIĞINDAN 2023 YILINDA (2022 SONUNA KADAR OLAN DÖNEM İÇİN) GEÇİCİ 32 YAPILABİLİR | S145: EVET | V145: 2023-06-30 | W145: =TRUNC(IF(V145=45016,'Aylık Yİ-ÜFE'!$N$218,IF(V145=45107,'Aylık Yİ-ÜFE'!$N$221,IF(V145=45199,'Aylık Yİ-ÜFE'!$N$224,IF(V145=45291,'Aylık Yİ-ÜFE'!$N$227)))),5) -> 0.1895
A146: 2014-09-04 | B146: 126 | I146: 2023 YILINDA YD YAPILABİLİR | M146: GEÇİCİ 31/1 E GÖRE YD YAPILABİLİRDİ | O146: GEÇİCİ 31/7 E GÖRE YD YAPILABİLİRDİ | R146: 2022 YILINDA GEÇİCİ 32 VE/VEYA MÜK. 298 Ç YAPILMADIĞINDAN 2023 YILINDA (2022 SONUNA KADAR OLAN DÖNEM İÇİN) GEÇİCİ 32 YAPILABİLİR | S146: EVET | V146: 2023-06-30 | W146: =TRUNC(IF(V146=45016,'Aylık Yİ-ÜFE'!$N$218,IF(V146=45107,'Aylık Yİ-ÜFE'!$N$221,IF(V146=45199,'Aylık Yİ-ÜFE'!$N$224,IF(V146=45291,'Aylık Yİ-ÜFE'!$N$227)))),5) -> 0.1895
A147: 2014-09-04 | B147: 127 | I147: 2023 YILINDA YD YAPILABİLİR | M147: GEÇİCİ 31/1 E GÖRE YD YAPILABİLİRDİ | O147: GEÇİCİ 31/7 E GÖRE YD YAPILABİLİRDİ | R147: 2022 YILINDA GEÇİCİ 32 VE/VEYA MÜK. 298 Ç YAPILMADIĞINDAN 2023 YILINDA (2022 SONUNA KADAR OLAN DÖNEM İÇİN) GEÇİCİ 32 YAPILABİLİR | S147: EVET | V147: 2023-06-30 | W147: =TRUNC(IF(V147=45016,'Aylık Yİ-ÜFE'!$N$218,IF(V147=45107,'Aylık Yİ-ÜFE'!$N$221,IF(V147=45199,'Aylık Yİ-ÜFE'!$N$224,IF(V147=45291,'Aylık Yİ-ÜFE'!$N$227)))),5) -> 0.1895
A148: 2014-09-04 | B148: 128 | I148: 2023 YILINDA YD YAPILABİLİR | M148: GEÇİCİ 31/1 E GÖRE YD YAPILABİLİRDİ | O148: GEÇİCİ 31/7 E GÖRE YD YAPILABİLİRDİ | R148: 2022 YILINDA GEÇİCİ 32 VE/VEYA MÜK. 298 Ç YAPILMADIĞINDAN 2023 YILINDA (2022 SONUNA KADAR OLAN DÖNEM İÇİN) GEÇİCİ 32 YAPILABİLİR | S148: EVET | V148: 2023-06-30 | W148: =TRUNC(IF(V148=45016,'Aylık Yİ-ÜFE'!$N$218,IF(V148=45107,'Aylık Yİ-ÜFE'!$N$221,IF(V148=45199,'Aylık Yİ-ÜFE'!$N$224,IF(V148=45291,'Aylık Yİ-ÜFE'!$N$227)))),5) -> 0.1895
A149: 2014-09-04 | B149: 129 | I149: 2023 YILINDA YD YAPILABİLİR | M149: GEÇİCİ 31/1 E GÖRE YD YAPILABİLİRDİ | O149: GEÇİCİ 31/7 E GÖRE YD YAPILABİLİRDİ | R149: =IF(OR(Q149="EVET",$G$12="EVET"),"2022 YILINDA GEÇİCİ 32 YA DA MÜK.298 Ç YAPILDIĞINDAN 2023 YILINDA (2022 YILI SONUNA KADAR OLAN) GEÇİCİ 32 YAPILAMAZ","2022 YILINDA GEÇİCİ 32 VE/VEYA MÜK. 298 Ç YAPILMADIĞINDAN 2023 YILINDA (2022 SONUNA KADAR OLAN DÖNEM İÇİN) GEÇİCİ 32 YAPILABİLİR") -> 2022 YILINDA GEÇİCİ 32 VE/VEYA MÜK. 298 Ç YAPILMADIĞINDAN 2023 YILINDA (2022 SONUNA KADAR OLAN DÖNEM İÇİN) GEÇİCİ 32 YAPILABİLİR | S149: =IF(OR(Q149="EVET",$G$12="EVET"),"HAYIR","EVET") -> EVET | V149: 2023-06-30 | W149: =TRUNC(IF(V149=45016,'Aylık Yİ-ÜFE'!$N$218,IF(V149=45107,'Aylık Yİ-ÜFE'!$N$221,IF(V149=45199,'Aylık Yİ-ÜFE'!$N$224,IF(V149=45291,'Aylık Yİ-ÜFE'!$N$227)))),5) -> 0.1895
A150: 2014-09-04 | B150: 130 | I150: =IF(H150>=44927,"2023 YILINDA ALINAN İKTİSADİ KIYMETLER YD YAPILAMAZ","2023 YILINDA YD YAPILABİLİR") -> 2023 YILINDA YD YAPILABİLİR | M150: =IF(H150<43245,"GEÇİCİ 31/1 E GÖRE YD YAPILABİLİRDİ", "GEÇİCİ 31/1 E GÖRE YD YAPILAMAZDI") -> GEÇİCİ 31/1 E GÖRE YD YAPILABİLİRDİ | O150: =IF(H150<44356,"GEÇİCİ 31/7 E GÖRE YD YAPILABİLİRDİ", "GEÇİCİ 31/7 E GÖRE YD YAPILAMAZDI") -> GEÇİCİ 31/7 E GÖRE YD YAPILABİLİRDİ | R150: 2022 YILINDA GEÇİCİ 32 VE/VEYA MÜK. 298 Ç YAPILMADIĞINDAN 2023 YILINDA (2022 SONUNA KADAR OLAN DÖNEM İÇİN) GEÇİCİ 32 YAPILABİLİR | S150: EVET | V150: 2023-06-30 | W150: =TRUNC(IF(V150=45016,'Aylık Yİ-ÜFE'!$N$218,IF(V150=45107,'Aylık Yİ-ÜFE'!$N$221,IF(V150=45199,'Aylık Yİ-ÜFE'!$N$224,IF(V150=45291,'Aylık Yİ-ÜFE'!$N$227)))),5) -> 0.1895
A151: 2014-09-04 | B151: 131 | I151: 2023 YILINDA YD YAPILABİLİR | M151: GEÇİCİ 31/1 E GÖRE YD YAPILABİLİRDİ | O151: GEÇİCİ 31/7 E GÖRE YD YAPILABİLİRDİ | R151: 2022 YILINDA GEÇİCİ 32 VE/VEYA MÜK. 298 Ç YAPILMADIĞINDAN 2023 YILINDA (2022 SONUNA KADAR OLAN DÖNEM İÇİN) GEÇİCİ 32 YAPILABİLİR | S151: EVET | V151: =V150 -> 2023-06-30 | W151: =TRUNC(IF(V151=45016,'Aylık Yİ-ÜFE'!$N$218,IF(V151=45107,'Aylık Yİ-ÜFE'!$N$221,IF(V151=45199,'Aylık Yİ-ÜFE'!$N$224,IF(V151=45291,'Aylık Yİ-ÜFE'!$N$227)))),5) -> 0.1895
A152: 2014-09-04 | B152: 132 | I152: 2023 YILINDA YD YAPILABİLİR | M152: GEÇİCİ 31/1 E GÖRE YD YAPILABİLİRDİ | O152: GEÇİCİ 31/7 E GÖRE YD YAPILABİLİRDİ | R152: 2022 YILINDA GEÇİCİ 32 VE/VEYA MÜK. 298 Ç YAPILMADIĞINDAN 2023 YILINDA (2022 SONUNA KADAR OLAN DÖNEM İÇİN) GEÇİCİ 32 YAPILABİLİR | S152: EVET | V152: 2023-06-30 | W152: =TRUNC(IF(V152=45016,'Aylık Yİ-ÜFE'!$N$218,IF(V152=45107,'Aylık Yİ-ÜFE'!$N$221,IF(V152=45199,'Aylık Yİ-ÜFE'!$N$224,IF(V152=45291,'Aylık Yİ-ÜFE'!$N$227)))),5) -> 0.1895
A153: 2014-07-02 | B153: 133 | I153: 2023 YILINDA YD YAPILABİLİR | M153: GEÇİCİ 31/1 E GÖRE YD YAPILABİLİRDİ | O153: GEÇİCİ 31/7 E GÖRE YD YAPILABİLİRDİ | R153: 2022 YILINDA GEÇİCİ 32 VE/VEYA MÜK. 298 Ç YAPILMADIĞINDAN 2023 YILINDA (2022 SONUNA KADAR OLAN DÖNEM İÇİN) GEÇİCİ 32 YAPILABİLİR | S153: EVET | V153: 2023-06-30 | W153: =TRUNC(IF(V153=45016,'Aylık Yİ-ÜFE'!$N$218,IF(V153=45107,'Aylık Yİ-ÜFE'!$N$221,IF(V153=45199,'Aylık Yİ-ÜFE'!$N$224,IF(V153=45291,'Aylık Yİ-ÜFE'!$N$227)))),5) -> 0.1895
A154: 2014-07-02 | B154: 134 | I154: 2023 YILINDA YD YAPILABİLİR | M154: GEÇİCİ 31/1 E GÖRE YD YAPILABİLİRDİ | O154: GEÇİCİ 31/7 E GÖRE YD YAPILABİLİRDİ | R154: 2022 YILINDA GEÇİCİ 32 VE/VEYA MÜK. 298 Ç YAPILMADIĞINDAN 2023 YILINDA (2022 SONUNA KADAR OLAN DÖNEM İÇİN) GEÇİCİ 32 YAPILABİLİR | S154: EVET | V154: 2023-06-30 | W154: =TRUNC(IF(V154=45016,'Aylık Yİ-ÜFE'!$N$218,IF(V154=45107,'Aylık Yİ-ÜFE'!$N$221,IF(V154=45199,'Aylık Yİ-ÜFE'!$N$224,IF(V154=45291,'Aylık Yİ-ÜFE'!$N$227)))),5) -> 0.1895
A155: 2014-07-02 | B155: 135 | I155: 2023 YILINDA YD YAPILABİLİR | M155: GEÇİCİ 31/1 E GÖRE YD YAPILABİLİRDİ | O155: GEÇİCİ 31/7 E GÖRE YD YAPILABİLİRDİ | R155: 2022 YILINDA GEÇİCİ 32 VE/VEYA MÜK. 298 Ç YAPILMADIĞINDAN 2023 YILINDA (2022 SONUNA KADAR OLAN DÖNEM İÇİN) GEÇİCİ 32 YAPILABİLİR | S155: EVET | V155: 2023-06-30 | W155: =TRUNC(IF(V155=45016,'Aylık Yİ-ÜFE'!$N$218,IF(V155=45107,'Aylık Yİ-ÜFE'!$N$221,IF(V155=45199,'Aylık Yİ-ÜFE'!$N$224,IF(V155=45291,'Aylık Yİ-ÜFE'!$N$227)))),5) -> 0.1895
A156: 2014-07-02 | B156: 136 | I156: 2023 YILINDA YD YAPILABİLİR | M156: GEÇİCİ 31/1 E GÖRE YD YAPILABİLİRDİ | O156: GEÇİCİ 31/7 E GÖRE YD YAPILABİLİRDİ | R156: 2022 YILINDA GEÇİCİ 32 VE/VEYA MÜK. 298 Ç YAPILMADIĞINDAN 2023 YILINDA (2022 SONUNA KADAR OLAN DÖNEM İÇİN) GEÇİCİ 32 YAPILABİLİR | S156: EVET | V156: 2023-06-30 | W156: =TRUNC(IF(V156=45016,'Aylık Yİ-ÜFE'!$N$218,IF(V156=45107,'Aylık Yİ-ÜFE'!$N$221,IF(V156=45199,'Aylık Yİ-ÜFE'!$N$224,IF(V156=45291,'Aylık Yİ-ÜFE'!$N$227)))),5) -> 0.1895
A157: 2014-07-02 | B157: 137 | I157: 2023 YILINDA YD YAPILABİLİR | M157: GEÇİCİ 31/1 E GÖRE YD YAPILABİLİRDİ | O157: GEÇİCİ 31/7 E GÖRE YD YAPILABİLİRDİ | R157: 2022 YILINDA GEÇİCİ 32 VE/VEYA MÜK. 298 Ç YAPILMADIĞINDAN 2023 YILINDA (2022 SONUNA KADAR OLAN DÖNEM İÇİN) GEÇİCİ 32 YAPILABİLİR | S157: EVET | V157: 2023-06-30 | W157: =TRUNC(IF(V157=45016,'Aylık Yİ-ÜFE'!$N$218,IF(V157=45107,'Aylık Yİ-ÜFE'!$N$221,IF(V157=45199,'Aylık Yİ-ÜFE'!$N$224,IF(V157=45291,'Aylık Yİ-ÜFE'!$N$227)))),5) -> 0.1895
A158: 2014-07-11 | B158: 138 | I158: 2023 YILINDA YD YAPILABİLİR | M158: GEÇİCİ 31/1 E GÖRE YD YAPILABİLİRDİ | O158: GEÇİCİ 31/7 E GÖRE YD YAPILABİLİRDİ | R158: 2022 YILINDA GEÇİCİ 32 VE/VEYA MÜK. 298 Ç YAPILMADIĞINDAN 2023 YILINDA (2022 SONUNA KADAR OLAN DÖNEM İÇİN) GEÇİCİ 32 YAPILABİLİR | S158: EVET | V158: 2023-06-30 | W158: =TRUNC(IF(V158=45016,'Aylık Yİ-ÜFE'!$N$218,IF(V158=45107,'Aylık Yİ-ÜFE'!$N$221,IF(V158=45199,'Aylık Yİ-ÜFE'!$N$224,IF(V158=45291,'Aylık Yİ-ÜFE'!$N$227)))),5) -> 0.1895
A159: 2014-07-11 | B159: 139 | I159: 2023 YILINDA YD YAPILABİLİR | M159: GEÇİCİ 31/1 E GÖRE YD YAPILABİLİRDİ | O159: GEÇİCİ 31/7 E GÖRE YD YAPILABİLİRDİ | R159: 2022 YILINDA GEÇİCİ 32 VE/VEYA MÜK. 298 Ç YAPILMADIĞINDAN 2023 YILINDA (2022 SONUNA KADAR OLAN DÖNEM İÇİN) GEÇİCİ 32 YAPILABİLİR | S159: EVET | V159: 2023-06-30 | W159: =TRUNC(IF(V159=45016,'Aylık Yİ-ÜFE'!$N$218,IF(V159=45107,'Aylık Yİ-ÜFE'!$N$221,IF(V159=45199,'Aylık Yİ-ÜFE'!$N$224,IF(V159=45291,'Aylık Yİ-ÜFE'!$N$227)))),5) -> 0.1895
A160: 2014-10-17 | B160: 140 | I160: 2023 YILINDA YD YAPILABİLİR | M160: GEÇİCİ 31/1 E GÖRE YD YAPILABİLİRDİ | O160: GEÇİCİ 31/7 E GÖRE YD YAPILABİLİRDİ | R160: 2022 YILINDA GEÇİCİ 32 VE/VEYA MÜK. 298 Ç YAPILMADIĞINDAN 2023 YILINDA (2022 SONUNA KADAR OLAN DÖNEM İÇİN) GEÇİCİ 32 YAPILABİLİR | S160: EVET | V160: 2023-06-30 | W160: =TRUNC(IF(V160=45016,'Aylık Yİ-ÜFE'!$N$218,IF(V160=45107,'Aylık Yİ-ÜFE'!$N$221,IF(V160=45199,'Aylık Yİ-ÜFE'!$N$224,IF(V160=45291,'Aylık Yİ-ÜFE'!$N$227)))),5) -> 0.1895
A161: 2014-10-17 | B161: 141 | I161: 2023 YILINDA YD YAPILABİLİR | M161: GEÇİCİ 31/1 E GÖRE YD YAPILABİLİRDİ | O161: GEÇİCİ 31/7 E GÖRE YD YAPILABİLİRDİ | R161: 2022 YILINDA GEÇİCİ 32 VE/VEYA MÜK. 298 Ç YAPILMADIĞINDAN 2023 YILINDA (2022 SONUNA KADAR OLAN DÖNEM İÇİN) GEÇİCİ 32 YAPILABİLİR | S161: EVET | V161: 2023-06-30 | W161: =TRUNC(IF(V161=45016,'Aylık Yİ-ÜFE'!$N$218,IF(V161=45107,'Aylık Yİ-ÜFE'!$N$221,IF(V161=45199,'Aylık Yİ-ÜFE'!$N$224,IF(V161=45291,'Aylık Yİ-ÜFE'!$N$227)))),5) -> 0.1895
A162: 2014-10-28 | B162: 142 | I162: 2023 YILINDA YD YAPILABİLİR | M162: GEÇİCİ 31/1 E GÖRE YD YAPILABİLİRDİ | O162: GEÇİCİ 31/7 E GÖRE YD YAPILABİLİRDİ | R162: 2022 YILINDA GEÇİCİ 32 VE/VEYA MÜK. 298 Ç YAPILMADIĞINDAN 2023 YILINDA (2022 SONUNA KADAR OLAN DÖNEM İÇİN) GEÇİCİ 32 YAPILABİLİR | S162: EVET | V162: 2023-06-30 | W162: =TRUNC(IF(V162=45016,'Aylık Yİ-ÜFE'!$N$218,IF(V162=45107,'Aylık Yİ-ÜFE'!$N$221,IF(V162=45199,'Aylık Yİ-ÜFE'!$N$224,IF(V162=45291,'Aylık Yİ-ÜFE'!$N$227)))),5) -> 0.1895
A163: 2014-10-28 | B163: 143 | I163: 2023 YILINDA YD YAPILABİLİR | M163: GEÇİCİ 31/1 E GÖRE YD YAPILABİLİRDİ | O163: GEÇİCİ 31/7 E GÖRE YD YAPILABİLİRDİ | R163: 2022 YILINDA GEÇİCİ 32 VE/VEYA MÜK. 298 Ç YAPILMADIĞINDAN 2023 YILINDA (2022 SONUNA KADAR OLAN DÖNEM İÇİN) GEÇİCİ 32 YAPILABİLİR | S163: EVET | V163: 2023-06-30 | W163: =TRUNC(IF(V163=45016,'Aylık Yİ-ÜFE'!$N$218,IF(V163=45107,'Aylık Yİ-ÜFE'!$N$221,IF(V163=45199,'Aylık Yİ-ÜFE'!$N$224,IF(V163=45291,'Aylık Yİ-ÜFE'!$N$227)))),5) -> 0.1895
A164: 2014-10-28 | B164: 144 | I164: 2023 YILINDA YD YAPILABİLİR | M164: GEÇİCİ 31/1 E GÖRE YD YAPILABİLİRDİ | O164: GEÇİCİ 31/7 E GÖRE YD YAPILABİLİRDİ | R164: 2022 YILINDA GEÇİCİ 32 VE/VEYA MÜK. 298 Ç YAPILMADIĞINDAN 2023 YILINDA (2022 SONUNA KADAR OLAN DÖNEM İÇİN) GEÇİCİ 32 YAPILABİLİR | S164: EVET | V164: 2023-06-30 | W164: =TRUNC(IF(V164=45016,'Aylık Yİ-ÜFE'!$N$218,IF(V164=45107,'Aylık Yİ-ÜFE'!$N$221,IF(V164=45199,'Aylık Yİ-ÜFE'!$N$224,IF(V164=45291,'Aylık Yİ-ÜFE'!$N$227)))),5) -> 0.1895
A165: 2014-10-28 | B165: 145 | I165: 2023 YILINDA YD YAPILABİLİR | M165: GEÇİCİ 31/1 E GÖRE YD YAPILABİLİRDİ | O165: GEÇİCİ 31/7 E GÖRE YD YAPILABİLİRDİ | R165: 2022 YILINDA GEÇİCİ 32 VE/VEYA MÜK. 298 Ç YAPILMADIĞINDAN 2023 YILINDA (2022 SONUNA KADAR OLAN DÖNEM İÇİN) GEÇİCİ 32 YAPILABİLİR | S165: EVET | V165: 2023-06-30 | W165: =TRUNC(IF(V165=45016,'Aylık Yİ-ÜFE'!$N$218,IF(V165=45107,'Aylık Yİ-ÜFE'!$N$221,IF(V165=45199,'Aylık Yİ-ÜFE'!$N$224,IF(V165=45291,'Aylık Yİ-ÜFE'!$N$227)))),5) -> 0.1895
A166: 2014-10-28 | B166: 146 | I166: 2023 YILINDA YD YAPILABİLİR | M166: GEÇİCİ 31/1 E GÖRE YD YAPILABİLİRDİ | O166: GEÇİCİ 31/7 E GÖRE YD YAPILABİLİRDİ | R166: 2022 YILINDA GEÇİCİ 32 VE/VEYA MÜK. 298 Ç YAPILMADIĞINDAN 2023 YILINDA (2022 SONUNA KADAR OLAN DÖNEM İÇİN) GEÇİCİ 32 YAPILABİLİR | S166: EVET | V166: 2023-06-30 | W166: =TRUNC(IF(V166=45016,'Aylık Yİ-ÜFE'!$N$218,IF(V166=45107,'Aylık Yİ-ÜFE'!$N$221,IF(V166=45199,'Aylık Yİ-ÜFE'!$N$224,IF(V166=45291,'Aylık Yİ-ÜFE'!$N$227)))),5) -> 0.1895
A167: 2014-10-28 | B167: 147 | I167: 2023 YILINDA YD YAPILABİLİR | M167: GEÇİCİ 31/1 E GÖRE YD YAPILABİLİRDİ | O167: GEÇİCİ 31/7 E GÖRE YD YAPILABİLİRDİ | R167: 2022 YILINDA GEÇİCİ 32 VE/VEYA MÜK. 298 Ç YAPILMADIĞINDAN 2023 YILINDA (2022 SONUNA KADAR OLAN DÖNEM İÇİN) GEÇİCİ 32 YAPILABİLİR | S167: EVET | V167: 2023-06-30 | W167: =TRUNC(IF(V167=45016,'Aylık Yİ-ÜFE'!$N$218,IF(V167=45107,'Aylık Yİ-ÜFE'!$N$221,IF(V167=45199,'Aylık Yİ-ÜFE'!$N$224,IF(V167=45291,'Aylık Yİ-ÜFE'!$N$227)))),5) -> 0.1895
A168: 2014-10-28 | B168: 148 | I168: 2023 YILINDA YD YAPILABİLİR | M168: GEÇİCİ 31/1 E GÖRE YD YAPILABİLİRDİ | O168: GEÇİCİ 31/7 E GÖRE YD YAPILABİLİRDİ | R168: 2022 YILINDA GEÇİCİ 32 VE/VEYA MÜK. 298 Ç YAPILMADIĞINDAN 2023 YILINDA (2022 SONUNA KADAR OLAN DÖNEM İÇİN) GEÇİCİ 32 YAPILABİLİR | S168: EVET | V168: 2023-06-30 | W168: =TRUNC(IF(V168=45016,'Aylık Yİ-ÜFE'!$N$218,IF(V168=45107,'Aylık Yİ-ÜFE'!$N$221,IF(V168=45199,'Aylık Yİ-ÜFE'!$N$224,IF(V168=45291,'Aylık Yİ-ÜFE'!$N$227)))),5) -> 0.1895
A169: 2014-10-28 | B169: 149 | I169: 2023 YILINDA YD YAPILABİLİR | M169: GEÇİCİ 31/1 E GÖRE YD YAPILABİLİRDİ | O169: GEÇİCİ 31/7 E GÖRE YD YAPILABİLİRDİ | R169: 2022 YILINDA GEÇİCİ 32 VE/VEYA MÜK. 298 Ç YAPILMADIĞINDAN 2023 YILINDA (2022 SONUNA KADAR OLAN DÖNEM İÇİN) GEÇİCİ 32 YAPILABİLİR | S169: EVET | V169: 2023-06-30 | W169: =TRUNC(IF(V169=45016,'Aylık Yİ-ÜFE'!$N$218,IF(V169=45107,'Aylık Yİ-ÜFE'!$N$221,IF(V169=45199,'Aylık Yİ-ÜFE'!$N$224,IF(V169=45291,'Aylık Yİ-ÜFE'!$N$227)))),5) -> 0.1895
A170: 2014-10-28 | B170: 150 | I170: 2023 YILINDA YD YAPILABİLİR | M170: GEÇİCİ 31/1 E GÖRE YD YAPILABİLİRDİ | O170: GEÇİCİ 31/7 E GÖRE YD YAPILABİLİRDİ | R170: 2022 YILINDA GEÇİCİ 32 VE/VEYA MÜK. 298 Ç YAPILMADIĞINDAN 2023 YILINDA (2022 SONUNA KADAR OLAN DÖNEM İÇİN) GEÇİCİ 32 YAPILABİLİR | S170: EVET | V170: 2023-06-30 | W170: =TRUNC(IF(V170=45016,'Aylık Yİ-ÜFE'!$N$218,IF(V170=45107,'Aylık Yİ-ÜFE'!$N$221,IF(V170=45199,'Aylık Yİ-ÜFE'!$N$224,IF(V170=45291,'Aylık Yİ-ÜFE'!$N$227)))),5) -> 0.1895
A171: 2014-10-28 | B171: 151 | I171: 2023 YILINDA YD YAPILABİLİR | M171: GEÇİCİ 31/1 E GÖRE YD YAPILABİLİRDİ | O171: GEÇİCİ 31/7 E GÖRE YD YAPILABİLİRDİ | R171: 2022 YILINDA GEÇİCİ 32 VE/VEYA MÜK. 298 Ç YAPILMADIĞINDAN 2023 YILINDA (2022 SONUNA KADAR OLAN DÖNEM İÇİN) GEÇİCİ 32 YAPILABİLİR | S171: EVET | V171: 2023-06-30 | W171: =TRUNC(IF(V171=45016,'Aylık Yİ-ÜFE'!$N$218,IF(V171=45107,'Aylık Yİ-ÜFE'!$N$221,IF(V171=45199,'Aylık Yİ-ÜFE'!$N$224,IF(V171=45291,'Aylık Yİ-ÜFE'!$N$227)))),5) -> 0.1895
A172: 2014-10-28 | B172: 152 | I172: 2023 YILINDA YD YAPILABİLİR | M172: GEÇİCİ 31/1 E GÖRE YD YAPILABİLİRDİ | O172: GEÇİCİ 31/7 E GÖRE YD YAPILABİLİRDİ | R172: 2022 YILINDA GEÇİCİ 32 VE/VEYA MÜK. 298 Ç YAPILMADIĞINDAN 2023 YILINDA (2022 SONUNA KADAR OLAN DÖNEM İÇİN) GEÇİCİ 32 YAPILABİLİR | S172: EVET | V172: 2023-06-30 | W172: =TRUNC(IF(V172=45016,'Aylık Yİ-ÜFE'!$N$218,IF(V172=45107,'Aylık Yİ-ÜFE'!$N$221,IF(V172=45199,'Aylık Yİ-ÜFE'!$N$224,IF(V172=45291,'Aylık Yİ-ÜFE'!$N$227)))),5) -> 0.1895
A173: 2014-10-28 | B173: 153 | I173: 2023 YILINDA YD YAPILABİLİR | M173: GEÇİCİ 31/1 E GÖRE YD YAPILABİLİRDİ | O173: GEÇİCİ 31/7 E GÖRE YD YAPILABİLİRDİ | R173: 2022 YILINDA GEÇİCİ 32 VE/VEYA MÜK. 298 Ç YAPILMADIĞINDAN 2023 YILINDA (2022 SONUNA KADAR OLAN DÖNEM İÇİN) GEÇİCİ 32 YAPILABİLİR | S173: EVET | V173: 2023-06-30 | W173: =TRUNC(IF(V173=45016,'Aylık Yİ-ÜFE'!$N$218,IF(V173=45107,'Aylık Yİ-ÜFE'!$N$221,IF(V173=45199,'Aylık Yİ-ÜFE'!$N$224,IF(V173=45291,'Aylık Yİ-ÜFE'!$N$227)))),5) -> 0.1895
A174: 2014-10-28 | B174: 154 | I174: 2023 YILINDA YD YAPILABİLİR | M174: GEÇİCİ 31/1 E GÖRE YD YAPILABİLİRDİ | O174: GEÇİCİ 31/7 E GÖRE YD YAPILABİLİRDİ | R174: 2022 YILINDA GEÇİCİ 32 VE/VEYA MÜK. 298 Ç YAPILMADIĞINDAN 2023 YILINDA (2022 SONUNA KADAR OLAN DÖNEM İÇİN) GEÇİCİ 32 YAPILABİLİR | S174: EVET | V174: 2023-06-30 | W174: =TRUNC(IF(V174=45016,'Aylık Yİ-ÜFE'!$N$218,IF(V174=45107,'Aylık Yİ-ÜFE'!$N$221,IF(V174=45199,'Aylık Yİ-ÜFE'!$N$224,IF(V174=45291,'Aylık Yİ-ÜFE'!$N$227)))),5) -> 0.1895
A175: 2014-10-28 | B175: 155 | I175: 2023 YILINDA YD YAPILABİLİR | M175: GEÇİCİ 31/1 E GÖRE YD YAPILABİLİRDİ | O175: GEÇİCİ 31/7 E GÖRE YD YAPILABİLİRDİ | R175: 2022 YILINDA GEÇİCİ 32 VE/VEYA MÜK. 298 Ç YAPILMADIĞINDAN 2023 YILINDA (2022 SONUNA KADAR OLAN DÖNEM İÇİN) GEÇİCİ 32 YAPILABİLİR | S175: EVET | V175: 2023-06-30 | W175: =TRUNC(IF(V175=45016,'Aylık Yİ-ÜFE'!$N$218,IF(V175=45107,'Aylık Yİ-ÜFE'!$N$221,IF(V175=45199,'Aylık Yİ-ÜFE'!$N$224,IF(V175=45291,'Aylık Yİ-ÜFE'!$N$227)))),5) -> 0.1895
A176: 2014-10-28 | B176: 156 | I176: 2023 YILINDA YD YAPILABİLİR | M176: GEÇİCİ 31/1 E GÖRE YD YAPILABİLİRDİ | O176: GEÇİCİ 31/7 E GÖRE YD YAPILABİLİRDİ | R176: 2022 YILINDA GEÇİCİ 32 VE/VEYA MÜK. 298 Ç YAPILMADIĞINDAN 2023 YILINDA (2022 SONUNA KADAR OLAN DÖNEM İÇİN) GEÇİCİ 32 YAPILABİLİR | S176: EVET | V176: 2023-06-30 | W176: =TRUNC(IF(V176=45016,'Aylık Yİ-ÜFE'!$N$218,IF(V176=45107,'Aylık Yİ-ÜFE'!$N$221,IF(V176=45199,'Aylık Yİ-ÜFE'!$N$224,IF(V176=45291,'Aylık Yİ-ÜFE'!$N$227)))),5) -> 0.1895
A177: 2014-10-28 | B177: 157 | I177: 2023 YILINDA YD YAPILABİLİR | M177: GEÇİCİ 31/1 E GÖRE YD YAPILABİLİRDİ | O177: GEÇİCİ 31/7 E GÖRE YD YAPILABİLİRDİ | R177: 2022 YILINDA GEÇİCİ 32 VE/VEYA MÜK. 298 Ç YAPILMADIĞINDAN 2023 YILINDA (2022 SONUNA KADAR OLAN DÖNEM İÇİN) GEÇİCİ 32 YAPILABİLİR | S177: EVET | V177: 2023-06-30 | W177: =TRUNC(IF(V177=45016,'Aylık Yİ-ÜFE'!$N$218,IF(V177=45107,'Aylık Yİ-ÜFE'!$N$221,IF(V177=45199,'Aylık Yİ-ÜFE'!$N$224,IF(V177=45291,'Aylık Yİ-ÜFE'!$N$227)))),5) -> 0.1895
A178: 2014-10-28 | B178: 158 | I178: 2023 YILINDA YD YAPILABİLİR | M178: GEÇİCİ 31/1 E GÖRE YD YAPILABİLİRDİ | O178: GEÇİCİ 31/7 E GÖRE YD YAPILABİLİRDİ | R178: 2022 YILINDA GEÇİCİ 32 VE/VEYA MÜK. 298 Ç YAPILMADIĞINDAN 2023 YILINDA (2022 SONUNA KADAR OLAN DÖNEM İÇİN) GEÇİCİ 32 YAPILABİLİR | S178: EVET | V178: 2023-06-30 | W178: =TRUNC(IF(V178=45016,'Aylık Yİ-ÜFE'!$N$218,IF(V178=45107,'Aylık Yİ-ÜFE'!$N$221,IF(V178=45199,'Aylık Yİ-ÜFE'!$N$224,IF(V178=45291,'Aylık Yİ-ÜFE'!$N$227)))),5) -> 0.1895
A179: 2014-10-28 | B179: 159 | I179: 2023 YILINDA YD YAPILABİLİR | M179: GEÇİCİ 31/1 E GÖRE YD YAPILABİLİRDİ | O179: GEÇİCİ 31/7 E GÖRE YD YAPILABİLİRDİ | R179: 2022 YILINDA GEÇİCİ 32 VE/VEYA MÜK. 298 Ç YAPILMADIĞINDAN 2023 YILINDA (2022 SONUNA KADAR OLAN DÖNEM İÇİN) GEÇİCİ 32 YAPILABİLİR | S179: EVET | V179: 2023-06-30 | W179: =TRUNC(IF(V179=45016,'Aylık Yİ-ÜFE'!$N$218,IF(V179=45107,'Aylık Yİ-ÜFE'!$N$221,IF(V179=45199,'Aylık Yİ-ÜFE'!$N$224,IF(V179=45291,'Aylık Yİ-ÜFE'!$N$227)))),5) -> 0.1895
A180: 2014-10-28 | B180: 160 | I180: 2023 YILINDA YD YAPILABİLİR | M180: GEÇİCİ 31/1 E GÖRE YD YAPILABİLİRDİ | O180: GEÇİCİ 31/7 E GÖRE YD YAPILABİLİRDİ | R180: 2022 YILINDA GEÇİCİ 32 VE/VEYA MÜK. 298 Ç YAPILMADIĞINDAN 2023 YILINDA (2022 SONUNA KADAR OLAN DÖNEM İÇİN) GEÇİCİ 32 YAPILABİLİR | S180: EVET | V180: 2023-06-30 | W180: =TRUNC(IF(V180=45016,'Aylık Yİ-ÜFE'!$N$218,IF(V180=45107,'Aylık Yİ-ÜFE'!$N$221,IF(V180=45199,'Aylık Yİ-ÜFE'!$N$224,IF(V180=45291,'Aylık Yİ-ÜFE'!$N$227)))),5) -> 0.1895
A181: 2014-10-03 | B181: 161 | I181: 2023 YILINDA YD YAPILABİLİR | M181: GEÇİCİ 31/1 E GÖRE YD YAPILABİLİRDİ | O181: GEÇİCİ 31/7 E GÖRE YD YAPILABİLİRDİ | R181: 2022 YILINDA GEÇİCİ 32 VE/VEYA MÜK. 298 Ç YAPILMADIĞINDAN 2023 YILINDA (2022 SONUNA KADAR OLAN DÖNEM İÇİN) GEÇİCİ 32 YAPILABİLİR | S181: EVET | V181: 2023-06-30 | W181: =TRUNC(IF(V181=45016,'Aylık Yİ-ÜFE'!$N$218,IF(V181=45107,'Aylık Yİ-ÜFE'!$N$221,IF(V181=45199,'Aylık Yİ-ÜFE'!$N$224,IF(V181=45291,'Aylık Yİ-ÜFE'!$N$227)))),5) -> 0.1895
A182: 2014-10-03 | B182: 162 | I182: 2023 YILINDA YD YAPILABİLİR | M182: GEÇİCİ 31/1 E GÖRE YD YAPILABİLİRDİ | O182: GEÇİCİ 31/7 E GÖRE YD YAPILABİLİRDİ | R182: 2022 YILINDA GEÇİCİ 32 VE/VEYA MÜK. 298 Ç YAPILMADIĞINDAN 2023 YILINDA (2022 SONUNA KADAR OLAN DÖNEM İÇİN) GEÇİCİ 32 YAPILABİLİR | S182: EVET | V182: 2023-06-30 | W182: =TRUNC(IF(V182=45016,'Aylık Yİ-ÜFE'!$N$218,IF(V182=45107,'Aylık Yİ-ÜFE'!$N$221,IF(V182=45199,'Aylık Yİ-ÜFE'!$N$224,IF(V182=45291,'Aylık Yİ-ÜFE'!$N$227)))),5) -> 0.1895
A183: 2014-10-03 | B183: 163 | I183: 2023 YILINDA YD YAPILABİLİR | M183: GEÇİCİ 31/1 E GÖRE YD YAPILABİLİRDİ | O183: GEÇİCİ 31/7 E GÖRE YD YAPILABİLİRDİ | R183: 2022 YILINDA GEÇİCİ 32 VE/VEYA MÜK. 298 Ç YAPILMADIĞINDAN 2023 YILINDA (2022 SONUNA KADAR OLAN DÖNEM İÇİN) GEÇİCİ 32 YAPILABİLİR | S183: EVET | V183: 2023-06-30 | W183: =TRUNC(IF(V183=45016,'Aylık Yİ-ÜFE'!$N$218,IF(V183=45107,'Aylık Yİ-ÜFE'!$N$221,IF(V183=45199,'Aylık Yİ-ÜFE'!$N$224,IF(V183=45291,'Aylık Yİ-ÜFE'!$N$227)))),5) -> 0.1895
A184: 2014-10-03 | B184: 164 | I184: 2023 YILINDA YD YAPILABİLİR | M184: GEÇİCİ 31/1 E GÖRE YD YAPILABİLİRDİ | O184: GEÇİCİ 31/7 E GÖRE YD YAPILABİLİRDİ | R184: 2022 YILINDA GEÇİCİ 32 VE/VEYA MÜK. 298 Ç YAPILMADIĞINDAN 2023 YILINDA (2022 SONUNA KADAR OLAN DÖNEM İÇİN) GEÇİCİ 32 YAPILABİLİR | S184: EVET | V184: 2023-06-30 | W184: =TRUNC(IF(V184=45016,'Aylık Yİ-ÜFE'!$N$218,IF(V184=45107,'Aylık Yİ-ÜFE'!$N$221,IF(V184=45199,'Aylık Yİ-ÜFE'!$N$224,IF(V184=45291,'Aylık Yİ-ÜFE'!$N$227)))),5) -> 0.1895
A185: 2014-10-03 | B185: 165 | I185: 2023 YILINDA YD YAPILABİLİR | M185: GEÇİCİ 31/1 E GÖRE YD YAPILABİLİRDİ | O185: GEÇİCİ 31/7 E GÖRE YD YAPILABİLİRDİ | R185: 2022 YILINDA GEÇİCİ 32 VE/VEYA MÜK. 298 Ç YAPILMADIĞINDAN 2023 YILINDA (2022 SONUNA KADAR OLAN DÖNEM İÇİN) GEÇİCİ 32 YAPILABİLİR | S185: EVET | V185: 2023-06-30 | W185: =TRUNC(IF(V185=45016,'Aylık Yİ-ÜFE'!$N$218,IF(V185=45107,'Aylık Yİ-ÜFE'!$N$221,IF(V185=45199,'Aylık Yİ-ÜFE'!$N$224,IF(V185=45291,'Aylık Yİ-ÜFE'!$N$227)))),5) -> 0.1895
A186: 2014-10-03 | B186: 166 | I186: 2023 YILINDA YD YAPILABİLİR | M186: GEÇİCİ 31/1 E GÖRE YD YAPILABİLİRDİ | O186: GEÇİCİ 31/7 E GÖRE YD YAPILABİLİRDİ | R186: 2022 YILINDA GEÇİCİ 32 VE/VEYA MÜK. 298 Ç YAPILMADIĞINDAN 2023 YILINDA (2022 SONUNA KADAR OLAN DÖNEM İÇİN) GEÇİCİ 32 YAPILABİLİR | S186: EVET | V186: 2023-06-30 | W186: =TRUNC(IF(V186=45016,'Aylık Yİ-ÜFE'!$N$218,IF(V186=45107,'Aylık Yİ-ÜFE'!$N$221,IF(V186=45199,'Aylık Yİ-ÜFE'!$N$224,IF(V186=45291,'Aylık Yİ-ÜFE'!$N$227)))),5) -> 0.1895
A187: 2014-10-03 | B187: 167 | I187: 2023 YILINDA YD YAPILABİLİR | M187: GEÇİCİ 31/1 E GÖRE YD YAPILABİLİRDİ | O187: GEÇİCİ 31/7 E GÖRE YD YAPILABİLİRDİ | R187: 2022 YILINDA GEÇİCİ 32 VE/VEYA MÜK. 298 Ç YAPILMADIĞINDAN 2023 YILINDA (2022 SONUNA KADAR OLAN DÖNEM İÇİN) GEÇİCİ 32 YAPILABİLİR | S187: EVET | V187: 2023-06-30 | W187: =TRUNC(IF(V187=45016,'Aylık Yİ-ÜFE'!$N$218,IF(V187=45107,'Aylık Yİ-ÜFE'!$N$221,IF(V187=45199,'Aylık Yİ-ÜFE'!$N$224,IF(V187=45291,'Aylık Yİ-ÜFE'!$N$227)))),5) -> 0.1895
A188: 2014-10-03 | B188: 168 | I188: 2023 YILINDA YD YAPILABİLİR | M188: GEÇİCİ 31/1 E GÖRE YD YAPILABİLİRDİ | O188: GEÇİCİ 31/7 E GÖRE YD YAPILABİLİRDİ | R188: 2022 YILINDA GEÇİCİ 32 VE/VEYA MÜK. 298 Ç YAPILMADIĞINDAN 2023 YILINDA (2022 SONUNA KADAR OLAN DÖNEM İÇİN) GEÇİCİ 32 YAPILABİLİR | S188: EVET | V188: 2023-06-30 | W188: =TRUNC(IF(V188=45016,'Aylık Yİ-ÜFE'!$N$218,IF(V188=45107,'Aylık Yİ-ÜFE'!$N$221,IF(V188=45199,'Aylık Yİ-ÜFE'!$N$224,IF(V188=45291,'Aylık Yİ-ÜFE'!$N$227)))),5) -> 0.1895
A189: 2014-10-03 | B189: 169 | I189: 2023 YILINDA YD YAPILABİLİR | M189: GEÇİCİ 31/1 E GÖRE YD YAPILABİLİRDİ | O189: GEÇİCİ 31/7 E GÖRE YD YAPILABİLİRDİ | R189: 2022 YILINDA GEÇİCİ 32 VE/VEYA MÜK. 298 Ç YAPILMADIĞINDAN 2023 YILINDA (2022 SONUNA KADAR OLAN DÖNEM İÇİN) GEÇİCİ 32 YAPILABİLİR | S189: EVET | V189: 2023-06-30 | W189: =TRUNC(IF(V189=45016,'Aylık Yİ-ÜFE'!$N$218,IF(V189=45107,'Aylık Yİ-ÜFE'!$N$221,IF(V189=45199,'Aylık Yİ-ÜFE'!$N$224,IF(V189=45291,'Aylık Yİ-ÜFE'!$N$227)))),5) -> 0.1895
A190: 2014-10-03 | B190: 170 | I190: 2023 YILINDA YD YAPILABİLİR | M190: GEÇİCİ 31/1 E GÖRE YD YAPILABİLİRDİ | O190: GEÇİCİ 31/7 E GÖRE YD YAPILABİLİRDİ | R190: 2022 YILINDA GEÇİCİ 32 VE/VEYA MÜK. 298 Ç YAPILMADIĞINDAN 2023 YILINDA (2022 SONUNA KADAR OLAN DÖNEM İÇİN) GEÇİCİ 32 YAPILABİLİR | S190: EVET | V190: 2023-06-30 | W190: =TRUNC(IF(V190=45016,'Aylık Yİ-ÜFE'!$N$218,IF(V190=45107,'Aylık Yİ-ÜFE'!$N$221,IF(V190=45199,'Aylık Yİ-ÜFE'!$N$224,IF(V190=45291,'Aylık Yİ-ÜFE'!$N$227)))),5) -> 0.1895
A191: 2014-10-03 | B191: 171 | I191: 2023 YILINDA YD YAPILABİLİR | M191: GEÇİCİ 31/1 E GÖRE YD YAPILABİLİRDİ | O191: GEÇİCİ 31/7 E GÖRE YD YAPILABİLİRDİ | R191: 2022 YILINDA GEÇİCİ 32 VE/VEYA MÜK. 298 Ç YAPILMADIĞINDAN 2023 YILINDA (2022 SONUNA KADAR OLAN DÖNEM İÇİN) GEÇİCİ 32 YAPILABİLİR | S191: EVET | V191: 2023-06-30 | W191: =TRUNC(IF(V191=45016,'Aylık Yİ-ÜFE'!$N$218,IF(V191=45107,'Aylık Yİ-ÜFE'!$N$221,IF(V191=45199,'Aylık Yİ-ÜFE'!$N$224,IF(V191=45291,'Aylık Yİ-ÜFE'!$N$227)))),5) -> 0.1895
A192: 2014-10-03 | B192: 172 | I192: 2023 YILINDA YD YAPILABİLİR | M192: GEÇİCİ 31/1 E GÖRE YD YAPILABİLİRDİ | O192: GEÇİCİ 31/7 E GÖRE YD YAPILABİLİRDİ | R192: 2022 YILINDA GEÇİCİ 32 VE/VEYA MÜK. 298 Ç YAPILMADIĞINDAN 2023 YILINDA (2022 SONUNA KADAR OLAN DÖNEM İÇİN) GEÇİCİ 32 YAPILABİLİR | S192: EVET | V192: 2023-06-30 | W192: =TRUNC(IF(V192=45016,'Aylık Yİ-ÜFE'!$N$218,IF(V192=45107,'Aylık Yİ-ÜFE'!$N$221,IF(V192=45199,'Aylık Yİ-ÜFE'!$N$224,IF(V192=45291,'Aylık Yİ-ÜFE'!$N$227)))),5) -> 0.1895
A193: 2014-10-03 | B193: 173 | I193: 2023 YILINDA YD YAPILABİLİR | M193: GEÇİCİ 31/1 E GÖRE YD YAPILABİLİRDİ | O193: GEÇİCİ 31/7 E GÖRE YD YAPILABİLİRDİ | R193: 2022 YILINDA GEÇİCİ 32 VE/VEYA MÜK. 298 Ç YAPILMADIĞINDAN 2023 YILINDA (2022 SONUNA KADAR OLAN DÖNEM İÇİN) GEÇİCİ 32 YAPILABİLİR | S193: EVET | V193: 2023-06-30 | W193: =TRUNC(IF(V193=45016,'Aylık Yİ-ÜFE'!$N$218,IF(V193=45107,'Aylık Yİ-ÜFE'!$N$221,IF(V193=45199,'Aylık Yİ-ÜFE'!$N$224,IF(V193=45291,'Aylık Yİ-ÜFE'!$N$227)))),5) -> 0.1895
A194: 2014-10-03 | B194: 174 | I194: 2023 YILINDA YD YAPILABİLİR | M194: GEÇİCİ 31/1 E GÖRE YD YAPILABİLİRDİ | O194: GEÇİCİ 31/7 E GÖRE YD YAPILABİLİRDİ | R194: 2022 YILINDA GEÇİCİ 32 VE/VEYA MÜK. 298 Ç YAPILMADIĞINDAN 2023 YILINDA (2022 SONUNA KADAR OLAN DÖNEM İÇİN) GEÇİCİ 32 YAPILABİLİR | S194: EVET | V194: 2023-06-30 | W194: =TRUNC(IF(V194=45016,'Aylık Yİ-ÜFE'!$N$218,IF(V194=45107,'Aylık Yİ-ÜFE'!$N$221,IF(V194=45199,'Aylık Yİ-ÜFE'!$N$224,IF(V194=45291,'Aylık Yİ-ÜFE'!$N$227)))),5) -> 0.1895
A195: 2014-10-03 | B195: 175 | I195: 2023 YILINDA YD YAPILABİLİR | M195: GEÇİCİ 31/1 E GÖRE YD YAPILABİLİRDİ | O195: GEÇİCİ 31/7 E GÖRE YD YAPILABİLİRDİ | R195: 2022 YILINDA GEÇİCİ 32 VE/VEYA MÜK. 298 Ç YAPILMADIĞINDAN 2023 YILINDA (2022 SONUNA KADAR OLAN DÖNEM İÇİN) GEÇİCİ 32 YAPILABİLİR | S195: EVET | V195: 2023-06-30 | W195: =TRUNC(IF(V195=45016,'Aylık Yİ-ÜFE'!$N$218,IF(V195=45107,'Aylık Yİ-ÜFE'!$N$221,IF(V195=45199,'Aylık Yİ-ÜFE'!$N$224,IF(V195=45291,'Aylık Yİ-ÜFE'!$N$227)))),5) -> 0.1895
A196: 2014-10-03 | B196: 176 | I196: 2023 YILINDA YD YAPILABİLİR | M196: GEÇİCİ 31/1 E GÖRE YD YAPILABİLİRDİ | O196: GEÇİCİ 31/7 E GÖRE YD YAPILABİLİRDİ | R196: 2022 YILINDA GEÇİCİ 32 VE/VEYA MÜK. 298 Ç YAPILMADIĞINDAN 2023 YILINDA (2022 SONUNA KADAR OLAN DÖNEM İÇİN) GEÇİCİ 32 YAPILABİLİR | S196: EVET | V196: 2023-06-30 | W196: =TRUNC(IF(V196=45016,'Aylık Yİ-ÜFE'!$N$218,IF(V196=45107,'Aylık Yİ-ÜFE'!$N$221,IF(V196=45199,'Aylık Yİ-ÜFE'!$N$224,IF(V196=45291,'Aylık Yİ-ÜFE'!$N$227)))),5) -> 0.1895
A197: 2014-10-03 | B197: 177 | I197: 2023 YILINDA YD YAPILABİLİR | M197: GEÇİCİ 31/1 E GÖRE YD YAPILABİLİRDİ | O197: GEÇİCİ 31/7 E GÖRE YD YAPILABİLİRDİ | R197: 2022 YILINDA GEÇİCİ 32 VE/VEYA MÜK. 298 Ç YAPILMADIĞINDAN 2023 YILINDA (2022 SONUNA KADAR OLAN DÖNEM İÇİN) GEÇİCİ 32 YAPILABİLİR | S197: EVET | V197: 2023-06-30 | W197: =TRUNC(IF(V197=45016,'Aylık Yİ-ÜFE'!$N$218,IF(V197=45107,'Aylık Yİ-ÜFE'!$N$221,IF(V197=45199,'Aylık Yİ-ÜFE'!$N$224,IF(V197=45291,'Aylık Yİ-ÜFE'!$N$227)))),5) -> 0.1895
A198: 2014-10-03 | B198: 178 | I198: 2023 YILINDA YD YAPILABİLİR | M198: GEÇİCİ 31/1 E GÖRE YD YAPILABİLİRDİ | O198: GEÇİCİ 31/7 E GÖRE YD YAPILABİLİRDİ | R198: 2022 YILINDA GEÇİCİ 32 VE/VEYA MÜK. 298 Ç YAPILMADIĞINDAN 2023 YILINDA (2022 SONUNA KADAR OLAN DÖNEM İÇİN) GEÇİCİ 32 YAPILABİLİR | S198: EVET | V198: 2023-06-30 | W198: =TRUNC(IF(V198=45016,'Aylık Yİ-ÜFE'!$N$218,IF(V198=45107,'Aylık Yİ-ÜFE'!$N$221,IF(V198=45199,'Aylık Yİ-ÜFE'!$N$224,IF(V198=45291,'Aylık Yİ-ÜFE'!$N$227)))),5) -> 0.1895
A199: 2014-10-03 | B199: 179 | I199: 2023 YILINDA YD YAPILABİLİR | M199: GEÇİCİ 31/1 E GÖRE YD YAPILABİLİRDİ | O199: GEÇİCİ 31/7 E GÖRE YD YAPILABİLİRDİ | R199: 2022 YILINDA GEÇİCİ 32 VE/VEYA MÜK. 298 Ç YAPILMADIĞINDAN 2023 YILINDA (2022 SONUNA KADAR OLAN DÖNEM İÇİN) GEÇİCİ 32 YAPILABİLİR | S199: EVET | V199: 2023-06-30 | W199: =TRUNC(IF(V199=45016,'Aylık Yİ-ÜFE'!$N$218,IF(V199=45107,'Aylık Yİ-ÜFE'!$N$221,IF(V199=45199,'Aylık Yİ-ÜFE'!$N$224,IF(V199=45291,'Aylık Yİ-ÜFE'!$N$227)))),5) -> 0.1895
A200: 2014-10-03 | B200: 180 | I200: 2023 YILINDA YD YAPILABİLİR | M200: GEÇİCİ 31/1 E GÖRE YD YAPILABİLİRDİ | O200: GEÇİCİ 31/7 E GÖRE YD YAPILABİLİRDİ | R200: 2022 YILINDA GEÇİCİ 32 VE/VEYA MÜK. 298 Ç YAPILMADIĞINDAN 2023 YILINDA (2022 SONUNA KADAR OLAN DÖNEM İÇİN) GEÇİCİ 32 YAPILABİLİR | S200: EVET | V200: 2023-06-30 | W200: =TRUNC(IF(V200=45016,'Aylık Yİ-ÜFE'!$N$218,IF(V200=45107,'Aylık Yİ-ÜFE'!$N$221,IF(V200=45199,'Aylık Yİ-ÜFE'!$N$224,IF(V200=45291,'Aylık Yİ-ÜFE'!$N$227)))),5) -> 0.1895
A201: 2014-10-03 | B201: 181 | I201: 2023 YILINDA YD YAPILABİLİR | M201: GEÇİCİ 31/1 E GÖRE YD YAPILABİLİRDİ | O201: GEÇİCİ 31/7 E GÖRE YD YAPILABİLİRDİ | R201: 2022 YILINDA GEÇİCİ 32 VE/VEYA MÜK. 298 Ç YAPILMADIĞINDAN 2023 YILINDA (2022 SONUNA KADAR OLAN DÖNEM İÇİN) GEÇİCİ 32 YAPILABİLİR | S201: EVET | V201: 2023-06-30 | W201: =TRUNC(IF(V201=45016,'Aylık Yİ-ÜFE'!$N$218,IF(V201=45107,'Aylık Yİ-ÜFE'!$N$221,IF(V201=45199,'Aylık Yİ-ÜFE'!$N$224,IF(V201=45291,'Aylık Yİ-ÜFE'!$N$227)))),5) -> 0.1895
A202: 2014-10-03 | B202: 182 | I202: 2023 YILINDA YD YAPILABİLİR | M202: GEÇİCİ 31/1 E GÖRE YD YAPILABİLİRDİ | O202: GEÇİCİ 31/7 E GÖRE YD YAPILABİLİRDİ | R202: 2022 YILINDA GEÇİCİ 32 VE/VEYA MÜK. 298 Ç YAPILMADIĞINDAN 2023 YILINDA (2022 SONUNA KADAR OLAN DÖNEM İÇİN) GEÇİCİ 32 YAPILABİLİR | S202: EVET | V202: 2023-06-30 | W202: =TRUNC(IF(V202=45016,'Aylık Yİ-ÜFE'!$N$218,IF(V202=45107,'Aylık Yİ-ÜFE'!$N$221,IF(V202=45199,'Aylık Yİ-ÜFE'!$N$224,IF(V202=45291,'Aylık Yİ-ÜFE'!$N$227)))),5) -> 0.1895
A203: 2014-10-03 | B203: 183 | I203: 2023 YILINDA YD YAPILABİLİR | M203: GEÇİCİ 31/1 E GÖRE YD YAPILABİLİRDİ | O203: GEÇİCİ 31/7 E GÖRE YD YAPILABİLİRDİ | R203: 2022 YILINDA GEÇİCİ 32 VE/VEYA MÜK. 298 Ç YAPILMADIĞINDAN 2023 YILINDA (2022 SONUNA KADAR OLAN DÖNEM İÇİN) GEÇİCİ 32 YAPILABİLİR | S203: EVET | V203: 2023-06-30 | W203: =TRUNC(IF(V203=45016,'Aylık Yİ-ÜFE'!$N$218,IF(V203=45107,'Aylık Yİ-ÜFE'!$N$221,IF(V203=45199,'Aylık Yİ-ÜFE'!$N$224,IF(V203=45291,'Aylık Yİ-ÜFE'!$N$227)))),5) -> 0.1895
... 2047 more rows

Sheet GEÇ-32 2022 - 2023 298 Ç
BJ1: ****** 2023/II. DÖNEM İÇİN MÜK.298 Ç UYARINCA HESAPLANAN YENİDEN DEĞERLEME ARTIŞ TUTARI HESABI 6 AYLIK KÜMÜLATİF DÖNEMİ DİKAKTE ALARAK HESAPLANDIĞINDAN, 2023/I. GEÇİCİ VERGİ DÖNEMİ İÇİN MÜK.298/Ç UYARINCA HESAPLANMIŞ VE MUHASEBE KAYDINA KONU EDİLMİŞ MALİYET ARTIŞI, AMORTİSMAN ARTIŞI VE YENİDEN DEĞERLEME ARTIŞI TUTARI BULUNMASI HALİNDE, BU BİRİNCİ DÖNEME AİT MALİYET, AMORTİSMAN VE 522-YENİDEN DEĞERLEME DEĞER ARTIŞI HESABI TUTARLARININ 2023/II. DÖNEM İÇİN HESAPLANAN MALİYET, AMORTİSMAN VE 522-YENİDEN DEĞERLEME DEĞER ARTIŞI TUTARLARINDAN TENZİL EDİLİP, KALAN TUTARIN 2023/II. DÖNEM İÇİN MİHASEBELEŞTİRİLMESİ MÜKERRER HESAPLAMA YAPILMAMASI BAKIMINDAN ÖNEM ARZ ETMEKTEDİR.
B2: 2022 YILINDA 31.12.2021 TARİHİ İTİABRİYLE GEÇİCİ 32 YE GÖRE YENİDEN DEĞERLEME YA DA MÜK.298 Ç YE GÖRE YENİDEN DEĞERLEME YAPILMADIĞI DURUMLARDA; 31.12.2022 TARİHİNE KADAR OLAN SÜREYİ KAPSAYACAK ŞEKİLDE GEÇİCİ 32 YE GÖRE YD YAPILACAK OLMASI DURUMUNDA BU TABLO DİKKATE ALINCAKTIR.
B4: ÖNEMLİ NOTLAR: * 31.12.2022 VE ÖNCESİNDE BİLANÇODA BULUNAN VARLIKLAR LİSTEYE ALINMALIDIR. / 2023 YILINDA EDİNİLEN VARLIKLAR LİSTEYE ALINMAMALIDIR. ** AMORTİSMAN SÜRESİNİ DOLDURMUŞ OLANLAR LİSTEYE ALINMAMALIDIR. *** GEÇİCİ 32 İÇİN; İLK YILDAN SONRAKİ VE MALİYETE EKLENMİŞ OLAN KREDİ FAİZLERİ İLE KUR FARKLARI PARÇALI YENİDEN DEĞERLEMEYE TABİ TUTULUR. İLGİLİ MALİYET UNSURU AKTİFLEŞTİRİLDİĞİ TARİH İKTİSAP TARİHİ ALANINA YAZILACAK VE AYRI BİR İKTİSADİ KIYMET OLARAK DEĞERLENDİRİLECEKTİR. MÜK.298 Ç İÇİN BU TÜR MALİYET UNSURLARI YENİDEN DEĞERLEMEYE TABİ TUTULMAYACAKTIR. **** GEÇİCİ 32 İÇİN : İNŞA OLUNAN BİNALARDA, ARSA MALİYETİ ARSANIN AKTİFLEŞTİRİLDİĞİ, DİĞER MALİYET UNSURLARI İSE BİNANIN AKTİFLEŞTİRİLDİĞİ TARİH İKTİSAP TARİHİ ALANINA AYRI AYRI YAZILACAKTIR. *****GEÇİCİ 31 /1 VEYA GEÇİCİ 31/7 YE GÖRE YENİDEN DEĞERLEME YAPILMIŞ OLMASI HALİNDE, TAŞINMAZ VEYA ATİK'İN İKTİSAP DEĞERİ SÜTÜNUNDAKİ HÜCRELERE BU YENİDEN DEĞERLEMELER SONRASI OLUŞAN YENİ DEĞERLERİNE YER VERİLMELİDİR. ****** 2023/II. DÖNEM İÇİN MÜK.298 Ç UYARINCA HESAPLANAN YENİDEN DEĞERLEME ARTIŞ TUTARI HESABI 6 AYLIK KÜMÜLATİF DÖNEMİ DİKAKTE ALARAK HESAPLANDIĞINDAN, 2023/I. GEÇİCİ VERGİ DÖNEMİ İÇİN MÜK.298/Ç UYARINCA HESAPLANMIŞ VE MUHASEBE KAYDINA KONU EDİLMİŞ YENİDEN DEĞERLEME ARTIŞI TUTARI BULUNMASI HALİNDE, BU BİRİNCİ DÖNEME AİT 522-YENİDEN DEĞERLEME DEĞER ARTIŞI HESABI TUTARI 2023/II. DÖNEM İÇİN HESAPLANAN 522-YENİDEN DEĞERLEME DEĞER ARTIŞI TUTARINDAN TENZİL EDİLİP, KALAN TUTARIN 2023/II. DÖNEM İÇİN 522 HESABA ALACAK OLARAK KAYDEDİLMESİ MÜKERRER HESAPLAMA YAPILMAMASI BAKIMINDAN ÖNEM ARZ ETMEKTEDİR. | M4: =SUM(M8:M10007) -> 5000000 | T4: =SUM(T8:T10007) -> 3152000 | X4: =SUM(X8:X10007) -> 5000000 | Y4: =SUM(Y8:Y10007) -> 3152000 | Z4: =SUM(Z8:Z10007) -> 1848000 | AG4: =SUM(AG8:AG10007) -> 5000000 | AH4: =SUM(AH8:AH10007) -> 3152000 | AI4: =SUM(AI8:AI10007) -> 1848000 | AJ4: =SUM(AJ8:AJ3007) -> 0 | AK4: =SUM(AK8:AK10007) -> 0 | AL4: =SUM(AL8:AL10007) -> 0 | AM4: =SUM(AM8:AM10007) -> 0 | AY4: =SUM(AY8:AY10007) -> 5000000 | AZ4: =SUM(AZ8:AZ10007) -> 3152000 | BA4: =SUM(BA8:BA10007) -> 1848000 | BC4: 5947500 | BD4: 3749304 | BE4: 2198196 | BF4: 947500 | BG4: 597304 | BH4: 350196 | BI4: =SUM(BI8:BI10007) -> 426316.8
B5: GEÇİCİ 32 YE GÖRE YAPILAN YD SONUCU | AY5: YAPILAN MÜK 298 Ç SONUCU (31.12.2022 TARİHLİ BİLANÇODAKİ YD TABİ VARLIKLARIN YD İŞLEMİNE TABİ TUTULMASI )
B6: SIRA NO | C6: İKTİSADİ KIYMETİN ADI | D6: MUHASEBE ANA HESAP KODU | E6: İKTİSADİ KIYMETİN AKTİFLEŞTİRİLDİĞİ YILDAN SONRAKİ YILLARDA MALİYETE ATILAN KUR FARKI, KREDİ FAİZ NİTELİĞİNDE MİDİR? | F6: EKONOMİK ÖMRÜ (YIL) | G6: AMORTİSMAN ORANI YILIK | H6: İKTİSAP TARİHİ | I6: 2022 YILINDA GEÇİCİ 32 (31.12.2021 TARİHİNE KADAR OLAN KISIM İÇİN ) YENİDEN DEĞERLEME YAPILMIŞ MIDIR? | J6: 2023 YILI GEÇİCİ 32 YAPILABİLME DURUMU | K6: HESAPLAMADA DİKKATE ALINACAK TARİH | L6: İKTİSAP TARİHİ KONTROLÜ (2023 YILINDAN ÖNCE AKTİFE ALINMIŞ OLMA DURUMU) | M6: TAŞINMAZ VEYA ATİK İN İKTİSAP DEĞERİ (GEÇİCİ 31/1 YA DA GEÇİCİ 31/7 YAPILMIŞ İSE BUNLARA GÖRE HESAPLANAN YD SONRASI DEĞERLER DİKKATE ALINMALIDIR) | N6: AMORTİSMAN YÖNTEMİ | O6: KIST AMORTİSMANA TABİ Mİ (SADECE BİNEK OTOMOBİLLER) | P6: AMORTİSMAN HESABI İÇİN GEÇEN SÜRE (GÜN) (HESAPLAMADA DİKKATE ALINACAK 31.12.20222 TARİHİNE KADAR) | Q6: NORMAL AMORTİSMAN SÜRESİ (YIL OLARAK) | R6: KIST AMORTİSMAN SÜRESİ YIL OLARAK | S6: HESAPLAMALARDA DİKKATE ALINAN AMORTİSMAN SÜRESİ YIL SÜRESİ | T6: HESAPLAMADA DİKKATE ALINACAK 31.12.2022 TARİHİ İTİBARİYLE AYRILMASI GEREKEN AMORTİSMAN TUTARI (AYRILMAMIŞ OLANLAR DAHİL) | U6: 7144 SAYILI KANUNA GÖRE VUK GEÇİCİ 31 / 1 YD YAPILMIŞ MIDIR? | V6: 7326 SAYILI KANUNA GÖRE VUK GEÇİCİ 31 / 7 YD YAPILMIŞ MIDIR? | W6: 2022 YILINDA GEÇİCİ 32 YE GÖRE (31.12.2021 TARİHİNE KADAR OLAN KISIM İÇİN) YD YAPILMIŞ MIDIR? | X6: GEÇİCİ 32 YD ÖNCESİ | AA6: GEÇİCİ 32 YE GÖRE YENİDEN DEĞERLEME YAPILACAK MIDIR? | AB6: YENİDEN DEĞERLEME ORANININ HESABI | AG6: GEÇİCİ 32 YD SONRASI | AJ6: MALİYET TE ORTAYA ÇIKAN ARTIŞ | AK6: AMORTİSMANDA ORTAYA ÇIKAN ARTIŞ | AL6: NET DEĞER ARTIŞI GEÇİCİ 32 NEDENİYLE FAZLA AYRILABİLECEK TOPLAM AMORTİSMAN TUTARI | AM6: GEÇİCİ 32 YD NEDENİYLE HESAPLANAN VERGİ TUTARI | AO6: 2023 YILI GEÇİCİ VERGİ DÖNEMİ TARİHİNE KADAR HESAPLANAN AMORTİSMAN TUTARININ BULUNMASI | AY6: 298 Ç YD ÖNCESİ | BB6: YENİDEN DEĞERLEME ORANI | BC6: 298 Ç YD SONRASI | BF6: MALİYET TE ORTAYA ÇIKAN ARTIŞ | BG6: AMORTİSMANDA ORTAYA ÇIKAN ARTIŞ | BH6: NET DEĞER ARTIŞI 298 Ç NEDENİYLE FAZLA AYRILABİLECEK TOPLAM AMORTİSMAN TUTARI VEYA MALİYET ARTIM (SATIŞ KAZANCINI AZALTIM) ETKİSİ TUTARI | BI6: 2023 II. GEÇİCİ VERGİ DÖNEMİ SONUNDA AYRILMASI GEREKEN AMORTİSMAN TUTARI YD SONRASI DEĞER ÜZERİNDEN AMORTİSMAN YÖNTEMİ VE GEÇEN SÜRE DİKKATE ALINARAK
X7: YD ÖNCESİ MALİYET BEDELİ | Y7: HESAPLAMADA DİKKATE ALINACAK TARİH İTİBARİYLE AMORTİSMAN TUTARI | Z7: NET AKTİF DEĞERİ | AB7: BAŞLANGIÇ AYI | AC7: BAŞLANGIÇ AYI ENDEKSİ | AD7: BİTİŞ AYI | AE7: BİTİŞ AYI ENDEKSİ | AF7: YD ORANI | AG7: YD SONRASI MALİYET BEDELİ | AH7: HESAPLAMADA DİKKATE ALINACAK TARİH İTİBARİYLE AMORTİSMAN TUTARI | AI7: NET AKTİF DEĞERİ (YD SONRASI) | AO7: BOŞ ARAZİ VE ARSA İLE AKTİFLEŞTİRME YILINDAN SONRAKİ YILLARDA MALİYETE EKLENEN KREDİ FAİZLERİ İLE KUR FARKLARI UYARISI | AP7: 2023 YILINDA MÜK.298 Ç YAPILACAK MIDIR? | AQ7: İKTİSAP TARİHİ | AR7: 298 Ç YENİDEN DEĞERLEME TARİHİ | AS7: AMORTİSMAN YÖNTEMİ | AT7: KIST AMORTİSMANA TABİ Mİ (SADECE BİNEK OTOMOBİLLER) | AU7: AMORTİSMAN HESABI İÇİN GEÇEN SÜRE (GÜN) (HESAPLAMADA DİKKATE ALINACAK TARİHE KADAR) | AV7: NORMAL AMORTİSMAN SÜRESİ (YIL OLARAK) | AW7: KIST AMORTİSMAN SÜRESİ YIL OLARAK | AX7: HESAPLAMALARDA DİKKATE ALINAN AMORTİSMAN SÜRESİ YIL SÜRESİ | AY7: YD ÖNCESİ MALİYET BEDELİ | AZ7: YD ÖNCESİ AYRILMIŞ SAYILAN AMORTİSMAN TUTARI Dönem Başı (1.1.2023) tarihi itibariyle iktisadi kıymetin Amortisman Tutarı | BA7: YD ÖNCESİ NET AKTİF DEĞERİ | BC7: YD SONRASI MALİYET BEDELİ | BD7: YD SONRASI AMORTİSMAN TUTARI 298 Ç YD TARİHİ İTİBARİYLE HESAPLANAN AMORTİSMAN TUTARININ YENİDEN DEĞERLENMİŞ HALİ) | BE7: YD SONRASI NET AKTİF DEĞERİ
B8: 1 | C8: ='DOLDURULMASI GEREKEN TABLO'!D21 -> A | D8: ='DOLDURULMASI GEREKEN TABLO'!E21 -> 253- Tesis Makine ve Cihazlar | E8: ='DOLDURULMASI GEREKEN TABLO'!F21 -> HAYIR | F8: ='DOLDURULMASI GEREKEN TABLO'!G21 -> 5 | G8: =IFERROR(IF(N8="AZALAN BAKİYELERE GÖRE AMORTİSMAN",MIN(1/F8,1/4),1/F8),0) -> 0.2 | H8: ='DOLDURULMASI GEREKEN TABLO'!H21 -> 2020-09-01 | I8: ='DOLDURULMASI GEREKEN TABLO'!Q21 -> HAYIR | J8: ='DOLDURULMASI GEREKEN TABLO'!S21 -> EVET | K8: 2022-12-31 | L8: =IF(H8>44926,"2023 YILINDA İKTİSAP EDİLEN İÇİN GEÇİCİ 32 YE GÖRE 2023 YILINDA YD YAPILAMAZ","TARİH UYUMLU") -> TARİH UYUMLU | M8: ='DOLDURULMASI GEREKEN TABLO'!J21 -> 1000000 | N8: ='DOLDURULMASI GEREKEN TABLO'!K21 -> NORMAL AMORTİSMAN | O8: ='DOLDURULMASI GEREKEN TABLO'!L21 -> HAYIR | P8: =IFERROR(IF(J8="EVET",(K8-H8)+1,0),0) -> 852 | Q8: =IFERROR(MIN(YEAR(K8)-YEAR(H8)+1,F8),0) -> 3 | R8: =IFERROR(MIN(((YEAR(K8)-YEAR(H8))*12+(MONTH(K8)-MONTH(H8))+1)/12,F8),0) -> 2.333333333 | S8: =IFERROR(MIN(IF(O8="HAYIR",Q8,R8),F8),0) -> 3 | T8: =IF(D8="250- Arazi ve Arsalar",0, IF(S8=F8,M8, IF(AND(N8="NORMAL AMORTİSMAN",O8="HAYIR"),M8*G8*S8, IF(AND(N8="NORMAL AMORTİSMAN",O8="EVET"),M8*G8*S8, IF(AND(N8="AZALAN BAKİYELERE GÖRE AMORTİSMAN",O8="HAYIR",F8<=4),VDB(M8,0,4,0,Q8,2,TRUE), IF(AND(N8="AZALAN BAKİYELERE GÖRE AMORTİSMAN",O8="HAYIR",AND(F8>4,S8<F8)),VDB(M8,0,F8,0,S8,2,TRUE), IF(AND(N8="AZALAN BAKİYELERE GÖRE AMORTİSMAN",O8="EVET",Q8=1),(DDB(M8,0,IF(F8<=4,4,F8),1,2)/12)*(12-MONTH(H8)+1), IF(AND(N8="AZALAN BAKİYELERE GÖRE AMORTİSMAN",O8="EVET",Q8=2),(DDB(M8,0,IF(F8<=4,4,F8),1,2)/12)*(12-MONTH(H8)+1)+DDB(M8,0,IF(F8<=4,4,F8),2,2), IF(AND(N8="AZALAN BAKİYELERE GÖRE AMORTİSMAN",O8="EVET",Q8=3),(DDB(M8,0,IF(F8<=4,4,F8),1,2)/12)*(12-MONTH(H8)+1)+DDB(M8,0,IF(F8<=4,4,F8),2,2)+DDB(M8,0,IF(F8<=4,4,F8),3,2), IF(AND(N8="AZALAN BAKİYELERE GÖRE AMORTİSMAN",O8="EVET",AND(Q8>3,Q8<5)),(DDB(M8,0,IF(F8<=4,4,F8),1,2)/12)*(12-MONTH(H8)+1)+DDB(M8,0,IF(F8<=4,4,F8),2,2)+DDB(M8,0,IF(F8<=4,4,F8),3,2)+DDB(M8,0,IF(F8<=4,4,F8),S8,2), IF(AND(N8="AZALAN BAKİYELERE GÖRE AMORTİSMAN",O8="EVET",Q8=5),VDB(M8,0,F8,0,S8,2,TRUE),0))))))))))) -> 600000 | U8: ='DOLDURULMASI GEREKEN TABLO'!N21 -> HAYIR | V8: ='DOLDURULMASI GEREKEN TABLO'!P21 -> HAYIR | W8: ='DOLDURULMASI GEREKEN TABLO'!Q21 -> HAYIR | X8: =M8 -> 1000000 | Y8: =T8 -> 600000 | Z8: =X8-Y8 -> 400000 | AA8: ='DOLDURULMASI GEREKEN TABLO'!T21 -> HAYIR | AB8: =IF(AND(U8="EVET",V8="EVET"),"2021-6",IF(AND(U8="HAYIR",V8="EVET"),"2021-6",IF(AND(U8="EVET",V8="HAYIR"),"2018-5",IF(AND(U8="HAYIR",V8="HAYIR"),IF(AND(H8<=38352,U8="HAYIR",V8="HAYIR"),"2005-1",IF(MONTH(H8)+1=13,CONCATENATE(YEAR(H8)+1,"-",MONTH(H8)-11),CONCATENATE(YEAR(H8),"-",MONTH(H8)+1))))))) -> 2020-10 | AC8: =VLOOKUP(AB8,'Aylık Yİ-ÜFE'!$D$1:$E$229,2,0) -> 533.44 | AD8: =IF(J8="HAYIR","2021-12","2022-12") -> 2022-12 | AE8: =VLOOKUP(AD8,'Aylık Yİ-ÜFE'!$D$1:$E$229,2,0) -> 2021.19 | AF8: =IFERROR(IF(AA8="EVET",TRUNC(AE8/AC8,5),1),0) -> 1 | AG8: =IF(OR('DOLDURULMASI GEREKEN TABLO'!Q21="EVET",'DOLDURULMASI GEREKEN TABLO'!S21="EVET"),MAX(X8*AF8,X8),X8) -> 1000000 | AH8: =IF(OR('DOLDURULMASI GEREKEN TABLO'!Q21="EVET",'DOLDURULMASI GEREKEN TABLO'!S21="EVET"),MAX(Y8*AF8,Y8),Y8) -> 600000 | AI8: =AG8-AH8 -> 400000 | AJ8: =IFERROR(IF(AG8-X8<0,0,AG8-X8),0) -> 0 | AK8: =IFERROR(IF(AH8-Y8<0,0,AH8-Y8),0) -> 0 | AL8: =IFERROR(IF((AJ8-AK8)<0,0,(AJ8-AK8)),0) -> 0 | AM8: =IFERROR(AL8*2/100,0) -> 0 | AO8: =IF(OR(D8="250- Arazi ve Arsalar",E8="EVET"), "BOŞ ARAZİ VE ARSALAR İLE AKTİFLEŞTİRME YILINDAN SONRAKİ YILLARDA MALİYETE EKLENEN KREDİ FAİZLERİ İLE KUR FARKLARI MÜK.298 Ç YE GÖRE YD YAPILAMAZ","YD YAPILABİLİR") -> YD YAPILABİLİR | AP8: ='DOLDURULMASI GEREKEN TABLO'!U21 -> EVET | AQ8: =H8 -> 2020-09-01 | AR8: ='DOLDURULMASI GEREKEN TABLO'!V21 -> 2023-06-30 | AS8: =N8 -> NORMAL AMORTİSMAN | AT8: =O8 -> HAYIR | AU8: =(AR8-AQ8) -> 1032 | AV8: =YEAR(AR8)-YEAR(AQ8)+1 -> 4 | AW8: =(((YEAR(AR8)-YEAR(AQ8))*12)+(MONTH(AR8)-MONTH(AQ8)+1))/12 -> 2.833333333 | AX8: =MIN(IF(AND(AT8="HAYIR",AR8=45016),(AV8-0.75),IF(AND(AT8="HAYIR",AR8=45107),(AV8-0.5),IF(AND(AT8="HAYIR",AR8=45199),(AV8-0.25),IF(AND(AT8="HAYIR",AR8=45291),AV8,AW8)))),F8) -> 3.5 | AY8: =AG8 -> 1000000 | AZ8: =AH8 -> 600000 | BA8: =AY8-AZ8 -> 400000 | BB8: =IF(E8="EVET",0,'DOLDURULMASI GEREKEN TABLO'!W21) -> 0.1895 | BC8: =IF(AND(AO8="YD YAPILABİLİR",AP8="EVET"),AY8*(1+BB8),AY8) -> 1189500 | BD8: =IFERROR(IF(AND(AO8="YD YAPILABİLİR",AP8="EVET"),AZ8*(1+BB8),AZ8),0) -> 713700 | BE8: =BC8-BD8 -> 475800 | BF8: =BC8-AY8 -> 189500 | BG8: =BD8-AZ8 -> 113700 | BH8: =IF(BF8-BG8<0,0,BF8-BG8) -> 75800 | BI8: =IF(AS8="NORMAL AMORTİSMAN",BC8*(1/F8)/2, IF(AND(AS8="AZALAN BAKİYELERE GÖRE AMORTİSMAN",AX8<F8),DDB(BC8,0,IF(F8<=4,4,F8),ROUNDUP(AX8,0),2)/2, IF(AND(AS8="AZALAN BAKİYELERE GÖRE AMORTİSMAN",AX8=F8),(BC8-BD8)/2,0))) -> 118950
B9: 2 | C9: ='DOLDURULMASI GEREKEN TABLO'!D22 -> B | D9: ='DOLDURULMASI GEREKEN TABLO'!E22 -> 254- Taşıtlar | E9: ='DOLDURULMASI GEREKEN TABLO'!F22 -> HAYIR | F9: ='DOLDURULMASI GEREKEN TABLO'!G22 -> 5 | G9: 0.2 | H9: ='DOLDURULMASI GEREKEN TABLO'!H22 -> 2020-09-01 | I9: ='DOLDURULMASI GEREKEN TABLO'!Q22 -> HAYIR | J9: ='DOLDURULMASI GEREKEN TABLO'!S22 -> EVET | K9: 2022-12-31 | L9: TARİH UYUMLU | M9: ='DOLDURULMASI GEREKEN TABLO'!J22 -> 1000000 | N9: ='DOLDURULMASI GEREKEN TABLO'!K22 -> NORMAL AMORTİSMAN | O9: ='DOLDURULMASI GEREKEN TABLO'!L22 -> EVET | P9: =IFERROR((K9-H9)+1,0) -> 852 | Q9: =IFERROR(MIN(YEAR(K9)-YEAR(H9)+1,F9),0) -> 3 | R9: =IFERROR(MIN(((YEAR(K9)-YEAR(H9))*12+(MONTH(K9)-MONTH(H9))+1)/12,F9),0) -> 2.333333333 | S9: =IFERROR(MIN(IF(O9="HAYIR",Q9,R9),F9),0) -> 2.333333333 | T9: =IF(D9="250- Arazi ve Arsalar",0, IF(S9=F9,M9, IF(AND(N9="NORMAL AMORTİSMAN",O9="HAYIR"),M9*G9*S9, IF(AND(N9="NORMAL AMORTİSMAN",O9="EVET"),M9*G9*S9, IF(AND(N9="AZALAN BAKİYELERE GÖRE AMORTİSMAN",O9="HAYIR",F9<=4),VDB(M9,0,4,0,Q9,2,TRUE), IF(AND(N9="AZALAN BAKİYELERE GÖRE AMORTİSMAN",O9="HAYIR",AND(F9>4,S9<F9)),VDB(M9,0,F9,0,S9,2,TRUE), IF(AND(N9="AZALAN BAKİYELERE GÖRE AMORTİSMAN",O9="EVET",Q9=1),(DDB(M9,0,IF(F9<=4,4,F9),1,2)/12)*(12-MONTH(H9)+1), IF(AND(N9="AZALAN BAKİYELERE GÖRE AMORTİSMAN",O9="EVET",Q9=2),(DDB(M9,0,IF(F9<=4,4,F9),1,2)/12)*(12-MONTH(H9)+1)+DDB(M9,0,IF(F9<=4,4,F9),2,2), IF(AND(N9="AZALAN BAKİYELERE GÖRE AMORTİSMAN",O9="EVET",Q9=3),(DDB(M9,0,IF(F9<=4,4,F9),1,2)/12)*(12-MONTH(H9)+1)+DDB(M9,0,IF(F9<=4,4,F9),2,2)+DDB(M9,0,IF(F9<=4,4,F9),3,2), IF(AND(N9="AZALAN BAKİYELERE GÖRE AMORTİSMAN",O9="EVET",AND(Q9>3,Q9<5)),(DDB(M9,0,IF(F9<=4,4,F9),1,2)/12)*(12-MONTH(H9)+1)+DDB(M9,0,IF(F9<=4,4,F9),2,2)+DDB(M9,0,IF(F9<=4,4,F9),3,2)+DDB(M9,0,IF(F9<=4,4,F9),S9,2), IF(AND(N9="AZALAN BAKİYELERE GÖRE AMORTİSMAN",O9="EVET",Q9=5),VDB(M9,0,F9,0,S9,2,TRUE),0))))))))))) -> 466666.6667 | U9: ='DOLDURULMASI GEREKEN TABLO'!N22 -> HAYIR | V9: ='DOLDURULMASI GEREKEN TABLO'!P22 -> HAYIR | W9: ='DOLDURULMASI GEREKEN TABLO'!Q22 -> HAYIR | X9: 1000000 | Y9: 466666.6667 | Z9: =X9-Y9 -> 533333.3333 | AA9: ='DOLDURULMASI GEREKEN TABLO'!T22 -> HAYIR | AB9: 2020-10 | AC9: =VLOOKUP(AB9,'Aylık Yİ-ÜFE'!$D$1:$E$229,2,0) -> 533.44 | AD9: 2022-12 | AE9: =VLOOKUP(AD9,'Aylık Yİ-ÜFE'!$D$1:$E$229,2,0) -> 2021.19 | AF9: =IFERROR(IF(AA9="EVET",TRUNC(AE9/AC9,5),1),0) -> 1 | AG9: =IF(OR('DOLDURULMASI GEREKEN TABLO'!Q22="EVET",'DOLDURULMASI GEREKEN TABLO'!S22="EVET"),MAX(X9*AF9,X9),X9) -> 1000000 | AH9: =IF(OR('DOLDURULMASI GEREKEN TABLO'!Q22="EVET",'DOLDURULMASI GEREKEN TABLO'!S22="EVET"),MAX(Y9*AF9,Y9),Y9) -> 466666.6667 | AI9: =AG9-AH9 -> 533333.3333 | AJ9: 0 | AK9: 0 | AL9: =IFERROR(IF((AJ9-AK9)<0,0,(AJ9-AK9)),0) -> 0 | AM9: =IFERROR(AL9*2/100,0) -> 0 | AO9: YD YAPILABİLİR | AP9: ='DOLDURULMASI GEREKEN TABLO'!U22 -> EVET | AQ9: 2020-09-01 | AR9: ='DOLDURULMASI GEREKEN TABLO'!V22 -> 2023-06-30 | AS9: NORMAL AMORTİSMAN | AT9: EVET | AU9: =(AR9-AQ9) -> 1032 | AV9: 4 | AW9: 2.833333333 | AX9: 2.833333333 | AY9: =AG9 -> 1000000 | AZ9: =AH9 -> 466666.6667 | BA9: =AY9-AZ9 -> 533333.3333 | BB9: =IF(E9="EVET",0,'DOLDURULMASI GEREKEN TABLO'!W22) -> 0.1895 | BC9: 1189500 | BD9: 555100 | BE9: =BC9-BD9 -> 634400 | BF9: =BC9-AY9 -> 189500 | BG9: =BD9-AZ9 -> 88433.33333 | BH9: =IF(BF9-BG9<0,0,BF9-BG9) -> 101066.6667 | BI9: =IF(AS9="NORMAL AMORTİSMAN",BC9*(1/F9)/2, IF(AND(AS9="AZALAN BAKİYELERE GÖRE AMORTİSMAN",AX9<F9),DDB(BC9,0,IF(F9<=4,4,F9),ROUNDUP(AX9,0),2)/2, IF(AND(AS9="AZALAN BAKİYELERE GÖRE AMORTİSMAN",AX9=F9),(BC9-BD9)/2,0))) -> 118950
B10: 3 | C10: ='DOLDURULMASI GEREKEN TABLO'!D23 -> C | D10: ='DOLDURULMASI GEREKEN TABLO'!E23 -> 255- Demirbaşlar | E10: ='DOLDURULMASI GEREKEN TABLO'!F23 -> HAYIR | F10: ='DOLDURULMASI GEREKEN TABLO'!G23 -> 5 | G10: 0.2 | H10: ='DOLDURULMASI GEREKEN TABLO'!H23 -> 2020-09-01 | I10: ='DOLDURULMASI GEREKEN TABLO'!Q23 -> HAYIR | J10: ='DOLDURULMASI GEREKEN TABLO'!S23 -> EVET | K10: 2022-12-31 | L10: TARİH UYUMLU | M10: ='DOLDURULMASI GEREKEN TABLO'!J23 -> 1000000 | N10: ='DOLDURULMASI GEREKEN TABLO'!K23 -> AZALAN BAKİYELERE GÖRE AMORTİSMAN | O10: ='DOLDURULMASI GEREKEN TABLO'!L23 -> HAYIR | P10: =IFERROR((K10-H10)+1,0) -> 852 | Q10: 3 | R10: 2.333333333 | S10: 3 | T10: 784000 | U10: ='DOLDURULMASI GEREKEN TABLO'!N23 -> HAYIR | V10: ='DOLDURULMASI GEREKEN TABLO'!P23 -> HAYIR | W10: ='DOLDURULMASI GEREKEN TABLO'!Q23 -> HAYIR | X10: 1000000 | Y10: 784000 | Z10: 216000 | AA10: ='DOLDURULMASI GEREKEN TABLO'!T23 -> HAYIR | AB10: 2020-10 | AC10: =VLOOKUP(AB10,'Aylık Yİ-ÜFE'!$D$1:$E$229,2,0) -> 533.44 | AD10: 2022-12 | AE10: =VLOOKUP(AD10,'Aylık Yİ-ÜFE'!$D$1:$E$229,2,0) -> 2021.19 | AF10: 1 | AG10: =IF(OR('DOLDURULMASI GEREKEN TABLO'!Q23="EVET",'DOLDURULMASI GEREKEN TABLO'!S23="EVET"),MAX(X10*AF10,X10),X10) -> 1000000 | AH10: =IF(OR('DOLDURULMASI GEREKEN TABLO'!Q23="EVET",'DOLDURULMASI GEREKEN TABLO'!S23="EVET"),MAX(Y10*AF10,Y10),Y10) -> 784000 | AI10: =AG10-AH10 -> 216000 | AJ10: 0 | AK10: 0 | AL10: 0 | AM10: 0 | AO10: YD YAPILABİLİR | AP10: ='DOLDURULMASI GEREKEN TABLO'!U23 -> EVET | AQ10: 2020-09-01 | AR10: ='DOLDURULMASI GEREKEN TABLO'!V23 -> 2023-06-30 | AS10: AZALAN BAKİYELERE GÖRE AMORTİSMAN | AT10: HAYIR | AU10: 1032 | AV10: 4 | AW10: 2.833333333 | AX10: 3.5 | AY10: 1000000 | AZ10: 784000 | BA10: 216000 | BB10: =IF(E10="EVET",0,'DOLDURULMASI GEREKEN TABLO'!W23) -> 0.1895 | BC10: 1189500 | BD10: 932568 | BE10: 256932 | BF10: 189500 | BG10: 148568 | BH10: 40932 | BI10: 51386.4
B11: 4 | C11: ='DOLDURULMASI GEREKEN TABLO'!D24 -> Ç | D11: ='DOLDURULMASI GEREKEN TABLO'!E24 -> 264- Özel Maliyetler | E11: ='DOLDURULMASI GEREKEN TABLO'!F24 -> HAYIR | F11: ='DOLDURULMASI GEREKEN TABLO'!G24 -> 5 | G11: 0.2 | H11: ='DOLDURULMASI GEREKEN TABLO'!H24 -> 2020-09-01 | I11: ='DOLDURULMASI GEREKEN TABLO'!Q24 -> HAYIR | J11: ='DOLDURULMASI GEREKEN TABLO'!S24 -> EVET | K11: 2022-12-31 | L11: TARİH UYUMLU | M11: ='DOLDURULMASI GEREKEN TABLO'!J24 -> 1000000 | N11: ='DOLDURULMASI GEREKEN TABLO'!K24 -> AZALAN BAKİYELERE GÖRE AMORTİSMAN | O11: ='DOLDURULMASI GEREKEN TABLO'!L24 -> HAYIR | P11: 852 | Q11: 3 | R11: 2.333333333 | S11: 3 | T11: 784000 | U11: ='DOLDURULMASI GEREKEN TABLO'!N24 -> HAYIR | V11: ='DOLDURULMASI GEREKEN TABLO'!P24 -> HAYIR | W11: ='DOLDURULMASI GEREKEN TABLO'!Q24 -> HAYIR | X11: 1000000 | Y11: 784000 | Z11: 216000 | AA11: ='DOLDURULMASI GEREKEN TABLO'!T24 -> HAYIR | AB11: 2020-10 | AC11: =VLOOKUP(AB11,'Aylık Yİ-ÜFE'!$D$1:$E$229,2,0) -> 533.44 | AD11: 2022-12 | AE11: =VLOOKUP(AD11,'Aylık Yİ-ÜFE'!$D$1:$E$229,2,0) -> 2021.19 | AF11: 1 | AG11: =IF(OR('DOLDURULMASI GEREKEN TABLO'!Q24="EVET",'DOLDURULMASI GEREKEN TABLO'!S24="EVET"),MAX(X11*AF11,X11),X11) -> 1000000 | AH11: =IF(OR('DOLDURULMASI GEREKEN TABLO'!Q24="EVET",'DOLDURULMASI GEREKEN TABLO'!S24="EVET"),MAX(Y11*AF11,Y11),Y11) -> 784000 | AI11: 216000 | AJ11: 0 | AK11: 0 | AL11: 0 | AM11: =IFERROR(AL11*2/100,0) -> 0 | AO11: YD YAPILABİLİR | AP11: ='DOLDURULMASI GEREKEN TABLO'!U24 -> EVET | AQ11: 2020-09-01 | AR11: ='DOLDURULMASI GEREKEN TABLO'!V24 -> 2023-06-30 | AS11: AZALAN BAKİYELERE GÖRE AMORTİSMAN | AT11: HAYIR | AU11: 1032 | AV11: 4 | AW11: 2.833333333 | AX11: 3.5 | AY11: 1000000 | AZ11: 784000 | BA11: 216000 | BB11: =IF(E11="EVET",0,'DOLDURULMASI GEREKEN TABLO'!W24) -> 0.1895 | BC11: 1189500 | BD11: 932568 | BE11: 256932 | BF11: 189500 | BG11: 148568 | BH11: 40932 | BI11: 51386.4
B12: 5 | C12: ='DOLDURULMASI GEREKEN TABLO'!D25 -> D | D12: ='DOLDURULMASI GEREKEN TABLO'!E25 -> 254- Taşıtlar | E12: ='DOLDURULMASI GEREKEN TABLO'!F25 -> HAYIR | F12: ='DOLDURULMASI GEREKEN TABLO'!G25 -> 5 | G12: 0.2 | H12: ='DOLDURULMASI GEREKEN TABLO'!H25 -> 2020-09-01 | I12: ='DOLDURULMASI GEREKEN TABLO'!Q25 -> HAYIR | J12: ='DOLDURULMASI GEREKEN TABLO'!S25 -> EVET | K12: 2022-12-31 | L12: TARİH UYUMLU | M12: ='DOLDURULMASI GEREKEN TABLO'!J25 -> 1000000 | N12: ='DOLDURULMASI GEREKEN TABLO'!K25 -> AZALAN BAKİYELERE GÖRE AMORTİSMAN | O12: ='DOLDURULMASI GEREKEN TABLO'!L25 -> EVET | P12: 852 | Q12: 3 | R12: 2.333333333 | S12: 2.333333333 | T12: 517333.3333 | U12: ='DOLDURULMASI GEREKEN TABLO'!N25 -> HAYIR | V12: ='DOLDURULMASI GEREKEN TABLO'!P25 -> HAYIR | W12: ='DOLDURULMASI GEREKEN TABLO'!Q25 -> HAYIR | X12: 1000000 | Y12: 517333.3333 | Z12: 482666.6667 | AA12: ='DOLDURULMASI GEREKEN TABLO'!T25 -> HAYIR | AB12: 2020-10 | AC12: =VLOOKUP(AB12,'Aylık Yİ-ÜFE'!$D$1:$E$229,2,0) -> 533.44 | AD12: 2022-12 | AE12: =VLOOKUP(AD12,'Aylık Yİ-ÜFE'!$D$1:$E$229,2,0) -> 2021.19 | AF12: 1 | AG12: =IF(OR('DOLDURULMASI GEREKEN TABLO'!Q25="EVET",'DOLDURULMASI GEREKEN TABLO'!S25="EVET"),MAX(X12*AF12,X12),X12) -> 1000000 | AH12: =IF(OR('DOLDURULMASI GEREKEN TABLO'!Q25="EVET",'DOLDURULMASI GEREKEN TABLO'!S25="EVET"),MAX(Y12*AF12,Y12),Y12) -> 517333.3333 | AI12: 482666.6667 | AJ12: 0 | AK12: 0 | AL12: 0 | AM12: 0 | AO12: YD YAPILABİLİR | AP12: ='DOLDURULMASI GEREKEN TABLO'!U25 -> EVET | AQ12: 2020-09-01 | AR12: ='DOLDURULMASI GEREKEN TABLO'!V25 -> 2023-06-30 | AS12: AZALAN BAKİYELERE GÖRE AMORTİSMAN | AT12: EVET | AU12: 1032 | AV12: 4 | AW12: 2.833333333 | AX12: 2.833333333 | AY12: 1000000 | AZ12: 517333.3333 | BA12: 482666.6667 | BB12: =IF(E12="EVET",0,'DOLDURULMASI GEREKEN TABLO'!W25) -> 0.1895 | BC12: 1189500 | BD12: 615368 | BE12: 574132 | BF12: 189500 | BG12: 98034.66667 | BH12: 91465.33333 | BI12: 85644
B13: 6 | C13: ='DOLDURULMASI GEREKEN TABLO'!D26 -> 0 | D13: ='DOLDURULMASI GEREKEN TABLO'!E26 -> 0 | E13: ='DOLDURULMASI GEREKEN TABLO'!F26 -> 0 | F13: ='DOLDURULMASI GEREKEN TABLO'!G26 -> 0 | G13: 0 | H13: ='DOLDURULMASI GEREKEN TABLO'!H26 -> 00:00:00 | I13: ='DOLDURULMASI GEREKEN TABLO'!Q26 -> 00:00:00 | J13: ='DOLDURULMASI GEREKEN TABLO'!S26 -> EVET | K13: 2022-12-31 | L13: TARİH UYUMLU | M13: ='DOLDURULMASI GEREKEN TABLO'!J26 -> 0 | N13: ='DOLDURULMASI GEREKEN TABLO'!K26 -> 0 | O13: ='DOLDURULMASI GEREKEN TABLO'!L26 -> 0 | P13: 44927 | Q13: 0 | R13: 0 | S13: 0 | T13: 0 | U13: ='DOLDURULMASI GEREKEN TABLO'!N26 -> 0 | V13: ='DOLDURULMASI GEREKEN TABLO'!P26 -> 0 | W13: ='DOLDURULMASI GEREKEN TABLO'!Q26 -> 0 | X13: 0 | Y13: 0 | Z13: 0 | AA13: ='DOLDURULMASI GEREKEN TABLO'!T26 -> 0 | AB13: FALSE | AC13: =VLOOKUP(AB13,'Aylık Yİ-ÜFE'!$D$1:$E$229,2,0) ->  | AD13: 2022-12 | AE13: =VLOOKUP(AD13,'Aylık Yİ-ÜFE'!$D$1:$E$229,2,0) -> 2021.19 | AF13: 1 | AG13: =IF(OR('DOLDURULMASI GEREKEN TABLO'!Q26="EVET",'DOLDURULMASI GEREKEN TABLO'!S26="EVET"),MAX(X13*AF13,X13),X13) -> 0 | AH13: =IF(OR('DOLDURULMASI GEREKEN TABLO'!Q26="EVET",'DOLDURULMASI GEREKEN TABLO'!S26="EVET"),MAX(Y13*AF13,Y13),Y13) -> 0 | AI13: 0 | AJ13: 0 | AK13: 0 | AL13: 0 | AM13: 0 | AO13: YD YAPILABİLİR | AP13: ='DOLDURULMASI GEREKEN TABLO'!U26 -> 0 | AQ13: 00:00:00 | AR13: ='DOLDURULMASI GEREKEN TABLO'!V26 -> 2023-06-30 | AS13: 0 | AT13: 0 | AU13: 45107 | AV13: 124 | AW13: 123.5 | AX13: 0 | AY13: 0 | AZ13: 0 | BA13: 0 | BB13: =IF(E13="EVET",0,'DOLDURULMASI GEREKEN TABLO'!W26) -> 0.1895 | BC13: 0 | BD13: 0 | BE13: 0 | BF13: 0 | BG13: 0 | BH13: 0 | BI13: 0
B14: 7 | C14: ='DOLDURULMASI GEREKEN TABLO'!D27 -> 0 | D14: ='DOLDURULMASI GEREKEN TABLO'!E27 -> 0 | E14: ='DOLDURULMASI GEREKEN TABLO'!F27 -> 0 | F14: ='DOLDURULMASI GEREKEN TABLO'!G27 -> 0 | G14: 0 | H14: ='DOLDURULMASI GEREKEN TABLO'!H27 -> 00:00:00 | I14: ='DOLDURULMASI GEREKEN TABLO'!Q27 -> 00:00:00 | J14: ='DOLDURULMASI GEREKEN TABLO'!S27 -> EVET | K14: 2022-12-31 | L14: TARİH UYUMLU | M14: ='DOLDURULMASI GEREKEN TABLO'!J27 -> 0 | N14: ='DOLDURULMASI GEREKEN TABLO'!K27 -> 0 | O14: ='DOLDURULMASI GEREKEN TABLO'!L27 -> 0 | P14: 44927 | Q14: 0 | R14: 0 | S14: 0 | T14: 0 | U14: ='DOLDURULMASI GEREKEN TABLO'!N27 -> 0 | V14: ='DOLDURULMASI GEREKEN TABLO'!P27 -> 0 | W14: ='DOLDURULMASI GEREKEN TABLO'!Q27 -> 0 | X14: 0 | Y14: 0 | Z14: 0 | AA14: ='DOLDURULMASI GEREKEN TABLO'!T27 -> 0 | AB14: FALSE | AC14: =VLOOKUP(AB14,'Aylık Yİ-ÜFE'!$D$1:$E$229,2,0) ->  | AD14: 2022-12 | AE14: =VLOOKUP(AD14,'Aylık Yİ-ÜFE'!$D$1:$E$229,2,0) -> 2021.19 | AF14: 1 | AG14: =IF(OR('DOLDURULMASI GEREKEN TABLO'!Q27="EVET",'DOLDURULMASI GEREKEN TABLO'!S27="EVET"),MAX(X14*AF14,X14),X14) -> 0 | AH14: =IF(OR('DOLDURULMASI GEREKEN TABLO'!Q27="EVET",'DOLDURULMASI GEREKEN TABLO'!S27="EVET"),MAX(Y14*AF14,Y14),Y14) -> 0 | AI14: 0 | AJ14: 0 | AK14: 0 | AL14: 0 | AM14: 0 | AO14: YD YAPILABİLİR | AP14: ='DOLDURULMASI GEREKEN TABLO'!U27 -> 0 | AQ14: 00:00:00 | AR14: ='DOLDURULMASI GEREKEN TABLO'!V27 -> 2023-06-30 | AS14: 0 | AT14: 0 | AU14: 45107 | AV14: 124 | AW14: 123.5 | AX14: 0 | AY14: 0 | AZ14: 0 | BA14: 0 | BB14: =IF(E14="EVET",0,'DOLDURULMASI GEREKEN TABLO'!W27) -> 0.1895 | BC14: 0 | BD14: 0 | BE14: 0 | BF14: 0 | BG14: 0 | BH14: 0 | BI14: 0
B15: 8 | C15: ='DOLDURULMASI GEREKEN TABLO'!D28 -> 0 | D15: ='DOLDURULMASI GEREKEN TABLO'!E28 -> 0 | E15: ='DOLDURULMASI GEREKEN TABLO'!F28 -> 0 | F15: ='DOLDURULMASI GEREKEN TABLO'!G28 -> 0 | G15: 0 | H15: ='DOLDURULMASI GEREKEN TABLO'!H28 -> 00:00:00 | I15: ='DOLDURULMASI GEREKEN TABLO'!Q28 -> 00:00:00 | J15: ='DOLDURULMASI GEREKEN TABLO'!S28 -> EVET | K15: 2022-12-31 | L15: TARİH UYUMLU | M15: ='DOLDURULMASI GEREKEN TABLO'!J28 -> 0 | N15: ='DOLDURULMASI GEREKEN TABLO'!K28 -> 0 | O15: ='DOLDURULMASI GEREKEN TABLO'!L28 -> 0 | P15: 44927 | Q15: 0 | R15: 0 | S15: 0 | T15: 0 | U15: ='DOLDURULMASI GEREKEN TABLO'!N28 -> 0 | V15: ='DOLDURULMASI GEREKEN TABLO'!P28 -> 0 | W15: ='DOLDURULMASI GEREKEN TABLO'!Q28 -> 0 | X15: 0 | Y15: 0 | Z15: 0 | AA15: ='DOLDURULMASI GEREKEN TABLO'!T28 -> 0 | AB15: FALSE | AC15: =VLOOKUP(AB15,'Aylık Yİ-ÜFE'!$D$1:$E$229,2,0) ->  | AD15: 2022-12 | AE15: =VLOOKUP(AD15,'Aylık Yİ-ÜFE'!$D$1:$E$229,2,0) -> 2021.19 | AF15: 1 | AG15: =IF(OR('DOLDURULMASI GEREKEN TABLO'!Q28="EVET",'DOLDURULMASI GEREKEN TABLO'!S28="EVET"),MAX(X15*AF15,X15),X15) -> 0 | AH15: =IF(OR('DOLDURULMASI GEREKEN TABLO'!Q28="EVET",'DOLDURULMASI GEREKEN TABLO'!S28="EVET"),MAX(Y15*AF15,Y15),Y15) -> 0 | AI15: 0 | AJ15: 0 | AK15: 0 | AL15: 0 | AM15: 0 | AO15: YD YAPILABİLİR | AP15: ='DOLDURULMASI GEREKEN TABLO'!U28 -> 0 | AQ15: 00:00:00 | AR15: ='DOLDURULMASI GEREKEN TABLO'!V28 -> 2023-06-30 | AS15: 0 | AT15: 0 | AU15: 45107 | AV15: 124 | AW15: 123.5 | AX15: 0 | AY15: 0 | AZ15: 0 | BA15: 0 | BB15: =IF(E15="EVET",0,'DOLDURULMASI GEREKEN TABLO'!W28) -> 0.1895 | BC15: 0 | BD15: 0 | BE15: 0 | BF15: 0 | BG15: 0 | BH15: 0 | BI15: 0
B16: 9 | C16: ='DOLDURULMASI GEREKEN TABLO'!D29 -> 0 | D16: ='DOLDURULMASI GEREKEN TABLO'!E29 -> 0 | E16: ='DOLDURULMASI GEREKEN TABLO'!F29 -> 0 | F16: ='DOLDURULMASI GEREKEN TABLO'!G29 -> 0 | G16: 0 | H16: ='DOLDURULMASI GEREKEN TABLO'!H29 -> 00:00:00 | I16: ='DOLDURULMASI GEREKEN TABLO'!Q29 -> 00:00:00 | J16: ='DOLDURULMASI GEREKEN TABLO'!S29 -> EVET | K16: 2022-12-31 | L16: TARİH UYUMLU | M16: ='DOLDURULMASI GEREKEN TABLO'!J29 -> 0 | N16: ='DOLDURULMASI GEREKEN TABLO'!K29 -> 0 | O16: ='DOLDURULMASI GEREKEN TABLO'!L29 -> 0 | P16: 44927 | Q16: 0 | R16: 0 | S16: 0 | T16: 0 | U16: ='DOLDURULMASI GEREKEN TABLO'!N29 -> 0 | V16: ='DOLDURULMASI GEREKEN TABLO'!P29 -> 0 | W16: ='DOLDURULMASI GEREKEN TABLO'!Q29 -> 0 | X16: 0 | Y16: 0 | Z16: 0 | AA16: ='DOLDURULMASI GEREKEN TABLO'!T29 -> 0 | AB16: FALSE | AC16: =VLOOKUP(AB16,'Aylık Yİ-ÜFE'!$D$1:$E$229,2,0) ->  | AD16: 2022-12 | AE16: =VLOOKUP(AD16,'Aylık Yİ-ÜFE'!$D$1:$E$229,2,0) -> 2021.19 | AF16: 1 | AG16: =IF(OR('DOLDURULMASI GEREKEN TABLO'!Q29="EVET",'DOLDURULMASI GEREKEN TABLO'!S29="EVET"),MAX(X16*AF16,X16),X16) -> 0 | AH16: =IF(OR('DOLDURULMASI GEREKEN TABLO'!Q29="EVET",'DOLDURULMASI GEREKEN TABLO'!S29="EVET"),MAX(Y16*AF16,Y16),Y16) -> 0 | AI16: 0 | AJ16: 0 | AK16: 0 | AL16: 0 | AM16: 0 | AO16: YD YAPILABİLİR | AP16: ='DOLDURULMASI GEREKEN TABLO'!U29 -> 0 | AQ16: 00:00:00 | AR16: ='DOLDURULMASI GEREKEN TABLO'!V29 -> 2023-06-30 | AS16: 0 | AT16: 0 | AU16: 45107 | AV16: 124 | AW16: 123.5 | AX16: 0 | AY16: 0 | AZ16: 0 | BA16: 0 | BB16: =IF(E16="EVET",0,'DOLDURULMASI GEREKEN TABLO'!W29) -> 0.1895 | BC16: 0 | BD16: 0 | BE16: 0 | BF16: 0 | BG16: 0 | BH16: 0 | BI16: 0
B17: 10 | C17: ='DOLDURULMASI GEREKEN TABLO'!D30 -> 0 | D17: ='DOLDURULMASI GEREKEN TABLO'!E30 -> 0 | E17: ='DOLDURULMASI GEREKEN TABLO'!F30 -> 0 | F17: ='DOLDURULMASI GEREKEN TABLO'!G30 -> 0 | G17: 0 | H17: ='DOLDURULMASI GEREKEN TABLO'!H30 -> 00:00:00 | I17: ='DOLDURULMASI GEREKEN TABLO'!Q30 -> 00:00:00 | J17: ='DOLDURULMASI GEREKEN TABLO'!S30 -> EVET | K17: 2022-12-31 | L17: TARİH UYUMLU | M17: ='DOLDURULMASI GEREKEN TABLO'!J30 -> 0 | N17: ='DOLDURULMASI GEREKEN TABLO'!K30 -> 0 | O17: ='DOLDURULMASI GEREKEN TABLO'!L30 -> 0 | P17: 44927 | Q17: 0 | R17: 0 | S17: 0 | T17: 0 | U17: ='DOLDURULMASI GEREKEN TABLO'!N30 -> 0 | V17: ='DOLDURULMASI GEREKEN TABLO'!P30 -> 0 | W17: ='DOLDURULMASI GEREKEN TABLO'!Q30 -> 0 | X17: 0 | Y17: 0 | Z17: 0 | AA17: ='DOLDURULMASI GEREKEN TABLO'!T30 -> 0 | AB17: FALSE | AC17: =VLOOKUP(AB17,'Aylık Yİ-ÜFE'!$D$1:$E$229,2,0) ->  | AD17: 2022-12 | AE17: =VLOOKUP(AD17,'Aylık Yİ-ÜFE'!$D$1:$E$229,2,0) -> 2021.19 | AF17: 1 | AG17: =IF(OR('DOLDURULMASI GEREKEN TABLO'!Q30="EVET",'DOLDURULMASI GEREKEN TABLO'!S30="EVET"),MAX(X17*AF17,X17),X17) -> 0 | AH17: =IF(OR('DOLDURULMASI GEREKEN TABLO'!Q30="EVET",'DOLDURULMASI GEREKEN TABLO'!S30="EVET"),MAX(Y17*AF17,Y17),Y17) -> 0 | AI17: 0 | AJ17: 0 | AK17: 0 | AL17: 0 | AM17: 0 | AO17: YD YAPILABİLİR | AP17: ='DOLDURULMASI GEREKEN TABLO'!U30 -> 0 | AQ17: 00:00:00 | AR17: ='DOLDURULMASI GEREKEN TABLO'!V30 -> 2023-06-30 | AS17: 0 | AT17: 0 | AU17: 45107 | AV17: 124 | AW17: 123.5 | AX17: 0 | AY17: 0 | AZ17: 0 | BA17: 0 | BB17: =IF(E17="EVET",0,'DOLDURULMASI GEREKEN TABLO'!W30) -> 0.1895 | BC17: 0 | BD17: 0 | BE17: 0 | BF17: 0 | BG17: 0 | BH17: 0 | BI17: 0
B18: 11 | C18: ='DOLDURULMASI GEREKEN TABLO'!D31 -> 0 | D18: ='DOLDURULMASI GEREKEN TABLO'!E31 -> 0 | E18: ='DOLDURULMASI GEREKEN TABLO'!F31 -> 0 | F18: ='DOLDURULMASI GEREKEN TABLO'!G31 -> 0 | G18: 0 | H18: ='DOLDURULMASI GEREKEN TABLO'!H31 -> 00:00:00 | I18: ='DOLDURULMASI GEREKEN TABLO'!Q31 -> 00:00:00 | J18: ='DOLDURULMASI GEREKEN TABLO'!S31 -> EVET | K18: 2022-12-31 | L18: TARİH UYUMLU | M18: ='DOLDURULMASI GEREKEN TABLO'!J31 -> 0 | N18: ='DOLDURULMASI GEREKEN TABLO'!K31 -> 0 | O18: ='DOLDURULMASI GEREKEN TABLO'!L31 -> 0 | P18: 44927 | Q18: 0 | R18: 0 | S18: 0 | T18: 0 | U18: ='DOLDURULMASI GEREKEN TABLO'!N31 -> 0 | V18: ='DOLDURULMASI GEREKEN TABLO'!P31 -> 0 | W18: ='DOLDURULMASI GEREKEN TABLO'!Q31 -> 0 | X18: 0 | Y18: 0 | Z18: 0 | AA18: ='DOLDURULMASI GEREKEN TABLO'!T31 -> 0 | AB18: FALSE | AC18: =VLOOKUP(AB18,'Aylık Yİ-ÜFE'!$D$1:$E$229,2,0) ->  | AD18: 2022-12 | AE18: =VLOOKUP(AD18,'Aylık Yİ-ÜFE'!$D$1:$E$229,2,0) -> 2021.19 | AF18: 1 | AG18: =IF(OR('DOLDURULMASI GEREKEN TABLO'!Q31="EVET",'DOLDURULMASI GEREKEN TABLO'!S31="EVET"),MAX(X18*AF18,X18),X18) -> 0 | AH18: =IF(OR('DOLDURULMASI GEREKEN TABLO'!Q31="EVET",'DOLDURULMASI GEREKEN TABLO'!S31="EVET"),MAX(Y18*AF18,Y18),Y18) -> 0 | AI18: 0 | AJ18: 0 | AK18: 0 | AL18: 0 | AM18: 0 | AO18: YD YAPILABİLİR | AP18: ='DOLDURULMASI GEREKEN TABLO'!U31 -> 0 | AQ18: 00:00:00 | AR18: ='DOLDURULMASI GEREKEN TABLO'!V31 -> 2023-06-30 | AS18: 0 | AT18: 0 | AU18: 45107 | AV18: 124 | AW18: 123.5 | AX18: 0 | AY18: 0 | AZ18: 0 | BA18: 0 | BB18: =IF(E18="EVET",0,'DOLDURULMASI GEREKEN TABLO'!W31) -> 0.1895 | BC18: 0 | BD18: 0 | BE18: 0 | BF18: 0 | BG18: 0 | BH18: 0 | BI18: 0
B19: 12 | C19: ='DOLDURULMASI GEREKEN TABLO'!D32 -> 0 | D19: ='DOLDURULMASI GEREKEN TABLO'!E32 -> 0 | E19: ='DOLDURULMASI GEREKEN TABLO'!F32 -> 0 | F19: ='DOLDURULMASI GEREKEN TABLO'!G32 -> 0 | G19: 0 | H19: ='DOLDURULMASI GEREKEN TABLO'!H32 -> 00:00:00 | I19: ='DOLDURULMASI GEREKEN TABLO'!Q32 -> 00:00:00 | J19: ='DOLDURULMASI GEREKEN TABLO'!S32 -> EVET | K19: 2022-12-31 | L19: TARİH UYUMLU | M19: ='DOLDURULMASI GEREKEN TABLO'!J32 -> 0 | N19: ='DOLDURULMASI GEREKEN TABLO'!K32 -> 0 | O19: ='DOLDURULMASI GEREKEN TABLO'!L32 -> 0 | P19: 44927 | Q19: 0 | R19: 0 | S19: 0 | T19: 0 | U19: ='DOLDURULMASI GEREKEN TABLO'!N32 -> 0 | V19: ='DOLDURULMASI GEREKEN TABLO'!P32 -> 0 | W19: ='DOLDURULMASI GEREKEN TABLO'!Q32 -> 0 | X19: 0 | Y19: 0 | Z19: 0 | AA19: ='DOLDURULMASI GEREKEN TABLO'!T32 -> 0 | AB19: FALSE | AC19: =VLOOKUP(AB19,'Aylık Yİ-ÜFE'!$D$1:$E$229,2,0) ->  | AD19: 2022-12 | AE19: =VLOOKUP(AD19,'Aylık Yİ-ÜFE'!$D$1:$E$229,2,0) -> 2021.19 | AF19: 1 | AG19: =IF(OR('DOLDURULMASI GEREKEN TABLO'!Q32="EVET",'DOLDURULMASI GEREKEN TABLO'!S32="EVET"),MAX(X19*AF19,X19),X19) -> 0 | AH19: =IF(OR('DOLDURULMASI GEREKEN TABLO'!Q32="EVET",'DOLDURULMASI GEREKEN TABLO'!S32="EVET"),MAX(Y19*AF19,Y19),Y19) -> 0 | AI19: 0 | AJ19: 0 | AK19: 0 | AL19: 0 | AM19: 0 | AO19: YD YAPILABİLİR | AP19: ='DOLDURULMASI GEREKEN TABLO'!U32 -> 0 | AQ19: 00:00:00 | AR19: ='DOLDURULMASI GEREKEN TABLO'!V32 -> 2023-06-30 | AS19: 0 | AT19: 0 | AU19: 45107 | AV19: 124 | AW19: 123.5 | AX19: 0 | AY19: 0 | AZ19: 0 | BA19: 0 | BB19: =IF(E19="EVET",0,'DOLDURULMASI GEREKEN TABLO'!W32) -> 0.1895 | BC19: 0 | BD19: 0 | BE19: 0 | BF19: 0 | BG19: 0 | BH19: 0 | BI19: 0
B20: 13 | C20: ='DOLDURULMASI GEREKEN TABLO'!D33 -> 0 | D20: ='DOLDURULMASI GEREKEN TABLO'!E33 -> 0 | E20: ='DOLDURULMASI GEREKEN TABLO'!F33 -> 0 | F20: ='DOLDURULMASI GEREKEN TABLO'!G33 -> 0 | G20: 0 | H20: ='DOLDURULMASI GEREKEN TABLO'!H33 -> 00:00:00 | I20: ='DOLDURULMASI GEREKEN TABLO'!Q33 -> 00:00:00 | J20: ='DOLDURULMASI GEREKEN TABLO'!S33 -> EVET | K20: 2022-12-31 | L20: TARİH UYUMLU | M20: ='DOLDURULMASI GEREKEN TABLO'!J33 -> 0 | N20: ='DOLDURULMASI GEREKEN TABLO'!K33 -> 0 | O20: ='DOLDURULMASI GEREKEN TABLO'!L33 -> 0 | P20: 44927 | Q20: 0 | R20: 0 | S20: 0 | T20: 0 | U20: ='DOLDURULMASI GEREKEN TABLO'!N33 -> 0 | V20: ='DOLDURULMASI GEREKEN TABLO'!P33 -> 0 | W20: ='DOLDURULMASI GEREKEN TABLO'!Q33 -> 0 | X20: 0 | Y20: 0 | Z20: 0 | AA20: ='DOLDURULMASI GEREKEN TABLO'!T33 -> 0 | AB20: FALSE | AC20: =VLOOKUP(AB20,'Aylık Yİ-ÜFE'!$D$1:$E$229,2,0) ->  | AD20: 2022-12 | AE20: =VLOOKUP(AD20,'Aylık Yİ-ÜFE'!$D$1:$E$229,2,0) -> 2021.19 | AF20: 1 | AG20: =IF(OR('DOLDURULMASI GEREKEN TABLO'!Q33="EVET",'DOLDURULMASI GEREKEN TABLO'!S33="EVET"),MAX(X20*AF20,X20),X20) -> 0 | AH20: =IF(OR('DOLDURULMASI GEREKEN TABLO'!Q33="EVET",'DOLDURULMASI GEREKEN TABLO'!S33="EVET"),MAX(Y20*AF20,Y20),Y20) -> 0 | AI20: 0 | AJ20: 0 | AK20: 0 | AL20: 0 | AM20: 0 | AO20: YD YAPILABİLİR | AP20: ='DOLDURULMASI GEREKEN TABLO'!U33 -> 0 | AQ20: 00:00:00 | AR20: ='DOLDURULMASI GEREKEN TABLO'!V33 -> 2023-06-30 | AS20: 0 | AT20: 0 | AU20: 45107 | AV20: 124 | AW20: 123.5 | AX20: 0 | AY20: 0 | AZ20: 0 | BA20: 0 | BB20: =IF(E20="EVET",0,'DOLDURULMASI GEREKEN TABLO'!W33) -> 0.1895 | BC20: 0 | BD20: 0 | BE20: 0 | BF20: 0 | BG20: 0 | BH20: 0 | BI20: 0
B21: 14 | C21: ='DOLDURULMASI GEREKEN TABLO'!D34 -> 0 | D21: ='DOLDURULMASI GEREKEN TABLO'!E34 -> 0 | E21: ='DOLDURULMASI GEREKEN TABLO'!F34 -> 0 | F21: ='DOLDURULMASI GEREKEN TABLO'!G34 -> 0 | G21: 0 | H21: ='DOLDURULMASI GEREKEN TABLO'!H34 -> 00:00:00 | I21: ='DOLDURULMASI GEREKEN TABLO'!Q34 -> 00:00:00 | J21: ='DOLDURULMASI GEREKEN TABLO'!S34 -> EVET | K21: 2022-12-31 | L21: TARİH UYUMLU | M21: ='DOLDURULMASI GEREKEN TABLO'!J34 -> 0 | N21: ='DOLDURULMASI GEREKEN TABLO'!K34 -> 0 | O21: ='DOLDURULMASI GEREKEN TABLO'!L34 -> 0 | P21: 44927 | Q21: 0 | R21: 0 | S21: 0 | T21: 0 | U21: ='DOLDURULMASI GEREKEN TABLO'!N34 -> 0 | V21: ='DOLDURULMASI GEREKEN TABLO'!P34 -> 0 | W21: ='DOLDURULMASI GEREKEN TABLO'!Q34 -> 0 | X21: 0 | Y21: 0 | Z21: 0 | AA21: ='DOLDURULMASI GEREKEN TABLO'!T34 -> 0 | AB21: FALSE | AC21: =VLOOKUP(AB21,'Aylık Yİ-ÜFE'!$D$1:$E$229,2,0) ->  | AD21: 2022-12 | AE21: =VLOOKUP(AD21,'Aylık Yİ-ÜFE'!$D$1:$E$229,2,0) -> 2021.19 | AF21: 1 | AG21: =IF(OR('DOLDURULMASI GEREKEN TABLO'!Q34="EVET",'DOLDURULMASI GEREKEN TABLO'!S34="EVET"),MAX(X21*AF21,X21),X21) -> 0 | AH21: =IF(OR('DOLDURULMASI GEREKEN TABLO'!Q34="EVET",'DOLDURULMASI GEREKEN TABLO'!S34="EVET"),MAX(Y21*AF21,Y21),Y21) -> 0 | AI21: 0 | AJ21: 0 | AK21: 0 | AL21: 0 | AM21: 0 | AO21: YD YAPILABİLİR | AP21: ='DOLDURULMASI GEREKEN TABLO'!U34 -> 0 | AQ21: 00:00:00 | AR21: ='DOLDURULMASI GEREKEN TABLO'!V34 -> 2023-06-30 | AS21: 0 | AT21: 0 | AU21: 45107 | AV21: 124 | AW21: 123.5 | AX21: 0 | AY21: 0 | AZ21: 0 | BA21: 0 | BB21: =IF(E21="EVET",0,'DOLDURULMASI GEREKEN TABLO'!W34) -> 0.1895 | BC21: 0 | BD21: 0 | BE21: 0 | BF21: 0 | BG21: 0 | BH21: 0 | BI21: 0
B22: 15 | C22: ='DOLDURULMASI GEREKEN TABLO'!D35 -> 0 | D22: ='DOLDURULMASI GEREKEN TABLO'!E35 -> 0 | E22: ='DOLDURULMASI GEREKEN TABLO'!F35 -> 0 | F22: ='DOLDURULMASI GEREKEN TABLO'!G35 -> 0 | G22: 0 | H22: ='DOLDURULMASI GEREKEN TABLO'!H35 -> 00:00:00 | I22: ='DOLDURULMASI GEREKEN TABLO'!Q35 -> 00:00:00 | J22: ='DOLDURULMASI GEREKEN TABLO'!S35 -> EVET | K22: 2022-12-31 | L22: TARİH UYUMLU | M22: ='DOLDURULMASI GEREKEN TABLO'!J35 -> 0 | N22: ='DOLDURULMASI GEREKEN TABLO'!K35 -> 0 | O22: ='DOLDURULMASI GEREKEN TABLO'!L35 -> 0 | P22: 44927 | Q22: 0 | R22: 0 | S22: 0 | T22: 0 | U22: ='DOLDURULMASI GEREKEN TABLO'!N35 -> 0 | V22: ='DOLDURULMASI GEREKEN TABLO'!P35 -> 0 | W22: ='DOLDURULMASI GEREKEN TABLO'!Q35 -> 0 | X22: 0 | Y22: 0 | Z22: 0 | AA22: ='DOLDURULMASI GEREKEN TABLO'!T35 -> 0 | AB22: FALSE | AC22: =VLOOKUP(AB22,'Aylık Yİ-ÜFE'!$D$1:$E$229,2,0) ->  | AD22: 2022-12 | AE22: =VLOOKUP(AD22,'Aylık Yİ-ÜFE'!$D$1:$E$229,2,0) -> 2021.19 | AF22: 1 | AG22: =IF(OR('DOLDURULMASI GEREKEN TABLO'!Q35="EVET",'DOLDURULMASI GEREKEN TABLO'!S35="EVET"),MAX(X22*AF22,X22),X22) -> 0 | AH22: =IF(OR('DOLDURULMASI GEREKEN TABLO'!Q35="EVET",'DOLDURULMASI GEREKEN TABLO'!S35="EVET"),MAX(Y22*AF22,Y22),Y22) -> 0 | AI22: 0 | AJ22: 0 | AK22: 0 | AL22: 0 | AM22: 0 | AO22: YD YAPILABİLİR | AP22: ='DOLDURULMASI GEREKEN TABLO'!U35 -> 0 | AQ22: 00:00:00 | AR22: ='DOLDURULMASI GEREKEN TABLO'!V35 -> 2023-06-30 | AS22: 0 | AT22: 0 | AU22: 45107 | AV22: 124 | AW22: 123.5 | AX22: 0 | AY22: 0 | AZ22: 0 | BA22: 0 | BB22: =IF(E22="EVET",0,'DOLDURULMASI GEREKEN TABLO'!W35) -> 0.1895 | BC22: 0 | BD22: 0 | BE22: 0 | BF22: 0 | BG22: 0 | BH22: 0 | BI22: 0
B23: 16 | C23: ='DOLDURULMASI GEREKEN TABLO'!D36 -> 0 | D23: ='DOLDURULMASI GEREKEN TABLO'!E36 -> 0 | E23: ='DOLDURULMASI GEREKEN TABLO'!F36 -> 0 | F23: ='DOLDURULMASI GEREKEN TABLO'!G36 -> 0 | G23: 0 | H23: ='DOLDURULMASI GEREKEN TABLO'!H36 -> 00:00:00 | I23: ='DOLDURULMASI GEREKEN TABLO'!Q36 -> 00:00:00 | J23: ='DOLDURULMASI GEREKEN TABLO'!S36 -> EVET | K23: 2022-12-31 | L23: TARİH UYUMLU | M23: ='DOLDURULMASI GEREKEN TABLO'!J36 -> 0 | N23: ='DOLDURULMASI GEREKEN TABLO'!K36 -> 0 | O23: ='DOLDURULMASI GEREKEN TABLO'!L36 -> 0 | P23: 44927 | Q23: 0 | R23: 0 | S23: 0 | T23: 0 | U23: ='DOLDURULMASI GEREKEN TABLO'!N36 -> 0 | V23: ='DOLDURULMASI GEREKEN TABLO'!P36 -> 0 | W23: ='DOLDURULMASI GEREKEN TABLO'!Q36 -> 0 | X23: 0 | Y23: 0 | Z23: 0 | AA23: ='DOLDURULMASI GEREKEN TABLO'!T36 -> 0 | AB23: FALSE | AC23: =VLOOKUP(AB23,'Aylık Yİ-ÜFE'!$D$1:$E$229,2,0) ->  | AD23: 2022-12 | AE23: =VLOOKUP(AD23,'Aylık Yİ-ÜFE'!$D$1:$E$229,2,0) -> 2021.19 | AF23: 1 | AG23: =IF(OR('DOLDURULMASI GEREKEN TABLO'!Q36="EVET",'DOLDURULMASI GEREKEN TABLO'!S36="EVET"),MAX(X23*AF23,X23),X23) -> 0 | AH23: =IF(OR('DOLDURULMASI GEREKEN TABLO'!Q36="EVET",'DOLDURULMASI GEREKEN TABLO'!S36="EVET"),MAX(Y23*AF23,Y23),Y23) -> 0 | AI23: 0 | AJ23: 0 | AK23: 0 | AL23: 0 | AM23: 0 | AO23: YD YAPILABİLİR | AP23: ='DOLDURULMASI GEREKEN TABLO'!U36 -> 0 | AQ23: 00:00:00 | AR23: ='DOLDURULMASI GEREKEN TABLO'!V36 -> 2023-06-30 | AS23: 0 | AT23: 0 | AU23: 45107 | AV23: 124 | AW23: 123.5 | AX23: 0 | AY23: 0 | AZ23: 0 | BA23: 0 | BB23: =IF(E23="EVET",0,'DOLDURULMASI GEREKEN TABLO'!W36) -> 0.1895 | BC23: 0 | BD23: 0 | BE23: 0 | BF23: 0 | BG23: 0 | BH23: 0 | BI23: 0
B24: 17 | C24: ='DOLDURULMASI GEREKEN TABLO'!D37 -> 0 | D24: ='DOLDURULMASI GEREKEN TABLO'!E37 -> 0 | E24: ='DOLDURULMASI GEREKEN TABLO'!F37 -> 0 | F24: ='DOLDURULMASI GEREKEN TABLO'!G37 -> 0 | G24: 0 | H24: ='DOLDURULMASI GEREKEN TABLO'!H37 -> 00:00:00 | I24: ='DOLDURULMASI GEREKEN TABLO'!Q37 -> 00:00:00 | J24: ='DOLDURULMASI GEREKEN TABLO'!S37 -> EVET | K24: 2022-12-31 | L24: TARİH UYUMLU | M24: ='DOLDURULMASI GEREKEN TABLO'!J37 -> 0 | N24: ='DOLDURULMASI GEREKEN TABLO'!K37 -> 0 | O24: ='DOLDURULMASI GEREKEN TABLO'!L37 -> 0 | P24: 44927 | Q24: 0 | R24: 0 | S24: 0 | T24: 0 | U24: ='DOLDURULMASI GEREKEN TABLO'!N37 -> 0 | V24: ='DOLDURULMASI GEREKEN TABLO'!P37 -> 0 | W24: ='DOLDURULMASI GEREKEN TABLO'!Q37 -> 0 | X24: 0 | Y24: 0 | Z24: 0 | AA24: ='DOLDURULMASI GEREKEN TABLO'!T37 -> 0 | AB24: FALSE | AC24: =VLOOKUP(AB24,'Aylık Yİ-ÜFE'!$D$1:$E$229,2,0) ->  | AD24: 2022-12 | AE24: =VLOOKUP(AD24,'Aylık Yİ-ÜFE'!$D$1:$E$229,2,0) -> 2021.19 | AF24: 1 | AG24: =IF(OR('DOLDURULMASI GEREKEN TABLO'!Q37="EVET",'DOLDURULMASI GEREKEN TABLO'!S37="EVET"),MAX(X24*AF24,X24),X24) -> 0 | AH24: =IF(OR('DOLDURULMASI GEREKEN TABLO'!Q37="EVET",'DOLDURULMASI GEREKEN TABLO'!S37="EVET"),MAX(Y24*AF24,Y24),Y24) -> 0 | AI24: 0 | AJ24: 0 | AK24: 0 | AL24: 0 | AM24: 0 | AO24: YD YAPILABİLİR | AP24: ='DOLDURULMASI GEREKEN TABLO'!U37 -> 0 | AQ24: 00:00:00 | AR24: ='DOLDURULMASI GEREKEN TABLO'!V37 -> 2023-06-30 | AS24: 0 | AT24: 0 | AU24: 45107 | AV24: 124 | AW24: 123.5 | AX24: 0 | AY24: 0 | AZ24: 0 | BA24: 0 | BB24: =IF(E24="EVET",0,'DOLDURULMASI GEREKEN TABLO'!W37) -> 0.1895 | BC24: 0 | BD24: 0 | BE24: 0 | BF24: 0 | BG24: 0 | BH24: 0 | BI24: 0
B25: 18 | C25: ='DOLDURULMASI GEREKEN TABLO'!D38 -> 0 | D25: ='DOLDURULMASI GEREKEN TABLO'!E38 -> 0 | E25: ='DOLDURULMASI GEREKEN TABLO'!F38 -> 0 | F25: ='DOLDURULMASI GEREKEN TABLO'!G38 -> 0 | G25: 0 | H25: ='DOLDURULMASI GEREKEN TABLO'!H38 -> 00:00:00 | I25: ='DOLDURULMASI GEREKEN TABLO'!Q38 -> 00:00:00 | J25: ='DOLDURULMASI GEREKEN TABLO'!S38 -> EVET | K25: 2022-12-31 | L25: TARİH UYUMLU | M25: ='DOLDURULMASI GEREKEN TABLO'!J38 -> 0 | N25: ='DOLDURULMASI GEREKEN TABLO'!K38 -> 0 | O25: ='DOLDURULMASI GEREKEN TABLO'!L38 -> 0 | P25: 44927 | Q25: 0 | R25: 0 | S25: 0 | T25: 0 | U25: ='DOLDURULMASI GEREKEN TABLO'!N38 -> 0 | V25: ='DOLDURULMASI GEREKEN TABLO'!P38 -> 0 | W25: ='DOLDURULMASI GEREKEN TABLO'!Q38 -> 0 | X25: 0 | Y25: 0 | Z25: 0 | AA25: ='DOLDURULMASI GEREKEN TABLO'!T38 -> 0 | AB25: FALSE | AC25: =VLOOKUP(AB25,'Aylık Yİ-ÜFE'!$D$1:$E$229,2,0) ->  | AD25: 2022-12 | AE25: =VLOOKUP(AD25,'Aylık Yİ-ÜFE'!$D$1:$E$229,2,0) -> 2021.19 | AF25: 1 | AG25: =IF(OR('DOLDURULMASI GEREKEN TABLO'!Q38="EVET",'DOLDURULMASI GEREKEN TABLO'!S38="EVET"),MAX(X25*AF25,X25),X25) -> 0 | AH25: =IF(OR('DOLDURULMASI GEREKEN TABLO'!Q38="EVET",'DOLDURULMASI GEREKEN TABLO'!S38="EVET"),MAX(Y25*AF25,Y25),Y25) -> 0 | AI25: 0 | AJ25: 0 | AK25: 0 | AL25: 0 | AM25: 0 | AO25: YD YAPILABİLİR | AP25: ='DOLDURULMASI GEREKEN TABLO'!U38 -> 0 | AQ25: 00:00:00 | AR25: ='DOLDURULMASI GEREKEN TABLO'!V38 -> 2023-06-30 | AS25: 0 | AT25: 0 | AU25: 45107 | AV25: 124 | AW25: 123.5 | AX25: 0 | AY25: 0 | AZ25: 0 | BA25: 0 | BB25: =IF(E25="EVET",0,'DOLDURULMASI GEREKEN TABLO'!W38) -> 0.1895 | BC25: 0 | BD25: 0 | BE25: 0 | BF25: 0 | BG25: 0 | BH25: 0 | BI25: 0
B26: 19 | C26: ='DOLDURULMASI GEREKEN TABLO'!D39 -> 0 | D26: ='DOLDURULMASI GEREKEN TABLO'!E39 -> 0 | E26: ='DOLDURULMASI GEREKEN TABLO'!F39 -> 0 | F26: ='DOLDURULMASI GEREKEN TABLO'!G39 -> 0 | G26: 0 | H26: ='DOLDURULMASI GEREKEN TABLO'!H39 -> 00:00:00 | I26: ='DOLDURULMASI GEREKEN TABLO'!Q39 -> 00:00:00 | J26: ='DOLDURULMASI GEREKEN TABLO'!S39 -> EVET | K26: 2022-12-31 | L26: TARİH UYUMLU | M26: ='DOLDURULMASI GEREKEN TABLO'!J39 -> 0 | N26: ='DOLDURULMASI GEREKEN TABLO'!K39 -> 0 | O26: ='DOLDURULMASI GEREKEN TABLO'!L39 -> 0 | P26: 44927 | Q26: 0 | R26: 0 | S26: 0 | T26: 0 | U26: ='DOLDURULMASI GEREKEN TABLO'!N39 -> 0 | V26: ='DOLDURULMASI GEREKEN TABLO'!P39 -> 0 | W26: ='DOLDURULMASI GEREKEN TABLO'!Q39 -> 0 | X26: 0 | Y26: 0 | Z26: 0 | AA26: ='DOLDURULMASI GEREKEN TABLO'!T39 -> 0 | AB26: FALSE | AC26: =VLOOKUP(AB26,'Aylık Yİ-ÜFE'!$D$1:$E$229,2,0) ->  | AD26: 2022-12 | AE26: =VLOOKUP(AD26,'Aylık Yİ-ÜFE'!$D$1:$E$229,2,0) -> 2021.19 | AF26: 1 | AG26: =IF(OR('DOLDURULMASI GEREKEN TABLO'!Q39="EVET",'DOLDURULMASI GEREKEN TABLO'!S39="EVET"),MAX(X26*AF26,X26),X26) -> 0 | AH26: =IF(OR('DOLDURULMASI GEREKEN TABLO'!Q39="EVET",'DOLDURULMASI GEREKEN TABLO'!S39="EVET"),MAX(Y26*AF26,Y26),Y26) -> 0 | AI26: 0 | AJ26: 0 | AK26: 0 | AL26: 0 | AM26: 0 | AO26: YD YAPILABİLİR | AP26: ='DOLDURULMASI GEREKEN TABLO'!U39 -> 0 | AQ26: 00:00:00 | AR26: ='DOLDURULMASI GEREKEN TABLO'!V39 -> 2023-06-30 | AS26: 0 | AT26: 0 | AU26: 45107 | AV26: 124 | AW26: 123.5 | AX26: 0 | AY26: 0 | AZ26: 0 | BA26: 0 | BB26: =IF(E26="EVET",0,'DOLDURULMASI GEREKEN TABLO'!W39) -> 0.1895 | BC26: 0 | BD26: 0 | BE26: 0 | BF26: 0 | BG26: 0 | BH26: 0 | BI26: 0
B27: 20 | C27: ='DOLDURULMASI GEREKEN TABLO'!D40 -> 0 | D27: ='DOLDURULMASI GEREKEN TABLO'!E40 -> 0 | E27: ='DOLDURULMASI GEREKEN TABLO'!F40 -> 0 | F27: ='DOLDURULMASI GEREKEN TABLO'!G40 -> 0 | G27: 0 | H27: ='DOLDURULMASI GEREKEN TABLO'!H40 -> 00:00:00 | I27: ='DOLDURULMASI GEREKEN TABLO'!Q40 -> 00:00:00 | J27: ='DOLDURULMASI GEREKEN TABLO'!S40 -> EVET | K27: 2022-12-31 | L27: TARİH UYUMLU | M27: ='DOLDURULMASI GEREKEN TABLO'!J40 -> 0 | N27: ='DOLDURULMASI GEREKEN TABLO'!K40 -> 0 | O27: ='DOLDURULMASI GEREKEN TABLO'!L40 -> 0 | P27: 44927 | Q27: 0 | R27: 0 | S27: 0 | T27: 0 | U27: ='DOLDURULMASI GEREKEN TABLO'!N40 -> 0 | V27: ='DOLDURULMASI GEREKEN TABLO'!P40 -> 0 | W27: ='DOLDURULMASI GEREKEN TABLO'!Q40 -> 0 | X27: 0 | Y27: 0 | Z27: 0 | AA27: ='DOLDURULMASI GEREKEN TABLO'!T40 -> 0 | AB27: FALSE | AC27: =VLOOKUP(AB27,'Aylık Yİ-ÜFE'!$D$1:$E$229,2,0) ->  | AD27: 2022-12 | AE27: =VLOOKUP(AD27,'Aylık Yİ-ÜFE'!$D$1:$E$229,2,0) -> 2021.19 | AF27: 1 | AG27: =IF(OR('DOLDURULMASI GEREKEN TABLO'!Q40="EVET",'DOLDURULMASI GEREKEN TABLO'!S40="EVET"),MAX(X27*AF27,X27),X27) -> 0 | AH27: =IF(OR('DOLDURULMASI GEREKEN TABLO'!Q40="EVET",'DOLDURULMASI GEREKEN TABLO'!S40="EVET"),MAX(Y27*AF27,Y27),Y27) -> 0 | AI27: 0 | AJ27: 0 | AK27: 0 | AL27: 0 | AM27: 0 | AO27: YD YAPILABİLİR | AP27: ='DOLDURULMASI GEREKEN TABLO'!U40 -> 0 | AQ27: 00:00:00 | AR27: ='DOLDURULMASI GEREKEN TABLO'!V40 -> 2023-06-30 | AS27: 0 | AT27: 0 | AU27: 45107 | AV27: 124 | AW27: 123.5 | AX27: 0 | AY27: 0 | AZ27: 0 | BA27: 0 | BB27: =IF(E27="EVET",0,'DOLDURULMASI GEREKEN TABLO'!W40) -> 0.1895 | BC27: 0 | BD27: 0 | BE27: 0 | BF27: 0 | BG27: 0 | BH27: 0 | BI27: 0
B28: 21 | C28: ='DOLDURULMASI GEREKEN TABLO'!D41 -> 0 | D28: ='DOLDURULMASI GEREKEN TABLO'!E41 -> 0 | E28: ='DOLDURULMASI GEREKEN TABLO'!F41 -> 0 | F28: ='DOLDURULMASI GEREKEN TABLO'!G41 -> 0 | G28: 0 | H28: ='DOLDURULMASI GEREKEN TABLO'!H41 -> 00:00:00 | I28: ='DOLDURULMASI GEREKEN TABLO'!Q41 -> 00:00:00 | J28: ='DOLDURULMASI GEREKEN TABLO'!S41 -> EVET | K28: 2022-12-31 | L28: TARİH UYUMLU | M28: ='DOLDURULMASI GEREKEN TABLO'!J41 -> 0 | N28: ='DOLDURULMASI GEREKEN TABLO'!K41 -> 0 | O28: ='DOLDURULMASI GEREKEN TABLO'!L41 -> 0 | P28: 44927 | Q28: 0 | R28: 0 | S28: 0 | T28: 0 | U28: ='DOLDURULMASI GEREKEN TABLO'!N41 -> 0 | V28: ='DOLDURULMASI GEREKEN TABLO'!P41 -> 0 | W28: ='DOLDURULMASI GEREKEN TABLO'!Q41 -> 0 | X28: 0 | Y28: 0 | Z28: 0 | AA28: ='DOLDURULMASI GEREKEN TABLO'!T41 -> 0 | AB28: FALSE | AC28: =VLOOKUP(AB28,'Aylık Yİ-ÜFE'!$D$1:$E$229,2,0) ->  | AD28: 2022-12 | AE28: =VLOOKUP(AD28,'Aylık Yİ-ÜFE'!$D$1:$E$229,2,0) -> 2021.19 | AF28: 1 | AG28: =IF(OR('DOLDURULMASI GEREKEN TABLO'!Q41="EVET",'DOLDURULMASI GEREKEN TABLO'!S41="EVET"),MAX(X28*AF28,X28),X28) -> 0 | AH28: =IF(OR('DOLDURULMASI GEREKEN TABLO'!Q41="EVET",'DOLDURULMASI GEREKEN TABLO'!S41="EVET"),MAX(Y28*AF28,Y28),Y28) -> 0 | AI28: 0 | AJ28: 0 | AK28: 0 | AL28: 0 | AM28: 0 | AO28: YD YAPILABİLİR | AP28: ='DOLDURULMASI GEREKEN TABLO'!U41 -> 0 | AQ28: 00:00:00 | AR28: ='DOLDURULMASI GEREKEN TABLO'!V41 -> 2023-06-30 | AS28: 0 | AT28: 0 | AU28: 45107 | AV28: 124 | AW28: 123.5 | AX28: 0 | AY28: 0 | AZ28: 0 | BA28: 0 | BB28: =IF(E28="EVET",0,'DOLDURULMASI GEREKEN TABLO'!W41) -> 0.1895 | BC28: 0 | BD28: 0 | BE28: 0 | BF28: 0 | BG28: 0 | BH28: 0 | BI28: 0
B29: 22 | C29: ='DOLDURULMASI GEREKEN TABLO'!D42 -> 0 | D29: ='DOLDURULMASI GEREKEN TABLO'!E42 -> 0 | E29: ='DOLDURULMASI GEREKEN TABLO'!F42 -> 0 | F29: ='DOLDURULMASI GEREKEN TABLO'!G42 -> 0 | G29: 0 | H29: ='DOLDURULMASI GEREKEN TABLO'!H42 -> 00:00:00 | I29: ='DOLDURULMASI GEREKEN TABLO'!Q42 -> 00:00:00 | J29: ='DOLDURULMASI GEREKEN TABLO'!S42 -> EVET | K29: 2022-12-31 | L29: TARİH UYUMLU | M29: ='DOLDURULMASI GEREKEN TABLO'!J42 -> 0 | N29: ='DOLDURULMASI GEREKEN TABLO'!K42 -> 0 | O29: ='DOLDURULMASI GEREKEN TABLO'!L42 -> 0 | P29: 44927 | Q29: 0 | R29: 0 | S29: 0 | T29: 0 | U29: ='DOLDURULMASI GEREKEN TABLO'!N42 -> 0 | V29: ='DOLDURULMASI GEREKEN TABLO'!P42 -> 0 | W29: ='DOLDURULMASI GEREKEN TABLO'!Q42 -> 0 | X29: 0 | Y29: 0 | Z29: 0 | AA29: ='DOLDURULMASI GEREKEN TABLO'!T42 -> 0 | AB29: FALSE | AC29: =VLOOKUP(AB29,'Aylık Yİ-ÜFE'!$D$1:$E$229,2,0) ->  | AD29: 2022-12 | AE29: =VLOOKUP(AD29,'Aylık Yİ-ÜFE'!$D$1:$E$229,2,0) -> 2021.19 | AF29: 1 | AG29: =IF(OR('DOLDURULMASI GEREKEN TABLO'!Q42="EVET",'DOLDURULMASI GEREKEN TABLO'!S42="EVET"),MAX(X29*AF29,X29),X29) -> 0 | AH29: =IF(OR('DOLDURULMASI GEREKEN TABLO'!Q42="EVET",'DOLDURULMASI GEREKEN TABLO'!S42="EVET"),MAX(Y29*AF29,Y29),Y29) -> 0 | AI29: 0 | AJ29: 0 | AK29: 0 | AL29: 0 | AM29: 0 | AO29: YD YAPILABİLİR | AP29: ='DOLDURULMASI GEREKEN TABLO'!U42 -> 0 | AQ29: 00:00:00 | AR29: ='DOLDURULMASI GEREKEN TABLO'!V42 -> 2023-06-30 | AS29: 0 | AT29: 0 | AU29: 45107 | AV29: 124 | AW29: 123.5 | AX29: 0 | AY29: 0 | AZ29: 0 | BA29: 0 | BB29: =IF(E29="EVET",0,'DOLDURULMASI GEREKEN TABLO'!W42) -> 0.1895 | BC29: 0 | BD29: 0 | BE29: 0 | BF29: 0 | BG29: 0 | BH29: 0 | BI29: 0
B30: 23 | C30: ='DOLDURULMASI GEREKEN TABLO'!D43 -> 0 | D30: ='DOLDURULMASI GEREKEN TABLO'!E43 -> 0 | E30: ='DOLDURULMASI GEREKEN TABLO'!F43 -> 0 | F30: ='DOLDURULMASI GEREKEN TABLO'!G43 -> 0 | G30: 0 | H30: ='DOLDURULMASI GEREKEN TABLO'!H43 -> 00:00:00 | I30: ='DOLDURULMASI GEREKEN TABLO'!Q43 -> 00:00:00 | J30: ='DOLDURULMASI GEREKEN TABLO'!S43 -> EVET | K30: 2022-12-31 | L30: TARİH UYUMLU | M30: ='DOLDURULMASI GEREKEN TABLO'!J43 -> 0 | N30: ='DOLDURULMASI GEREKEN TABLO'!K43 -> 0 | O30: ='DOLDURULMASI GEREKEN TABLO'!L43 -> 0 | P30: 44927 | Q30: 0 | R30: 0 | S30: 0 | T30: 0 | U30: ='DOLDURULMASI GEREKEN TABLO'!N43 -> 0 | V30: ='DOLDURULMASI GEREKEN TABLO'!P43 -> 0 | W30: ='DOLDURULMASI GEREKEN TABLO'!Q43 -> 0 | X30: 0 | Y30: 0 | Z30: 0 | AA30: ='DOLDURULMASI GEREKEN TABLO'!T43 -> 0 | AB30: FALSE | AC30: =VLOOKUP(AB30,'Aylık Yİ-ÜFE'!$D$1:$E$229,2,0) ->  | AD30: 2022-12 | AE30: =VLOOKUP(AD30,'Aylık Yİ-ÜFE'!$D$1:$E$229,2,0) -> 2021.19 | AF30: 1 | AG30: =IF(OR('DOLDURULMASI GEREKEN TABLO'!Q43="EVET",'DOLDURULMASI GEREKEN TABLO'!S43="EVET"),MAX(X30*AF30,X30),X30) -> 0 | AH30: =IF(OR('DOLDURULMASI GEREKEN TABLO'!Q43="EVET",'DOLDURULMASI GEREKEN TABLO'!S43="EVET"),MAX(Y30*AF30,Y30),Y30) -> 0 | AI30: 0 | AJ30: 0 | AK30: 0 | AL30: 0 | AM30: 0 | AO30: YD YAPILABİLİR | AP30: ='DOLDURULMASI GEREKEN TABLO'!U43 -> 0 | AQ30: 00:00:00 | AR30: ='DOLDURULMASI GEREKEN TABLO'!V43 -> 2023-06-30 | AS30: 0 | AT30: 0 | AU30: 45107 | AV30: 124 | AW30: 123.5 | AX30: 0 | AY30: 0 | AZ30: 0 | BA30: 0 | BB30: =IF(E30="EVET",0,'DOLDURULMASI GEREKEN TABLO'!W43) -> 0.1895 | BC30: 0 | BD30: 0 | BE30: 0 | BF30: 0 | BG30: 0 | BH30: 0 | BI30: 0
B31: 24 | C31: ='DOLDURULMASI GEREKEN TABLO'!D44 -> 0 | D31: ='DOLDURULMASI GEREKEN TABLO'!E44 -> 0 | E31: ='DOLDURULMASI GEREKEN TABLO'!F44 -> 0 | F31: ='DOLDURULMASI GEREKEN TABLO'!G44 -> 0 | G31: 0 | H31: ='DOLDURULMASI GEREKEN TABLO'!H44 -> 00:00:00 | I31: ='DOLDURULMASI GEREKEN TABLO'!Q44 -> 00:00:00 | J31: ='DOLDURULMASI GEREKEN TABLO'!S44 -> EVET | K31: 2022-12-31 | L31: TARİH UYUMLU | M31: ='DOLDURULMASI GEREKEN TABLO'!J44 -> 0 | N31: ='DOLDURULMASI GEREKEN TABLO'!K44 -> 0 | O31: ='DOLDURULMASI GEREKEN TABLO'!L44 -> 0 | P31: 44927 | Q31: 0 | R31: 0 | S31: 0 | T31: 0 | U31: ='DOLDURULMASI GEREKEN TABLO'!N44 -> 0 | V31: ='DOLDURULMASI GEREKEN TABLO'!P44 -> 0 | W31: ='DOLDURULMASI GEREKEN TABLO'!Q44 -> 0 | X31: 0 | Y31: 0 | Z31: 0 | AA31: ='DOLDURULMASI GEREKEN TABLO'!T44 -> 0 | AB31: FALSE | AC31: =VLOOKUP(AB31,'Aylık Yİ-ÜFE'!$D$1:$E$229,2,0) ->  | AD31: 2022-12 | AE31: =VLOOKUP(AD31,'Aylık Yİ-ÜFE'!$D$1:$E$229,2,0) -> 2021.19 | AF31: 1 | AG31: =IF(OR('DOLDURULMASI GEREKEN TABLO'!Q44="EVET",'DOLDURULMASI GEREKEN TABLO'!S44="EVET"),MAX(X31*AF31,X31),X31) -> 0 | AH31: =IF(OR('DOLDURULMASI GEREKEN TABLO'!Q44="EVET",'DOLDURULMASI GEREKEN TABLO'!S44="EVET"),MAX(Y31*AF31,Y31),Y31) -> 0 | AI31: 0 | AJ31: 0 | AK31: 0 | AL31: 0 | AM31: 0 | AO31: YD YAPILABİLİR | AP31: ='DOLDURULMASI GEREKEN TABLO'!U44 -> 0 | AQ31: 00:00:00 | AR31: ='DOLDURULMASI GEREKEN TABLO'!V44 -> 2023-06-30 | AS31: 0 | AT31: 0 | AU31: 45107 | AV31: 124 | AW31: 123.5 | AX31: 0 | AY31: 0 | AZ31: 0 | BA31: 0 | BB31: =IF(E31="EVET",0,'DOLDURULMASI GEREKEN TABLO'!W44) -> 0.1895 | BC31: 0 | BD31: 0 | BE31: 0 | BF31: 0 | BG31: 0 | BH31: 0 | BI31: 0
B32: 25 | C32: ='DOLDURULMASI GEREKEN TABLO'!D45 -> 0 | D32: ='DOLDURULMASI GEREKEN TABLO'!E45 -> 0 | E32: ='DOLDURULMASI GEREKEN TABLO'!F45 -> 0 | F32: ='DOLDURULMASI GEREKEN TABLO'!G45 -> 0 | G32: 0 | H32: ='DOLDURULMASI GEREKEN TABLO'!H45 -> 00:00:00 | I32: ='DOLDURULMASI GEREKEN TABLO'!Q45 -> 00:00:00 | J32: ='DOLDURULMASI GEREKEN TABLO'!S45 -> EVET | K32: 2022-12-31 | L32: TARİH UYUMLU | M32: ='DOLDURULMASI GEREKEN TABLO'!J45 -> 0 | N32: ='DOLDURULMASI GEREKEN TABLO'!K45 -> 0 | O32: ='DOLDURULMASI GEREKEN TABLO'!L45 -> 0 | P32: 44927 | Q32: 0 | R32: 0 | S32: 0 | T32: 0 | U32: ='DOLDURULMASI GEREKEN TABLO'!N45 -> 0 | V32: ='DOLDURULMASI GEREKEN TABLO'!P45 -> 0 | W32: ='DOLDURULMASI GEREKEN TABLO'!Q45 -> 0 | X32: 0 | Y32: 0 | Z32: 0 | AA32: ='DOLDURULMASI GEREKEN TABLO'!T45 -> 0 | AB32: FALSE | AC32: =VLOOKUP(AB32,'Aylık Yİ-ÜFE'!$D$1:$E$229,2,0) ->  | AD32: 2022-12 | AE32: =VLOOKUP(AD32,'Aylık Yİ-ÜFE'!$D$1:$E$229,2,0) -> 2021.19 | AF32: 1 | AG32: =IF(OR('DOLDURULMASI GEREKEN TABLO'!Q45="EVET",'DOLDURULMASI GEREKEN TABLO'!S45="EVET"),MAX(X32*AF32,X32),X32) -> 0 | AH32: =IF(OR('DOLDURULMASI GEREKEN TABLO'!Q45="EVET",'DOLDURULMASI GEREKEN TABLO'!S45="EVET"),MAX(Y32*AF32,Y32),Y32) -> 0 | AI32: 0 | AJ32: 0 | AK32: 0 | AL32: 0 | AM32: 0 | AO32: YD YAPILABİLİR | AP32: ='DOLDURULMASI GEREKEN TABLO'!U45 -> 0 | AQ32: 00:00:00 | AR32: ='DOLDURULMASI GEREKEN TABLO'!V45 -> 2023-06-30 | AS32: 0 | AT32: 0 | AU32: 45107 | AV32: 124 | AW32: 123.5 | AX32: 0 | AY32: 0 | AZ32: 0 | BA32: 0 | BB32: =IF(E32="EVET",0,'DOLDURULMASI GEREKEN TABLO'!W45) -> 0.1895 | BC32: 0 | BD32: 0 | BE32: 0 | BF32: 0 | BG32: 0 | BH32: 0 | BI32: 0
B33: 26 | C33: ='DOLDURULMASI GEREKEN TABLO'!D46 -> 0 | D33: ='DOLDURULMASI GEREKEN TABLO'!E46 -> 0 | E33: ='DOLDURULMASI GEREKEN TABLO'!F46 -> 0 | F33: ='DOLDURULMASI GEREKEN TABLO'!G46 -> 0 | G33: 0 | H33: ='DOLDURULMASI GEREKEN TABLO'!H46 -> 00:00:00 | I33: ='DOLDURULMASI GEREKEN TABLO'!Q46 -> 00:00:00 | J33: ='DOLDURULMASI GEREKEN TABLO'!S46 -> EVET | K33: 2022-12-31 | L33: TARİH UYUMLU | M33: ='DOLDURULMASI GEREKEN TABLO'!J46 -> 0 | N33: ='DOLDURULMASI GEREKEN TABLO'!K46 -> 0 | O33: ='DOLDURULMASI GEREKEN TABLO'!L46 -> 0 | P33: 44927 | Q33: 0 | R33: 0 | S33: 0 | T33: 0 | U33: ='DOLDURULMASI GEREKEN TABLO'!N46 -> 0 | V33: ='DOLDURULMASI GEREKEN TABLO'!P46 -> 0 | W33: ='DOLDURULMASI GEREKEN TABLO'!Q46 -> 0 | X33: 0 | Y33: 0 | Z33: 0 | AA33: ='DOLDURULMASI GEREKEN TABLO'!T46 -> 0 | AB33: FALSE | AC33: =VLOOKUP(AB33,'Aylık Yİ-ÜFE'!$D$1:$E$229,2,0) ->  | AD33: 2022-12 | AE33: =VLOOKUP(AD33,'Aylık Yİ-ÜFE'!$D$1:$E$229,2,0) -> 2021.19 | AF33: 1 | AG33: =IF(OR('DOLDURULMASI GEREKEN TABLO'!Q46="EVET",'DOLDURULMASI GEREKEN TABLO'!S46="EVET"),MAX(X33*AF33,X33),X33) -> 0 | AH33: =IF(OR('DOLDURULMASI GEREKEN TABLO'!Q46="EVET",'DOLDURULMASI GEREKEN TABLO'!S46="EVET"),MAX(Y33*AF33,Y33),Y33) -> 0 | AI33: 0 | AJ33: 0 | AK33: 0 | AL33: 0 | AM33: 0 | AO33: YD YAPILABİLİR | AP33: ='DOLDURULMASI GEREKEN TABLO'!U46 -> 0 | AQ33: 00:00:00 | AR33: ='DOLDURULMASI GEREKEN TABLO'!V46 -> 2023-06-30 | AS33: 0 | AT33: 0 | AU33: 45107 | AV33: 124 | AW33: 123.5 | AX33: 0 | AY33: 0 | AZ33: 0 | BA33: 0 | BB33: =IF(E33="EVET",0,'DOLDURULMASI GEREKEN TABLO'!W46) -> 0.1895 | BC33: 0 | BD33: 0 | BE33: 0 | BF33: 0 | BG33: 0 | BH33: 0 | BI33: 0
B34: 27 | C34: ='DOLDURULMASI GEREKEN TABLO'!D47 -> 0 | D34: ='DOLDURULMASI GEREKEN TABLO'!E47 -> 0 | E34: ='DOLDURULMASI GEREKEN TABLO'!F47 -> 0 | F34: ='DOLDURULMASI GEREKEN TABLO'!G47 -> 0 | G34: 0 | H34: ='DOLDURULMASI GEREKEN TABLO'!H47 -> 00:00:00 | I34: ='DOLDURULMASI GEREKEN TABLO'!Q47 -> 00:00:00 | J34: ='DOLDURULMASI GEREKEN TABLO'!S47 -> EVET | K34: 2022-12-31 | L34: TARİH UYUMLU | M34: ='DOLDURULMASI GEREKEN TABLO'!J47 -> 0 | N34: ='DOLDURULMASI GEREKEN TABLO'!K47 -> 0 | O34: ='DOLDURULMASI GEREKEN TABLO'!L47 -> 0 | P34: 44927 | Q34: 0 | R34: 0 | S34: 0 | T34: 0 | U34: ='DOLDURULMASI GEREKEN TABLO'!N47 -> 0 | V34: ='DOLDURULMASI GEREKEN TABLO'!P47 -> 0 | W34: ='DOLDURULMASI GEREKEN TABLO'!Q47 -> 0 | X34: 0 | Y34: 0 | Z34: 0 | AA34: ='DOLDURULMASI GEREKEN TABLO'!T47 -> 0 | AB34: FALSE | AC34: =VLOOKUP(AB34,'Aylık Yİ-ÜFE'!$D$1:$E$229,2,0) ->  | AD34: 2022-12 | AE34: =VLOOKUP(AD34,'Aylık Yİ-ÜFE'!$D$1:$E$229,2,0) -> 2021.19 | AF34: 1 | AG34: =IF(OR('DOLDURULMASI GEREKEN TABLO'!Q47="EVET",'DOLDURULMASI GEREKEN TABLO'!S47="EVET"),MAX(X34*AF34,X34),X34) -> 0 | AH34: =IF(OR('DOLDURULMASI GEREKEN TABLO'!Q47="EVET",'DOLDURULMASI GEREKEN TABLO'!S47="EVET"),MAX(Y34*AF34,Y34),Y34) -> 0 | AI34: 0 | AJ34: 0 | AK34: 0 | AL34: 0 | AM34: 0 | AO34: YD YAPILABİLİR | AP34: ='DOLDURULMASI GEREKEN TABLO'!U47 -> 0 | AQ34: 00:00:00 | AR34: ='DOLDURULMASI GEREKEN TABLO'!V47 -> 2023-06-30 | AS34: 0 | AT34: 0 | AU34: 45107 | AV34: 124 | AW34: 123.5 | AX34: 0 | AY34: 0 | AZ34: 0 | BA34: 0 | BB34: =IF(E34="EVET",0,'DOLDURULMASI GEREKEN TABLO'!W47) -> 0.1895 | BC34: 0 | BD34: 0 | BE34: 0 | BF34: 0 | BG34: 0 | BH34: 0 | BI34: 0
B35: 28 | C35: ='DOLDURULMASI GEREKEN TABLO'!D48 -> 0 | D35: ='DOLDURULMASI GEREKEN TABLO'!E48 -> 0 | E35: ='DOLDURULMASI GEREKEN TABLO'!F48 -> 0 | F35: ='DOLDURULMASI GEREKEN TABLO'!G48 -> 0 | G35: 0 | H35: ='DOLDURULMASI GEREKEN TABLO'!H48 -> 00:00:00 | I35: ='DOLDURULMASI GEREKEN TABLO'!Q48 -> 00:00:00 | J35: ='DOLDURULMASI GEREKEN TABLO'!S48 -> EVET | K35: 2022-12-31 | L35: TARİH UYUMLU | M35: ='DOLDURULMASI GEREKEN TABLO'!J48 -> 0 | N35: ='DOLDURULMASI GEREKEN TABLO'!K48 -> 0 | O35: ='DOLDURULMASI GEREKEN TABLO'!L48 -> 0 | P35: 44927 | Q35: 0 | R35: 0 | S35: 0 | T35: 0 | U35: ='DOLDURULMASI GEREKEN TABLO'!N48 -> 0 | V35: ='DOLDURULMASI GEREKEN TABLO'!P48 -> 0 | W35: ='DOLDURULMASI GEREKEN TABLO'!Q48 -> 0 | X35: 0 | Y35: 0 | Z35: 0 | AA35: ='DOLDURULMASI GEREKEN TABLO'!T48 -> 0 | AB35: FALSE | AC35: =VLOOKUP(AB35,'Aylık Yİ-ÜFE'!$D$1:$E$229,2,0) ->  | AD35: 2022-12 | AE35: =VLOOKUP(AD35,'Aylık Yİ-ÜFE'!$D$1:$E$229,2,0) -> 2021.19 | AF35: 1 | AG35: =IF(OR('DOLDURULMASI GEREKEN TABLO'!Q48="EVET",'DOLDURULMASI GEREKEN TABLO'!S48="EVET"),MAX(X35*AF35,X35),X35) -> 0 | AH35: =IF(OR('DOLDURULMASI GEREKEN TABLO'!Q48="EVET",'DOLDURULMASI GEREKEN TABLO'!S48="EVET"),MAX(Y35*AF35,Y35),Y35) -> 0 | AI35: 0 | AJ35: 0 | AK35: 0 | AL35: 0 | AM35: 0 | AO35: YD YAPILABİLİR | AP35: ='DOLDURULMASI GEREKEN TABLO'!U48 -> 0 | AQ35: 00:00:00 | AR35: ='DOLDURULMASI GEREKEN TABLO'!V48 -> 2023-06-30 | AS35: 0 | AT35: 0 | AU35: 45107 | AV35: 124 | AW35: 123.5 | AX35: 0 | AY35: 0 | AZ35: 0 | BA35: 0 | BB35: =IF(E35="EVET",0,'DOLDURULMASI GEREKEN TABLO'!W48) -> 0.1895 | BC35: 0 | BD35: 0 | BE35: 0 | BF35: 0 | BG35: 0 | BH35: 0 | BI35: 0
B36: 29 | C36: ='DOLDURULMASI GEREKEN TABLO'!D49 -> 0 | D36: ='DOLDURULMASI GEREKEN TABLO'!E49 -> 0 | E36: ='DOLDURULMASI GEREKEN TABLO'!F49 -> 0 | F36: ='DOLDURULMASI GEREKEN TABLO'!G49 -> 0 | G36: 0 | H36: ='DOLDURULMASI GEREKEN TABLO'!H49 -> 00:00:00 | I36: ='DOLDURULMASI GEREKEN TABLO'!Q49 -> 00:00:00 | J36: ='DOLDURULMASI GEREKEN TABLO'!S49 -> EVET | K36: 2022-12-31 | L36: TARİH UYUMLU | M36: ='DOLDURULMASI GEREKEN TABLO'!J49 -> 0 | N36: ='DOLDURULMASI GEREKEN TABLO'!K49 -> 0 | O36: ='DOLDURULMASI GEREKEN TABLO'!L49 -> 0 | P36: 44927 | Q36: 0 | R36: 0 | S36: 0 | T36: 0 | U36: ='DOLDURULMASI GEREKEN TABLO'!N49 -> 0 | V36: ='DOLDURULMASI GEREKEN TABLO'!P49 -> 0 | W36: ='DOLDURULMASI GEREKEN TABLO'!Q49 -> 0 | X36: 0 | Y36: 0 | Z36: 0 | AA36: ='DOLDURULMASI GEREKEN TABLO'!T49 -> 0 | AB36: FALSE | AC36: =VLOOKUP(AB36,'Aylık Yİ-ÜFE'!$D$1:$E$229,2,0) ->  | AD36: 2022-12 | AE36: =VLOOKUP(AD36,'Aylık Yİ-ÜFE'!$D$1:$E$229,2,0) -> 2021.19 | AF36: 1 | AG36: =IF(OR('DOLDURULMASI GEREKEN TABLO'!Q49="EVET",'DOLDURULMASI GEREKEN TABLO'!S49="EVET"),MAX(X36*AF36,X36),X36) -> 0 | AH36: =IF(OR('DOLDURULMASI GEREKEN TABLO'!Q49="EVET",'DOLDURULMASI GEREKEN TABLO'!S49="EVET"),MAX(Y36*AF36,Y36),Y36) -> 0 | AI36: 0 | AJ36: 0 | AK36: 0 | AL36: 0 | AM36: 0 | AO36: YD YAPILABİLİR | AP36: ='DOLDURULMASI GEREKEN TABLO'!U49 -> 0 | AQ36: 00:00:00 | AR36: ='DOLDURULMASI GEREKEN TABLO'!V49 -> 2023-06-30 | AS36: 0 | AT36: 0 | AU36: 45107 | AV36: 124 | AW36: 123.5 | AX36: 0 | AY36: 0 | AZ36: 0 | BA36: 0 | BB36: =IF(E36="EVET",0,'DOLDURULMASI GEREKEN TABLO'!W49) -> 0.1895 | BC36: 0 | BD36: 0 | BE36: 0 | BF36: 0 | BG36: 0 | BH36: 0 | BI36: 0
B37: 30 | C37: ='DOLDURULMASI GEREKEN TABLO'!D50 -> 0 | D37: ='DOLDURULMASI GEREKEN TABLO'!E50 -> 0 | E37: ='DOLDURULMASI GEREKEN TABLO'!F50 -> 0 | F37: ='DOLDURULMASI GEREKEN TABLO'!G50 -> 0 | G37: 0 | H37: ='DOLDURULMASI GEREKEN TABLO'!H50 -> 00:00:00 | I37: ='DOLDURULMASI GEREKEN TABLO'!Q50 -> 00:00:00 | J37: ='DOLDURULMASI GEREKEN TABLO'!S50 -> EVET | K37: 2022-12-31 | L37: TARİH UYUMLU | M37: ='DOLDURULMASI GEREKEN TABLO'!J50 -> 0 | N37: ='DOLDURULMASI GEREKEN TABLO'!K50 -> 0 | O37: ='DOLDURULMASI GEREKEN TABLO'!L50 -> 0 | P37: 44927 | Q37: 0 | R37: 0 | S37: 0 | T37: 0 | U37: ='DOLDURULMASI GEREKEN TABLO'!N50 -> 0 | V37: ='DOLDURULMASI GEREKEN TABLO'!P50 -> 0 | W37: ='DOLDURULMASI GEREKEN TABLO'!Q50 -> 0 | X37: 0 | Y37: 0 | Z37: 0 | AA37: ='DOLDURULMASI GEREKEN TABLO'!T50 -> 0 | AB37: FALSE | AC37: =VLOOKUP(AB37,'Aylık Yİ-ÜFE'!$D$1:$E$229,2,0) ->  | AD37: 2022-12 | AE37: =VLOOKUP(AD37,'Aylık Yİ-ÜFE'!$D$1:$E$229,2,0) -> 2021.19 | AF37: 1 | AG37: =IF(OR('DOLDURULMASI GEREKEN TABLO'!Q50="EVET",'DOLDURULMASI GEREKEN TABLO'!S50="EVET"),MAX(X37*AF37,X37),X37) -> 0 | AH37: =IF(OR('DOLDURULMASI GEREKEN TABLO'!Q50="EVET",'DOLDURULMASI GEREKEN TABLO'!S50="EVET"),MAX(Y37*AF37,Y37),Y37) -> 0 | AI37: 0 | AJ37: 0 | AK37: 0 | AL37: 0 | AM37: 0 | AO37: YD YAPILABİLİR | AP37: ='DOLDURULMASI GEREKEN TABLO'!U50 -> 0 | AQ37: 00:00:00 | AR37: ='DOLDURULMASI GEREKEN TABLO'!V50 -> 2023-06-30 | AS37: 0 | AT37: 0 | AU37: 45107 | AV37: 124 | AW37: 123.5 | AX37: 0 | AY37: 0 | AZ37: 0 | BA37: 0 | BB37: =IF(E37="EVET",0,'DOLDURULMASI GEREKEN TABLO'!W50) -> 0.1895 | BC37: 0 | BD37: 0 | BE37: 0 | BF37: 0 | BG37: 0 | BH37: 0 | BI37: 0
B38: 31 | C38: ='DOLDURULMASI GEREKEN TABLO'!D51 -> 0 | D38: ='DOLDURULMASI GEREKEN TABLO'!E51 -> 0 | E38: ='DOLDURULMASI GEREKEN TABLO'!F51 -> 0 | F38: ='DOLDURULMASI GEREKEN TABLO'!G51 -> 0 | G38: 0 | H38: ='DOLDURULMASI GEREKEN TABLO'!H51 -> 00:00:00 | I38: ='DOLDURULMASI GEREKEN TABLO'!Q51 -> 00:00:00 | J38: ='DOLDURULMASI GEREKEN TABLO'!S51 -> EVET | K38: 2022-12-31 | L38: TARİH UYUMLU | M38: ='DOLDURULMASI GEREKEN TABLO'!J51 -> 0 | N38: ='DOLDURULMASI GEREKEN TABLO'!K51 -> 0 | O38: ='DOLDURULMASI GEREKEN TABLO'!L51 -> 0 | P38: 44927 | Q38: 0 | R38: 0 | S38: 0 | T38: 0 | U38: ='DOLDURULMASI GEREKEN TABLO'!N51 -> 0 | V38: ='DOLDURULMASI GEREKEN TABLO'!P51 -> 0 | W38: ='DOLDURULMASI GEREKEN TABLO'!Q51 -> 0 | X38: 0 | Y38: 0 | Z38: 0 | AA38: ='DOLDURULMASI GEREKEN TABLO'!T51 -> 0 | AB38: FALSE | AC38: =VLOOKUP(AB38,'Aylık Yİ-ÜFE'!$D$1:$E$229,2,0) ->  | AD38: 2022-12 | AE38: =VLOOKUP(AD38,'Aylık Yİ-ÜFE'!$D$1:$E$229,2,0) -> 2021.19 | AF38: 1 | AG38: =IF(OR('DOLDURULMASI GEREKEN TABLO'!Q51="EVET",'DOLDURULMASI GEREKEN TABLO'!S51="EVET"),MAX(X38*AF38,X38),X38) -> 0 | AH38: =IF(OR('DOLDURULMASI GEREKEN TABLO'!Q51="EVET",'DOLDURULMASI GEREKEN TABLO'!S51="EVET"),MAX(Y38*AF38,Y38),Y38) -> 0 | AI38: 0 | AJ38: 0 | AK38: 0 | AL38: 0 | AM38: 0 | AO38: YD YAPILABİLİR | AP38: ='DOLDURULMASI GEREKEN TABLO'!U51 -> 0 | AQ38: 00:00:00 | AR38: ='DOLDURULMASI GEREKEN TABLO'!V51 -> 2023-06-30 | AS38: 0 | AT38: 0 | AU38: 45107 | AV38: 124 | AW38: 123.5 | AX38: 0 | AY38: 0 | AZ38: 0 | BA38: 0 | BB38: =IF(E38="EVET",0,'DOLDURULMASI GEREKEN TABLO'!W51) -> 0.1895 | BC38: 0 | BD38: 0 | BE38: 0 | BF38: 0 | BG38: 0 | BH38: 0 | BI38: 0
B39: 32 | C39: ='DOLDURULMASI GEREKEN TABLO'!D52 -> 0 | D39: ='DOLDURULMASI GEREKEN TABLO'!E52 -> 0 | E39: ='DOLDURULMASI GEREKEN TABLO'!F52 -> 0 | F39: ='DOLDURULMASI GEREKEN TABLO'!G52 -> 0 | G39: 0 | H39: ='DOLDURULMASI GEREKEN TABLO'!H52 -> 00:00:00 | I39: ='DOLDURULMASI GEREKEN TABLO'!Q52 -> 00:00:00 | J39: ='DOLDURULMASI GEREKEN TABLO'!S52 -> EVET | K39: 2022-12-31 | L39: TARİH UYUMLU | M39: ='DOLDURULMASI GEREKEN TABLO'!J52 -> 0 | N39: ='DOLDURULMASI GEREKEN TABLO'!K52 -> 0 | O39: ='DOLDURULMASI GEREKEN TABLO'!L52 -> 0 | P39: 44927 | Q39: 0 | R39: 0 | S39: 0 | T39: 0 | U39: ='DOLDURULMASI GEREKEN TABLO'!N52 -> 0 | V39: ='DOLDURULMASI GEREKEN TABLO'!P52 -> 0 | W39: ='DOLDURULMASI GEREKEN TABLO'!Q52 -> 0 | X39: 0 | Y39: 0 | Z39: 0 | AA39: ='DOLDURULMASI GEREKEN TABLO'!T52 -> 0 | AB39: FALSE | AC39: =VLOOKUP(AB39,'Aylık Yİ-ÜFE'!$D$1:$E$229,2,0) ->  | AD39: 2022-12 | AE39: =VLOOKUP(AD39,'Aylık Yİ-ÜFE'!$D$1:$E$229,2,0) -> 2021.19 | AF39: 1 | AG39: =IF(OR('DOLDURULMASI GEREKEN TABLO'!Q52="EVET",'DOLDURULMASI GEREKEN TABLO'!S52="EVET"),MAX(X39*AF39,X39),X39) -> 0 | AH39: =IF(OR('DOLDURULMASI GEREKEN TABLO'!Q52="EVET",'DOLDURULMASI GEREKEN TABLO'!S52="EVET"),MAX(Y39*AF39,Y39),Y39) -> 0 | AI39: 0 | AJ39: 0 | AK39: 0 | AL39: 0 | AM39: 0 | AO39: YD YAPILABİLİR | AP39: ='DOLDURULMASI GEREKEN TABLO'!U52 -> 0 | AQ39: 00:00:00 | AR39: ='DOLDURULMASI GEREKEN TABLO'!V52 -> 2023-06-30 | AS39: 0 | AT39: 0 | AU39: 45107 | AV39: 124 | AW39: 123.5 | AX39: 0 | AY39: 0 | AZ39: 0 | BA39: 0 | BB39: =IF(E39="EVET",0,'DOLDURULMASI GEREKEN TABLO'!W52) -> 0.1895 | BC39: 0 | BD39: 0 | BE39: 0 | BF39: 0 | BG39: 0 | BH39: 0 | BI39: 0
B40: 33 | C40: ='DOLDURULMASI GEREKEN TABLO'!D53 -> 0 | D40: ='DOLDURULMASI GEREKEN TABLO'!E53 -> 0 | E40: ='DOLDURULMASI GEREKEN TABLO'!F53 -> 0 | F40: ='DOLDURULMASI GEREKEN TABLO'!G53 -> 0 | G40: 0 | H40: ='DOLDURULMASI GEREKEN TABLO'!H53 -> 00:00:00 | I40: ='DOLDURULMASI GEREKEN TABLO'!Q53 -> 00:00:00 | J40: ='DOLDURULMASI GEREKEN TABLO'!S53 -> EVET | K40: 2022-12-31 | L40: TARİH UYUMLU | M40: ='DOLDURULMASI GEREKEN TABLO'!J53 -> 0 | N40: ='DOLDURULMASI GEREKEN TABLO'!K53 -> 0 | O40: ='DOLDURULMASI GEREKEN TABLO'!L53 -> 0 | P40: 44927 | Q40: 0 | R40: 0 | S40: 0 | T40: 0 | U40: ='DOLDURULMASI GEREKEN TABLO'!N53 -> 0 | V40: ='DOLDURULMASI GEREKEN TABLO'!P53 -> 0 | W40: ='DOLDURULMASI GEREKEN TABLO'!Q53 -> 0 | X40: 0 | Y40: 0 | Z40: 0 | AA40: ='DOLDURULMASI GEREKEN TABLO'!T53 -> 0 | AB40: FALSE | AC40: =VLOOKUP(AB40,'Aylık Yİ-ÜFE'!$D$1:$E$229,2,0) ->  | AD40: 2022-12 | AE40: =VLOOKUP(AD40,'Aylık Yİ-ÜFE'!$D$1:$E$229,2,0) -> 2021.19 | AF40: 1 | AG40: =IF(OR('DOLDURULMASI GEREKEN TABLO'!Q53="EVET",'DOLDURULMASI GEREKEN TABLO'!S53="EVET"),MAX(X40*AF40,X40),X40) -> 0 | AH40: =IF(OR('DOLDURULMASI GEREKEN TABLO'!Q53="EVET",'DOLDURULMASI GEREKEN TABLO'!S53="EVET"),MAX(Y40*AF40,Y40),Y40) -> 0 | AI40: 0 | AJ40: 0 | AK40: 0 | AL40: 0 | AM40: 0 | AO40: YD YAPILABİLİR | AP40: ='DOLDURULMASI GEREKEN TABLO'!U53 -> 0 | AQ40: 00:00:00 | AR40: ='DOLDURULMASI GEREKEN TABLO'!V53 -> 2023-06-30 | AS40: 0 | AT40: 0 | AU40: 45107 | AV40: 124 | AW40: 123.5 | AX40: 0 | AY40: 0 | AZ40: 0 | BA40: 0 | BB40: =IF(E40="EVET",0,'DOLDURULMASI GEREKEN TABLO'!W53) -> 0.1895 | BC40: 0 | BD40: 0 | BE40: 0 | BF40: 0 | BG40: 0 | BH40: 0 | BI40: 0
B41: 34 | C41: ='DOLDURULMASI GEREKEN TABLO'!D54 -> 0 | D41: ='DOLDURULMASI GEREKEN TABLO'!E54 -> 0 | E41: ='DOLDURULMASI GEREKEN TABLO'!F54 -> 0 | F41: ='DOLDURULMASI GEREKEN TABLO'!G54 -> 0 | G41: 0 | H41: ='DOLDURULMASI GEREKEN TABLO'!H54 -> 00:00:00 | I41: ='DOLDURULMASI GEREKEN TABLO'!Q54 -> 00:00:00 | J41: ='DOLDURULMASI GEREKEN TABLO'!S54 -> EVET | K41: 2022-12-31 | L41: TARİH UYUMLU | M41: ='DOLDURULMASI GEREKEN TABLO'!J54 -> 0 | N41: ='DOLDURULMASI GEREKEN TABLO'!K54 -> 0 | O41: ='DOLDURULMASI GEREKEN TABLO'!L54 -> 0 | P41: 44927 | Q41: 0 | R41: 0 | S41: 0 | T41: 0 | U41: ='DOLDURULMASI GEREKEN TABLO'!N54 -> 0 | V41: ='DOLDURULMASI GEREKEN TABLO'!P54 -> 0 | W41: ='DOLDURULMASI GEREKEN TABLO'!Q54 -> 0 | X41: 0 | Y41: 0 | Z41: 0 | AA41: ='DOLDURULMASI GEREKEN TABLO'!T54 -> 0 | AB41: FALSE | AC41: =VLOOKUP(AB41,'Aylık Yİ-ÜFE'!$D$1:$E$229,2,0) ->  | AD41: 2022-12 | AE41: =VLOOKUP(AD41,'Aylık Yİ-ÜFE'!$D$1:$E$229,2,0) -> 2021.19 | AF41: 1 | AG41: =IF(OR('DOLDURULMASI GEREKEN TABLO'!Q54="EVET",'DOLDURULMASI GEREKEN TABLO'!S54="EVET"),MAX(X41*AF41,X41),X41) -> 0 | AH41: =IF(OR('DOLDURULMASI GEREKEN TABLO'!Q54="EVET",'DOLDURULMASI GEREKEN TABLO'!S54="EVET"),MAX(Y41*AF41,Y41),Y41) -> 0 | AI41: 0 | AJ41: 0 | AK41: 0 | AL41: 0 | AM41: 0 | AO41: YD YAPILABİLİR | AP41: ='DOLDURULMASI GEREKEN TABLO'!U54 -> 0 | AQ41: 00:00:00 | AR41: ='DOLDURULMASI GEREKEN TABLO'!V54 -> 2023-06-30 | AS41: 0 | AT41: 0 | AU41: 45107 | AV41: 124 | AW41: 123.5 | AX41: 0 | AY41: 0 | AZ41: 0 | BA41: 0 | BB41: =IF(E41="EVET",0,'DOLDURULMASI GEREKEN TABLO'!W54) -> 0.1895 | BC41: 0 | BD41: 0 | BE41: 0 | BF41: 0 | BG41: 0 | BH41: 0 | BI41: 0
B42: 35 | C42: ='DOLDURULMASI GEREKEN TABLO'!D55 -> 0 | D42: ='DOLDURULMASI GEREKEN TABLO'!E55 -> 0 | E42: ='DOLDURULMASI GEREKEN TABLO'!F55 -> 0 | F42: ='DOLDURULMASI GEREKEN TABLO'!G55 -> 0 | G42: 0 | H42: ='DOLDURULMASI GEREKEN TABLO'!H55 -> 00:00:00 | I42: ='DOLDURULMASI GEREKEN TABLO'!Q55 -> 00:00:00 | J42: ='DOLDURULMASI GEREKEN TABLO'!S55 -> EVET | K42: 2022-12-31 | L42: TARİH UYUMLU | M42: ='DOLDURULMASI GEREKEN TABLO'!J55 -> 0 | N42: ='DOLDURULMASI GEREKEN TABLO'!K55 -> 0 | O42: ='DOLDURULMASI GEREKEN TABLO'!L55 -> 0 | P42: 44927 | Q42: 0 | R42: 0 | S42: 0 | T42: 0 | U42: ='DOLDURULMASI GEREKEN TABLO'!N55 -> 0 | V42: ='DOLDURULMASI GEREKEN TABLO'!P55 -> 0 | W42: ='DOLDURULMASI GEREKEN TABLO'!Q55 -> 0 | X42: 0 | Y42: 0 | Z42: 0 | AA42: ='DOLDURULMASI GEREKEN TABLO'!T55 -> 0 | AB42: FALSE | AC42: =VLOOKUP(AB42,'Aylık Yİ-ÜFE'!$D$1:$E$229,2,0) ->  | AD42: 2022-12 | AE42: =VLOOKUP(AD42,'Aylık Yİ-ÜFE'!$D$1:$E$229,2,0) -> 2021.19 | AF42: 1 | AG42: =IF(OR('DOLDURULMASI GEREKEN TABLO'!Q55="EVET",'DOLDURULMASI GEREKEN TABLO'!S55="EVET"),MAX(X42*AF42,X42),X42) -> 0 | AH42: =IF(OR('DOLDURULMASI GEREKEN TABLO'!Q55="EVET",'DOLDURULMASI GEREKEN TABLO'!S55="EVET"),MAX(Y42*AF42,Y42),Y42) -> 0 | AI42: 0 | AJ42: 0 | AK42: 0 | AL42: 0 | AM42: 0 | AO42: YD YAPILABİLİR | AP42: ='DOLDURULMASI GEREKEN TABLO'!U55 -> 0 | AQ42: 00:00:00 | AR42: ='DOLDURULMASI GEREKEN TABLO'!V55 -> 2023-06-30 | AS42: 0 | AT42: 0 | AU42: 45107 | AV42: 124 | AW42: 123.5 | AX42: 0 | AY42: 0 | AZ42: 0 | BA42: 0 | BB42: =IF(E42="EVET",0,'DOLDURULMASI GEREKEN TABLO'!W55) -> 0.1895 | BC42: 0 | BD42: 0 | BE42: 0 | BF42: 0 | BG42: 0 | BH42: 0 | BI42: 0
B43: 36 | C43: ='DOLDURULMASI GEREKEN TABLO'!D56 -> 0 | D43: ='DOLDURULMASI GEREKEN TABLO'!E56 -> 0 | E43: ='DOLDURULMASI GEREKEN TABLO'!F56 -> 0 | F43: ='DOLDURULMASI GEREKEN TABLO'!G56 -> 0 | G43: 0 | H43: ='DOLDURULMASI GEREKEN TABLO'!H56 -> 00:00:00 | I43: ='DOLDURULMASI GEREKEN TABLO'!Q56 -> 00:00:00 | J43: ='DOLDURULMASI GEREKEN TABLO'!S56 -> EVET | K43: 2022-12-31 | L43: TARİH UYUMLU | M43: ='DOLDURULMASI GEREKEN TABLO'!J56 -> 0 | N43: ='DOLDURULMASI GEREKEN TABLO'!K56 -> 0 | O43: ='DOLDURULMASI GEREKEN TABLO'!L56 -> 0 | P43: 44927 | Q43: 0 | R43: 0 | S43: 0 | T43: 0 | U43: ='DOLDURULMASI GEREKEN TABLO'!N56 -> 0 | V43: ='DOLDURULMASI GEREKEN TABLO'!P56 -> 0 | W43: ='DOLDURULMASI GEREKEN TABLO'!Q56 -> 0 | X43: 0 | Y43: 0 | Z43: 0 | AA43: ='DOLDURULMASI GEREKEN TABLO'!T56 -> 0 | AB43: FALSE | AC43: =VLOOKUP(AB43,'Aylık Yİ-ÜFE'!$D$1:$E$229,2,0) ->  | AD43: 2022-12 | AE43: =VLOOKUP(AD43,'Aylık Yİ-ÜFE'!$D$1:$E$229,2,0) -> 2021.19 | AF43: 1 | AG43: =IF(OR('DOLDURULMASI GEREKEN TABLO'!Q56="EVET",'DOLDURULMASI GEREKEN TABLO'!S56="EVET"),MAX(X43*AF43,X43),X43) -> 0 | AH43: =IF(OR('DOLDURULMASI GEREKEN TABLO'!Q56="EVET",'DOLDURULMASI GEREKEN TABLO'!S56="EVET"),MAX(Y43*AF43,Y43),Y43) -> 0 | AI43: 0 | AJ43: 0 | AK43: 0 | AL43: 0 | AM43: 0 | AO43: YD YAPILABİLİR | AP43: ='DOLDURULMASI GEREKEN TABLO'!U56 -> 0 | AQ43: 00:00:00 | AR43: ='DOLDURULMASI GEREKEN TABLO'!V56 -> 2023-06-30 | AS43: 0 | AT43: 0 | AU43: 45107 | AV43: 124 | AW43: 123.5 | AX43: 0 | AY43: 0 | AZ43: 0 | BA43: 0 | BB43: =IF(E43="EVET",0,'DOLDURULMASI GEREKEN TABLO'!W56) -> 0.1895 | BC43: 0 | BD43: 0 | BE43: 0 | BF43: 0 | BG43: 0 | BH43: 0 | BI43: 0
B44: 37 | C44: ='DOLDURULMASI GEREKEN TABLO'!D57 -> 0 | D44: ='DOLDURULMASI GEREKEN TABLO'!E57 -> 0 | E44: ='DOLDURULMASI GEREKEN TABLO'!F57 -> 0 | F44: ='DOLDURULMASI GEREKEN TABLO'!G57 -> 0 | G44: 0 | H44: ='DOLDURULMASI GEREKEN TABLO'!H57 -> 00:00:00 | I44: ='DOLDURULMASI GEREKEN TABLO'!Q57 -> 00:00:00 | J44: ='DOLDURULMASI GEREKEN TABLO'!S57 -> EVET | K44: 2022-12-31 | L44: TARİH UYUMLU | M44: ='DOLDURULMASI GEREKEN TABLO'!J57 -> 0 | N44: ='DOLDURULMASI GEREKEN TABLO'!K57 -> 0 | O44: ='DOLDURULMASI GEREKEN TABLO'!L57 -> 0 | P44: 44927 | Q44: 0 | R44: 0 | S44: 0 | T44: 0 | U44: ='DOLDURULMASI GEREKEN TABLO'!N57 -> 0 | V44: ='DOLDURULMASI GEREKEN TABLO'!P57 -> 0 | W44: ='DOLDURULMASI GEREKEN TABLO'!Q57 -> 0 | X44: 0 | Y44: 0 | Z44: 0 | AA44: ='DOLDURULMASI GEREKEN TABLO'!T57 -> 0 | AB44: FALSE | AC44: =VLOOKUP(AB44,'Aylık Yİ-ÜFE'!$D$1:$E$229,2,0) ->  | AD44: 2022-12 | AE44: =VLOOKUP(AD44,'Aylık Yİ-ÜFE'!$D$1:$E$229,2,0) -> 2021.19 | AF44: 1 | AG44: =IF(OR('DOLDURULMASI GEREKEN TABLO'!Q57="EVET",'DOLDURULMASI GEREKEN TABLO'!S57="EVET"),MAX(X44*AF44,X44),X44) -> 0 | AH44: =IF(OR('DOLDURULMASI GEREKEN TABLO'!Q57="EVET",'DOLDURULMASI GEREKEN TABLO'!S57="EVET"),MAX(Y44*AF44,Y44),Y44) -> 0 | AI44: 0 | AJ44: 0 | AK44: 0 | AL44: 0 | AM44: 0 | AO44: YD YAPILABİLİR | AP44: ='DOLDURULMASI GEREKEN TABLO'!U57 -> 0 | AQ44: 00:00:00 | AR44: ='DOLDURULMASI GEREKEN TABLO'!V57 -> 2023-06-30 | AS44: 0 | AT44: 0 | AU44: 45107 | AV44: 124 | AW44: 123.5 | AX44: 0 | AY44: 0 | AZ44: 0 | BA44: 0 | BB44: =IF(E44="EVET",0,'DOLDURULMASI GEREKEN TABLO'!W57) -> 0.1895 | BC44: 0 | BD44: 0 | BE44: 0 | BF44: 0 | BG44: 0 | BH44: 0 | BI44: 0
B45: 38 | C45: ='DOLDURULMASI GEREKEN TABLO'!D58 -> 0 | D45: ='DOLDURULMASI GEREKEN TABLO'!E58 -> 0 | E45: ='DOLDURULMASI GEREKEN TABLO'!F58 -> 0 | F45: ='DOLDURULMASI GEREKEN TABLO'!G58 -> 0 | G45: 0 | H45: ='DOLDURULMASI GEREKEN TABLO'!H58 -> 00:00:00 | I45: ='DOLDURULMASI GEREKEN TABLO'!Q58 -> 00:00:00 | J45: ='DOLDURULMASI GEREKEN TABLO'!S58 -> EVET | K45: 2022-12-31 | L45: TARİH UYUMLU | M45: ='DOLDURULMASI GEREKEN TABLO'!J58 -> 0 | N45: ='DOLDURULMASI GEREKEN TABLO'!K58 -> 0 | O45: ='DOLDURULMASI GEREKEN TABLO'!L58 -> 0 | P45: 44927 | Q45: 0 | R45: 0 | S45: 0 | T45: 0 | U45: ='DOLDURULMASI GEREKEN TABLO'!N58 -> 0 | V45: ='DOLDURULMASI GEREKEN TABLO'!P58 -> 0 | W45: ='DOLDURULMASI GEREKEN TABLO'!Q58 -> 0 | X45: 0 | Y45: 0 | Z45: 0 | AA45: ='DOLDURULMASI GEREKEN TABLO'!T58 -> 0 | AB45: FALSE | AC45: =VLOOKUP(AB45,'Aylık Yİ-ÜFE'!$D$1:$E$229,2,0) ->  | AD45: 2022-12 | AE45: =VLOOKUP(AD45,'Aylık Yİ-ÜFE'!$D$1:$E$229,2,0) -> 2021.19 | AF45: 1 | AG45: =IF(OR('DOLDURULMASI GEREKEN TABLO'!Q58="EVET",'DOLDURULMASI GEREKEN TABLO'!S58="EVET"),MAX(X45*AF45,X45),X45) -> 0 | AH45: =IF(OR('DOLDURULMASI GEREKEN TABLO'!Q58="EVET",'DOLDURULMASI GEREKEN TABLO'!S58="EVET"),MAX(Y45*AF45,Y45),Y45) -> 0 | AI45: 0 | AJ45: 0 | AK45: 0 | AL45: 0 | AM45: 0 | AO45: YD YAPILABİLİR | AP45: ='DOLDURULMASI GEREKEN TABLO'!U58 -> 0 | AQ45: 00:00:00 | AR45: ='DOLDURULMASI GEREKEN TABLO'!V58 -> 2023-06-30 | AS45: 0 | AT45: 0 | AU45: 45107 | AV45: 124 | AW45: 123.5 | AX45: 0 | AY45: 0 | AZ45: 0 | BA45: 0 | BB45: =IF(E45="EVET",0,'DOLDURULMASI GEREKEN TABLO'!W58) -> 0.1895 | BC45: 0 | BD45: 0 | BE45: 0 | BF45: 0 | BG45: 0 | BH45: 0 | BI45: 0
B46: 39 | C46: ='DOLDURULMASI GEREKEN TABLO'!D59 -> 0 | D46: ='DOLDURULMASI GEREKEN TABLO'!E59 -> 0 | E46: ='DOLDURULMASI GEREKEN TABLO'!F59 -> 0 | F46: ='DOLDURULMASI GEREKEN TABLO'!G59 -> 0 | G46: 0 | H46: ='DOLDURULMASI GEREKEN TABLO'!H59 -> 00:00:00 | I46: ='DOLDURULMASI GEREKEN TABLO'!Q59 -> 00:00:00 | J46: ='DOLDURULMASI GEREKEN TABLO'!S59 -> EVET | K46: 2022-12-31 | L46: TARİH UYUMLU | M46: ='DOLDURULMASI GEREKEN TABLO'!J59 -> 0 | N46: ='DOLDURULMASI GEREKEN TABLO'!K59 -> 0 | O46: ='DOLDURULMASI GEREKEN TABLO'!L59 -> 0 | P46: 44927 | Q46: 0 | R46: 0 | S46: 0 | T46: 0 | U46: ='DOLDURULMASI GEREKEN TABLO'!N59 -> 0 | V46: ='DOLDURULMASI GEREKEN TABLO'!P59 -> 0 | W46: ='DOLDURULMASI GEREKEN TABLO'!Q59 -> 0 | X46: 0 | Y46: 0 | Z46: 0 | AA46: ='DOLDURULMASI GEREKEN TABLO'!T59 -> 0 | AB46: FALSE | AC46: =VLOOKUP(AB46,'Aylık Yİ-ÜFE'!$D$1:$E$229,2,0) ->  | AD46: 2022-12 | AE46: =VLOOKUP(AD46,'Aylık Yİ-ÜFE'!$D$1:$E$229,2,0) -> 2021.19 | AF46: 1 | AG46: =IF(OR('DOLDURULMASI GEREKEN TABLO'!Q59="EVET",'DOLDURULMASI GEREKEN TABLO'!S59="EVET"),MAX(X46*AF46,X46),X46) -> 0 | AH46: =IF(OR('DOLDURULMASI GEREKEN TABLO'!Q59="EVET",'DOLDURULMASI GEREKEN TABLO'!S59="EVET"),MAX(Y46*AF46,Y46),Y46) -> 0 | AI46: 0 | AJ46: 0 | AK46: 0 | AL46: 0 | AM46: 0 | AO46: YD YAPILABİLİR | AP46: ='DOLDURULMASI GEREKEN TABLO'!U59 -> 0 | AQ46: 00:00:00 | AR46: ='DOLDURULMASI GEREKEN TABLO'!V59 -> 2023-06-30 | AS46: 0 | AT46: 0 | AU46: 45107 | AV46: 124 | AW46: 123.5 | AX46: 0 | AY46: 0 | AZ46: 0 | BA46: 0 | BB46: =IF(E46="EVET",0,'DOLDURULMASI GEREKEN TABLO'!W59) -> 0.1895 | BC46: 0 | BD46: 0 | BE46: 0 | BF46: 0 | BG46: 0 | BH46: 0 | BI46: 0
B47: 40 | C47: ='DOLDURULMASI GEREKEN TABLO'!D60 -> 0 | D47: ='DOLDURULMASI GEREKEN TABLO'!E60 -> 0 | E47: ='DOLDURULMASI GEREKEN TABLO'!F60 -> 0 | F47: ='DOLDURULMASI GEREKEN TABLO'!G60 -> 0 | G47: 0 | H47: ='DOLDURULMASI GEREKEN TABLO'!H60 -> 00:00:00 | I47: ='DOLDURULMASI GEREKEN TABLO'!Q60 -> 00:00:00 | J47: ='DOLDURULMASI GEREKEN TABLO'!S60 -> EVET | K47: 2022-12-31 | L47: TARİH UYUMLU | M47: ='DOLDURULMASI GEREKEN TABLO'!J60 -> 0 | N47: ='DOLDURULMASI GEREKEN TABLO'!K60 -> 0 | O47: ='DOLDURULMASI GEREKEN TABLO'!L60 -> 0 | P47: 44927 | Q47: 0 | R47: 0 | S47: 0 | T47: 0 | U47: ='DOLDURULMASI GEREKEN TABLO'!N60 -> 0 | V47: ='DOLDURULMASI GEREKEN TABLO'!P60 -> 0 | W47: ='DOLDURULMASI GEREKEN TABLO'!Q60 -> 0 | X47: 0 | Y47: 0 | Z47: 0 | AA47: ='DOLDURULMASI GEREKEN TABLO'!T60 -> 0 | AB47: FALSE | AC47: =VLOOKUP(AB47,'Aylık Yİ-ÜFE'!$D$1:$E$229,2,0) ->  | AD47: 2022-12 | AE47: =VLOOKUP(AD47,'Aylık Yİ-ÜFE'!$D$1:$E$229,2,0) -> 2021.19 | AF47: 1 | AG47: =IF(OR('DOLDURULMASI GEREKEN TABLO'!Q60="EVET",'DOLDURULMASI GEREKEN TABLO'!S60="EVET"),MAX(X47*AF47,X47),X47) -> 0 | AH47: =IF(OR('DOLDURULMASI GEREKEN TABLO'!Q60="EVET",'DOLDURULMASI GEREKEN TABLO'!S60="EVET"),MAX(Y47*AF47,Y47),Y47) -> 0 | AI47: 0 | AJ47: 0 | AK47: 0 | AL47: 0 | AM47: 0 | AO47: YD YAPILABİLİR | AP47: ='DOLDURULMASI GEREKEN TABLO'!U60 -> 0 | AQ47: 00:00:00 | AR47: ='DOLDURULMASI GEREKEN TABLO'!V60 -> 2023-06-30 | AS47: 0 | AT47: 0 | AU47: 45107 | AV47: 124 | AW47: 123.5 | AX47: 0 | AY47: 0 | AZ47: 0 | BA47: 0 | BB47: =IF(E47="EVET",0,'DOLDURULMASI GEREKEN TABLO'!W60) -> 0.1895 | BC47: 0 | BD47: 0 | BE47: 0 | BF47: 0 | BG47: 0 | BH47: 0 | BI47: 0
B48: 41 | C48: ='DOLDURULMASI GEREKEN TABLO'!D61 -> 0 | D48: ='DOLDURULMASI GEREKEN TABLO'!E61 -> 0 | E48: ='DOLDURULMASI GEREKEN TABLO'!F61 -> 0 | F48: ='DOLDURULMASI GEREKEN TABLO'!G61 -> 0 | G48: 0 | H48: ='DOLDURULMASI GEREKEN TABLO'!H61 -> 00:00:00 | I48: ='DOLDURULMASI GEREKEN TABLO'!Q61 -> 00:00:00 | J48: ='DOLDURULMASI GEREKEN TABLO'!S61 -> EVET | K48: 2022-12-31 | L48: TARİH UYUMLU | M48: ='DOLDURULMASI GEREKEN TABLO'!J61 -> 0 | N48: ='DOLDURULMASI GEREKEN TABLO'!K61 -> 0 | O48: ='DOLDURULMASI GEREKEN TABLO'!L61 -> 0 | P48: 44927 | Q48: 0 | R48: 0 | S48: 0 | T48: 0 | U48: ='DOLDURULMASI GEREKEN TABLO'!N61 -> 0 | V48: ='DOLDURULMASI GEREKEN TABLO'!P61 -> 0 | W48: ='DOLDURULMASI GEREKEN TABLO'!Q61 -> 0 | X48: 0 | Y48: 0 | Z48: 0 | AA48: ='DOLDURULMASI GEREKEN TABLO'!T61 -> 0 | AB48: FALSE | AC48: =VLOOKUP(AB48,'Aylık Yİ-ÜFE'!$D$1:$E$229,2,0) ->  | AD48: 2022-12 | AE48: =VLOOKUP(AD48,'Aylık Yİ-ÜFE'!$D$1:$E$229,2,0) -> 2021.19 | AF48: 1 | AG48: =IF(OR('DOLDURULMASI GEREKEN TABLO'!Q61="EVET",'DOLDURULMASI GEREKEN TABLO'!S61="EVET"),MAX(X48*AF48,X48),X48) -> 0 | AH48: =IF(OR('DOLDURULMASI GEREKEN TABLO'!Q61="EVET",'DOLDURULMASI GEREKEN TABLO'!S61="EVET"),MAX(Y48*AF48,Y48),Y48) -> 0 | AI48: 0 | AJ48: 0 | AK48: 0 | AL48: 0 | AM48: 0 | AO48: YD YAPILABİLİR | AP48: ='DOLDURULMASI GEREKEN TABLO'!U61 -> 0 | AQ48: 00:00:00 | AR48: ='DOLDURULMASI GEREKEN TABLO'!V61 -> 2023-06-30 | AS48: 0 | AT48: 0 | AU48: 45107 | AV48: 124 | AW48: 123.5 | AX48: 0 | AY48: 0 | AZ48: 0 | BA48: 0 | BB48: =IF(E48="EVET",0,'DOLDURULMASI GEREKEN TABLO'!W61) -> 0.1895 | BC48: 0 | BD48: 0 | BE48: 0 | BF48: 0 | BG48: 0 | BH48: 0 | BI48: 0
B49: 42 | C49: ='DOLDURULMASI GEREKEN TABLO'!D62 -> 0 | D49: ='DOLDURULMASI GEREKEN TABLO'!E62 -> 0 | E49: ='DOLDURULMASI GEREKEN TABLO'!F62 -> 0 | F49: ='DOLDURULMASI GEREKEN TABLO'!G62 -> 0 | G49: 0 | H49: ='DOLDURULMASI GEREKEN TABLO'!H62 -> 00:00:00 | I49: ='DOLDURULMASI GEREKEN TABLO'!Q62 -> 00:00:00 | J49: ='DOLDURULMASI GEREKEN TABLO'!S62 -> EVET | K49: 2022-12-31 | L49: TARİH UYUMLU | M49: ='DOLDURULMASI GEREKEN TABLO'!J62 -> 0 | N49: ='DOLDURULMASI GEREKEN TABLO'!K62 -> 0 | O49: ='DOLDURULMASI GEREKEN TABLO'!L62 -> 0 | P49: 44927 | Q49: 0 | R49: 0 | S49: 0 | T49: 0 | U49: ='DOLDURULMASI GEREKEN TABLO'!N62 -> 0 | V49: ='DOLDURULMASI GEREKEN TABLO'!P62 -> 0 | W49: ='DOLDURULMASI GEREKEN TABLO'!Q62 -> 0 | X49: 0 | Y49: 0 | Z49: 0 | AA49: ='DOLDURULMASI GEREKEN TABLO'!T62 -> 0 | AB49: FALSE | AC49: =VLOOKUP(AB49,'Aylık Yİ-ÜFE'!$D$1:$E$229,2,0) ->  | AD49: 2022-12 | AE49: =VLOOKUP(AD49,'Aylık Yİ-ÜFE'!$D$1:$E$229,2,0) -> 2021.19 | AF49: 1 | AG49: =IF(OR('DOLDURULMASI GEREKEN TABLO'!Q62="EVET",'DOLDURULMASI GEREKEN TABLO'!S62="EVET"),MAX(X49*AF49,X49),X49) -> 0 | AH49: =IF(OR('DOLDURULMASI GEREKEN TABLO'!Q62="EVET",'DOLDURULMASI GEREKEN TABLO'!S62="EVET"),MAX(Y49*AF49,Y49),Y49) -> 0 | AI49: 0 | AJ49: 0 | AK49: 0 | AL49: 0 | AM49: 0 | AO49: YD YAPILABİLİR | AP49: ='DOLDURULMASI GEREKEN TABLO'!U62 -> 0 | AQ49: 00:00:00 | AR49: ='DOLDURULMASI GEREKEN TABLO'!V62 -> 2023-06-30 | AS49: 0 | AT49: 0 | AU49: 45107 | AV49: 124 | AW49: 123.5 | AX49: 0 | AY49: 0 | AZ49: 0 | BA49: 0 | BB49: =IF(E49="EVET",0,'DOLDURULMASI GEREKEN TABLO'!W62) -> 0.1895 | BC49: 0 | BD49: 0 | BE49: 0 | BF49: 0 | BG49: 0 | BH49: 0 | BI49: 0
B50: 43 | C50: ='DOLDURULMASI GEREKEN TABLO'!D63 -> 0 | D50: ='DOLDURULMASI GEREKEN TABLO'!E63 -> 0 | E50: ='DOLDURULMASI GEREKEN TABLO'!F63 -> 0 | F50: ='DOLDURULMASI GEREKEN TABLO'!G63 -> 0 | G50: 0 | H50: ='DOLDURULMASI GEREKEN TABLO'!H63 -> 00:00:00 | I50: ='DOLDURULMASI GEREKEN TABLO'!Q63 -> 00:00:00 | J50: ='DOLDURULMASI GEREKEN TABLO'!S63 -> EVET | K50: 2022-12-31 | L50: TARİH UYUMLU | M50: ='DOLDURULMASI GEREKEN TABLO'!J63 -> 0 | N50: ='DOLDURULMASI GEREKEN TABLO'!K63 -> 0 | O50: ='DOLDURULMASI GEREKEN TABLO'!L63 -> 0 | P50: 44927 | Q50: 0 | R50: 0 | S50: 0 | T50: 0 | U50: ='DOLDURULMASI GEREKEN TABLO'!N63 -> 0 | V50: ='DOLDURULMASI GEREKEN TABLO'!P63 -> 0 | W50: ='DOLDURULMASI GEREKEN TABLO'!Q63 -> 0 | X50: 0 | Y50: 0 | Z50: 0 | AA50: ='DOLDURULMASI GEREKEN TABLO'!T63 -> 0 | AB50: FALSE | AC50: =VLOOKUP(AB50,'Aylık Yİ-ÜFE'!$D$1:$E$229,2,0) ->  | AD50: 2022-12 | AE50: =VLOOKUP(AD50,'Aylık Yİ-ÜFE'!$D$1:$E$229,2,0) -> 2021.19 | AF50: 1 | AG50: =IF(OR('DOLDURULMASI GEREKEN TABLO'!Q63="EVET",'DOLDURULMASI GEREKEN TABLO'!S63="EVET"),MAX(X50*AF50,X50),X50) -> 0 | AH50: =IF(OR('DOLDURULMASI GEREKEN TABLO'!Q63="EVET",'DOLDURULMASI GEREKEN TABLO'!S63="EVET"),MAX(Y50*AF50,Y50),Y50) -> 0 | AI50: 0 | AJ50: 0 | AK50: 0 | AL50: 0 | AM50: 0 | AO50: YD YAPILABİLİR | AP50: ='DOLDURULMASI GEREKEN TABLO'!U63 -> 0 | AQ50: 00:00:00 | AR50: ='DOLDURULMASI GEREKEN TABLO'!V63 -> 2023-06-30 | AS50: 0 | AT50: 0 | AU50: 45107 | AV50: 124 | AW50: 123.5 | AX50: 0 | AY50: 0 | AZ50: 0 | BA50: 0 | BB50: =IF(E50="EVET",0,'DOLDURULMASI GEREKEN TABLO'!W63) -> 0.1895 | BC50: 0 | BD50: 0 | BE50: 0 | BF50: 0 | BG50: 0 | BH50: 0 | BI50: 0
B51: 44 | C51: ='DOLDURULMASI GEREKEN TABLO'!D64 -> 0 | D51: ='DOLDURULMASI GEREKEN TABLO'!E64 -> 0 | E51: ='DOLDURULMASI GEREKEN TABLO'!F64 -> 0 | F51: ='DOLDURULMASI GEREKEN TABLO'!G64 -> 0 | G51: 0 | H51: ='DOLDURULMASI GEREKEN TABLO'!H64 -> 00:00:00 | I51: ='DOLDURULMASI GEREKEN TABLO'!Q64 -> 00:00:00 | J51: ='DOLDURULMASI GEREKEN TABLO'!S64 -> EVET | K51: 2022-12-31 | L51: TARİH UYUMLU | M51: ='DOLDURULMASI GEREKEN TABLO'!J64 -> 0 | N51: ='DOLDURULMASI GEREKEN TABLO'!K64 -> 0 | O51: ='DOLDURULMASI GEREKEN TABLO'!L64 -> 0 | P51: 44927 | Q51: 0 | R51: 0 | S51: 0 | T51: 0 | U51: ='DOLDURULMASI GEREKEN TABLO'!N64 -> 0 | V51: ='DOLDURULMASI GEREKEN TABLO'!P64 -> 0 | W51: ='DOLDURULMASI GEREKEN TABLO'!Q64 -> 0 | X51: 0 | Y51: 0 | Z51: 0 | AA51: ='DOLDURULMASI GEREKEN TABLO'!T64 -> 0 | AB51: FALSE | AC51: =VLOOKUP(AB51,'Aylık Yİ-ÜFE'!$D$1:$E$229,2,0) ->  | AD51: 2022-12 | AE51: =VLOOKUP(AD51,'Aylık Yİ-ÜFE'!$D$1:$E$229,2,0) -> 2021.19 | AF51: 1 | AG51: =IF(OR('DOLDURULMASI GEREKEN TABLO'!Q64="EVET",'DOLDURULMASI GEREKEN TABLO'!S64="EVET"),MAX(X51*AF51,X51),X51) -> 0 | AH51: =IF(OR('DOLDURULMASI GEREKEN TABLO'!Q64="EVET",'DOLDURULMASI GEREKEN TABLO'!S64="EVET"),MAX(Y51*AF51,Y51),Y51) -> 0 | AI51: 0 | AJ51: 0 | AK51: 0 | AL51: 0 | AM51: 0 | AO51: YD YAPILABİLİR | AP51: ='DOLDURULMASI GEREKEN TABLO'!U64 -> 0 | AQ51: 00:00:00 | AR51: ='DOLDURULMASI GEREKEN TABLO'!V64 -> 2023-06-30 | AS51: 0 | AT51: 0 | AU51: 45107 | AV51: 124 | AW51: 123.5 | AX51: 0 | AY51: 0 | AZ51: 0 | BA51: 0 | BB51: =IF(E51="EVET",0,'DOLDURULMASI GEREKEN TABLO'!W64) -> 0.1895 | BC51: 0 | BD51: 0 | BE51: 0 | BF51: 0 | BG51: 0 | BH51: 0 | BI51: 0
B52: 45 | C52: ='DOLDURULMASI GEREKEN TABLO'!D65 -> 0 | D52: ='DOLDURULMASI GEREKEN TABLO'!E65 -> 0 | E52: ='DOLDURULMASI GEREKEN TABLO'!F65 -> 0 | F52: ='DOLDURULMASI GEREKEN TABLO'!G65 -> 0 | G52: 0 | H52: ='DOLDURULMASI GEREKEN TABLO'!H65 -> 00:00:00 | I52: ='DOLDURULMASI GEREKEN TABLO'!Q65 -> 00:00:00 | J52: ='DOLDURULMASI GEREKEN TABLO'!S65 -> EVET | K52: 2022-12-31 | L52: TARİH UYUMLU | M52: ='DOLDURULMASI GEREKEN TABLO'!J65 -> 0 | N52: ='DOLDURULMASI GEREKEN TABLO'!K65 -> 0 | O52: ='DOLDURULMASI GEREKEN TABLO'!L65 -> 0 | P52: 44927 | Q52: 0 | R52: 0 | S52: 0 | T52: 0 | U52: ='DOLDURULMASI GEREKEN TABLO'!N65 -> 0 | V52: ='DOLDURULMASI GEREKEN TABLO'!P65 -> 0 | W52: ='DOLDURULMASI GEREKEN TABLO'!Q65 -> 0 | X52: 0 | Y52: 0 | Z52: 0 | AA52: ='DOLDURULMASI GEREKEN TABLO'!T65 -> 0 | AB52: FALSE | AC52: =VLOOKUP(AB52,'Aylık Yİ-ÜFE'!$D$1:$E$229,2,0) ->  | AD52: 2022-12 | AE52: =VLOOKUP(AD52,'Aylık Yİ-ÜFE'!$D$1:$E$229,2,0) -> 2021.19 | AF52: 1 | AG52: =IF(OR('DOLDURULMASI GEREKEN TABLO'!Q65="EVET",'DOLDURULMASI GEREKEN TABLO'!S65="EVET"),MAX(X52*AF52,X52),X52) -> 0 | AH52: =IF(OR('DOLDURULMASI GEREKEN TABLO'!Q65="EVET",'DOLDURULMASI GEREKEN TABLO'!S65="EVET"),MAX(Y52*AF52,Y52),Y52) -> 0 | AI52: 0 | AJ52: 0 | AK52: 0 | AL52: 0 | AM52: 0 | AO52: YD YAPILABİLİR | AP52: ='DOLDURULMASI GEREKEN TABLO'!U65 -> 0 | AQ52: 00:00:00 | AR52: ='DOLDURULMASI GEREKEN TABLO'!V65 -> 2023-06-30 | AS52: 0 | AT52: 0 | AU52: 45107 | AV52: 124 | AW52: 123.5 | AX52: 0 | AY52: 0 | AZ52: 0 | BA52: 0 | BB52: =IF(E52="EVET",0,'DOLDURULMASI GEREKEN TABLO'!W65) -> 0.1895 | BC52: 0 | BD52: 0 | BE52: 0 | BF52: 0 | BG52: 0 | BH52: 0 | BI52: 0
B53: 46 | C53: ='DOLDURULMASI GEREKEN TABLO'!D66 -> 0 | D53: ='DOLDURULMASI GEREKEN TABLO'!E66 -> 0 | E53: ='DOLDURULMASI GEREKEN TABLO'!F66 -> 0 | F53: ='DOLDURULMASI GEREKEN TABLO'!G66 -> 0 | G53: 0 | H53: ='DOLDURULMASI GEREKEN TABLO'!H66 -> 00:00:00 | I53: ='DOLDURULMASI GEREKEN TABLO'!Q66 -> 00:00:00 | J53: ='DOLDURULMASI GEREKEN TABLO'!S66 -> EVET | K53: 2022-12-31 | L53: TARİH UYUMLU | M53: ='DOLDURULMASI GEREKEN TABLO'!J66 -> 0 | N53: ='DOLDURULMASI GEREKEN TABLO'!K66 -> 0 | O53: ='DOLDURULMASI GEREKEN TABLO'!L66 -> 0 | P53: 44927 | Q53: 0 | R53: 0 | S53: 0 | T53: 0 | U53: ='DOLDURULMASI GEREKEN TABLO'!N66 -> 0 | V53: ='DOLDURULMASI GEREKEN TABLO'!P66 -> 0 | W53: ='DOLDURULMASI GEREKEN TABLO'!Q66 -> 0 | X53: 0 | Y53: 0 | Z53: 0 | AA53: ='DOLDURULMASI GEREKEN TABLO'!T66 -> 0 | AB53: FALSE | AC53: =VLOOKUP(AB53,'Aylık Yİ-ÜFE'!$D$1:$E$229,2,0) ->  | AD53: 2022-12 | AE53: =VLOOKUP(AD53,'Aylık Yİ-ÜFE'!$D$1:$E$229,2,0) -> 2021.19 | AF53: 1 | AG53: =IF(OR('DOLDURULMASI GEREKEN TABLO'!Q66="EVET",'DOLDURULMASI GEREKEN TABLO'!S66="EVET"),MAX(X53*AF53,X53),X53) -> 0 | AH53: =IF(OR('DOLDURULMASI GEREKEN TABLO'!Q66="EVET",'DOLDURULMASI GEREKEN TABLO'!S66="EVET"),MAX(Y53*AF53,Y53),Y53) -> 0 | AI53: 0 | AJ53: 0 | AK53: 0 | AL53: 0 | AM53: 0 | AO53: YD YAPILABİLİR | AP53: ='DOLDURULMASI GEREKEN TABLO'!U66 -> 0 | AQ53: 00:00:00 | AR53: ='DOLDURULMASI GEREKEN TABLO'!V66 -> 2023-06-30 | AS53: 0 | AT53: 0 | AU53: 45107 | AV53: 124 | AW53: 123.5 | AX53: 0 | AY53: 0 | AZ53: 0 | BA53: 0 | BB53: =IF(E53="EVET",0,'DOLDURULMASI GEREKEN TABLO'!W66) -> 0.1895 | BC53: 0 | BD53: 0 | BE53: 0 | BF53: 0 | BG53: 0 | BH53: 0 | BI53: 0
B54: 47 | C54: ='DOLDURULMASI GEREKEN TABLO'!D67 -> 0 | D54: ='DOLDURULMASI GEREKEN TABLO'!E67 -> 0 | E54: ='DOLDURULMASI GEREKEN TABLO'!F67 -> 0 | F54: ='DOLDURULMASI GEREKEN TABLO'!G67 -> 0 | G54: 0 | H54: ='DOLDURULMASI GEREKEN TABLO'!H67 -> 00:00:00 | I54: ='DOLDURULMASI GEREKEN TABLO'!Q67 -> 00:00:00 | J54: ='DOLDURULMASI GEREKEN TABLO'!S67 -> EVET | K54: 2022-12-31 | L54: TARİH UYUMLU | M54: ='DOLDURULMASI GEREKEN TABLO'!J67 -> 0 | N54: ='DOLDURULMASI GEREKEN TABLO'!K67 -> 0 | O54: ='DOLDURULMASI GEREKEN TABLO'!L67 -> 0 | P54: 44927 | Q54: 0 | R54: 0 | S54: 0 | T54: 0 | U54: ='DOLDURULMASI GEREKEN TABLO'!N67 -> 0 | V54: ='DOLDURULMASI GEREKEN TABLO'!P67 -> 0 | W54: ='DOLDURULMASI GEREKEN TABLO'!Q67 -> 0 | X54: 0 | Y54: 0 | Z54: 0 | AA54: ='DOLDURULMASI GEREKEN TABLO'!T67 -> 0 | AB54: FALSE | AC54: =VLOOKUP(AB54,'Aylık Yİ-ÜFE'!$D$1:$E$229,2,0) ->  | AD54: 2022-12 | AE54: =VLOOKUP(AD54,'Aylık Yİ-ÜFE'!$D$1:$E$229,2,0) -> 2021.19 | AF54: 1 | AG54: =IF(OR('DOLDURULMASI GEREKEN TABLO'!Q67="EVET",'DOLDURULMASI GEREKEN TABLO'!S67="EVET"),MAX(X54*AF54,X54),X54) -> 0 | AH54: =IF(OR('DOLDURULMASI GEREKEN TABLO'!Q67="EVET",'DOLDURULMASI GEREKEN TABLO'!S67="EVET"),MAX(Y54*AF54,Y54),Y54) -> 0 | AI54: 0 | AJ54: 0 | AK54: 0 | AL54: 0 | AM54: 0 | AO54: YD YAPILABİLİR | AP54: ='DOLDURULMASI GEREKEN TABLO'!U67 -> 0 | AQ54: 00:00:00 | AR54: ='DOLDURULMASI GEREKEN TABLO'!V67 -> 2023-06-30 | AS54: 0 | AT54: 0 | AU54: 45107 | AV54: 124 | AW54: 123.5 | AX54: 0 | AY54: 0 | AZ54: 0 | BA54: 0 | BB54: =IF(E54="EVET",0,'DOLDURULMASI GEREKEN TABLO'!W67) -> 0.1895 | BC54: 0 | BD54: 0 | BE54: 0 | BF54: 0 | BG54: 0 | BH54: 0 | BI54: 0
B55: 48 | C55: ='DOLDURULMASI GEREKEN TABLO'!D68 -> 0 | D55: ='DOLDURULMASI GEREKEN TABLO'!E68 -> 0 | E55: ='DOLDURULMASI GEREKEN TABLO'!F68 -> 0 | F55: ='DOLDURULMASI GEREKEN TABLO'!G68 -> 0 | G55: 0 | H55: ='DOLDURULMASI GEREKEN TABLO'!H68 -> 00:00:00 | I55: ='DOLDURULMASI GEREKEN TABLO'!Q68 -> 00:00:00 | J55: ='DOLDURULMASI GEREKEN TABLO'!S68 -> EVET | K55: 2022-12-31 | L55: TARİH UYUMLU | M55: ='DOLDURULMASI GEREKEN TABLO'!J68 -> 0 | N55: ='DOLDURULMASI GEREKEN TABLO'!K68 -> 0 | O55: ='DOLDURULMASI GEREKEN TABLO'!L68 -> 0 | P55: 44927 | Q55: 0 | R55: 0 | S55: 0 | T55: 0 | U55: ='DOLDURULMASI GEREKEN TABLO'!N68 -> 0 | V55: ='DOLDURULMASI GEREKEN TABLO'!P68 -> 0 | W55: ='DOLDURULMASI GEREKEN TABLO'!Q68 -> 0 | X55: 0 | Y55: 0 | Z55: 0 | AA55: ='DOLDURULMASI GEREKEN TABLO'!T68 -> 0 | AB55: FALSE | AC55: =VLOOKUP(AB55,'Aylık Yİ-ÜFE'!$D$1:$E$229,2,0) ->  | AD55: 2022-12 | AE55: =VLOOKUP(AD55,'Aylık Yİ-ÜFE'!$D$1:$E$229,2,0) -> 2021.19 | AF55: 1 | AG55: =IF(OR('DOLDURULMASI GEREKEN TABLO'!Q68="EVET",'DOLDURULMASI GEREKEN TABLO'!S68="EVET"),MAX(X55*AF55,X55),X55) -> 0 | AH55: =IF(OR('DOLDURULMASI GEREKEN TABLO'!Q68="EVET",'DOLDURULMASI GEREKEN TABLO'!S68="EVET"),MAX(Y55*AF55,Y55),Y55) -> 0 | AI55: 0 | AJ55: 0 | AK55: 0 | AL55: 0 | AM55: 0 | AO55: YD YAPILABİLİR | AP55: ='DOLDURULMASI GEREKEN TABLO'!U68 -> 0 | AQ55: 00:00:00 | AR55: ='DOLDURULMASI GEREKEN TABLO'!V68 -> 2023-06-30 | AS55: 0 | AT55: 0 | AU55: 45107 | AV55: 124 | AW55: 123.5 | AX55: 0 | AY55: 0 | AZ55: 0 | BA55: 0 | BB55: =IF(E55="EVET",0,'DOLDURULMASI GEREKEN TABLO'!W68) -> 0.1895 | BC55: 0 | BD55: 0 | BE55: 0 | BF55: 0 | BG55: 0 | BH55: 0 | BI55: 0
B56: 49 | C56: ='DOLDURULMASI GEREKEN TABLO'!D69 -> 0 | D56: ='DOLDURULMASI GEREKEN TABLO'!E69 -> 0 | E56: ='DOLDURULMASI GEREKEN TABLO'!F69 -> 0 | F56: ='DOLDURULMASI GEREKEN TABLO'!G69 -> 0 | G56: 0 | H56: ='DOLDURULMASI GEREKEN TABLO'!H69 -> 00:00:00 | I56: ='DOLDURULMASI GEREKEN TABLO'!Q69 -> 00:00:00 | J56: ='DOLDURULMASI GEREKEN TABLO'!S69 -> EVET | K56: 2022-12-31 | L56: TARİH UYUMLU | M56: ='DOLDURULMASI GEREKEN TABLO'!J69 -> 0 | N56: ='DOLDURULMASI GEREKEN TABLO'!K69 -> 0 | O56: ='DOLDURULMASI GEREKEN TABLO'!L69 -> 0 | P56: 44927 | Q56: 0 | R56: 0 | S56: 0 | T56: 0 | U56: ='DOLDURULMASI GEREKEN TABLO'!N69 -> 0 | V56: ='DOLDURULMASI GEREKEN TABLO'!P69 -> 0 | W56: ='DOLDURULMASI GEREKEN TABLO'!Q69 -> 0 | X56: 0 | Y56: 0 | Z56: 0 | AA56: ='DOLDURULMASI GEREKEN TABLO'!T69 -> 0 | AB56: FALSE | AC56: =VLOOKUP(AB56,'Aylık Yİ-ÜFE'!$D$1:$E$229,2,0) ->  | AD56: 2022-12 | AE56: =VLOOKUP(AD56,'Aylık Yİ-ÜFE'!$D$1:$E$229,2,0) -> 2021.19 | AF56: 1 | AG56: =IF(OR('DOLDURULMASI GEREKEN TABLO'!Q69="EVET",'DOLDURULMASI GEREKEN TABLO'!S69="EVET"),MAX(X56*AF56,X56),X56) -> 0 | AH56: =IF(OR('DOLDURULMASI GEREKEN TABLO'!Q69="EVET",'DOLDURULMASI GEREKEN TABLO'!S69="EVET"),MAX(Y56*AF56,Y56),Y56) -> 0 | AI56: 0 | AJ56: 0 | AK56: 0 | AL56: 0 | AM56: 0 | AO56: YD YAPILABİLİR | AP56: ='DOLDURULMASI GEREKEN TABLO'!U69 -> 0 | AQ56: 00:00:00 | AR56: ='DOLDURULMASI GEREKEN TABLO'!V69 -> 2023-06-30 | AS56: 0 | AT56: 0 | AU56: 45107 | AV56: 124 | AW56: 123.5 | AX56: 0 | AY56: 0 | AZ56: 0 | BA56: 0 | BB56: =IF(E56="EVET",0,'DOLDURULMASI GEREKEN TABLO'!W69) -> 0.1895 | BC56: 0 | BD56: 0 | BE56: 0 | BF56: 0 | BG56: 0 | BH56: 0 | BI56: 0
B57: 50 | C57: ='DOLDURULMASI GEREKEN TABLO'!D70 -> 0 | D57: ='DOLDURULMASI GEREKEN TABLO'!E70 -> 0 | E57: ='DOLDURULMASI GEREKEN TABLO'!F70 -> 0 | F57: ='DOLDURULMASI GEREKEN TABLO'!G70 -> 0 | G57: 0 | H57: ='DOLDURULMASI GEREKEN TABLO'!H70 -> 00:00:00 | I57: ='DOLDURULMASI GEREKEN TABLO'!Q70 -> 00:00:00 | J57: ='DOLDURULMASI GEREKEN TABLO'!S70 -> EVET | K57: 2022-12-31 | L57: TARİH UYUMLU | M57: ='DOLDURULMASI GEREKEN TABLO'!J70 -> 0 | N57: ='DOLDURULMASI GEREKEN TABLO'!K70 -> 0 | O57: ='DOLDURULMASI GEREKEN TABLO'!L70 -> 0 | P57: 44927 | Q57: 0 | R57: 0 | S57: 0 | T57: 0 | U57: ='DOLDURULMASI GEREKEN TABLO'!N70 -> 0 | V57: ='DOLDURULMASI GEREKEN TABLO'!P70 -> 0 | W57: ='DOLDURULMASI GEREKEN TABLO'!Q70 -> 0 | X57: 0 | Y57: 0 | Z57: 0 | AA57: ='DOLDURULMASI GEREKEN TABLO'!T70 -> 0 | AB57: FALSE | AC57: =VLOOKUP(AB57,'Aylık Yİ-ÜFE'!$D$1:$E$229,2,0) ->  | AD57: 2022-12 | AE57: =VLOOKUP(AD57,'Aylık Yİ-ÜFE'!$D$1:$E$229,2,0) -> 2021.19 | AF57: 1 | AG57: =IF(OR('DOLDURULMASI GEREKEN TABLO'!Q70="EVET",'DOLDURULMASI GEREKEN TABLO'!S70="EVET"),MAX(X57*AF57,X57),X57) -> 0 | AH57: =IF(OR('DOLDURULMASI GEREKEN TABLO'!Q70="EVET",'DOLDURULMASI GEREKEN TABLO'!S70="EVET"),MAX(Y57*AF57,Y57),Y57) -> 0 | AI57: 0 | AJ57: 0 | AK57: 0 | AL57: 0 | AM57: 0 | AO57: YD YAPILABİLİR | AP57: ='DOLDURULMASI GEREKEN TABLO'!U70 -> 0 | AQ57: 00:00:00 | AR57: ='DOLDURULMASI GEREKEN TABLO'!V70 -> 2023-06-30 | AS57: 0 | AT57: 0 | AU57: 45107 | AV57: 124 | AW57: 123.5 | AX57: 0 | AY57: 0 | AZ57: 0 | BA57: 0 | BB57: =IF(E57="EVET",0,'DOLDURULMASI GEREKEN TABLO'!W70) -> 0.1895 | BC57: 0 | BD57: 0 | BE57: 0 | BF57: 0 | BG57: 0 | BH57: 0 | BI57: 0
B58: 51 | C58: ='DOLDURULMASI GEREKEN TABLO'!D71 -> 0 | D58: ='DOLDURULMASI GEREKEN TABLO'!E71 -> 0 | E58: ='DOLDURULMASI GEREKEN TABLO'!F71 -> 0 | F58: ='DOLDURULMASI GEREKEN TABLO'!G71 -> 0 | G58: 0 | H58: ='DOLDURULMASI GEREKEN TABLO'!H71 -> 00:00:00 | I58: ='DOLDURULMASI GEREKEN TABLO'!Q71 -> 00:00:00 | J58: ='DOLDURULMASI GEREKEN TABLO'!S71 -> EVET | K58: 2022-12-31 | L58: TARİH UYUMLU | M58: ='DOLDURULMASI GEREKEN TABLO'!J71 -> 0 | N58: ='DOLDURULMASI GEREKEN TABLO'!K71 -> 0 | O58: ='DOLDURULMASI GEREKEN TABLO'!L71 -> 0 | P58: 44927 | Q58: 0 | R58: 0 | S58: 0 | T58: 0 | U58: ='DOLDURULMASI GEREKEN TABLO'!N71 -> 0 | V58: ='DOLDURULMASI GEREKEN TABLO'!P71 -> 0 | W58: ='DOLDURULMASI GEREKEN TABLO'!Q71 -> 0 | X58: 0 | Y58: 0 | Z58: 0 | AA58: ='DOLDURULMASI GEREKEN TABLO'!T71 -> 0 | AB58: FALSE | AC58: =VLOOKUP(AB58,'Aylık Yİ-ÜFE'!$D$1:$E$229,2,0) ->  | AD58: 2022-12 | AE58: =VLOOKUP(AD58,'Aylık Yİ-ÜFE'!$D$1:$E$229,2,0) -> 2021.19 | AF58: 1 | AG58: =IF(OR('DOLDURULMASI GEREKEN TABLO'!Q71="EVET",'DOLDURULMASI GEREKEN TABLO'!S71="EVET"),MAX(X58*AF58,X58),X58) -> 0 | AH58: =IF(OR('DOLDURULMASI GEREKEN TABLO'!Q71="EVET",'DOLDURULMASI GEREKEN TABLO'!S71="EVET"),MAX(Y58*AF58,Y58),Y58) -> 0 | AI58: 0 | AJ58: 0 | AK58: 0 | AL58: 0 | AM58: 0 | AO58: YD YAPILABİLİR | AP58: ='DOLDURULMASI GEREKEN TABLO'!U71 -> 0 | AQ58: 00:00:00 | AR58: ='DOLDURULMASI GEREKEN TABLO'!V71 -> 2023-06-30 | AS58: 0 | AT58: 0 | AU58: 45107 | AV58: 124 | AW58: 123.5 | AX58: 0 | AY58: 0 | AZ58: 0 | BA58: 0 | BB58: =IF(E58="EVET",0,'DOLDURULMASI GEREKEN TABLO'!W71) -> 0.1895 | BC58: 0 | BD58: 0 | BE58: 0 | BF58: 0 | BG58: 0 | BH58: 0 | BI58: 0
B59: 52 | C59: ='DOLDURULMASI GEREKEN TABLO'!D72 -> 0 | D59: ='DOLDURULMASI GEREKEN TABLO'!E72 -> 0 | E59: ='DOLDURULMASI GEREKEN TABLO'!F72 -> 0 | F59: ='DOLDURULMASI GEREKEN TABLO'!G72 -> 0 | G59: 0 | H59: ='DOLDURULMASI GEREKEN TABLO'!H72 -> 00:00:00 | I59: ='DOLDURULMASI GEREKEN TABLO'!Q72 -> 00:00:00 | J59: ='DOLDURULMASI GEREKEN TABLO'!S72 -> EVET | K59: 2022-12-31 | L59: TARİH UYUMLU | M59: ='DOLDURULMASI GEREKEN TABLO'!J72 -> 0 | N59: ='DOLDURULMASI GEREKEN TABLO'!K72 -> 0 | O59: ='DOLDURULMASI GEREKEN TABLO'!L72 -> 0 | P59: 44927 | Q59: 0 | R59: 0 | S59: 0 | T59: 0 | U59: ='DOLDURULMASI GEREKEN TABLO'!N72 -> 0 | V59: ='DOLDURULMASI GEREKEN TABLO'!P72 -> 0 | W59: ='DOLDURULMASI GEREKEN TABLO'!Q72 -> 0 | X59: 0 | Y59: 0 | Z59: 0 | AA59: ='DOLDURULMASI GEREKEN TABLO'!T72 -> 0 | AB59: FALSE | AC59: =VLOOKUP(AB59,'Aylık Yİ-ÜFE'!$D$1:$E$229,2,0) ->  | AD59: 2022-12 | AE59: =VLOOKUP(AD59,'Aylık Yİ-ÜFE'!$D$1:$E$229,2,0) -> 2021.19 | AF59: 1 | AG59: =IF(OR('DOLDURULMASI GEREKEN TABLO'!Q72="EVET",'DOLDURULMASI GEREKEN TABLO'!S72="EVET"),MAX(X59*AF59,X59),X59) -> 0 | AH59: =IF(OR('DOLDURULMASI GEREKEN TABLO'!Q72="EVET",'DOLDURULMASI GEREKEN TABLO'!S72="EVET"),MAX(Y59*AF59,Y59),Y59) -> 0 | AI59: 0 | AJ59: 0 | AK59: 0 | AL59: 0 | AM59: 0 | AO59: YD YAPILABİLİR | AP59: ='DOLDURULMASI GEREKEN TABLO'!U72 -> 0 | AQ59: 00:00:00 | AR59: ='DOLDURULMASI GEREKEN TABLO'!V72 -> 2023-06-30 | AS59: 0 | AT59: 0 | AU59: 45107 | AV59: 124 | AW59: 123.5 | AX59: 0 | AY59: 0 | AZ59: 0 | BA59: 0 | BB59: =IF(E59="EVET",0,'DOLDURULMASI GEREKEN TABLO'!W72) -> 0.1895 | BC59: 0 | BD59: 0 | BE59: 0 | BF59: 0 | BG59: 0 | BH59: 0 | BI59: 0
B60: 53 | C60: ='DOLDURULMASI GEREKEN TABLO'!D73 -> 0 | D60: ='DOLDURULMASI GEREKEN TABLO'!E73 -> 0 | E60: ='DOLDURULMASI GEREKEN TABLO'!F73 -> 0 | F60: ='DOLDURULMASI GEREKEN TABLO'!G73 -> 0 | G60: 0 | H60: ='DOLDURULMASI GEREKEN TABLO'!H73 -> 00:00:00 | I60: ='DOLDURULMASI GEREKEN TABLO'!Q73 -> 00:00:00 | J60: ='DOLDURULMASI GEREKEN TABLO'!S73 -> EVET | K60: 2022-12-31 | L60: TARİH UYUMLU | M60: ='DOLDURULMASI GEREKEN TABLO'!J73 -> 0 | N60: ='DOLDURULMASI GEREKEN TABLO'!K73 -> 0 | O60: ='DOLDURULMASI GEREKEN TABLO'!L73 -> 0 | P60: 44927 | Q60: 0 | R60: 0 | S60: 0 | T60: 0 | U60: ='DOLDURULMASI GEREKEN TABLO'!N73 -> 0 | V60: ='DOLDURULMASI GEREKEN TABLO'!P73 -> 0 | W60: ='DOLDURULMASI GEREKEN TABLO'!Q73 -> 0 | X60: 0 | Y60: 0 | Z60: 0 | AA60: ='DOLDURULMASI GEREKEN TABLO'!T73 -> 0 | AB60: FALSE | AC60: =VLOOKUP(AB60,'Aylık Yİ-ÜFE'!$D$1:$E$229,2,0) ->  | AD60: 2022-12 | AE60: =VLOOKUP(AD60,'Aylık Yİ-ÜFE'!$D$1:$E$229,2,0) -> 2021.19 | AF60: 1 | AG60: =IF(OR('DOLDURULMASI GEREKEN TABLO'!Q73="EVET",'DOLDURULMASI GEREKEN TABLO'!S73="EVET"),MAX(X60*AF60,X60),X60) -> 0 | AH60: =IF(OR('DOLDURULMASI GEREKEN TABLO'!Q73="EVET",'DOLDURULMASI GEREKEN TABLO'!S73="EVET"),MAX(Y60*AF60,Y60),Y60) -> 0 | AI60: 0 | AJ60: 0 | AK60: 0 | AL60: 0 | AM60: 0 | AO60: YD YAPILABİLİR | AP60: ='DOLDURULMASI GEREKEN TABLO'!U73 -> 0 | AQ60: 00:00:00 | AR60: ='DOLDURULMASI GEREKEN TABLO'!V73 -> 2023-06-30 | AS60: 0 | AT60: 0 | AU60: 45107 | AV60: 124 | AW60: 123.5 | AX60: 0 | AY60: 0 | AZ60: 0 | BA60: 0 | BB60: =IF(E60="EVET",0,'DOLDURULMASI GEREKEN TABLO'!W73) -> 0.1895 | BC60: 0 | BD60: 0 | BE60: 0 | BF60: 0 | BG60: 0 | BH60: 0 | BI60: 0
B61: 54 | C61: ='DOLDURULMASI GEREKEN TABLO'!D74 -> 0 | D61: ='DOLDURULMASI GEREKEN TABLO'!E74 -> 0 | E61: ='DOLDURULMASI GEREKEN TABLO'!F74 -> 0 | F61: ='DOLDURULMASI GEREKEN TABLO'!G74 -> 0 | G61: 0 | H61: ='DOLDURULMASI GEREKEN TABLO'!H74 -> 00:00:00 | I61: ='DOLDURULMASI GEREKEN TABLO'!Q74 -> 00:00:00 | J61: ='DOLDURULMASI GEREKEN TABLO'!S74 -> EVET | K61: 2022-12-31 | L61: TARİH UYUMLU | M61: ='DOLDURULMASI GEREKEN TABLO'!J74 -> 0 | N61: ='DOLDURULMASI GEREKEN TABLO'!K74 -> 0 | O61: ='DOLDURULMASI GEREKEN TABLO'!L74 -> 0 | P61: 44927 | Q61: 0 | R61: 0 | S61: 0 | T61: 0 | U61: ='DOLDURULMASI GEREKEN TABLO'!N74 -> 0 | V61: ='DOLDURULMASI GEREKEN TABLO'!P74 -> 0 | W61: ='DOLDURULMASI GEREKEN TABLO'!Q74 -> 0 | X61: 0 | Y61: 0 | Z61: 0 | AA61: ='DOLDURULMASI GEREKEN TABLO'!T74 -> 0 | AB61: FALSE | AC61: =VLOOKUP(AB61,'Aylık Yİ-ÜFE'!$D$1:$E$229,2,0) ->  | AD61: 2022-12 | AE61: =VLOOKUP(AD61,'Aylık Yİ-ÜFE'!$D$1:$E$229,2,0) -> 2021.19 | AF61: 1 | AG61: =IF(OR('DOLDURULMASI GEREKEN TABLO'!Q74="EVET",'DOLDURULMASI GEREKEN TABLO'!S74="EVET"),MAX(X61*AF61,X61),X61) -> 0 | AH61: =IF(OR('DOLDURULMASI GEREKEN TABLO'!Q74="EVET",'DOLDURULMASI GEREKEN TABLO'!S74="EVET"),MAX(Y61*AF61,Y61),Y61) -> 0 | AI61: 0 | AJ61: 0 | AK61: 0 | AL61: 0 | AM61: 0 | AO61: YD YAPILABİLİR | AP61: ='DOLDURULMASI GEREKEN TABLO'!U74 -> 0 | AQ61: 00:00:00 | AR61: ='DOLDURULMASI GEREKEN TABLO'!V74 -> 2023-06-30 | AS61: 0 | AT61: 0 | AU61: 45107 | AV61: 124 | AW61: 123.5 | AX61: 0 | AY61: 0 | AZ61: 0 | BA61: 0 | BB61: =IF(E61="EVET",0,'DOLDURULMASI GEREKEN TABLO'!W74) -> 0.1895 | BC61: 0 | BD61: 0 | BE61: 0 | BF61: 0 | BG61: 0 | BH61: 0 | BI61: 0
B62: 55 | C62: ='DOLDURULMASI GEREKEN TABLO'!D75 -> 0 | D62: ='DOLDURULMASI GEREKEN TABLO'!E75 -> 0 | E62: ='DOLDURULMASI GEREKEN TABLO'!F75 -> 0 | F62: ='DOLDURULMASI GEREKEN TABLO'!G75 -> 0 | G62: 0 | H62: ='DOLDURULMASI GEREKEN TABLO'!H75 -> 00:00:00 | I62: ='DOLDURULMASI GEREKEN TABLO'!Q75 -> 00:00:00 | J62: ='DOLDURULMASI GEREKEN TABLO'!S75 -> EVET | K62: 2022-12-31 | L62: TARİH UYUMLU | M62: ='DOLDURULMASI GEREKEN TABLO'!J75 -> 0 | N62: ='DOLDURULMASI GEREKEN TABLO'!K75 -> 0 | O62: ='DOLDURULMASI GEREKEN TABLO'!L75 -> 0 | P62: 44927 | Q62: 0 | R62: 0 | S62: 0 | T62: 0 | U62: ='DOLDURULMASI GEREKEN TABLO'!N75 -> 0 | V62: ='DOLDURULMASI GEREKEN TABLO'!P75 -> 0 | W62: ='DOLDURULMASI GEREKEN TABLO'!Q75 -> 0 | X62: 0 | Y62: 0 | Z62: 0 | AA62: ='DOLDURULMASI GEREKEN TABLO'!T75 -> 0 | AB62: FALSE | AC62: =VLOOKUP(AB62,'Aylık Yİ-ÜFE'!$D$1:$E$229,2,0) ->  | AD62: 2022-12 | AE62: =VLOOKUP(AD62,'Aylık Yİ-ÜFE'!$D$1:$E$229,2,0) -> 2021.19 | AF62: 1 | AG62: =IF(OR('DOLDURULMASI GEREKEN TABLO'!Q75="EVET",'DOLDURULMASI GEREKEN TABLO'!S75="EVET"),MAX(X62*AF62,X62),X62) -> 0 | AH62: =IF(OR('DOLDURULMASI GEREKEN TABLO'!Q75="EVET",'DOLDURULMASI GEREKEN TABLO'!S75="EVET"),MAX(Y62*AF62,Y62),Y62) -> 0 | AI62: 0 | AJ62: 0 | AK62: 0 | AL62: 0 | AM62: 0 | AO62: YD YAPILABİLİR | AP62: ='DOLDURULMASI GEREKEN TABLO'!U75 -> 0 | AQ62: 00:00:00 | AR62: ='DOLDURULMASI GEREKEN TABLO'!V75 -> 2023-06-30 | AS62: 0 | AT62: 0 | AU62: 45107 | AV62: 124 | AW62: 123.5 | AX62: 0 | AY62: 0 | AZ62: 0 | BA62: 0 | BB62: =IF(E62="EVET",0,'DOLDURULMASI GEREKEN TABLO'!W75) -> 0.1895 | BC62: 0 | BD62: 0 | BE62: 0 | BF62: 0 | BG62: 0 | BH62: 0 | BI62: 0
B63: 56 | C63: ='DOLDURULMASI GEREKEN TABLO'!D76 -> 0 | D63: ='DOLDURULMASI GEREKEN TABLO'!E76 -> 0 | E63: ='DOLDURULMASI GEREKEN TABLO'!F76 -> 0 | F63: ='DOLDURULMASI GEREKEN TABLO'!G76 -> 0 | G63: 0 | H63: ='DOLDURULMASI GEREKEN TABLO'!H76 -> 00:00:00 | I63: ='DOLDURULMASI GEREKEN TABLO'!Q76 -> 00:00:00 | J63: ='DOLDURULMASI GEREKEN TABLO'!S76 -> EVET | K63: 2022-12-31 | L63: TARİH UYUMLU | M63: ='DOLDURULMASI GEREKEN TABLO'!J76 -> 0 | N63: ='DOLDURULMASI GEREKEN TABLO'!K76 -> 0 | O63: ='DOLDURULMASI GEREKEN TABLO'!L76 -> 0 | P63: 44927 | Q63: 0 | R63: 0 | S63: 0 | T63: 0 | U63: ='DOLDURULMASI GEREKEN TABLO'!N76 -> 0 | V63: ='DOLDURULMASI GEREKEN TABLO'!P76 -> 0 | W63: ='DOLDURULMASI GEREKEN TABLO'!Q76 -> 0 | X63: 0 | Y63: 0 | Z63: 0 | AA63: ='DOLDURULMASI GEREKEN TABLO'!T76 -> 0 | AB63: FALSE | AC63: =VLOOKUP(AB63,'Aylık Yİ-ÜFE'!$D$1:$E$229,2,0) ->  | AD63: 2022-12 | AE63: =VLOOKUP(AD63,'Aylık Yİ-ÜFE'!$D$1:$E$229,2,0) -> 2021.19 | AF63: 1 | AG63: =IF(OR('DOLDURULMASI GEREKEN TABLO'!Q76="EVET",'DOLDURULMASI GEREKEN TABLO'!S76="EVET"),MAX(X63*AF63,X63),X63) -> 0 | AH63: =IF(OR('DOLDURULMASI GEREKEN TABLO'!Q76="EVET",'DOLDURULMASI GEREKEN TABLO'!S76="EVET"),MAX(Y63*AF63,Y63),Y63) -> 0 | AI63: 0 | AJ63: 0 | AK63: 0 | AL63: 0 | AM63: 0 | AO63: YD YAPILABİLİR | AP63: ='DOLDURULMASI GEREKEN TABLO'!U76 -> 0 | AQ63: 00:00:00 | AR63: ='DOLDURULMASI GEREKEN TABLO'!V76 -> 2023-06-30 | AS63: 0 | AT63: 0 | AU63: 45107 | AV63: 124 | AW63: 123.5 | AX63: 0 | AY63: 0 | AZ63: 0 | BA63: 0 | BB63: =IF(E63="EVET",0,'DOLDURULMASI GEREKEN TABLO'!W76) -> 0.1895 | BC63: 0 | BD63: 0 | BE63: 0 | BF63: 0 | BG63: 0 | BH63: 0 | BI63: 0
B64: 57 | C64: ='DOLDURULMASI GEREKEN TABLO'!D77 -> 0 | D64: ='DOLDURULMASI GEREKEN TABLO'!E77 -> 0 | E64: ='DOLDURULMASI GEREKEN TABLO'!F77 -> 0 | F64: ='DOLDURULMASI GEREKEN TABLO'!G77 -> 0 | G64: 0 | H64: ='DOLDURULMASI GEREKEN TABLO'!H77 -> 00:00:00 | I64: ='DOLDURULMASI GEREKEN TABLO'!Q77 -> 00:00:00 | J64: ='DOLDURULMASI GEREKEN TABLO'!S77 -> EVET | K64: 2022-12-31 | L64: TARİH UYUMLU | M64: ='DOLDURULMASI GEREKEN TABLO'!J77 -> 0 | N64: ='DOLDURULMASI GEREKEN TABLO'!K77 -> 0 | O64: ='DOLDURULMASI GEREKEN TABLO'!L77 -> 0 | P64: 44927 | Q64: 0 | R64: 0 | S64: 0 | T64: 0 | U64: ='DOLDURULMASI GEREKEN TABLO'!N77 -> 0 | V64: ='DOLDURULMASI GEREKEN TABLO'!P77 -> 0 | W64: ='DOLDURULMASI GEREKEN TABLO'!Q77 -> 0 | X64: 0 | Y64: 0 | Z64: 0 | AA64: ='DOLDURULMASI GEREKEN TABLO'!T77 -> 0 | AB64: FALSE | AC64: =VLOOKUP(AB64,'Aylık Yİ-ÜFE'!$D$1:$E$229,2,0) ->  | AD64: 2022-12 | AE64: =VLOOKUP(AD64,'Aylık Yİ-ÜFE'!$D$1:$E$229,2,0) -> 2021.19 | AF64: 1 | AG64: =IF(OR('DOLDURULMASI GEREKEN TABLO'!Q77="EVET",'DOLDURULMASI GEREKEN TABLO'!S77="EVET"),MAX(X64*AF64,X64),X64) -> 0 | AH64: =IF(OR('DOLDURULMASI GEREKEN TABLO'!Q77="EVET",'DOLDURULMASI GEREKEN TABLO'!S77="EVET"),MAX(Y64*AF64,Y64),Y64) -> 0 | AI64: 0 | AJ64: 0 | AK64: 0 | AL64: 0 | AM64: 0 | AO64: YD YAPILABİLİR | AP64: ='DOLDURULMASI GEREKEN TABLO'!U77 -> 0 | AQ64: 00:00:00 | AR64: ='DOLDURULMASI GEREKEN TABLO'!V77 -> 2023-06-30 | AS64: 0 | AT64: 0 | AU64: 45107 | AV64: 124 | AW64: 123.5 | AX64: 0 | AY64: 0 | AZ64: 0 | BA64: 0 | BB64: =IF(E64="EVET",0,'DOLDURULMASI GEREKEN TABLO'!W77) -> 0.1895 | BC64: 0 | BD64: 0 | BE64: 0 | BF64: 0 | BG64: 0 | BH64: 0 | BI64: 0
B65: 58 | C65: ='DOLDURULMASI GEREKEN TABLO'!D78 -> 0 | D65: ='DOLDURULMASI GEREKEN TABLO'!E78 -> 0 | E65: ='DOLDURULMASI GEREKEN TABLO'!F78 -> 0 | F65: ='DOLDURULMASI GEREKEN TABLO'!G78 -> 0 | G65: 0 | H65: ='DOLDURULMASI GEREKEN TABLO'!H78 -> 00:00:00 | I65: ='DOLDURULMASI GEREKEN TABLO'!Q78 -> 00:00:00 | J65: ='DOLDURULMASI GEREKEN TABLO'!S78 -> EVET | K65: 2022-12-31 | L65: TARİH UYUMLU | M65: ='DOLDURULMASI GEREKEN TABLO'!J78 -> 0 | N65: ='DOLDURULMASI GEREKEN TABLO'!K78 -> 0 | O65: ='DOLDURULMASI GEREKEN TABLO'!L78 -> 0 | P65: 44927 | Q65: 0 | R65: 0 | S65: 0 | T65: 0 | U65: ='DOLDURULMASI GEREKEN TABLO'!N78 -> 0 | V65: ='DOLDURULMASI GEREKEN TABLO'!P78 -> 0 | W65: ='DOLDURULMASI GEREKEN TABLO'!Q78 -> 0 | X65: 0 | Y65: 0 | Z65: 0 | AA65: ='DOLDURULMASI GEREKEN TABLO'!T78 -> 0 | AB65: FALSE | AC65: =VLOOKUP(AB65,'Aylık Yİ-ÜFE'!$D$1:$E$229,2,0) ->  | AD65: 2022-12 | AE65: =VLOOKUP(AD65,'Aylık Yİ-ÜFE'!$D$1:$E$229,2,0) -> 2021.19 | AF65: 1 | AG65: =IF(OR('DOLDURULMASI GEREKEN TABLO'!Q78="EVET",'DOLDURULMASI GEREKEN TABLO'!S78="EVET"),MAX(X65*AF65,X65),X65) -> 0 | AH65: =IF(OR('DOLDURULMASI GEREKEN TABLO'!Q78="EVET",'DOLDURULMASI GEREKEN TABLO'!S78="EVET"),MAX(Y65*AF65,Y65),Y65) -> 0 | AI65: 0 | AJ65: 0 | AK65: 0 | AL65: 0 | AM65: 0 | AO65: YD YAPILABİLİR | AP65: ='DOLDURULMASI GEREKEN TABLO'!U78 -> 0 | AQ65: 00:00:00 | AR65: ='DOLDURULMASI GEREKEN TABLO'!V78 -> 2023-06-30 | AS65: 0 | AT65: 0 | AU65: 45107 | AV65: 124 | AW65: 123.5 | AX65: 0 | AY65: 0 | AZ65: 0 | BA65: 0 | BB65: =IF(E65="EVET",0,'DOLDURULMASI GEREKEN TABLO'!W78) -> 0.1895 | BC65: 0 | BD65: 0 | BE65: 0 | BF65: 0 | BG65: 0 | BH65: 0 | BI65: 0
B66: 59 | C66: ='DOLDURULMASI GEREKEN TABLO'!D79 -> 0 | D66: ='DOLDURULMASI GEREKEN TABLO'!E79 -> 0 | E66: ='DOLDURULMASI GEREKEN TABLO'!F79 -> 0 | F66: ='DOLDURULMASI GEREKEN TABLO'!G79 -> 0 | G66: 0 | H66: ='DOLDURULMASI GEREKEN TABLO'!H79 -> 00:00:00 | I66: ='DOLDURULMASI GEREKEN TABLO'!Q79 -> 00:00:00 | J66: ='DOLDURULMASI GEREKEN TABLO'!S79 -> EVET | K66: 2022-12-31 | L66: TARİH UYUMLU | M66: ='DOLDURULMASI GEREKEN TABLO'!J79 -> 0 | N66: ='DOLDURULMASI GEREKEN TABLO'!K79 -> 0 | O66: ='DOLDURULMASI GEREKEN TABLO'!L79 -> 0 | P66: 44927 | Q66: 0 | R66: 0 | S66: 0 | T66: 0 | U66: ='DOLDURULMASI GEREKEN TABLO'!N79 -> 0 | V66: ='DOLDURULMASI GEREKEN TABLO'!P79 -> 0 | W66: ='DOLDURULMASI GEREKEN TABLO'!Q79 -> 0 | X66: 0 | Y66: 0 | Z66: 0 | AA66: ='DOLDURULMASI GEREKEN TABLO'!T79 -> 0 | AB66: FALSE | AC66: =VLOOKUP(AB66,'Aylık Yİ-ÜFE'!$D$1:$E$229,2,0) ->  | AD66: 2022-12 | AE66: =VLOOKUP(AD66,'Aylık Yİ-ÜFE'!$D$1:$E$229,2,0) -> 2021.19 | AF66: 1 | AG66: =IF(OR('DOLDURULMASI GEREKEN TABLO'!Q79="EVET",'DOLDURULMASI GEREKEN TABLO'!S79="EVET"),MAX(X66*AF66,X66),X66) -> 0 | AH66: =IF(OR('DOLDURULMASI GEREKEN TABLO'!Q79="EVET",'DOLDURULMASI GEREKEN TABLO'!S79="EVET"),MAX(Y66*AF66,Y66),Y66) -> 0 | AI66: 0 | AJ66: 0 | AK66: 0 | AL66: 0 | AM66: 0 | AO66: YD YAPILABİLİR | AP66: ='DOLDURULMASI GEREKEN TABLO'!U79 -> 0 | AQ66: 00:00:00 | AR66: ='DOLDURULMASI GEREKEN TABLO'!V79 -> 2023-06-30 | AS66: 0 | AT66: 0 | AU66: 45107 | AV66: 124 | AW66: 123.5 | AX66: 0 | AY66: 0 | AZ66: 0 | BA66: 0 | BB66: =IF(E66="EVET",0,'DOLDURULMASI GEREKEN TABLO'!W79) -> 0.1895 | BC66: 0 | BD66: 0 | BE66: 0 | BF66: 0 | BG66: 0 | BH66: 0 | BI66: 0
B67: 60 | C67: ='DOLDURULMASI GEREKEN TABLO'!D80 -> 0 | D67: ='DOLDURULMASI GEREKEN TABLO'!E80 -> 0 | E67: ='DOLDURULMASI GEREKEN TABLO'!F80 -> 0 | F67: ='DOLDURULMASI GEREKEN TABLO'!G80 -> 0 | G67: 0 | H67: ='DOLDURULMASI GEREKEN TABLO'!H80 -> 00:00:00 | I67: ='DOLDURULMASI GEREKEN TABLO'!Q80 -> 00:00:00 | J67: ='DOLDURULMASI GEREKEN TABLO'!S80 -> EVET | K67: 2022-12-31 | L67: TARİH UYUMLU | M67: ='DOLDURULMASI GEREKEN TABLO'!J80 -> 0 | N67: ='DOLDURULMASI GEREKEN TABLO'!K80 -> 0 | O67: ='DOLDURULMASI GEREKEN TABLO'!L80 -> 0 | P67: 44927 | Q67: 0 | R67: 0 | S67: 0 | T67: 0 | U67: ='DOLDURULMASI GEREKEN TABLO'!N80 -> 0 | V67: ='DOLDURULMASI GEREKEN TABLO'!P80 -> 0 | W67: ='DOLDURULMASI GEREKEN TABLO'!Q80 -> 0 | X67: 0 | Y67: 0 | Z67: 0 | AA67: ='DOLDURULMASI GEREKEN TABLO'!T80 -> 0 | AB67: FALSE | AC67: =VLOOKUP(AB67,'Aylık Yİ-ÜFE'!$D$1:$E$229,2,0) ->  | AD67: 2022-12 | AE67: =VLOOKUP(AD67,'Aylık Yİ-ÜFE'!$D$1:$E$229,2,0) -> 2021.19 | AF67: 1 | AG67: =IF(OR('DOLDURULMASI GEREKEN TABLO'!Q80="EVET",'DOLDURULMASI GEREKEN TABLO'!S80="EVET"),MAX(X67*AF67,X67),X67) -> 0 | AH67: =IF(OR('DOLDURULMASI GEREKEN TABLO'!Q80="EVET",'DOLDURULMASI GEREKEN TABLO'!S80="EVET"),MAX(Y67*AF67,Y67),Y67) -> 0 | AI67: 0 | AJ67: 0 | AK67: 0 | AL67: 0 | AM67: 0 | AO67: YD YAPILABİLİR | AP67: ='DOLDURULMASI GEREKEN TABLO'!U80 -> 0 | AQ67: 00:00:00 | AR67: ='DOLDURULMASI GEREKEN TABLO'!V80 -> 2023-06-30 | AS67: 0 | AT67: 0 | AU67: 45107 | AV67: 124 | AW67: 123.5 | AX67: 0 | AY67: 0 | AZ67: 0 | BA67: 0 | BB67: =IF(E67="EVET",0,'DOLDURULMASI GEREKEN TABLO'!W80) -> 0.1895 | BC67: 0 | BD67: 0 | BE67: 0 | BF67: 0 | BG67: 0 | BH67: 0 | BI67: 0
B68: 61 | C68: ='DOLDURULMASI GEREKEN TABLO'!D81 -> 0 | D68: ='DOLDURULMASI GEREKEN TABLO'!E81 -> 0 | E68: ='DOLDURULMASI GEREKEN TABLO'!F81 -> 0 | F68: ='DOLDURULMASI GEREKEN TABLO'!G81 -> 0 | G68: 0 | H68: ='DOLDURULMASI GEREKEN TABLO'!H81 -> 00:00:00 | I68: ='DOLDURULMASI GEREKEN TABLO'!Q81 -> 00:00:00 | J68: ='DOLDURULMASI GEREKEN TABLO'!S81 -> EVET | K68: 2022-12-31 | L68: TARİH UYUMLU | M68: ='DOLDURULMASI GEREKEN TABLO'!J81 -> 0 | N68: ='DOLDURULMASI GEREKEN TABLO'!K81 -> 0 | O68: ='DOLDURULMASI GEREKEN TABLO'!L81 -> 0 | P68: 44927 | Q68: 0 | R68: 0 | S68: 0 | T68: 0 | U68: ='DOLDURULMASI GEREKEN TABLO'!N81 -> 0 | V68: ='DOLDURULMASI GEREKEN TABLO'!P81 -> 0 | W68: ='DOLDURULMASI GEREKEN TABLO'!Q81 -> 0 | X68: 0 | Y68: 0 | Z68: 0 | AA68: ='DOLDURULMASI GEREKEN TABLO'!T81 -> 0 | AB68: FALSE | AC68: =VLOOKUP(AB68,'Aylık Yİ-ÜFE'!$D$1:$E$229,2,0) ->  | AD68: 2022-12 | AE68: =VLOOKUP(AD68,'Aylık Yİ-ÜFE'!$D$1:$E$229,2,0) -> 2021.19 | AF68: 1 | AG68: =IF(OR('DOLDURULMASI GEREKEN TABLO'!Q81="EVET",'DOLDURULMASI GEREKEN TABLO'!S81="EVET"),MAX(X68*AF68,X68),X68) -> 0 | AH68: =IF(OR('DOLDURULMASI GEREKEN TABLO'!Q81="EVET",'DOLDURULMASI GEREKEN TABLO'!S81="EVET"),MAX(Y68*AF68,Y68),Y68) -> 0 | AI68: 0 | AJ68: 0 | AK68: 0 | AL68: 0 | AM68: 0 | AO68: YD YAPILABİLİR | AP68: ='DOLDURULMASI GEREKEN TABLO'!U81 -> 0 | AQ68: 00:00:00 | AR68: ='DOLDURULMASI GEREKEN TABLO'!V81 -> 2023-06-30 | AS68: 0 | AT68: 0 | AU68: 45107 | AV68: 124 | AW68: 123.5 | AX68: 0 | AY68: 0 | AZ68: 0 | BA68: 0 | BB68: =IF(E68="EVET",0,'DOLDURULMASI GEREKEN TABLO'!W81) -> 0.1895 | BC68: 0 | BD68: 0 | BE68: 0 | BF68: 0 | BG68: 0 | BH68: 0 | BI68: 0
B69: 62 | C69: ='DOLDURULMASI GEREKEN TABLO'!D82 -> 0 | D69: ='DOLDURULMASI GEREKEN TABLO'!E82 -> 0 | E69: ='DOLDURULMASI GEREKEN TABLO'!F82 -> 0 | F69: ='DOLDURULMASI GEREKEN TABLO'!G82 -> 0 | G69: 0 | H69: ='DOLDURULMASI GEREKEN TABLO'!H82 -> 00:00:00 | I69: ='DOLDURULMASI GEREKEN TABLO'!Q82 -> 00:00:00 | J69: ='DOLDURULMASI GEREKEN TABLO'!S82 -> EVET | K69: 2022-12-31 | L69: TARİH UYUMLU | M69: ='DOLDURULMASI GEREKEN TABLO'!J82 -> 0 | N69: ='DOLDURULMASI GEREKEN TABLO'!K82 -> 0 | O69: ='DOLDURULMASI GEREKEN TABLO'!L82 -> 0 | P69: 44927 | Q69: 0 | R69: 0 | S69: 0 | T69: 0 | U69: ='DOLDURULMASI GEREKEN TABLO'!N82 -> 0 | V69: ='DOLDURULMASI GEREKEN TABLO'!P82 -> 0 | W69: ='DOLDURULMASI GEREKEN TABLO'!Q82 -> 0 | X69: 0 | Y69: 0 | Z69: 0 | AA69: ='DOLDURULMASI GEREKEN TABLO'!T82 -> 0 | AB69: FALSE | AC69: =VLOOKUP(AB69,'Aylık Yİ-ÜFE'!$D$1:$E$229,2,0) ->  | AD69: 2022-12 | AE69: =VLOOKUP(AD69,'Aylık Yİ-ÜFE'!$D$1:$E$229,2,0) -> 2021.19 | AF69: 1 | AG69: =IF(OR('DOLDURULMASI GEREKEN TABLO'!Q82="EVET",'DOLDURULMASI GEREKEN TABLO'!S82="EVET"),MAX(X69*AF69,X69),X69) -> 0 | AH69: =IF(OR('DOLDURULMASI GEREKEN TABLO'!Q82="EVET",'DOLDURULMASI GEREKEN TABLO'!S82="EVET"),MAX(Y69*AF69,Y69),Y69) -> 0 | AI69: 0 | AJ69: 0 | AK69: 0 | AL69: 0 | AM69: 0 | AO69: YD YAPILABİLİR | AP69: ='DOLDURULMASI GEREKEN TABLO'!U82 -> 0 | AQ69: 00:00:00 | AR69: ='DOLDURULMASI GEREKEN TABLO'!V82 -> 2023-06-30 | AS69: 0 | AT69: 0 | AU69: 45107 | AV69: 124 | AW69: 123.5 | AX69: 0 | AY69: 0 | AZ69: 0 | BA69: 0 | BB69: =IF(E69="EVET",0,'DOLDURULMASI GEREKEN TABLO'!W82) -> 0.1895 | BC69: 0 | BD69: 0 | BE69: 0 | BF69: 0 | BG69: 0 | BH69: 0 | BI69: 0
B70: 63 | C70: ='DOLDURULMASI GEREKEN TABLO'!D83 -> 0 | D70: ='DOLDURULMASI GEREKEN TABLO'!E83 -> 0 | E70: ='DOLDURULMASI GEREKEN TABLO'!F83 -> 0 | F70: ='DOLDURULMASI GEREKEN TABLO'!G83 -> 0 | G70: 0 | H70: ='DOLDURULMASI GEREKEN TABLO'!H83 -> 00:00:00 | I70: ='DOLDURULMASI GEREKEN TABLO'!Q83 -> 00:00:00 | J70: ='DOLDURULMASI GEREKEN TABLO'!S83 -> EVET | K70: 2022-12-31 | L70: TARİH UYUMLU | M70: ='DOLDURULMASI GEREKEN TABLO'!J83 -> 0 | N70: ='DOLDURULMASI GEREKEN TABLO'!K83 -> 0 | O70: ='DOLDURULMASI GEREKEN TABLO'!L83 -> 0 | P70: 44927 | Q70: 0 | R70: 0 | S70: 0 | T70: 0 | U70: ='DOLDURULMASI GEREKEN TABLO'!N83 -> 0 | V70: ='DOLDURULMASI GEREKEN TABLO'!P83 -> 0 | W70: ='DOLDURULMASI GEREKEN TABLO'!Q83 -> 0 | X70: 0 | Y70: 0 | Z70: 0 | AA70: ='DOLDURULMASI GEREKEN TABLO'!T83 -> 0 | AB70: FALSE | AC70: =VLOOKUP(AB70,'Aylık Yİ-ÜFE'!$D$1:$E$229,2,0) ->  | AD70: 2022-12 | AE70: =VLOOKUP(AD70,'Aylık Yİ-ÜFE'!$D$1:$E$229,2,0) -> 2021.19 | AF70: 1 | AG70: =IF(OR('DOLDURULMASI GEREKEN TABLO'!Q83="EVET",'DOLDURULMASI GEREKEN TABLO'!S83="EVET"),MAX(X70*AF70,X70),X70) -> 0 | AH70: =IF(OR('DOLDURULMASI GEREKEN TABLO'!Q83="EVET",'DOLDURULMASI GEREKEN TABLO'!S83="EVET"),MAX(Y70*AF70,Y70),Y70) -> 0 | AI70: 0 | AJ70: 0 | AK70: 0 | AL70: 0 | AM70: 0 | AO70: YD YAPILABİLİR | AP70: ='DOLDURULMASI GEREKEN TABLO'!U83 -> 0 | AQ70: 00:00:00 | AR70: ='DOLDURULMASI GEREKEN TABLO'!V83 -> 2023-06-30 | AS70: 0 | AT70: 0 | AU70: 45107 | AV70: 124 | AW70: 123.5 | AX70: 0 | AY70: 0 | AZ70: 0 | BA70: 0 | BB70: =IF(E70="EVET",0,'DOLDURULMASI GEREKEN TABLO'!W83) -> 0.1895 | BC70: 0 | BD70: 0 | BE70: 0 | BF70: 0 | BG70: 0 | BH70: 0 | BI70: 0
B71: 64 | C71: ='DOLDURULMASI GEREKEN TABLO'!D84 -> 0 | D71: ='DOLDURULMASI GEREKEN TABLO'!E84 -> 0 | E71: ='DOLDURULMASI GEREKEN TABLO'!F84 -> 0 | F71: ='DOLDURULMASI GEREKEN TABLO'!G84 -> 0 | G71: 0 | H71: ='DOLDURULMASI GEREKEN TABLO'!H84 -> 00:00:00 | I71: ='DOLDURULMASI GEREKEN TABLO'!Q84 -> 00:00:00 | J71: ='DOLDURULMASI GEREKEN TABLO'!S84 -> EVET | K71: 2022-12-31 | L71: TARİH UYUMLU | M71: ='DOLDURULMASI GEREKEN TABLO'!J84 -> 0 | N71: ='DOLDURULMASI GEREKEN TABLO'!K84 -> 0 | O71: ='DOLDURULMASI GEREKEN TABLO'!L84 -> 0 | P71: 44927 | Q71: 0 | R71: 0 | S71: 0 | T71: 0 | U71: ='DOLDURULMASI GEREKEN TABLO'!N84 -> 0 | V71: ='DOLDURULMASI GEREKEN TABLO'!P84 -> 0 | W71: ='DOLDURULMASI GEREKEN TABLO'!Q84 -> 0 | X71: 0 | Y71: 0 | Z71: 0 | AA71: ='DOLDURULMASI GEREKEN TABLO'!T84 -> 0 | AB71: FALSE | AC71: =VLOOKUP(AB71,'Aylık Yİ-ÜFE'!$D$1:$E$229,2,0) ->  | AD71: 2022-12 | AE71: =VLOOKUP(AD71,'Aylık Yİ-ÜFE'!$D$1:$E$229,2,0) -> 2021.19 | AF71: 1 | AG71: =IF(OR('DOLDURULMASI GEREKEN TABLO'!Q84="EVET",'DOLDURULMASI GEREKEN TABLO'!S84="EVET"),MAX(X71*AF71,X71),X71) -> 0 | AH71: =IF(OR('DOLDURULMASI GEREKEN TABLO'!Q84="EVET",'DOLDURULMASI GEREKEN TABLO'!S84="EVET"),MAX(Y71*AF71,Y71),Y71) -> 0 | AI71: 0 | AJ71: 0 | AK71: 0 | AL71: 0 | AM71: 0 | AO71: YD YAPILABİLİR | AP71: ='DOLDURULMASI GEREKEN TABLO'!U84 -> 0 | AQ71: 00:00:00 | AR71: ='DOLDURULMASI GEREKEN TABLO'!V84 -> 2023-06-30 | AS71: 0 | AT71: 0 | AU71: 45107 | AV71: 124 | AW71: 123.5 | AX71: 0 | AY71: 0 | AZ71: 0 | BA71: 0 | BB71: =IF(E71="EVET",0,'DOLDURULMASI GEREKEN TABLO'!W84) -> 0.1895 | BC71: 0 | BD71: 0 | BE71: 0 | BF71: 0 | BG71: 0 | BH71: 0 | BI71: 0
B72: 65 | C72: ='DOLDURULMASI GEREKEN TABLO'!D85 -> 0 | D72: ='DOLDURULMASI GEREKEN TABLO'!E85 -> 0 | E72: ='DOLDURULMASI GEREKEN TABLO'!F85 -> 0 | F72: ='DOLDURULMASI GEREKEN TABLO'!G85 -> 0 | G72: =IFERROR(IF(N72="AZALAN BAKİYELERE GÖRE AMORTİSMAN",MIN(1/F72,1/4),1/F72),0) -> 0 | H72: ='DOLDURULMASI GEREKEN TABLO'!H85 -> 00:00:00 | I72: ='DOLDURULMASI GEREKEN TABLO'!Q85 -> 00:00:00 | J72: ='DOLDURULMASI GEREKEN TABLO'!S85 -> EVET | K72: 2022-12-31 | L72: =IF(H72>44926,"2023 YILINDA İKTİSAP EDİLEN İÇİN GEÇİCİ 32 YE GÖRE 2023 YILINDA YD YAPILAMAZ","TARİH UYUMLU") -> TARİH UYUMLU | M72: ='DOLDURULMASI GEREKEN TABLO'!J85 -> 0 | N72: ='DOLDURULMASI GEREKEN TABLO'!K85 -> 0 | O72: ='DOLDURULMASI GEREKEN TABLO'!L85 -> 0 | P72: 44927 | Q72: 0 | R72: 0 | S72: 0 | T72: 0 | U72: ='DOLDURULMASI GEREKEN TABLO'!N85 -> 0 | V72: ='DOLDURULMASI GEREKEN TABLO'!P85 -> 0 | W72: ='DOLDURULMASI GEREKEN TABLO'!Q85 -> 0 | X72: =M72 -> 0 | Y72: =T72 -> 0 | Z72: 0 | AA72: ='DOLDURULMASI GEREKEN TABLO'!T85 -> 0 | AB72: =IF(AND(U72="EVET",V72="EVET"),"2021-6",IF(AND(U72="HAYIR",V72="EVET"),"2021-6",IF(AND(U72="EVET",V72="HAYIR"),"2018-5",IF(AND(U72="HAYIR",V72="HAYIR"),IF(AND(H72<=38352,U72="HAYIR",V72="HAYIR"),"2005-1",IF(MONTH(H72)+1=13,CONCATENATE(YEAR(H72)+1,"-",MONTH(H72)-11),CONCATENATE(YEAR(H72),"-",MONTH(H72)+1))))))) -> FALSE | AC72: =VLOOKUP(AB72,'Aylık Yİ-ÜFE'!$D$1:$E$229,2,0) ->  | AD72: =IF(J72="HAYIR","2021-12","2022-12") -> 2022-12 | AE72: =VLOOKUP(AD72,'Aylık Yİ-ÜFE'!$D$1:$E$229,2,0) -> 2021.19 | AF72: 1 | AG72: =IF(OR('DOLDURULMASI GEREKEN TABLO'!Q85="EVET",'DOLDURULMASI GEREKEN TABLO'!S85="EVET"),MAX(X72*AF72,X72),X72) -> 0 | AH72: =IF(OR('DOLDURULMASI GEREKEN TABLO'!Q85="EVET",'DOLDURULMASI GEREKEN TABLO'!S85="EVET"),MAX(Y72*AF72,Y72),Y72) -> 0 | AI72: 0 | AJ72: =IFERROR(IF(AG72-X72<0,0,AG72-X72),0) -> 0 | AK72: =IFERROR(IF(AH72-Y72<0,0,AH72-Y72),0) -> 0 | AL72: 0 | AM72: 0 | AO72: =IF(OR(D72="250- Arazi ve Arsalar",E72="EVET"), "BOŞ ARAZİ VE ARSALAR İLE AKTİFLEŞTİRME YILINDAN SONRAKİ YILLARDA MALİYETE EKLENEN KREDİ FAİZLERİ İLE KUR FARKLARI MÜK.298 Ç YE GÖRE YD YAPILAMAZ","YD YAPILABİLİR") -> YD YAPILABİLİR | AP72: ='DOLDURULMASI GEREKEN TABLO'!U85 -> 0 | AQ72: =H72 -> 00:00:00 | AR72: ='DOLDURULMASI GEREKEN TABLO'!V85 -> 2023-06-30 | AS72: =N72 -> 0 | AT72: =O72 -> 0 | AU72: =(AR72-AQ72) -> 45107 | AV72: =YEAR(AR72)-YEAR(AQ72)+1 -> 124 | AW72: =(((YEAR(AR72)-YEAR(AQ72))*12)+(MONTH(AR72)-MONTH(AQ72)+1))/12 -> 123.5 | AX72: =MIN(IF(AND(AT72="HAYIR",AR72=45016),(AV72-0.75),IF(AND(AT72="HAYIR",AR72=45107),(AV72-0.5),IF(AND(AT72="HAYIR",AR72=45199),(AV72-0.25),IF(AND(AT72="HAYIR",AR72=45291),AV72,AW72)))),F72) -> 0 | AY72: 0 | AZ72: 0 | BA72: 0 | BB72: =IF(E72="EVET",0,'DOLDURULMASI GEREKEN TABLO'!W85) -> 0.1895 | BC72: =IF(AND(AO72="YD YAPILABİLİR",AP72="EVET"),AY72*(1+BB72),AY72) -> 0 | BD72: =IFERROR(IF(AND(AO72="YD YAPILABİLİR",AP72="EVET"),AZ72*(1+BB72),AZ72),0) -> 0 | BE72: 0 | BF72: 0 | BG72: 0 | BH72: 0 | BI72: 0
B73: 66 | C73: ='DOLDURULMASI GEREKEN TABLO'!D86 -> 0 | D73: ='DOLDURULMASI GEREKEN TABLO'!E86 -> 0 | E73: ='DOLDURULMASI GEREKEN TABLO'!F86 -> 0 | F73: ='DOLDURULMASI GEREKEN TABLO'!G86 -> 0 | G73: 0 | H73: ='DOLDURULMASI GEREKEN TABLO'!H86 -> 00:00:00 | I73: ='DOLDURULMASI GEREKEN TABLO'!Q86 -> 00:00:00 | J73: ='DOLDURULMASI GEREKEN TABLO'!S86 -> EVET | K73: 2022-12-31 | L73: TARİH UYUMLU | M73: ='DOLDURULMASI GEREKEN TABLO'!J86 -> 0 | N73: ='DOLDURULMASI GEREKEN TABLO'!K86 -> 0 | O73: ='DOLDURULMASI GEREKEN TABLO'!L86 -> 0 | P73: =IFERROR((K73-H73)+1,0) -> 44927 | Q73: =IFERROR(MIN(YEAR(K73)-YEAR(H73)+1,F73),0) -> 0 | R73: =IFERROR(MIN(((YEAR(K73)-YEAR(H73))*12+(MONTH(K73)-MONTH(H73))+1)/12,F73),0) -> 0 | S73: =IFERROR(MIN(IF(O73="HAYIR",Q73,R73),F73),0) -> 0 | T73: =IF(D73="250- Arazi ve Arsalar",0, IF(S73=F73,M73, IF(AND(N73="NORMAL AMORTİSMAN",O73="HAYIR"),M73*G73*S73, IF(AND(N73="NORMAL AMORTİSMAN",O73="EVET"),M73*G73*S73, IF(AND(N73="AZALAN BAKİYELERE GÖRE AMORTİSMAN",O73="HAYIR",F73<=4),VDB(M73,0,4,0,Q73,2,TRUE), IF(AND(N73="AZALAN BAKİYELERE GÖRE AMORTİSMAN",O73="HAYIR",AND(F73>4,S73<F73)),VDB(M73,0,F73,0,S73,2,TRUE), IF(AND(N73="AZALAN BAKİYELERE GÖRE AMORTİSMAN",O73="EVET",Q73=1),(DDB(M73,0,IF(F73<=4,4,F73),1,2)/12)*(12-MONTH(H73)+1), IF(AND(N73="AZALAN BAKİYELERE GÖRE AMORTİSMAN",O73="EVET",Q73=2),(DDB(M73,0,IF(F73<=4,4,F73),1,2)/12)*(12-MONTH(H73)+1)+DDB(M73,0,IF(F73<=4,4,F73),2,2), IF(AND(N73="AZALAN BAKİYELERE GÖRE AMORTİSMAN",O73="EVET",Q73=3),(DDB(M73,0,IF(F73<=4,4,F73),1,2)/12)*(12-MONTH(H73)+1)+DDB(M73,0,IF(F73<=4,4,F73),2,2)+DDB(M73,0,IF(F73<=4,4,F73),3,2), IF(AND(N73="AZALAN BAKİYELERE GÖRE AMORTİSMAN",O73="EVET",AND(Q73>3,Q73<5)),(DDB(M73,0,IF(F73<=4,4,F73),1,2)/12)*(12-MONTH(H73)+1)+DDB(M73,0,IF(F73<=4,4,F73),2,2)+DDB(M73,0,IF(F73<=4,4,F73),3,2)+DDB(M73,0,IF(F73<=4,4,F73),S73,2), IF(AND(N73="AZALAN BAKİYELERE GÖRE AMORTİSMAN",O73="EVET",Q73=5),VDB(M73,0,F73,0,S73,2,TRUE),0))))))))))) -> 0 | U73: ='DOLDURULMASI GEREKEN TABLO'!N86 -> 0 | V73: ='DOLDURULMASI GEREKEN TABLO'!P86 -> 0 | W73: ='DOLDURULMASI GEREKEN TABLO'!Q86 -> 0 | X73: 0 | Y73: 0 | Z73: =X73-Y73 -> 0 | AA73: ='DOLDURULMASI GEREKEN TABLO'!T86 -> 0 | AB73: FALSE | AC73: =VLOOKUP(AB73,'Aylık Yİ-ÜFE'!$D$1:$E$229,2,0) ->  | AD73: 2022-12 | AE73: =VLOOKUP(AD73,'Aylık Yİ-ÜFE'!$D$1:$E$229,2,0) -> 2021.19 | AF73: =IFERROR(IF(AA73="EVET",TRUNC(AE73/AC73,5),1),0) -> 1 | AG73: =IF(OR('DOLDURULMASI GEREKEN TABLO'!Q86="EVET",'DOLDURULMASI GEREKEN TABLO'!S86="EVET"),MAX(X73*AF73,X73),X73) -> 0 | AH73: =IF(OR('DOLDURULMASI GEREKEN TABLO'!Q86="EVET",'DOLDURULMASI GEREKEN TABLO'!S86="EVET"),MAX(Y73*AF73,Y73),Y73) -> 0 | AI73: =AG73-AH73 -> 0 | AJ73: 0 | AK73: 0 | AL73: =IFERROR(IF((AJ73-AK73)<0,0,(AJ73-AK73)),0) -> 0 | AM73: =IFERROR(AL73*2/100,0) -> 0 | AO73: YD YAPILABİLİR | AP73: ='DOLDURULMASI GEREKEN TABLO'!U86 -> 0 | AQ73: 00:00:00 | AR73: ='DOLDURULMASI GEREKEN TABLO'!V86 -> 2023-06-30 | AS73: 0 | AT73: 0 | AU73: 45107 | AV73: 124 | AW73: 123.5 | AX73: 0 | AY73: =AG73 -> 0 | AZ73: =AH73 -> 0 | BA73: =AY73-AZ73 -> 0 | BB73: =IF(E73="EVET",0,'DOLDURULMASI GEREKEN TABLO'!W86) -> 0.1895 | BC73: 0 | BD73: 0 | BE73: =BC73-BD73 -> 0 | BF73: =BC73-AY73 -> 0 | BG73: =BD73-AZ73 -> 0 | BH73: =IF(BF73-BG73<0,0,BF73-BG73) -> 0 | BI73: =IF(AS73="NORMAL AMORTİSMAN",BC73*(1/F73)/2, IF(AND(AS73="AZALAN BAKİYELERE GÖRE AMORTİSMAN",AX73<F73),DDB(BC73,0,IF(F73<=4,4,F73),ROUNDUP(AX73,0),2)/2, IF(AND(AS73="AZALAN BAKİYELERE GÖRE AMORTİSMAN",AX73=F73),(BC73-BD73)/2,0))) -> 0
B74: 67 | C74: ='DOLDURULMASI GEREKEN TABLO'!D87 -> 0 | D74: ='DOLDURULMASI GEREKEN TABLO'!E87 -> 0 | E74: ='DOLDURULMASI GEREKEN TABLO'!F87 -> 0 | F74: ='DOLDURULMASI GEREKEN TABLO'!G87 -> 0 | G74: 0 | H74: ='DOLDURULMASI GEREKEN TABLO'!H87 -> 00:00:00 | I74: ='DOLDURULMASI GEREKEN TABLO'!Q87 -> 00:00:00 | J74: ='DOLDURULMASI GEREKEN TABLO'!S87 -> EVET | K74: 2022-12-31 | L74: TARİH UYUMLU | M74: ='DOLDURULMASI GEREKEN TABLO'!J87 -> 0 | N74: ='DOLDURULMASI GEREKEN TABLO'!K87 -> 0 | O74: ='DOLDURULMASI GEREKEN TABLO'!L87 -> 0 | P74: 44927 | Q74: 0 | R74: 0 | S74: 0 | T74: 0 | U74: ='DOLDURULMASI GEREKEN TABLO'!N87 -> 0 | V74: ='DOLDURULMASI GEREKEN TABLO'!P87 -> 0 | W74: ='DOLDURULMASI GEREKEN TABLO'!Q87 -> 0 | X74: 0 | Y74: 0 | Z74: 0 | AA74: ='DOLDURULMASI GEREKEN TABLO'!T87 -> 0 | AB74: FALSE | AC74: =VLOOKUP(AB74,'Aylık Yİ-ÜFE'!$D$1:$E$229,2,0) ->  | AD74: 2022-12 | AE74: =VLOOKUP(AD74,'Aylık Yİ-ÜFE'!$D$1:$E$229,2,0) -> 2021.19 | AF74: 1 | AG74: =IF(OR('DOLDURULMASI GEREKEN TABLO'!Q87="EVET",'DOLDURULMASI GEREKEN TABLO'!S87="EVET"),MAX(X74*AF74,X74),X74) -> 0 | AH74: =IF(OR('DOLDURULMASI GEREKEN TABLO'!Q87="EVET",'DOLDURULMASI GEREKEN TABLO'!S87="EVET"),MAX(Y74*AF74,Y74),Y74) -> 0 | AI74: 0 | AJ74: 0 | AK74: 0 | AL74: 0 | AM74: 0 | AO74: YD YAPILABİLİR | AP74: ='DOLDURULMASI GEREKEN TABLO'!U87 -> 0 | AQ74: 00:00:00 | AR74: ='DOLDURULMASI GEREKEN TABLO'!V87 -> 2023-06-30 | AS74: 0 | AT74: 0 | AU74: 45107 | AV74: 124 | AW74: 123.5 | AX74: 0 | AY74: 0 | AZ74: 0 | BA74: 0 | BB74: =IF(E74="EVET",0,'DOLDURULMASI GEREKEN TABLO'!W87) -> 0.1895 | BC74: 0 | BD74: 0 | BE74: 0 | BF74: 0 | BG74: 0 | BH74: 0 | BI74: 0
B75: 68 | C75: ='DOLDURULMASI GEREKEN TABLO'!D88 -> 0 | D75: ='DOLDURULMASI GEREKEN TABLO'!E88 -> 0 | E75: ='DOLDURULMASI GEREKEN TABLO'!F88 -> 0 | F75: ='DOLDURULMASI GEREKEN TABLO'!G88 -> 0 | G75: 0 | H75: ='DOLDURULMASI GEREKEN TABLO'!H88 -> 00:00:00 | I75: ='DOLDURULMASI GEREKEN TABLO'!Q88 -> 00:00:00 | J75: ='DOLDURULMASI GEREKEN TABLO'!S88 -> EVET | K75: 2022-12-31 | L75: TARİH UYUMLU | M75: ='DOLDURULMASI GEREKEN TABLO'!J88 -> 0 | N75: ='DOLDURULMASI GEREKEN TABLO'!K88 -> 0 | O75: ='DOLDURULMASI GEREKEN TABLO'!L88 -> 0 | P75: 44927 | Q75: 0 | R75: 0 | S75: 0 | T75: 0 | U75: ='DOLDURULMASI GEREKEN TABLO'!N88 -> 0 | V75: ='DOLDURULMASI GEREKEN TABLO'!P88 -> 0 | W75: ='DOLDURULMASI GEREKEN TABLO'!Q88 -> 0 | X75: 0 | Y75: 0 | Z75: 0 | AA75: ='DOLDURULMASI GEREKEN TABLO'!T88 -> 0 | AB75: FALSE | AC75: =VLOOKUP(AB75,'Aylık Yİ-ÜFE'!$D$1:$E$229,2,0) ->  | AD75: 2022-12 | AE75: =VLOOKUP(AD75,'Aylık Yİ-ÜFE'!$D$1:$E$229,2,0) -> 2021.19 | AF75: 1 | AG75: =IF(OR('DOLDURULMASI GEREKEN TABLO'!Q88="EVET",'DOLDURULMASI GEREKEN TABLO'!S88="EVET"),MAX(X75*AF75,X75),X75) -> 0 | AH75: =IF(OR('DOLDURULMASI GEREKEN TABLO'!Q88="EVET",'DOLDURULMASI GEREKEN TABLO'!S88="EVET"),MAX(Y75*AF75,Y75),Y75) -> 0 | AI75: 0 | AJ75: 0 | AK75: 0 | AL75: 0 | AM75: 0 | AO75: YD YAPILABİLİR | AP75: ='DOLDURULMASI GEREKEN TABLO'!U88 -> 0 | AQ75: 00:00:00 | AR75: ='DOLDURULMASI GEREKEN TABLO'!V88 -> 2023-06-30 | AS75: 0 | AT75: 0 | AU75: 45107 | AV75: 124 | AW75: 123.5 | AX75: 0 | AY75: 0 | AZ75: 0 | BA75: 0 | BB75: =IF(E75="EVET",0,'DOLDURULMASI GEREKEN TABLO'!W88) -> 0.1895 | BC75: 0 | BD75: 0 | BE75: 0 | BF75: 0 | BG75: 0 | BH75: 0 | BI75: 0
B76: 69 | C76: ='DOLDURULMASI GEREKEN TABLO'!D89 -> 0 | D76: ='DOLDURULMASI GEREKEN TABLO'!E89 -> 0 | E76: ='DOLDURULMASI GEREKEN TABLO'!F89 -> 0 | F76: ='DOLDURULMASI GEREKEN TABLO'!G89 -> 0 | G76: 0 | H76: ='DOLDURULMASI GEREKEN TABLO'!H89 -> 00:00:00 | I76: ='DOLDURULMASI GEREKEN TABLO'!Q89 -> 00:00:00 | J76: ='DOLDURULMASI GEREKEN TABLO'!S89 -> EVET | K76: 2022-12-31 | L76: TARİH UYUMLU | M76: ='DOLDURULMASI GEREKEN TABLO'!J89 -> 0 | N76: ='DOLDURULMASI GEREKEN TABLO'!K89 -> 0 | O76: ='DOLDURULMASI GEREKEN TABLO'!L89 -> 0 | P76: 44927 | Q76: 0 | R76: 0 | S76: 0 | T76: 0 | U76: ='DOLDURULMASI GEREKEN TABLO'!N89 -> 0 | V76: ='DOLDURULMASI GEREKEN TABLO'!P89 -> 0 | W76: ='DOLDURULMASI GEREKEN TABLO'!Q89 -> 0 | X76: 0 | Y76: 0 | Z76: 0 | AA76: ='DOLDURULMASI GEREKEN TABLO'!T89 -> 0 | AB76: FALSE | AC76: =VLOOKUP(AB76,'Aylık Yİ-ÜFE'!$D$1:$E$229,2,0) ->  | AD76: 2022-12 | AE76: =VLOOKUP(AD76,'Aylık Yİ-ÜFE'!$D$1:$E$229,2,0) -> 2021.19 | AF76: 1 | AG76: =IF(OR('DOLDURULMASI GEREKEN TABLO'!Q89="EVET",'DOLDURULMASI GEREKEN TABLO'!S89="EVET"),MAX(X76*AF76,X76),X76) -> 0 | AH76: =IF(OR('DOLDURULMASI GEREKEN TABLO'!Q89="EVET",'DOLDURULMASI GEREKEN TABLO'!S89="EVET"),MAX(Y76*AF76,Y76),Y76) -> 0 | AI76: 0 | AJ76: 0 | AK76: 0 | AL76: 0 | AM76: 0 | AO76: YD YAPILABİLİR | AP76: ='DOLDURULMASI GEREKEN TABLO'!U89 -> 0 | AQ76: 00:00:00 | AR76: ='DOLDURULMASI GEREKEN TABLO'!V89 -> 2023-06-30 | AS76: 0 | AT76: 0 | AU76: 45107 | AV76: 124 | AW76: 123.5 | AX76: 0 | AY76: 0 | AZ76: 0 | BA76: 0 | BB76: =IF(E76="EVET",0,'DOLDURULMASI GEREKEN TABLO'!W89) -> 0.1895 | BC76: 0 | BD76: 0 | BE76: 0 | BF76: 0 | BG76: 0 | BH76: 0 | BI76: 0
B77: 70 | C77: ='DOLDURULMASI GEREKEN TABLO'!D90 -> 0 | D77: ='DOLDURULMASI GEREKEN TABLO'!E90 -> 0 | E77: ='DOLDURULMASI GEREKEN TABLO'!F90 -> 0 | F77: ='DOLDURULMASI GEREKEN TABLO'!G90 -> 0 | G77: 0 | H77: ='DOLDURULMASI GEREKEN TABLO'!H90 -> 00:00:00 | I77: ='DOLDURULMASI GEREKEN TABLO'!Q90 -> 00:00:00 | J77: ='DOLDURULMASI GEREKEN TABLO'!S90 -> EVET | K77: 2022-12-31 | L77: TARİH UYUMLU | M77: ='DOLDURULMASI GEREKEN TABLO'!J90 -> 0 | N77: ='DOLDURULMASI GEREKEN TABLO'!K90 -> 0 | O77: ='DOLDURULMASI GEREKEN TABLO'!L90 -> 0 | P77: 44927 | Q77: 0 | R77: 0 | S77: 0 | T77: 0 | U77: ='DOLDURULMASI GEREKEN TABLO'!N90 -> 0 | V77: ='DOLDURULMASI GEREKEN TABLO'!P90 -> 0 | W77: ='DOLDURULMASI GEREKEN TABLO'!Q90 -> 0 | X77: 0 | Y77: 0 | Z77: 0 | AA77: ='DOLDURULMASI GEREKEN TABLO'!T90 -> 0 | AB77: FALSE | AC77: =VLOOKUP(AB77,'Aylık Yİ-ÜFE'!$D$1:$E$229,2,0) ->  | AD77: 2022-12 | AE77: =VLOOKUP(AD77,'Aylık Yİ-ÜFE'!$D$1:$E$229,2,0) -> 2021.19 | AF77: 1 | AG77: =IF(OR('DOLDURULMASI GEREKEN TABLO'!Q90="EVET",'DOLDURULMASI GEREKEN TABLO'!S90="EVET"),MAX(X77*AF77,X77),X77) -> 0 | AH77: =IF(OR('DOLDURULMASI GEREKEN TABLO'!Q90="EVET",'DOLDURULMASI GEREKEN TABLO'!S90="EVET"),MAX(Y77*AF77,Y77),Y77) -> 0 | AI77: 0 | AJ77: 0 | AK77: 0 | AL77: 0 | AM77: 0 | AO77: YD YAPILABİLİR | AP77: ='DOLDURULMASI GEREKEN TABLO'!U90 -> 0 | AQ77: 00:00:00 | AR77: ='DOLDURULMASI GEREKEN TABLO'!V90 -> 2023-06-30 | AS77: 0 | AT77: 0 | AU77: 45107 | AV77: 124 | AW77: 123.5 | AX77: 0 | AY77: 0 | AZ77: 0 | BA77: 0 | BB77: =IF(E77="EVET",0,'DOLDURULMASI GEREKEN TABLO'!W90) -> 0.1895 | BC77: 0 | BD77: 0 | BE77: 0 | BF77: 0 | BG77: 0 | BH77: 0 | BI77: 0
B78: 71 | C78: ='DOLDURULMASI GEREKEN TABLO'!D91 -> 0 | D78: ='DOLDURULMASI GEREKEN TABLO'!E91 -> 0 | E78: ='DOLDURULMASI GEREKEN TABLO'!F91 -> 0 | F78: ='DOLDURULMASI GEREKEN TABLO'!G91 -> 0 | G78: 0 | H78: ='DOLDURULMASI GEREKEN TABLO'!H91 -> 00:00:00 | I78: ='DOLDURULMASI GEREKEN TABLO'!Q91 -> 00:00:00 | J78: ='DOLDURULMASI GEREKEN TABLO'!S91 -> EVET | K78: 2022-12-31 | L78: TARİH UYUMLU | M78: ='DOLDURULMASI GEREKEN TABLO'!J91 -> 0 | N78: ='DOLDURULMASI GEREKEN TABLO'!K91 -> 0 | O78: ='DOLDURULMASI GEREKEN TABLO'!L91 -> 0 | P78: 44927 | Q78: 0 | R78: 0 | S78: 0 | T78: 0 | U78: ='DOLDURULMASI GEREKEN TABLO'!N91 -> 0 | V78: ='DOLDURULMASI GEREKEN TABLO'!P91 -> 0 | W78: ='DOLDURULMASI GEREKEN TABLO'!Q91 -> 0 | X78: 0 | Y78: 0 | Z78: 0 | AA78: ='DOLDURULMASI GEREKEN TABLO'!T91 -> 0 | AB78: FALSE | AC78: =VLOOKUP(AB78,'Aylık Yİ-ÜFE'!$D$1:$E$229,2,0) ->  | AD78: 2022-12 | AE78: =VLOOKUP(AD78,'Aylık Yİ-ÜFE'!$D$1:$E$229,2,0) -> 2021.19 | AF78: 1 | AG78: =IF(OR('DOLDURULMASI GEREKEN TABLO'!Q91="EVET",'DOLDURULMASI GEREKEN TABLO'!S91="EVET"),MAX(X78*AF78,X78),X78) -> 0 | AH78: =IF(OR('DOLDURULMASI GEREKEN TABLO'!Q91="EVET",'DOLDURULMASI GEREKEN TABLO'!S91="EVET"),MAX(Y78*AF78,Y78),Y78) -> 0 | AI78: 0 | AJ78: 0 | AK78: 0 | AL78: 0 | AM78: 0 | AO78: YD YAPILABİLİR | AP78: ='DOLDURULMASI GEREKEN TABLO'!U91 -> 0 | AQ78: 00:00:00 | AR78: ='DOLDURULMASI GEREKEN TABLO'!V91 -> 2023-06-30 | AS78: 0 | AT78: 0 | AU78: 45107 | AV78: 124 | AW78: 123.5 | AX78: 0 | AY78: 0 | AZ78: 0 | BA78: 0 | BB78: =IF(E78="EVET",0,'DOLDURULMASI GEREKEN TABLO'!W91) -> 0.1895 | BC78: 0 | BD78: 0 | BE78: 0 | BF78: 0 | BG78: 0 | BH78: 0 | BI78: 0
B79: 72 | C79: ='DOLDURULMASI GEREKEN TABLO'!D92 -> 0 | D79: ='DOLDURULMASI GEREKEN TABLO'!E92 -> 0 | E79: ='DOLDURULMASI GEREKEN TABLO'!F92 -> 0 | F79: ='DOLDURULMASI GEREKEN TABLO'!G92 -> 0 | G79: 0 | H79: ='DOLDURULMASI GEREKEN TABLO'!H92 -> 00:00:00 | I79: ='DOLDURULMASI GEREKEN TABLO'!Q92 -> 00:00:00 | J79: ='DOLDURULMASI GEREKEN TABLO'!S92 -> EVET | K79: 2022-12-31 | L79: TARİH UYUMLU | M79: ='DOLDURULMASI GEREKEN TABLO'!J92 -> 0 | N79: ='DOLDURULMASI GEREKEN TABLO'!K92 -> 0 | O79: ='DOLDURULMASI GEREKEN TABLO'!L92 -> 0 | P79: 44927 | Q79: 0 | R79: 0 | S79: 0 | T79: 0 | U79: ='DOLDURULMASI GEREKEN TABLO'!N92 -> 0 | V79: ='DOLDURULMASI GEREKEN TABLO'!P92 -> 0 | W79: ='DOLDURULMASI GEREKEN TABLO'!Q92 -> 0 | X79: 0 | Y79: 0 | Z79: 0 | AA79: ='DOLDURULMASI GEREKEN TABLO'!T92 -> 0 | AB79: FALSE | AC79: =VLOOKUP(AB79,'Aylık Yİ-ÜFE'!$D$1:$E$229,2,0) ->  | AD79: 2022-12 | AE79: =VLOOKUP(AD79,'Aylık Yİ-ÜFE'!$D$1:$E$229,2,0) -> 2021.19 | AF79: 1 | AG79: =IF(OR('DOLDURULMASI GEREKEN TABLO'!Q92="EVET",'DOLDURULMASI GEREKEN TABLO'!S92="EVET"),MAX(X79*AF79,X79),X79) -> 0 | AH79: =IF(OR('DOLDURULMASI GEREKEN TABLO'!Q92="EVET",'DOLDURULMASI GEREKEN TABLO'!S92="EVET"),MAX(Y79*AF79,Y79),Y79) -> 0 | AI79: 0 | AJ79: 0 | AK79: 0 | AL79: 0 | AM79: 0 | AO79: YD YAPILABİLİR | AP79: ='DOLDURULMASI GEREKEN TABLO'!U92 -> 0 | AQ79: 00:00:00 | AR79: ='DOLDURULMASI GEREKEN TABLO'!V92 -> 2023-06-30 | AS79: 0 | AT79: 0 | AU79: 45107 | AV79: 124 | AW79: 123.5 | AX79: 0 | AY79: 0 | AZ79: 0 | BA79: 0 | BB79: =IF(E79="EVET",0,'DOLDURULMASI GEREKEN TABLO'!W92) -> 0.1895 | BC79: 0 | BD79: 0 | BE79: 0 | BF79: 0 | BG79: 0 | BH79: 0 | BI79: 0
B80: 73 | C80: ='DOLDURULMASI GEREKEN TABLO'!D93 -> 0 | D80: ='DOLDURULMASI GEREKEN TABLO'!E93 -> 0 | E80: ='DOLDURULMASI GEREKEN TABLO'!F93 -> 0 | F80: ='DOLDURULMASI GEREKEN TABLO'!G93 -> 0 | G80: 0 | H80: ='DOLDURULMASI GEREKEN TABLO'!H93 -> 00:00:00 | I80: ='DOLDURULMASI GEREKEN TABLO'!Q93 -> 00:00:00 | J80: ='DOLDURULMASI GEREKEN TABLO'!S93 -> EVET | K80: 2022-12-31 | L80: TARİH UYUMLU | M80: ='DOLDURULMASI GEREKEN TABLO'!J93 -> 0 | N80: ='DOLDURULMASI GEREKEN TABLO'!K93 -> 0 | O80: ='DOLDURULMASI GEREKEN TABLO'!L93 -> 0 | P80: 44927 | Q80: 0 | R80: 0 | S80: 0 | T80: 0 | U80: ='DOLDURULMASI GEREKEN TABLO'!N93 -> 0 | V80: ='DOLDURULMASI GEREKEN TABLO'!P93 -> 0 | W80: ='DOLDURULMASI GEREKEN TABLO'!Q93 -> 0 | X80: 0 | Y80: 0 | Z80: 0 | AA80: ='DOLDURULMASI GEREKEN TABLO'!T93 -> 0 | AB80: FALSE | AC80: =VLOOKUP(AB80,'Aylık Yİ-ÜFE'!$D$1:$E$229,2,0) ->  | AD80: 2022-12 | AE80: =VLOOKUP(AD80,'Aylık Yİ-ÜFE'!$D$1:$E$229,2,0) -> 2021.19 | AF80: 1 | AG80: =IF(OR('DOLDURULMASI GEREKEN TABLO'!Q93="EVET",'DOLDURULMASI GEREKEN TABLO'!S93="EVET"),MAX(X80*AF80,X80),X80) -> 0 | AH80: =IF(OR('DOLDURULMASI GEREKEN TABLO'!Q93="EVET",'DOLDURULMASI GEREKEN TABLO'!S93="EVET"),MAX(Y80*AF80,Y80),Y80) -> 0 | AI80: 0 | AJ80: 0 | AK80: 0 | AL80: 0 | AM80: 0 | AO80: YD YAPILABİLİR | AP80: ='DOLDURULMASI GEREKEN TABLO'!U93 -> 0 | AQ80: 00:00:00 | AR80: ='DOLDURULMASI GEREKEN TABLO'!V93 -> 2023-06-30 | AS80: 0 | AT80: 0 | AU80: 45107 | AV80: 124 | AW80: 123.5 | AX80: 0 | AY80: 0 | AZ80: 0 | BA80: 0 | BB80: =IF(E80="EVET",0,'DOLDURULMASI GEREKEN TABLO'!W93) -> 0.1895 | BC80: 0 | BD80: 0 | BE80: 0 | BF80: 0 | BG80: 0 | BH80: 0 | BI80: 0
B81: 74 | C81: ='DOLDURULMASI GEREKEN TABLO'!D94 -> 0 | D81: ='DOLDURULMASI GEREKEN TABLO'!E94 -> 0 | E81: ='DOLDURULMASI GEREKEN TABLO'!F94 -> 0 | F81: ='DOLDURULMASI GEREKEN TABLO'!G94 -> 0 | G81: 0 | H81: ='DOLDURULMASI GEREKEN TABLO'!H94 -> 00:00:00 | I81: ='DOLDURULMASI GEREKEN TABLO'!Q94 -> 00:00:00 | J81: ='DOLDURULMASI GEREKEN TABLO'!S94 -> EVET | K81: 2022-12-31 | L81: TARİH UYUMLU | M81: ='DOLDURULMASI GEREKEN TABLO'!J94 -> 0 | N81: ='DOLDURULMASI GEREKEN TABLO'!K94 -> 0 | O81: ='DOLDURULMASI GEREKEN TABLO'!L94 -> 0 | P81: 44927 | Q81: 0 | R81: 0 | S81: 0 | T81: 0 | U81: ='DOLDURULMASI GEREKEN TABLO'!N94 -> 0 | V81: ='DOLDURULMASI GEREKEN TABLO'!P94 -> 0 | W81: ='DOLDURULMASI GEREKEN TABLO'!Q94 -> 0 | X81: 0 | Y81: 0 | Z81: 0 | AA81: ='DOLDURULMASI GEREKEN TABLO'!T94 -> 0 | AB81: FALSE | AC81: =VLOOKUP(AB81,'Aylık Yİ-ÜFE'!$D$1:$E$229,2,0) ->  | AD81: 2022-12 | AE81: =VLOOKUP(AD81,'Aylık Yİ-ÜFE'!$D$1:$E$229,2,0) -> 2021.19 | AF81: 1 | AG81: =IF(OR('DOLDURULMASI GEREKEN TABLO'!Q94="EVET",'DOLDURULMASI GEREKEN TABLO'!S94="EVET"),MAX(X81*AF81,X81),X81) -> 0 | AH81: =IF(OR('DOLDURULMASI GEREKEN TABLO'!Q94="EVET",'DOLDURULMASI GEREKEN TABLO'!S94="EVET"),MAX(Y81*AF81,Y81),Y81) -> 0 | AI81: 0 | AJ81: 0 | AK81: 0 | AL81: 0 | AM81: 0 | AO81: YD YAPILABİLİR | AP81: ='DOLDURULMASI GEREKEN TABLO'!U94 -> 0 | AQ81: 00:00:00 | AR81: ='DOLDURULMASI GEREKEN TABLO'!V94 -> 2023-06-30 | AS81: 0 | AT81: 0 | AU81: 45107 | AV81: 124 | AW81: 123.5 | AX81: 0 | AY81: 0 | AZ81: 0 | BA81: 0 | BB81: =IF(E81="EVET",0,'DOLDURULMASI GEREKEN TABLO'!W94) -> 0.1895 | BC81: 0 | BD81: 0 | BE81: 0 | BF81: 0 | BG81: 0 | BH81: 0 | BI81: 0
B82: 75 | C82: ='DOLDURULMASI GEREKEN TABLO'!D95 -> 0 | D82: ='DOLDURULMASI GEREKEN TABLO'!E95 -> 0 | E82: ='DOLDURULMASI GEREKEN TABLO'!F95 -> 0 | F82: ='DOLDURULMASI GEREKEN TABLO'!G95 -> 0 | G82: 0 | H82: ='DOLDURULMASI GEREKEN TABLO'!H95 -> 00:00:00 | I82: ='DOLDURULMASI GEREKEN TABLO'!Q95 -> 00:00:00 | J82: ='DOLDURULMASI GEREKEN TABLO'!S95 -> EVET | K82: 2022-12-31 | L82: TARİH UYUMLU | M82: ='DOLDURULMASI GEREKEN TABLO'!J95 -> 0 | N82: ='DOLDURULMASI GEREKEN TABLO'!K95 -> 0 | O82: ='DOLDURULMASI GEREKEN TABLO'!L95 -> 0 | P82: 44927 | Q82: 0 | R82: 0 | S82: 0 | T82: 0 | U82: ='DOLDURULMASI GEREKEN TABLO'!N95 -> 0 | V82: ='DOLDURULMASI GEREKEN TABLO'!P95 -> 0 | W82: ='DOLDURULMASI GEREKEN TABLO'!Q95 -> 0 | X82: 0 | Y82: 0 | Z82: 0 | AA82: ='DOLDURULMASI GEREKEN TABLO'!T95 -> 0 | AB82: FALSE | AC82: =VLOOKUP(AB82,'Aylık Yİ-ÜFE'!$D$1:$E$229,2,0) ->  | AD82: 2022-12 | AE82: =VLOOKUP(AD82,'Aylık Yİ-ÜFE'!$D$1:$E$229,2,0) -> 2021.19 | AF82: 1 | AG82: =IF(OR('DOLDURULMASI GEREKEN TABLO'!Q95="EVET",'DOLDURULMASI GEREKEN TABLO'!S95="EVET"),MAX(X82*AF82,X82),X82) -> 0 | AH82: =IF(OR('DOLDURULMASI GEREKEN TABLO'!Q95="EVET",'DOLDURULMASI GEREKEN TABLO'!S95="EVET"),MAX(Y82*AF82,Y82),Y82) -> 0 | AI82: 0 | AJ82: 0 | AK82: 0 | AL82: 0 | AM82: 0 | AO82: YD YAPILABİLİR | AP82: ='DOLDURULMASI GEREKEN TABLO'!U95 -> 0 | AQ82: 00:00:00 | AR82: ='DOLDURULMASI GEREKEN TABLO'!V95 -> 2023-06-30 | AS82: 0 | AT82: 0 | AU82: 45107 | AV82: 124 | AW82: 123.5 | AX82: 0 | AY82: 0 | AZ82: 0 | BA82: 0 | BB82: =IF(E82="EVET",0,'DOLDURULMASI GEREKEN TABLO'!W95) -> 0.1895 | BC82: 0 | BD82: 0 | BE82: 0 | BF82: 0 | BG82: 0 | BH82: 0 | BI82: 0
B83: 76 | C83: ='DOLDURULMASI GEREKEN TABLO'!D96 -> 0 | D83: ='DOLDURULMASI GEREKEN TABLO'!E96 -> 0 | E83: ='DOLDURULMASI GEREKEN TABLO'!F96 -> 0 | F83: ='DOLDURULMASI GEREKEN TABLO'!G96 -> 0 | G83: 0 | H83: ='DOLDURULMASI GEREKEN TABLO'!H96 -> 00:00:00 | I83: ='DOLDURULMASI GEREKEN TABLO'!Q96 -> 00:00:00 | J83: ='DOLDURULMASI GEREKEN TABLO'!S96 -> EVET | K83: 2022-12-31 | L83: TARİH UYUMLU | M83: ='DOLDURULMASI GEREKEN TABLO'!J96 -> 0 | N83: ='DOLDURULMASI GEREKEN TABLO'!K96 -> 0 | O83: ='DOLDURULMASI GEREKEN TABLO'!L96 -> 0 | P83: 44927 | Q83: 0 | R83: 0 | S83: 0 | T83: 0 | U83: ='DOLDURULMASI GEREKEN TABLO'!N96 -> 0 | V83: ='DOLDURULMASI GEREKEN TABLO'!P96 -> 0 | W83: ='DOLDURULMASI GEREKEN TABLO'!Q96 -> 0 | X83: 0 | Y83: 0 | Z83: 0 | AA83: ='DOLDURULMASI GEREKEN TABLO'!T96 -> 0 | AB83: FALSE | AC83: =VLOOKUP(AB83,'Aylık Yİ-ÜFE'!$D$1:$E$229,2,0) ->  | AD83: 2022-12 | AE83: =VLOOKUP(AD83,'Aylık Yİ-ÜFE'!$D$1:$E$229,2,0) -> 2021.19 | AF83: 1 | AG83: =IF(OR('DOLDURULMASI GEREKEN TABLO'!Q96="EVET",'DOLDURULMASI GEREKEN TABLO'!S96="EVET"),MAX(X83*AF83,X83),X83) -> 0 | AH83: =IF(OR('DOLDURULMASI GEREKEN TABLO'!Q96="EVET",'DOLDURULMASI GEREKEN TABLO'!S96="EVET"),MAX(Y83*AF83,Y83),Y83) -> 0 | AI83: 0 | AJ83: 0 | AK83: 0 | AL83: 0 | AM83: 0 | AO83: YD YAPILABİLİR | AP83: ='DOLDURULMASI GEREKEN TABLO'!U96 -> 0 | AQ83: 00:00:00 | AR83: ='DOLDURULMASI GEREKEN TABLO'!V96 -> 2023-06-30 | AS83: 0 | AT83: 0 | AU83: 45107 | AV83: 124 | AW83: 123.5 | AX83: 0 | AY83: 0 | AZ83: 0 | BA83: 0 | BB83: =IF(E83="EVET",0,'DOLDURULMASI GEREKEN TABLO'!W96) -> 0.1895 | BC83: 0 | BD83: 0 | BE83: 0 | BF83: 0 | BG83: 0 | BH83: 0 | BI83: 0
B84: 77 | C84: ='DOLDURULMASI GEREKEN TABLO'!D97 -> 0 | D84: ='DOLDURULMASI GEREKEN TABLO'!E97 -> 0 | E84: ='DOLDURULMASI GEREKEN TABLO'!F97 -> 0 | F84: ='DOLDURULMASI GEREKEN TABLO'!G97 -> 0 | G84: 0 | H84: ='DOLDURULMASI GEREKEN TABLO'!H97 -> 00:00:00 | I84: ='DOLDURULMASI GEREKEN TABLO'!Q97 -> 00:00:00 | J84: ='DOLDURULMASI GEREKEN TABLO'!S97 -> EVET | K84: 2022-12-31 | L84: TARİH UYUMLU | M84: ='DOLDURULMASI GEREKEN TABLO'!J97 -> 0 | N84: ='DOLDURULMASI GEREKEN TABLO'!K97 -> 0 | O84: ='DOLDURULMASI GEREKEN TABLO'!L97 -> 0 | P84: 44927 | Q84: 0 | R84: 0 | S84: 0 | T84: 0 | U84: ='DOLDURULMASI GEREKEN TABLO'!N97 -> 0 | V84: ='DOLDURULMASI GEREKEN TABLO'!P97 -> 0 | W84: ='DOLDURULMASI GEREKEN TABLO'!Q97 -> 0 | X84: 0 | Y84: 0 | Z84: 0 | AA84: ='DOLDURULMASI GEREKEN TABLO'!T97 -> 0 | AB84: FALSE | AC84: =VLOOKUP(AB84,'Aylık Yİ-ÜFE'!$D$1:$E$229,2,0) ->  | AD84: 2022-12 | AE84: =VLOOKUP(AD84,'Aylık Yİ-ÜFE'!$D$1:$E$229,2,0) -> 2021.19 | AF84: 1 | AG84: =IF(OR('DOLDURULMASI GEREKEN TABLO'!Q97="EVET",'DOLDURULMASI GEREKEN TABLO'!S97="EVET"),MAX(X84*AF84,X84),X84) -> 0 | AH84: =IF(OR('DOLDURULMASI GEREKEN TABLO'!Q97="EVET",'DOLDURULMASI GEREKEN TABLO'!S97="EVET"),MAX(Y84*AF84,Y84),Y84) -> 0 | AI84: 0 | AJ84: 0 | AK84: 0 | AL84: 0 | AM84: 0 | AO84: YD YAPILABİLİR | AP84: ='DOLDURULMASI GEREKEN TABLO'!U97 -> 0 | AQ84: 00:00:00 | AR84: ='DOLDURULMASI GEREKEN TABLO'!V97 -> 2023-06-30 | AS84: 0 | AT84: 0 | AU84: 45107 | AV84: 124 | AW84: 123.5 | AX84: 0 | AY84: 0 | AZ84: 0 | BA84: 0 | BB84: =IF(E84="EVET",0,'DOLDURULMASI GEREKEN TABLO'!W97) -> 0.1895 | BC84: 0 | BD84: 0 | BE84: 0 | BF84: 0 | BG84: 0 | BH84: 0 | BI84: 0
B85: 78 | C85: ='DOLDURULMASI GEREKEN TABLO'!D98 -> 0 | D85: ='DOLDURULMASI GEREKEN TABLO'!E98 -> 0 | E85: ='DOLDURULMASI GEREKEN TABLO'!F98 -> 0 | F85: ='DOLDURULMASI GEREKEN TABLO'!G98 -> 0 | G85: 0 | H85: ='DOLDURULMASI GEREKEN TABLO'!H98 -> 00:00:00 | I85: ='DOLDURULMASI GEREKEN TABLO'!Q98 -> 00:00:00 | J85: ='DOLDURULMASI GEREKEN TABLO'!S98 -> EVET | K85: 2022-12-31 | L85: TARİH UYUMLU | M85: ='DOLDURULMASI GEREKEN TABLO'!J98 -> 0 | N85: ='DOLDURULMASI GEREKEN TABLO'!K98 -> 0 | O85: ='DOLDURULMASI GEREKEN TABLO'!L98 -> 0 | P85: 44927 | Q85: 0 | R85: 0 | S85: 0 | T85: 0 | U85: ='DOLDURULMASI GEREKEN TABLO'!N98 -> 0 | V85: ='DOLDURULMASI GEREKEN TABLO'!P98 -> 0 | W85: ='DOLDURULMASI GEREKEN TABLO'!Q98 -> 0 | X85: 0 | Y85: 0 | Z85: 0 | AA85: ='DOLDURULMASI GEREKEN TABLO'!T98 -> 0 | AB85: FALSE | AC85: =VLOOKUP(AB85,'Aylık Yİ-ÜFE'!$D$1:$E$229,2,0) ->  | AD85: 2022-12 | AE85: =VLOOKUP(AD85,'Aylık Yİ-ÜFE'!$D$1:$E$229,2,0) -> 2021.19 | AF85: 1 | AG85: =IF(OR('DOLDURULMASI GEREKEN TABLO'!Q98="EVET",'DOLDURULMASI GEREKEN TABLO'!S98="EVET"),MAX(X85*AF85,X85),X85) -> 0 | AH85: =IF(OR('DOLDURULMASI GEREKEN TABLO'!Q98="EVET",'DOLDURULMASI GEREKEN TABLO'!S98="EVET"),MAX(Y85*AF85,Y85),Y85) -> 0 | AI85: 0 | AJ85: 0 | AK85: 0 | AL85: 0 | AM85: 0 | AO85: YD YAPILABİLİR | AP85: ='DOLDURULMASI GEREKEN TABLO'!U98 -> 0 | AQ85: 00:00:00 | AR85: ='DOLDURULMASI GEREKEN TABLO'!V98 -> 2023-06-30 | AS85: 0 | AT85: 0 | AU85: 45107 | AV85: 124 | AW85: 123.5 | AX85: 0 | AY85: 0 | AZ85: 0 | BA85: 0 | BB85: =IF(E85="EVET",0,'DOLDURULMASI GEREKEN TABLO'!W98) -> 0.1895 | BC85: 0 | BD85: 0 | BE85: 0 | BF85: 0 | BG85: 0 | BH85: 0 | BI85: 0
B86: 79 | C86: ='DOLDURULMASI GEREKEN TABLO'!D99 -> 0 | D86: ='DOLDURULMASI GEREKEN TABLO'!E99 -> 0 | E86: ='DOLDURULMASI GEREKEN TABLO'!F99 -> 0 | F86: ='DOLDURULMASI GEREKEN TABLO'!G99 -> 0 | G86: 0 | H86: ='DOLDURULMASI GEREKEN TABLO'!H99 -> 00:00:00 | I86: ='DOLDURULMASI GEREKEN TABLO'!Q99 -> 00:00:00 | J86: ='DOLDURULMASI GEREKEN TABLO'!S99 -> EVET | K86: 2022-12-31 | L86: TARİH UYUMLU | M86: ='DOLDURULMASI GEREKEN TABLO'!J99 -> 0 | N86: ='DOLDURULMASI GEREKEN TABLO'!K99 -> 0 | O86: ='DOLDURULMASI GEREKEN TABLO'!L99 -> 0 | P86: 44927 | Q86: 0 | R86: 0 | S86: 0 | T86: 0 | U86: ='DOLDURULMASI GEREKEN TABLO'!N99 -> 0 | V86: ='DOLDURULMASI GEREKEN TABLO'!P99 -> 0 | W86: ='DOLDURULMASI GEREKEN TABLO'!Q99 -> 0 | X86: 0 | Y86: 0 | Z86: 0 | AA86: ='DOLDURULMASI GEREKEN TABLO'!T99 -> 0 | AB86: FALSE | AC86: =VLOOKUP(AB86,'Aylık Yİ-ÜFE'!$D$1:$E$229,2,0) ->  | AD86: 2022-12 | AE86: =VLOOKUP(AD86,'Aylık Yİ-ÜFE'!$D$1:$E$229,2,0) -> 2021.19 | AF86: 1 | AG86: =IF(OR('DOLDURULMASI GEREKEN TABLO'!Q99="EVET",'DOLDURULMASI GEREKEN TABLO'!S99="EVET"),MAX(X86*AF86,X86),X86) -> 0 | AH86: =IF(OR('DOLDURULMASI GEREKEN TABLO'!Q99="EVET",'DOLDURULMASI GEREKEN TABLO'!S99="EVET"),MAX(Y86*AF86,Y86),Y86) -> 0 | AI86: 0 | AJ86: 0 | AK86: 0 | AL86: 0 | AM86: 0 | AO86: YD YAPILABİLİR | AP86: ='DOLDURULMASI GEREKEN TABLO'!U99 -> 0 | AQ86: 00:00:00 | AR86: ='DOLDURULMASI GEREKEN TABLO'!V99 -> 2023-06-30 | AS86: 0 | AT86: 0 | AU86: 45107 | AV86: 124 | AW86: 123.5 | AX86: 0 | AY86: 0 | AZ86: 0 | BA86: 0 | BB86: =IF(E86="EVET",0,'DOLDURULMASI GEREKEN TABLO'!W99) -> 0.1895 | BC86: 0 | BD86: 0 | BE86: 0 | BF86: 0 | BG86: 0 | BH86: 0 | BI86: 0
B87: 80 | C87: ='DOLDURULMASI GEREKEN TABLO'!D100 -> 0 | D87: ='DOLDURULMASI GEREKEN TABLO'!E100 -> 0 | E87: ='DOLDURULMASI GEREKEN TABLO'!F100 -> 0 | F87: ='DOLDURULMASI GEREKEN TABLO'!G100 -> 0 | G87: 0 | H87: ='DOLDURULMASI GEREKEN TABLO'!H100 -> 00:00:00 | I87: ='DOLDURULMASI GEREKEN TABLO'!Q100 -> 00:00:00 | J87: ='DOLDURULMASI GEREKEN TABLO'!S100 -> EVET | K87: 2022-12-31 | L87: TARİH UYUMLU | M87: ='DOLDURULMASI GEREKEN TABLO'!J100 -> 0 | N87: ='DOLDURULMASI GEREKEN TABLO'!K100 -> 0 | O87: ='DOLDURULMASI GEREKEN TABLO'!L100 -> 0 | P87: 44927 | Q87: 0 | R87: 0 | S87: 0 | T87: 0 | U87: ='DOLDURULMASI GEREKEN TABLO'!N100 -> 0 | V87: ='DOLDURULMASI GEREKEN TABLO'!P100 -> 0 | W87: ='DOLDURULMASI GEREKEN TABLO'!Q100 -> 0 | X87: 0 | Y87: 0 | Z87: 0 | AA87: ='DOLDURULMASI GEREKEN TABLO'!T100 -> 0 | AB87: FALSE | AC87: =VLOOKUP(AB87,'Aylık Yİ-ÜFE'!$D$1:$E$229,2,0) ->  | AD87: 2022-12 | AE87: =VLOOKUP(AD87,'Aylık Yİ-ÜFE'!$D$1:$E$229,2,0) -> 2021.19 | AF87: 1 | AG87: =IF(OR('DOLDURULMASI GEREKEN TABLO'!Q100="EVET",'DOLDURULMASI GEREKEN TABLO'!S100="EVET"),MAX(X87*AF87,X87),X87) -> 0 | AH87: =IF(OR('DOLDURULMASI GEREKEN TABLO'!Q100="EVET",'DOLDURULMASI GEREKEN TABLO'!S100="EVET"),MAX(Y87*AF87,Y87),Y87) -> 0 | AI87: 0 | AJ87: 0 | AK87: 0 | AL87: 0 | AM87: 0 | AO87: YD YAPILABİLİR | AP87: ='DOLDURULMASI GEREKEN TABLO'!U100 -> 0 | AQ87: 00:00:00 | AR87: ='DOLDURULMASI GEREKEN TABLO'!V100 -> 2023-06-30 | AS87: 0 | AT87: 0 | AU87: 45107 | AV87: 124 | AW87: 123.5 | AX87: 0 | AY87: 0 | AZ87: 0 | BA87: 0 | BB87: =IF(E87="EVET",0,'DOLDURULMASI GEREKEN TABLO'!W100) -> 0.1895 | BC87: 0 | BD87: 0 | BE87: 0 | BF87: 0 | BG87: 0 | BH87: 0 | BI87: 0
B88: 81 | C88: ='DOLDURULMASI GEREKEN TABLO'!D101 -> 0 | D88: ='DOLDURULMASI GEREKEN TABLO'!E101 -> 0 | E88: ='DOLDURULMASI GEREKEN TABLO'!F101 -> 0 | F88: ='DOLDURULMASI GEREKEN TABLO'!G101 -> 0 | G88: 0 | H88: ='DOLDURULMASI GEREKEN TABLO'!H101 -> 00:00:00 | I88: ='DOLDURULMASI GEREKEN TABLO'!Q101 -> 00:00:00 | J88: ='DOLDURULMASI GEREKEN TABLO'!S101 -> EVET | K88: 2022-12-31 | L88: TARİH UYUMLU | M88: ='DOLDURULMASI GEREKEN TABLO'!J101 -> 0 | N88: ='DOLDURULMASI GEREKEN TABLO'!K101 -> 0 | O88: ='DOLDURULMASI GEREKEN TABLO'!L101 -> 0 | P88: 44927 | Q88: 0 | R88: 0 | S88: 0 | T88: 0 | U88: ='DOLDURULMASI GEREKEN TABLO'!N101 -> 0 | V88: ='DOLDURULMASI GEREKEN TABLO'!P101 -> 0 | W88: ='DOLDURULMASI GEREKEN TABLO'!Q101 -> 0 | X88: 0 | Y88: 0 | Z88: 0 | AA88: ='DOLDURULMASI GEREKEN TABLO'!T101 -> 0 | AB88: FALSE | AC88: =VLOOKUP(AB88,'Aylık Yİ-ÜFE'!$D$1:$E$229,2,0) ->  | AD88: 2022-12 | AE88: =VLOOKUP(AD88,'Aylık Yİ-ÜFE'!$D$1:$E$229,2,0) -> 2021.19 | AF88: 1 | AG88: =IF(OR('DOLDURULMASI GEREKEN TABLO'!Q101="EVET",'DOLDURULMASI GEREKEN TABLO'!S101="EVET"),MAX(X88*AF88,X88),X88) -> 0 | AH88: =IF(OR('DOLDURULMASI GEREKEN TABLO'!Q101="EVET",'DOLDURULMASI GEREKEN TABLO'!S101="EVET"),MAX(Y88*AF88,Y88),Y88) -> 0 | AI88: 0 | AJ88: 0 | AK88: 0 | AL88: 0 | AM88: 0 | AO88: YD YAPILABİLİR | AP88: ='DOLDURULMASI GEREKEN TABLO'!U101 -> 0 | AQ88: 00:00:00 | AR88: ='DOLDURULMASI GEREKEN TABLO'!V101 -> 2023-06-30 | AS88: 0 | AT88: 0 | AU88: 45107 | AV88: 124 | AW88: 123.5 | AX88: 0 | AY88: 0 | AZ88: 0 | BA88: 0 | BB88: =IF(E88="EVET",0,'DOLDURULMASI GEREKEN TABLO'!W101) -> 0.1895 | BC88: 0 | BD88: 0 | BE88: 0 | BF88: 0 | BG88: 0 | BH88: 0 | BI88: 0
B89: 82 | C89: ='DOLDURULMASI GEREKEN TABLO'!D102 -> 0 | D89: ='DOLDURULMASI GEREKEN TABLO'!E102 -> 0 | E89: ='DOLDURULMASI GEREKEN TABLO'!F102 -> 0 | F89: ='DOLDURULMASI GEREKEN TABLO'!G102 -> 0 | G89: 0 | H89: ='DOLDURULMASI GEREKEN TABLO'!H102 -> 00:00:00 | I89: ='DOLDURULMASI GEREKEN TABLO'!Q102 -> 00:00:00 | J89: ='DOLDURULMASI GEREKEN TABLO'!S102 -> EVET | K89: 2022-12-31 | L89: TARİH UYUMLU | M89: ='DOLDURULMASI GEREKEN TABLO'!J102 -> 0 | N89: ='DOLDURULMASI GEREKEN TABLO'!K102 -> 0 | O89: ='DOLDURULMASI GEREKEN TABLO'!L102 -> 0 | P89: 44927 | Q89: 0 | R89: 0 | S89: 0 | T89: 0 | U89: ='DOLDURULMASI GEREKEN TABLO'!N102 -> 0 | V89: ='DOLDURULMASI GEREKEN TABLO'!P102 -> 0 | W89: ='DOLDURULMASI GEREKEN TABLO'!Q102 -> 0 | X89: 0 | Y89: 0 | Z89: 0 | AA89: ='DOLDURULMASI GEREKEN TABLO'!T102 -> 0 | AB89: FALSE | AC89: =VLOOKUP(AB89,'Aylık Yİ-ÜFE'!$D$1:$E$229,2,0) ->  | AD89: 2022-12 | AE89: =VLOOKUP(AD89,'Aylık Yİ-ÜFE'!$D$1:$E$229,2,0) -> 2021.19 | AF89: 1 | AG89: =IF(OR('DOLDURULMASI GEREKEN TABLO'!Q102="EVET",'DOLDURULMASI GEREKEN TABLO'!S102="EVET"),MAX(X89*AF89,X89),X89) -> 0 | AH89: =IF(OR('DOLDURULMASI GEREKEN TABLO'!Q102="EVET",'DOLDURULMASI GEREKEN TABLO'!S102="EVET"),MAX(Y89*AF89,Y89),Y89) -> 0 | AI89: 0 | AJ89: 0 | AK89: 0 | AL89: 0 | AM89: 0 | AO89: YD YAPILABİLİR | AP89: ='DOLDURULMASI GEREKEN TABLO'!U102 -> 0 | AQ89: 00:00:00 | AR89: ='DOLDURULMASI GEREKEN TABLO'!V102 -> 2023-06-30 | AS89: 0 | AT89: 0 | AU89: 45107 | AV89: 124 | AW89: 123.5 | AX89: 0 | AY89: 0 | AZ89: 0 | BA89: 0 | BB89: =IF(E89="EVET",0,'DOLDURULMASI GEREKEN TABLO'!W102) -> 0.1895 | BC89: 0 | BD89: 0 | BE89: 0 | BF89: 0 | BG89: 0 | BH89: 0 | BI89: 0
B90: 83 | C90: ='DOLDURULMASI GEREKEN TABLO'!D103 -> 0 | D90: ='DOLDURULMASI GEREKEN TABLO'!E103 -> 0 | E90: ='DOLDURULMASI GEREKEN TABLO'!F103 -> 0 | F90: ='DOLDURULMASI GEREKEN TABLO'!G103 -> 0 | G90: 0 | H90: ='DOLDURULMASI GEREKEN TABLO'!H103 -> 00:00:00 | I90: ='DOLDURULMASI GEREKEN TABLO'!Q103 -> 00:00:00 | J90: ='DOLDURULMASI GEREKEN TABLO'!S103 -> EVET | K90: 2022-12-31 | L90: TARİH UYUMLU | M90: ='DOLDURULMASI GEREKEN TABLO'!J103 -> 0 | N90: ='DOLDURULMASI GEREKEN TABLO'!K103 -> 0 | O90: ='DOLDURULMASI GEREKEN TABLO'!L103 -> 0 | P90: 44927 | Q90: 0 | R90: 0 | S90: 0 | T90: 0 | U90: ='DOLDURULMASI GEREKEN TABLO'!N103 -> 0 | V90: ='DOLDURULMASI GEREKEN TABLO'!P103 -> 0 | W90: ='DOLDURULMASI GEREKEN TABLO'!Q103 -> 0 | X90: 0 | Y90: 0 | Z90: 0 | AA90: ='DOLDURULMASI GEREKEN TABLO'!T103 -> 0 | AB90: FALSE | AC90: =VLOOKUP(AB90,'Aylık Yİ-ÜFE'!$D$1:$E$229,2,0) ->  | AD90: 2022-12 | AE90: =VLOOKUP(AD90,'Aylık Yİ-ÜFE'!$D$1:$E$229,2,0) -> 2021.19 | AF90: 1 | AG90: =IF(OR('DOLDURULMASI GEREKEN TABLO'!Q103="EVET",'DOLDURULMASI GEREKEN TABLO'!S103="EVET"),MAX(X90*AF90,X90),X90) -> 0 | AH90: =IF(OR('DOLDURULMASI GEREKEN TABLO'!Q103="EVET",'DOLDURULMASI GEREKEN TABLO'!S103="EVET"),MAX(Y90*AF90,Y90),Y90) -> 0 | AI90: 0 | AJ90: 0 | AK90: 0 | AL90: 0 | AM90: 0 | AO90: YD YAPILABİLİR | AP90: ='DOLDURULMASI GEREKEN TABLO'!U103 -> 0 | AQ90: 00:00:00 | AR90: ='DOLDURULMASI GEREKEN TABLO'!V103 -> 2023-06-30 | AS90: 0 | AT90: 0 | AU90: 45107 | AV90: 124 | AW90: 123.5 | AX90: 0 | AY90: 0 | AZ90: 0 | BA90: 0 | BB90: =IF(E90="EVET",0,'DOLDURULMASI GEREKEN TABLO'!W103) -> 0.1895 | BC90: 0 | BD90: 0 | BE90: 0 | BF90: 0 | BG90: 0 | BH90: 0 | BI90: 0
B91: 84 | C91: ='DOLDURULMASI GEREKEN TABLO'!D104 -> 0 | D91: ='DOLDURULMASI GEREKEN TABLO'!E104 -> 0 | E91: ='DOLDURULMASI GEREKEN TABLO'!F104 -> 0 | F91: ='DOLDURULMASI GEREKEN TABLO'!G104 -> 0 | G91: 0 | H91: ='DOLDURULMASI GEREKEN TABLO'!H104 -> 00:00:00 | I91: ='DOLDURULMASI GEREKEN TABLO'!Q104 -> 00:00:00 | J91: ='DOLDURULMASI GEREKEN TABLO'!S104 -> EVET | K91: 2022-12-31 | L91: TARİH UYUMLU | M91: ='DOLDURULMASI GEREKEN TABLO'!J104 -> 0 | N91: ='DOLDURULMASI GEREKEN TABLO'!K104 -> 0 | O91: ='DOLDURULMASI GEREKEN TABLO'!L104 -> 0 | P91: 44927 | Q91: 0 | R91: 0 | S91: 0 | T91: 0 | U91: ='DOLDURULMASI GEREKEN TABLO'!N104 -> 0 | V91: ='DOLDURULMASI GEREKEN TABLO'!P104 -> 0 | W91: ='DOLDURULMASI GEREKEN TABLO'!Q104 -> 0 | X91: 0 | Y91: 0 | Z91: 0 | AA91: ='DOLDURULMASI GEREKEN TABLO'!T104 -> 0 | AB91: FALSE | AC91: =VLOOKUP(AB91,'Aylık Yİ-ÜFE'!$D$1:$E$229,2,0) ->  | AD91: 2022-12 | AE91: =VLOOKUP(AD91,'Aylık Yİ-ÜFE'!$D$1:$E$229,2,0) -> 2021.19 | AF91: 1 | AG91: =IF(OR('DOLDURULMASI GEREKEN TABLO'!Q104="EVET",'DOLDURULMASI GEREKEN TABLO'!S104="EVET"),MAX(X91*AF91,X91),X91) -> 0 | AH91: =IF(OR('DOLDURULMASI GEREKEN TABLO'!Q104="EVET",'DOLDURULMASI GEREKEN TABLO'!S104="EVET"),MAX(Y91*AF91,Y91),Y91) -> 0 | AI91: 0 | AJ91: 0 | AK91: 0 | AL91: 0 | AM91: 0 | AO91: YD YAPILABİLİR | AP91: ='DOLDURULMASI GEREKEN TABLO'!U104 -> 0 | AQ91: 00:00:00 | AR91: ='DOLDURULMASI GEREKEN TABLO'!V104 -> 2023-06-30 | AS91: 0 | AT91: 0 | AU91: 45107 | AV91: 124 | AW91: 123.5 | AX91: 0 | AY91: 0 | AZ91: 0 | BA91: 0 | BB91: =IF(E91="EVET",0,'DOLDURULMASI GEREKEN TABLO'!W104) -> 0.1895 | BC91: 0 | BD91: 0 | BE91: 0 | BF91: 0 | BG91: 0 | BH91: 0 | BI91: 0
B92: 85 | C92: ='DOLDURULMASI GEREKEN TABLO'!D105 -> 0 | D92: ='DOLDURULMASI GEREKEN TABLO'!E105 -> 0 | E92: ='DOLDURULMASI GEREKEN TABLO'!F105 -> 0 | F92: ='DOLDURULMASI GEREKEN TABLO'!G105 -> 0 | G92: 0 | H92: ='DOLDURULMASI GEREKEN TABLO'!H105 -> 00:00:00 | I92: ='DOLDURULMASI GEREKEN TABLO'!Q105 -> 00:00:00 | J92: ='DOLDURULMASI GEREKEN TABLO'!S105 -> EVET | K92: 2022-12-31 | L92: TARİH UYUMLU | M92: ='DOLDURULMASI GEREKEN TABLO'!J105 -> 0 | N92: ='DOLDURULMASI GEREKEN TABLO'!K105 -> 0 | O92: ='DOLDURULMASI GEREKEN TABLO'!L105 -> 0 | P92: 44927 | Q92: 0 | R92: 0 | S92: 0 | T92: 0 | U92: ='DOLDURULMASI GEREKEN TABLO'!N105 -> 0 | V92: ='DOLDURULMASI GEREKEN TABLO'!P105 -> 0 | W92: ='DOLDURULMASI GEREKEN TABLO'!Q105 -> 0 | X92: 0 | Y92: 0 | Z92: 0 | AA92: ='DOLDURULMASI GEREKEN TABLO'!T105 -> 0 | AB92: FALSE | AC92: =VLOOKUP(AB92,'Aylık Yİ-ÜFE'!$D$1:$E$229,2,0) ->  | AD92: 2022-12 | AE92: =VLOOKUP(AD92,'Aylık Yİ-ÜFE'!$D$1:$E$229,2,0) -> 2021.19 | AF92: 1 | AG92: =IF(OR('DOLDURULMASI GEREKEN TABLO'!Q105="EVET",'DOLDURULMASI GEREKEN TABLO'!S105="EVET"),MAX(X92*AF92,X92),X92) -> 0 | AH92: =IF(OR('DOLDURULMASI GEREKEN TABLO'!Q105="EVET",'DOLDURULMASI GEREKEN TABLO'!S105="EVET"),MAX(Y92*AF92,Y92),Y92) -> 0 | AI92: 0 | AJ92: 0 | AK92: 0 | AL92: 0 | AM92: 0 | AO92: YD YAPILABİLİR | AP92: ='DOLDURULMASI GEREKEN TABLO'!U105 -> 0 | AQ92: 00:00:00 | AR92: ='DOLDURULMASI GEREKEN TABLO'!V105 -> 2023-06-30 | AS92: 0 | AT92: 0 | AU92: 45107 | AV92: 124 | AW92: 123.5 | AX92: 0 | AY92: 0 | AZ92: 0 | BA92: 0 | BB92: =IF(E92="EVET",0,'DOLDURULMASI GEREKEN TABLO'!W105) -> 0.1895 | BC92: 0 | BD92: 0 | BE92: 0 | BF92: 0 | BG92: 0 | BH92: 0 | BI92: 0
B93: 86 | C93: ='DOLDURULMASI GEREKEN TABLO'!D106 -> 0 | D93: ='DOLDURULMASI GEREKEN TABLO'!E106 -> 0 | E93: ='DOLDURULMASI GEREKEN TABLO'!F106 -> 0 | F93: ='DOLDURULMASI GEREKEN TABLO'!G106 -> 0 | G93: 0 | H93: ='DOLDURULMASI GEREKEN TABLO'!H106 -> 00:00:00 | I93: ='DOLDURULMASI GEREKEN TABLO'!Q106 -> 00:00:00 | J93: ='DOLDURULMASI GEREKEN TABLO'!S106 -> EVET | K93: 2022-12-31 | L93: TARİH UYUMLU | M93: ='DOLDURULMASI GEREKEN TABLO'!J106 -> 0 | N93: ='DOLDURULMASI GEREKEN TABLO'!K106 -> 0 | O93: ='DOLDURULMASI GEREKEN TABLO'!L106 -> 0 | P93: 44927 | Q93: 0 | R93: 0 | S93: 0 | T93: 0 | U93: ='DOLDURULMASI GEREKEN TABLO'!N106 -> 0 | V93: ='DOLDURULMASI GEREKEN TABLO'!P106 -> 0 | W93: ='DOLDURULMASI GEREKEN TABLO'!Q106 -> 0 | X93: 0 | Y93: 0 | Z93: 0 | AA93: ='DOLDURULMASI GEREKEN TABLO'!T106 -> 0 | AB93: FALSE | AC93: =VLOOKUP(AB93,'Aylık Yİ-ÜFE'!$D$1:$E$229,2,0) ->  | AD93: 2022-12 | AE93: =VLOOKUP(AD93,'Aylık Yİ-ÜFE'!$D$1:$E$229,2,0) -> 2021.19 | AF93: 1 | AG93: =IF(OR('DOLDURULMASI GEREKEN TABLO'!Q106="EVET",'DOLDURULMASI GEREKEN TABLO'!S106="EVET"),MAX(X93*AF93,X93),X93) -> 0 | AH93: =IF(OR('DOLDURULMASI GEREKEN TABLO'!Q106="EVET",'DOLDURULMASI GEREKEN TABLO'!S106="EVET"),MAX(Y93*AF93,Y93),Y93) -> 0 | AI93: 0 | AJ93: 0 | AK93: 0 | AL93: 0 | AM93: 0 | AO93: YD YAPILABİLİR | AP93: ='DOLDURULMASI GEREKEN TABLO'!U106 -> 0 | AQ93: 00:00:00 | AR93: ='DOLDURULMASI GEREKEN TABLO'!V106 -> 2023-06-30 | AS93: 0 | AT93: 0 | AU93: 45107 | AV93: 124 | AW93: 123.5 | AX93: 0 | AY93: 0 | AZ93: 0 | BA93: 0 | BB93: =IF(E93="EVET",0,'DOLDURULMASI GEREKEN TABLO'!W106) -> 0.1895 | BC93: 0 | BD93: 0 | BE93: 0 | BF93: 0 | BG93: 0 | BH93: 0 | BI93: 0
B94: 87 | C94: ='DOLDURULMASI GEREKEN TABLO'!D107 -> 0 | D94: ='DOLDURULMASI GEREKEN TABLO'!E107 -> 0 | E94: ='DOLDURULMASI GEREKEN TABLO'!F107 -> 0 | F94: ='DOLDURULMASI GEREKEN TABLO'!G107 -> 0 | G94: 0 | H94: ='DOLDURULMASI GEREKEN TABLO'!H107 -> 00:00:00 | I94: ='DOLDURULMASI GEREKEN TABLO'!Q107 -> 00:00:00 | J94: ='DOLDURULMASI GEREKEN TABLO'!S107 -> EVET | K94: 2022-12-31 | L94: TARİH UYUMLU | M94: ='DOLDURULMASI GEREKEN TABLO'!J107 -> 0 | N94: ='DOLDURULMASI GEREKEN TABLO'!K107 -> 0 | O94: ='DOLDURULMASI GEREKEN TABLO'!L107 -> 0 | P94: 44927 | Q94: 0 | R94: 0 | S94: 0 | T94: 0 | U94: ='DOLDURULMASI GEREKEN TABLO'!N107 -> 0 | V94: ='DOLDURULMASI GEREKEN TABLO'!P107 -> 0 | W94: ='DOLDURULMASI GEREKEN TABLO'!Q107 -> 0 | X94: 0 | Y94: 0 | Z94: 0 | AA94: ='DOLDURULMASI GEREKEN TABLO'!T107 -> 0 | AB94: FALSE | AC94: =VLOOKUP(AB94,'Aylık Yİ-ÜFE'!$D$1:$E$229,2,0) ->  | AD94: 2022-12 | AE94: =VLOOKUP(AD94,'Aylık Yİ-ÜFE'!$D$1:$E$229,2,0) -> 2021.19 | AF94: 1 | AG94: =IF(OR('DOLDURULMASI GEREKEN TABLO'!Q107="EVET",'DOLDURULMASI GEREKEN TABLO'!S107="EVET"),MAX(X94*AF94,X94),X94) -> 0 | AH94: =IF(OR('DOLDURULMASI GEREKEN TABLO'!Q107="EVET",'DOLDURULMASI GEREKEN TABLO'!S107="EVET"),MAX(Y94*AF94,Y94),Y94) -> 0 | AI94: 0 | AJ94: 0 | AK94: 0 | AL94: 0 | AM94: 0 | AO94: YD YAPILABİLİR | AP94: ='DOLDURULMASI GEREKEN TABLO'!U107 -> 0 | AQ94: 00:00:00 | AR94: ='DOLDURULMASI GEREKEN TABLO'!V107 -> 2023-06-30 | AS94: 0 | AT94: 0 | AU94: 45107 | AV94: 124 | AW94: 123.5 | AX94: 0 | AY94: 0 | AZ94: 0 | BA94: 0 | BB94: =IF(E94="EVET",0,'DOLDURULMASI GEREKEN TABLO'!W107) -> 0.1895 | BC94: 0 | BD94: 0 | BE94: 0 | BF94: 0 | BG94: 0 | BH94: 0 | BI94: 0
B95: 88 | C95: ='DOLDURULMASI GEREKEN TABLO'!D108 -> 0 | D95: ='DOLDURULMASI GEREKEN TABLO'!E108 -> 0 | E95: ='DOLDURULMASI GEREKEN TABLO'!F108 -> 0 | F95: ='DOLDURULMASI GEREKEN TABLO'!G108 -> 0 | G95: 0 | H95: ='DOLDURULMASI GEREKEN TABLO'!H108 -> 00:00:00 | I95: ='DOLDURULMASI GEREKEN TABLO'!Q108 -> 00:00:00 | J95: ='DOLDURULMASI GEREKEN TABLO'!S108 -> EVET | K95: 2022-12-31 | L95: TARİH UYUMLU | M95: ='DOLDURULMASI GEREKEN TABLO'!J108 -> 0 | N95: ='DOLDURULMASI GEREKEN TABLO'!K108 -> 0 | O95: ='DOLDURULMASI GEREKEN TABLO'!L108 -> 0 | P95: 44927 | Q95: 0 | R95: 0 | S95: 0 | T95: 0 | U95: ='DOLDURULMASI GEREKEN TABLO'!N108 -> 0 | V95: ='DOLDURULMASI GEREKEN TABLO'!P108 -> 0 | W95: ='DOLDURULMASI GEREKEN TABLO'!Q108 -> 0 | X95: 0 | Y95: 0 | Z95: 0 | AA95: ='DOLDURULMASI GEREKEN TABLO'!T108 -> 0 | AB95: FALSE | AC95: =VLOOKUP(AB95,'Aylık Yİ-ÜFE'!$D$1:$E$229,2,0) ->  | AD95: 2022-12 | AE95: =VLOOKUP(AD95,'Aylık Yİ-ÜFE'!$D$1:$E$229,2,0) -> 2021.19 | AF95: 1 | AG95: =IF(OR('DOLDURULMASI GEREKEN TABLO'!Q108="EVET",'DOLDURULMASI GEREKEN TABLO'!S108="EVET"),MAX(X95*AF95,X95),X95) -> 0 | AH95: =IF(OR('DOLDURULMASI GEREKEN TABLO'!Q108="EVET",'DOLDURULMASI GEREKEN TABLO'!S108="EVET"),MAX(Y95*AF95,Y95),Y95) -> 0 | AI95: 0 | AJ95: 0 | AK95: 0 | AL95: 0 | AM95: 0 | AO95: YD YAPILABİLİR | AP95: ='DOLDURULMASI GEREKEN TABLO'!U108 -> 0 | AQ95: 00:00:00 | AR95: ='DOLDURULMASI GEREKEN TABLO'!V108 -> 2023-06-30 | AS95: 0 | AT95: 0 | AU95: 45107 | AV95: 124 | AW95: 123.5 | AX95: 0 | AY95: 0 | AZ95: 0 | BA95: 0 | BB95: =IF(E95="EVET",0,'DOLDURULMASI GEREKEN TABLO'!W108) -> 0.1895 | BC95: 0 | BD95: 0 | BE95: 0 | BF95: 0 | BG95: 0 | BH95: 0 | BI95: 0
B96: 89 | C96: ='DOLDURULMASI GEREKEN TABLO'!D109 -> 0 | D96: ='DOLDURULMASI GEREKEN TABLO'!E109 -> 0 | E96: ='DOLDURULMASI GEREKEN TABLO'!F109 -> 0 | F96: ='DOLDURULMASI GEREKEN TABLO'!G109 -> 0 | G96: 0 | H96: ='DOLDURULMASI GEREKEN TABLO'!H109 -> 00:00:00 | I96: ='DOLDURULMASI GEREKEN TABLO'!Q109 -> 00:00:00 | J96: ='DOLDURULMASI GEREKEN TABLO'!S109 -> EVET | K96: 2022-12-31 | L96: TARİH UYUMLU | M96: ='DOLDURULMASI GEREKEN TABLO'!J109 -> 0 | N96: ='DOLDURULMASI GEREKEN TABLO'!K109 -> 0 | O96: ='DOLDURULMASI GEREKEN TABLO'!L109 -> 0 | P96: 44927 | Q96: 0 | R96: 0 | S96: 0 | T96: 0 | U96: ='DOLDURULMASI GEREKEN TABLO'!N109 -> 0 | V96: ='DOLDURULMASI GEREKEN TABLO'!P109 -> 0 | W96: ='DOLDURULMASI GEREKEN TABLO'!Q109 -> 0 | X96: 0 | Y96: 0 | Z96: 0 | AA96: ='DOLDURULMASI GEREKEN TABLO'!T109 -> 0 | AB96: FALSE | AC96: =VLOOKUP(AB96,'Aylık Yİ-ÜFE'!$D$1:$E$229,2,0) ->  | AD96: 2022-12 | AE96: =VLOOKUP(AD96,'Aylık Yİ-ÜFE'!$D$1:$E$229,2,0) -> 2021.19 | AF96: 1 | AG96: =IF(OR('DOLDURULMASI GEREKEN TABLO'!Q109="EVET",'DOLDURULMASI GEREKEN TABLO'!S109="EVET"),MAX(X96*AF96,X96),X96) -> 0 | AH96: =IF(OR('DOLDURULMASI GEREKEN TABLO'!Q109="EVET",'DOLDURULMASI GEREKEN TABLO'!S109="EVET"),MAX(Y96*AF96,Y96),Y96) -> 0 | AI96: 0 | AJ96: 0 | AK96: 0 | AL96: 0 | AM96: 0 | AO96: YD YAPILABİLİR | AP96: ='DOLDURULMASI GEREKEN TABLO'!U109 -> 0 | AQ96: 00:00:00 | AR96: ='DOLDURULMASI GEREKEN TABLO'!V109 -> 2023-06-30 | AS96: 0 | AT96: 0 | AU96: 45107 | AV96: 124 | AW96: 123.5 | AX96: 0 | AY96: 0 | AZ96: 0 | BA96: 0 | BB96: =IF(E96="EVET",0,'DOLDURULMASI GEREKEN TABLO'!W109) -> 0.1895 | BC96: 0 | BD96: 0 | BE96: 0 | BF96: 0 | BG96: 0 | BH96: 0 | BI96: 0
B97: 90 | C97: ='DOLDURULMASI GEREKEN TABLO'!D110 -> 0 | D97: ='DOLDURULMASI GEREKEN TABLO'!E110 -> 0 | E97: ='DOLDURULMASI GEREKEN TABLO'!F110 -> 0 | F97: ='DOLDURULMASI GEREKEN TABLO'!G110 -> 0 | G97: 0 | H97: ='DOLDURULMASI GEREKEN TABLO'!H110 -> 00:00:00 | I97: ='DOLDURULMASI GEREKEN TABLO'!Q110 -> 00:00:00 | J97: ='DOLDURULMASI GEREKEN TABLO'!S110 -> EVET | K97: 2022-12-31 | L97: TARİH UYUMLU | M97: ='DOLDURULMASI GEREKEN TABLO'!J110 -> 0 | N97: ='DOLDURULMASI GEREKEN TABLO'!K110 -> 0 | O97: ='DOLDURULMASI GEREKEN TABLO'!L110 -> 0 | P97: 44927 | Q97: 0 | R97: 0 | S97: 0 | T97: 0 | U97: ='DOLDURULMASI GEREKEN TABLO'!N110 -> 0 | V97: ='DOLDURULMASI GEREKEN TABLO'!P110 -> 0 | W97: ='DOLDURULMASI GEREKEN TABLO'!Q110 -> 0 | X97: 0 | Y97: 0 | Z97: 0 | AA97: ='DOLDURULMASI GEREKEN TABLO'!T110 -> 0 | AB97: FALSE | AC97: =VLOOKUP(AB97,'Aylık Yİ-ÜFE'!$D$1:$E$229,2,0) ->  | AD97: 2022-12 | AE97: =VLOOKUP(AD97,'Aylık Yİ-ÜFE'!$D$1:$E$229,2,0) -> 2021.19 | AF97: 1 | AG97: =IF(OR('DOLDURULMASI GEREKEN TABLO'!Q110="EVET",'DOLDURULMASI GEREKEN TABLO'!S110="EVET"),MAX(X97*AF97,X97),X97) -> 0 | AH97: =IF(OR('DOLDURULMASI GEREKEN TABLO'!Q110="EVET",'DOLDURULMASI GEREKEN TABLO'!S110="EVET"),MAX(Y97*AF97,Y97),Y97) -> 0 | AI97: 0 | AJ97: 0 | AK97: 0 | AL97: 0 | AM97: 0 | AO97: YD YAPILABİLİR | AP97: ='DOLDURULMASI GEREKEN TABLO'!U110 -> 0 | AQ97: 00:00:00 | AR97: ='DOLDURULMASI GEREKEN TABLO'!V110 -> 2023-06-30 | AS97: 0 | AT97: 0 | AU97: 45107 | AV97: 124 | AW97: 123.5 | AX97: 0 | AY97: 0 | AZ97: 0 | BA97: 0 | BB97: =IF(E97="EVET",0,'DOLDURULMASI GEREKEN TABLO'!W110) -> 0.1895 | BC97: 0 | BD97: 0 | BE97: 0 | BF97: 0 | BG97: 0 | BH97: 0 | BI97: 0
B98: 91 | C98: ='DOLDURULMASI GEREKEN TABLO'!D111 -> 0 | D98: ='DOLDURULMASI GEREKEN TABLO'!E111 -> 0 | E98: ='DOLDURULMASI GEREKEN TABLO'!F111 -> 0 | F98: ='DOLDURULMASI GEREKEN TABLO'!G111 -> 0 | G98: 0 | H98: ='DOLDURULMASI GEREKEN TABLO'!H111 -> 00:00:00 | I98: ='DOLDURULMASI GEREKEN TABLO'!Q111 -> 00:00:00 | J98: ='DOLDURULMASI GEREKEN TABLO'!S111 -> EVET | K98: 2022-12-31 | L98: TARİH UYUMLU | M98: ='DOLDURULMASI GEREKEN TABLO'!J111 -> 0 | N98: ='DOLDURULMASI GEREKEN TABLO'!K111 -> 0 | O98: ='DOLDURULMASI GEREKEN TABLO'!L111 -> 0 | P98: 44927 | Q98: 0 | R98: 0 | S98: 0 | T98: 0 | U98: ='DOLDURULMASI GEREKEN TABLO'!N111 -> 0 | V98: ='DOLDURULMASI GEREKEN TABLO'!P111 -> 0 | W98: ='DOLDURULMASI GEREKEN TABLO'!Q111 -> 0 | X98: 0 | Y98: 0 | Z98: 0 | AA98: ='DOLDURULMASI GEREKEN TABLO'!T111 -> 0 | AB98: FALSE | AC98: =VLOOKUP(AB98,'Aylık Yİ-ÜFE'!$D$1:$E$229,2,0) ->  | AD98: 2022-12 | AE98: =VLOOKUP(AD98,'Aylık Yİ-ÜFE'!$D$1:$E$229,2,0) -> 2021.19 | AF98: 1 | AG98: =IF(OR('DOLDURULMASI GEREKEN TABLO'!Q111="EVET",'DOLDURULMASI GEREKEN TABLO'!S111="EVET"),MAX(X98*AF98,X98),X98) -> 0 | AH98: =IF(OR('DOLDURULMASI GEREKEN TABLO'!Q111="EVET",'DOLDURULMASI GEREKEN TABLO'!S111="EVET"),MAX(Y98*AF98,Y98),Y98) -> 0 | AI98: 0 | AJ98: 0 | AK98: 0 | AL98: 0 | AM98: 0 | AO98: YD YAPILABİLİR | AP98: ='DOLDURULMASI GEREKEN TABLO'!U111 -> 0 | AQ98: 00:00:00 | AR98: ='DOLDURULMASI GEREKEN TABLO'!V111 -> 2023-06-30 | AS98: 0 | AT98: 0 | AU98: 45107 | AV98: 124 | AW98: 123.5 | AX98: 0 | AY98: 0 | AZ98: 0 | BA98: 0 | BB98: =IF(E98="EVET",0,'DOLDURULMASI GEREKEN TABLO'!W111) -> 0.1895 | BC98: 0 | BD98: 0 | BE98: 0 | BF98: 0 | BG98: 0 | BH98: 0 | BI98: 0
B99: 92 | C99: ='DOLDURULMASI GEREKEN TABLO'!D112 -> 0 | D99: ='DOLDURULMASI GEREKEN TABLO'!E112 -> 0 | E99: ='DOLDURULMASI GEREKEN TABLO'!F112 -> 0 | F99: ='DOLDURULMASI GEREKEN TABLO'!G112 -> 0 | G99: 0 | H99: ='DOLDURULMASI GEREKEN TABLO'!H112 -> 00:00:00 | I99: ='DOLDURULMASI GEREKEN TABLO'!Q112 -> 00:00:00 | J99: ='DOLDURULMASI GEREKEN TABLO'!S112 -> EVET | K99: 2022-12-31 | L99: TARİH UYUMLU | M99: ='DOLDURULMASI GEREKEN TABLO'!J112 -> 0 | N99: ='DOLDURULMASI GEREKEN TABLO'!K112 -> 0 | O99: ='DOLDURULMASI GEREKEN TABLO'!L112 -> 0 | P99: 44927 | Q99: 0 | R99: 0 | S99: 0 | T99: 0 | U99: ='DOLDURULMASI GEREKEN TABLO'!N112 -> 0 | V99: ='DOLDURULMASI GEREKEN TABLO'!P112 -> 0 | W99: ='DOLDURULMASI GEREKEN TABLO'!Q112 -> 0 | X99: 0 | Y99: 0 | Z99: 0 | AA99: ='DOLDURULMASI GEREKEN TABLO'!T112 -> 0 | AB99: FALSE | AC99: =VLOOKUP(AB99,'Aylık Yİ-ÜFE'!$D$1:$E$229,2,0) ->  | AD99: 2022-12 | AE99: =VLOOKUP(AD99,'Aylık Yİ-ÜFE'!$D$1:$E$229,2,0) -> 2021.19 | AF99: 1 | AG99: =IF(OR('DOLDURULMASI GEREKEN TABLO'!Q112="EVET",'DOLDURULMASI GEREKEN TABLO'!S112="EVET"),MAX(X99*AF99,X99),X99) -> 0 | AH99: =IF(OR('DOLDURULMASI GEREKEN TABLO'!Q112="EVET",'DOLDURULMASI GEREKEN TABLO'!S112="EVET"),MAX(Y99*AF99,Y99),Y99) -> 0 | AI99: 0 | AJ99: 0 | AK99: 0 | AL99: 0 | AM99: 0 | AO99: YD YAPILABİLİR | AP99: ='DOLDURULMASI GEREKEN TABLO'!U112 -> 0 | AQ99: 00:00:00 | AR99: ='DOLDURULMASI GEREKEN TABLO'!V112 -> 2023-06-30 | AS99: 0 | AT99: 0 | AU99: 45107 | AV99: 124 | AW99: 123.5 | AX99: 0 | AY99: 0 | AZ99: 0 | BA99: 0 | BB99: =IF(E99="EVET",0,'DOLDURULMASI GEREKEN TABLO'!W112) -> 0.1895 | BC99: 0 | BD99: 0 | BE99: 0 | BF99: 0 | BG99: 0 | BH99: 0 | BI99: 0
B100: 93 | C100: ='DOLDURULMASI GEREKEN TABLO'!D113 -> 0 | D100: ='DOLDURULMASI GEREKEN TABLO'!E113 -> 0 | E100: ='DOLDURULMASI GEREKEN TABLO'!F113 -> 0 | F100: ='DOLDURULMASI GEREKEN TABLO'!G113 -> 0 | G100: 0 | H100: ='DOLDURULMASI GEREKEN TABLO'!H113 -> 00:00:00 | I100: ='DOLDURULMASI GEREKEN TABLO'!Q113 -> 00:00:00 | J100: ='DOLDURULMASI GEREKEN TABLO'!S113 -> EVET | K100: 2022-12-31 | L100: TARİH UYUMLU | M100: ='DOLDURULMASI GEREKEN TABLO'!J113 -> 0 | N100: ='DOLDURULMASI GEREKEN TABLO'!K113 -> 0 | O100: ='DOLDURULMASI GEREKEN TABLO'!L113 -> 0 | P100: 44927 | Q100: 0 | R100: 0 | S100: 0 | T100: 0 | U100: ='DOLDURULMASI GEREKEN TABLO'!N113 -> 0 | V100: ='DOLDURULMASI GEREKEN TABLO'!P113 -> 0 | W100: ='DOLDURULMASI GEREKEN TABLO'!Q113 -> 0 | X100: 0 | Y100: 0 | Z100: 0 | AA100: ='DOLDURULMASI GEREKEN TABLO'!T113 -> 0 | AB100: FALSE | AC100: =VLOOKUP(AB100,'Aylık Yİ-ÜFE'!$D$1:$E$229,2,0) ->  | AD100: 2022-12 | AE100: =VLOOKUP(AD100,'Aylık Yİ-ÜFE'!$D$1:$E$229,2,0) -> 2021.19 | AF100: 1 | AG100: =IF(OR('DOLDURULMASI GEREKEN TABLO'!Q113="EVET",'DOLDURULMASI GEREKEN TABLO'!S113="EVET"),MAX(X100*AF100,X100),X100) -> 0 | AH100: =IF(OR('DOLDURULMASI GEREKEN TABLO'!Q113="EVET",'DOLDURULMASI GEREKEN TABLO'!S113="EVET"),MAX(Y100*AF100,Y100),Y100) -> 0 | AI100: 0 | AJ100: 0 | AK100: 0 | AL100: 0 | AM100: 0 | AO100: YD YAPILABİLİR | AP100: ='DOLDURULMASI GEREKEN TABLO'!U113 -> 0 | AQ100: 00:00:00 | AR100: ='DOLDURULMASI GEREKEN TABLO'!V113 -> 2023-06-30 | AS100: 0 | AT100: 0 | AU100: 45107 | AV100: 124 | AW100: 123.5 | AX100: 0 | AY100: 0 | AZ100: 0 | BA100: 0 | BB100: =IF(E100="EVET",0,'DOLDURULMASI GEREKEN TABLO'!W113) -> 0.1895 | BC100: 0 | BD100: 0 | BE100: 0 | BF100: 0 | BG100: 0 | BH100: 0 | BI100: 0
B101: 94 | C101: ='DOLDURULMASI GEREKEN TABLO'!D114 -> 0 | D101: ='DOLDURULMASI GEREKEN TABLO'!E114 -> 0 | E101: ='DOLDURULMASI GEREKEN TABLO'!F114 -> 0 | F101: ='DOLDURULMASI GEREKEN TABLO'!G114 -> 0 | G101: 0 | H101: ='DOLDURULMASI GEREKEN TABLO'!H114 -> 00:00:00 | I101: ='DOLDURULMASI GEREKEN TABLO'!Q114 -> 00:00:00 | J101: ='DOLDURULMASI GEREKEN TABLO'!S114 -> EVET | K101: 2022-12-31 | L101: TARİH UYUMLU | M101: ='DOLDURULMASI GEREKEN TABLO'!J114 -> 0 | N101: ='DOLDURULMASI GEREKEN TABLO'!K114 -> 0 | O101: ='DOLDURULMASI GEREKEN TABLO'!L114 -> 0 | P101: 44927 | Q101: 0 | R101: 0 | S101: 0 | T101: 0 | U101: ='DOLDURULMASI GEREKEN TABLO'!N114 -> 0 | V101: ='DOLDURULMASI GEREKEN TABLO'!P114 -> 0 | W101: ='DOLDURULMASI GEREKEN TABLO'!Q114 -> 0 | X101: 0 | Y101: 0 | Z101: 0 | AA101: ='DOLDURULMASI GEREKEN TABLO'!T114 -> 0 | AB101: FALSE | AC101: =VLOOKUP(AB101,'Aylık Yİ-ÜFE'!$D$1:$E$229,2,0) ->  | AD101: 2022-12 | AE101: =VLOOKUP(AD101,'Aylık Yİ-ÜFE'!$D$1:$E$229,2,0) -> 2021.19 | AF101: 1 | AG101: =IF(OR('DOLDURULMASI GEREKEN TABLO'!Q114="EVET",'DOLDURULMASI GEREKEN TABLO'!S114="EVET"),MAX(X101*AF101,X101),X101) -> 0 | AH101: =IF(OR('DOLDURULMASI GEREKEN TABLO'!Q114="EVET",'DOLDURULMASI GEREKEN TABLO'!S114="EVET"),MAX(Y101*AF101,Y101),Y101) -> 0 | AI101: 0 | AJ101: 0 | AK101: 0 | AL101: 0 | AM101: 0 | AO101: YD YAPILABİLİR | AP101: ='DOLDURULMASI GEREKEN TABLO'!U114 -> 0 | AQ101: 00:00:00 | AR101: ='DOLDURULMASI GEREKEN TABLO'!V114 -> 2023-06-30 | AS101: 0 | AT101: 0 | AU101: 45107 | AV101: 124 | AW101: 123.5 | AX101: 0 | AY101: 0 | AZ101: 0 | BA101: 0 | BB101: =IF(E101="EVET",0,'DOLDURULMASI GEREKEN TABLO'!W114) -> 0.1895 | BC101: 0 | BD101: 0 | BE101: 0 | BF101: 0 | BG101: 0 | BH101: 0 | BI101: 0
B102: 95 | C102: ='DOLDURULMASI GEREKEN TABLO'!D115 -> 0 | D102: ='DOLDURULMASI GEREKEN TABLO'!E115 -> 0 | E102: ='DOLDURULMASI GEREKEN TABLO'!F115 -> 0 | F102: ='DOLDURULMASI GEREKEN TABLO'!G115 -> 0 | G102: 0 | H102: ='DOLDURULMASI GEREKEN TABLO'!H115 -> 00:00:00 | I102: ='DOLDURULMASI GEREKEN TABLO'!Q115 -> 00:00:00 | J102: ='DOLDURULMASI GEREKEN TABLO'!S115 -> EVET | K102: 2022-12-31 | L102: TARİH UYUMLU | M102: ='DOLDURULMASI GEREKEN TABLO'!J115 -> 0 | N102: ='DOLDURULMASI GEREKEN TABLO'!K115 -> 0 | O102: ='DOLDURULMASI GEREKEN TABLO'!L115 -> 0 | P102: 44927 | Q102: 0 | R102: 0 | S102: 0 | T102: 0 | U102: ='DOLDURULMASI GEREKEN TABLO'!N115 -> 0 | V102: ='DOLDURULMASI GEREKEN TABLO'!P115 -> 0 | W102: ='DOLDURULMASI GEREKEN TABLO'!Q115 -> 0 | X102: 0 | Y102: 0 | Z102: 0 | AA102: ='DOLDURULMASI GEREKEN TABLO'!T115 -> 0 | AB102: FALSE | AC102: =VLOOKUP(AB102,'Aylık Yİ-ÜFE'!$D$1:$E$229,2,0) ->  | AD102: 2022-12 | AE102: =VLOOKUP(AD102,'Aylık Yİ-ÜFE'!$D$1:$E$229,2,0) -> 2021.19 | AF102: 1 | AG102: =IF(OR('DOLDURULMASI GEREKEN TABLO'!Q115="EVET",'DOLDURULMASI GEREKEN TABLO'!S115="EVET"),MAX(X102*AF102,X102),X102) -> 0 | AH102: =IF(OR('DOLDURULMASI GEREKEN TABLO'!Q115="EVET",'DOLDURULMASI GEREKEN TABLO'!S115="EVET"),MAX(Y102*AF102,Y102),Y102) -> 0 | AI102: 0 | AJ102: 0 | AK102: 0 | AL102: 0 | AM102: 0 | AO102: YD YAPILABİLİR | AP102: ='DOLDURULMASI GEREKEN TABLO'!U115 -> 0 | AQ102: 00:00:00 | AR102: ='DOLDURULMASI GEREKEN TABLO'!V115 -> 2023-06-30 | AS102: 0 | AT102: 0 | AU102: 45107 | AV102: 124 | AW102: 123.5 | AX102: 0 | AY102: 0 | AZ102: 0 | BA102: 0 | BB102: =IF(E102="EVET",0,'DOLDURULMASI GEREKEN TABLO'!W115) -> 0.1895 | BC102: 0 | BD102: 0 | BE102: 0 | BF102: 0 | BG102: 0 | BH102: 0 | BI102: 0
B103: 96 | C103: ='DOLDURULMASI GEREKEN TABLO'!D116 -> 0 | D103: ='DOLDURULMASI GEREKEN TABLO'!E116 -> 0 | E103: ='DOLDURULMASI GEREKEN TABLO'!F116 -> 0 | F103: ='DOLDURULMASI GEREKEN TABLO'!G116 -> 0 | G103: 0 | H103: ='DOLDURULMASI GEREKEN TABLO'!H116 -> 00:00:00 | I103: ='DOLDURULMASI GEREKEN TABLO'!Q116 -> 00:00:00 | J103: ='DOLDURULMASI GEREKEN TABLO'!S116 -> EVET | K103: 2022-12-31 | L103: TARİH UYUMLU | M103: ='DOLDURULMASI GEREKEN TABLO'!J116 -> 0 | N103: ='DOLDURULMASI GEREKEN TABLO'!K116 -> 0 | O103: ='DOLDURULMASI GEREKEN TABLO'!L116 -> 0 | P103: 44927 | Q103: 0 | R103: 0 | S103: 0 | T103: 0 | U103: ='DOLDURULMASI GEREKEN TABLO'!N116 -> 0 | V103: ='DOLDURULMASI GEREKEN TABLO'!P116 -> 0 | W103: ='DOLDURULMASI GEREKEN TABLO'!Q116 -> 0 | X103: 0 | Y103: 0 | Z103: 0 | AA103: ='DOLDURULMASI GEREKEN TABLO'!T116 -> 0 | AB103: FALSE | AC103: =VLOOKUP(AB103,'Aylık Yİ-ÜFE'!$D$1:$E$229,2,0) ->  | AD103: 2022-12 | AE103: =VLOOKUP(AD103,'Aylık Yİ-ÜFE'!$D$1:$E$229,2,0) -> 2021.19 | AF103: 1 | AG103: =IF(OR('DOLDURULMASI GEREKEN TABLO'!Q116="EVET",'DOLDURULMASI GEREKEN TABLO'!S116="EVET"),MAX(X103*AF103,X103),X103) -> 0 | AH103: =IF(OR('DOLDURULMASI GEREKEN TABLO'!Q116="EVET",'DOLDURULMASI GEREKEN TABLO'!S116="EVET"),MAX(Y103*AF103,Y103),Y103) -> 0 | AI103: 0 | AJ103: 0 | AK103: 0 | AL103: 0 | AM103: 0 | AO103: YD YAPILABİLİR | AP103: ='DOLDURULMASI GEREKEN TABLO'!U116 -> 0 | AQ103: 00:00:00 | AR103: ='DOLDURULMASI GEREKEN TABLO'!V116 -> 2023-06-30 | AS103: 0 | AT103: 0 | AU103: 45107 | AV103: 124 | AW103: 123.5 | AX103: 0 | AY103: 0 | AZ103: 0 | BA103: 0 | BB103: =IF(E103="EVET",0,'DOLDURULMASI GEREKEN TABLO'!W116) -> 0.1895 | BC103: 0 | BD103: 0 | BE103: 0 | BF103: 0 | BG103: 0 | BH103: 0 | BI103: 0
B104: 97 | C104: ='DOLDURULMASI GEREKEN TABLO'!D117 -> 0 | D104: ='DOLDURULMASI GEREKEN TABLO'!E117 -> 0 | E104: ='DOLDURULMASI GEREKEN TABLO'!F117 -> 0 | F104: ='DOLDURULMASI GEREKEN TABLO'!G117 -> 0 | G104: 0 | H104: ='DOLDURULMASI GEREKEN TABLO'!H117 -> 00:00:00 | I104: ='DOLDURULMASI GEREKEN TABLO'!Q117 -> 00:00:00 | J104: ='DOLDURULMASI GEREKEN TABLO'!S117 -> EVET | K104: 2022-12-31 | L104: TARİH UYUMLU | M104: ='DOLDURULMASI GEREKEN TABLO'!J117 -> 0 | N104: ='DOLDURULMASI GEREKEN TABLO'!K117 -> 0 | O104: ='DOLDURULMASI GEREKEN TABLO'!L117 -> 0 | P104: 44927 | Q104: 0 | R104: 0 | S104: 0 | T104: 0 | U104: ='DOLDURULMASI GEREKEN TABLO'!N117 -> 0 | V104: ='DOLDURULMASI GEREKEN TABLO'!P117 -> 0 | W104: ='DOLDURULMASI GEREKEN TABLO'!Q117 -> 0 | X104: 0 | Y104: 0 | Z104: 0 | AA104: ='DOLDURULMASI GEREKEN TABLO'!T117 -> 0 | AB104: FALSE | AC104: =VLOOKUP(AB104,'Aylık Yİ-ÜFE'!$D$1:$E$229,2,0) ->  | AD104: 2022-12 | AE104: =VLOOKUP(AD104,'Aylık Yİ-ÜFE'!$D$1:$E$229,2,0) -> 2021.19 | AF104: 1 | AG104: =IF(OR('DOLDURULMASI GEREKEN TABLO'!Q117="EVET",'DOLDURULMASI GEREKEN TABLO'!S117="EVET"),MAX(X104*AF104,X104),X104) -> 0 | AH104: =IF(OR('DOLDURULMASI GEREKEN TABLO'!Q117="EVET",'DOLDURULMASI GEREKEN TABLO'!S117="EVET"),MAX(Y104*AF104,Y104),Y104) -> 0 | AI104: 0 | AJ104: 0 | AK104: 0 | AL104: 0 | AM104: 0 | AO104: YD YAPILABİLİR | AP104: ='DOLDURULMASI GEREKEN TABLO'!U117 -> 0 | AQ104: 00:00:00 | AR104: ='DOLDURULMASI GEREKEN TABLO'!V117 -> 2023-06-30 | AS104: 0 | AT104: 0 | AU104: 45107 | AV104: 124 | AW104: 123.5 | AX104: 0 | AY104: 0 | AZ104: 0 | BA104: 0 | BB104: =IF(E104="EVET",0,'DOLDURULMASI GEREKEN TABLO'!W117) -> 0.1895 | BC104: 0 | BD104: 0 | BE104: 0 | BF104: 0 | BG104: 0 | BH104: 0 | BI104: 0
B105: 98 | C105: ='DOLDURULMASI GEREKEN TABLO'!D118 -> 0 | D105: ='DOLDURULMASI GEREKEN TABLO'!E118 -> 0 | E105: ='DOLDURULMASI GEREKEN TABLO'!F118 -> 0 | F105: ='DOLDURULMASI GEREKEN TABLO'!G118 -> 0 | G105: 0 | H105: ='DOLDURULMASI GEREKEN TABLO'!H118 -> 00:00:00 | I105: ='DOLDURULMASI GEREKEN TABLO'!Q118 -> 00:00:00 | J105: ='DOLDURULMASI GEREKEN TABLO'!S118 -> EVET | K105: 2022-12-31 | L105: TARİH UYUMLU | M105: ='DOLDURULMASI GEREKEN TABLO'!J118 -> 0 | N105: ='DOLDURULMASI GEREKEN TABLO'!K118 -> 0 | O105: ='DOLDURULMASI GEREKEN TABLO'!L118 -> 0 | P105: 44927 | Q105: 0 | R105: 0 | S105: 0 | T105: 0 | U105: ='DOLDURULMASI GEREKEN TABLO'!N118 -> 0 | V105: ='DOLDURULMASI GEREKEN TABLO'!P118 -> 0 | W105: ='DOLDURULMASI GEREKEN TABLO'!Q118 -> 0 | X105: 0 | Y105: 0 | Z105: 0 | AA105: ='DOLDURULMASI GEREKEN TABLO'!T118 -> 0 | AB105: FALSE | AC105: =VLOOKUP(AB105,'Aylık Yİ-ÜFE'!$D$1:$E$229,2,0) ->  | AD105: 2022-12 | AE105: =VLOOKUP(AD105,'Aylık Yİ-ÜFE'!$D$1:$E$229,2,0) -> 2021.19 | AF105: 1 | AG105: =IF(OR('DOLDURULMASI GEREKEN TABLO'!Q118="EVET",'DOLDURULMASI GEREKEN TABLO'!S118="EVET"),MAX(X105*AF105,X105),X105) -> 0 | AH105: =IF(OR('DOLDURULMASI GEREKEN TABLO'!Q118="EVET",'DOLDURULMASI GEREKEN TABLO'!S118="EVET"),MAX(Y105*AF105,Y105),Y105) -> 0 | AI105: 0 | AJ105: 0 | AK105: 0 | AL105: 0 | AM105: 0 | AO105: YD YAPILABİLİR | AP105: ='DOLDURULMASI GEREKEN TABLO'!U118 -> 0 | AQ105: 00:00:00 | AR105: ='DOLDURULMASI GEREKEN TABLO'!V118 -> 2023-06-30 | AS105: 0 | AT105: 0 | AU105: 45107 | AV105: 124 | AW105: 123.5 | AX105: 0 | AY105: 0 | AZ105: 0 | BA105: 0 | BB105: =IF(E105="EVET",0,'DOLDURULMASI GEREKEN TABLO'!W118) -> 0.1895 | BC105: 0 | BD105: 0 | BE105: 0 | BF105: 0 | BG105: 0 | BH105: 0 | BI105: 0
B106: 99 | C106: ='DOLDURULMASI GEREKEN TABLO'!D119 -> 0 | D106: ='DOLDURULMASI GEREKEN TABLO'!E119 -> 0 | E106: ='DOLDURULMASI GEREKEN TABLO'!F119 -> 0 | F106: ='DOLDURULMASI GEREKEN TABLO'!G119 -> 0 | G106: 0 | H106: ='DOLDURULMASI GEREKEN TABLO'!H119 -> 00:00:00 | I106: ='DOLDURULMASI GEREKEN TABLO'!Q119 -> 00:00:00 | J106: ='DOLDURULMASI GEREKEN TABLO'!S119 -> EVET | K106: 2022-12-31 | L106: TARİH UYUMLU | M106: ='DOLDURULMASI GEREKEN TABLO'!J119 -> 0 | N106: ='DOLDURULMASI GEREKEN TABLO'!K119 -> 0 | O106: ='DOLDURULMASI GEREKEN TABLO'!L119 -> 0 | P106: 44927 | Q106: 0 | R106: 0 | S106: 0 | T106: 0 | U106: ='DOLDURULMASI GEREKEN TABLO'!N119 -> 0 | V106: ='DOLDURULMASI GEREKEN TABLO'!P119 -> 0 | W106: ='DOLDURULMASI GEREKEN TABLO'!Q119 -> 0 | X106: 0 | Y106: 0 | Z106: 0 | AA106: ='DOLDURULMASI GEREKEN TABLO'!T119 -> 0 | AB106: FALSE | AC106: =VLOOKUP(AB106,'Aylık Yİ-ÜFE'!$D$1:$E$229,2,0) ->  | AD106: 2022-12 | AE106: =VLOOKUP(AD106,'Aylık Yİ-ÜFE'!$D$1:$E$229,2,0) -> 2021.19 | AF106: 1 | AG106: =IF(OR('DOLDURULMASI GEREKEN TABLO'!Q119="EVET",'DOLDURULMASI GEREKEN TABLO'!S119="EVET"),MAX(X106*AF106,X106),X106) -> 0 | AH106: =IF(OR('DOLDURULMASI GEREKEN TABLO'!Q119="EVET",'DOLDURULMASI GEREKEN TABLO'!S119="EVET"),MAX(Y106*AF106,Y106),Y106) -> 0 | AI106: 0 | AJ106: 0 | AK106: 0 | AL106: 0 | AM106: 0 | AO106: YD YAPILABİLİR | AP106: ='DOLDURULMASI GEREKEN TABLO'!U119 -> 0 | AQ106: 00:00:00 | AR106: ='DOLDURULMASI GEREKEN TABLO'!V119 -> 2023-06-30 | AS106: 0 | AT106: 0 | AU106: 45107 | AV106: 124 | AW106: 123.5 | AX106: 0 | AY106: 0 | AZ106: 0 | BA106: 0 | BB106: =IF(E106="EVET",0,'DOLDURULMASI GEREKEN TABLO'!W119) -> 0.1895 | BC106: 0 | BD106: 0 | BE106: 0 | BF106: 0 | BG106: 0 | BH106: 0 | BI106: 0
B107: 100 | C107: ='DOLDURULMASI GEREKEN TABLO'!D120 -> 0 | D107: ='DOLDURULMASI GEREKEN TABLO'!E120 -> 0 | E107: ='DOLDURULMASI GEREKEN TABLO'!F120 -> 0 | F107: ='DOLDURULMASI GEREKEN TABLO'!G120 -> 0 | G107: 0 | H107: ='DOLDURULMASI GEREKEN TABLO'!H120 -> 00:00:00 | I107: ='DOLDURULMASI GEREKEN TABLO'!Q120 -> 00:00:00 | J107: ='DOLDURULMASI GEREKEN TABLO'!S120 -> EVET | K107: 2022-12-31 | L107: TARİH UYUMLU | M107: ='DOLDURULMASI GEREKEN TABLO'!J120 -> 0 | N107: ='DOLDURULMASI GEREKEN TABLO'!K120 -> 0 | O107: ='DOLDURULMASI GEREKEN TABLO'!L120 -> 0 | P107: 44927 | Q107: 0 | R107: 0 | S107: 0 | T107: 0 | U107: ='DOLDURULMASI GEREKEN TABLO'!N120 -> 0 | V107: ='DOLDURULMASI GEREKEN TABLO'!P120 -> 0 | W107: ='DOLDURULMASI GEREKEN TABLO'!Q120 -> 0 | X107: 0 | Y107: 0 | Z107: 0 | AA107: ='DOLDURULMASI GEREKEN TABLO'!T120 -> 0 | AB107: FALSE | AC107: =VLOOKUP(AB107,'Aylık Yİ-ÜFE'!$D$1:$E$229,2,0) ->  | AD107: 2022-12 | AE107: =VLOOKUP(AD107,'Aylık Yİ-ÜFE'!$D$1:$E$229,2,0) -> 2021.19 | AF107: 1 | AG107: =IF(OR('DOLDURULMASI GEREKEN TABLO'!Q120="EVET",'DOLDURULMASI GEREKEN TABLO'!S120="EVET"),MAX(X107*AF107,X107),X107) -> 0 | AH107: =IF(OR('DOLDURULMASI GEREKEN TABLO'!Q120="EVET",'DOLDURULMASI GEREKEN TABLO'!S120="EVET"),MAX(Y107*AF107,Y107),Y107) -> 0 | AI107: 0 | AJ107: 0 | AK107: 0 | AL107: 0 | AM107: 0 | AO107: YD YAPILABİLİR | AP107: ='DOLDURULMASI GEREKEN TABLO'!U120 -> 0 | AQ107: 00:00:00 | AR107: ='DOLDURULMASI GEREKEN TABLO'!V120 -> 2023-06-30 | AS107: 0 | AT107: 0 | AU107: 45107 | AV107: 124 | AW107: 123.5 | AX107: 0 | AY107: 0 | AZ107: 0 | BA107: 0 | BB107: =IF(E107="EVET",0,'DOLDURULMASI GEREKEN TABLO'!W120) -> 0.1895 | BC107: 0 | BD107: 0 | BE107: 0 | BF107: 0 | BG107: 0 | BH107: 0 | BI107: 0
B108: 101 | C108: ='DOLDURULMASI GEREKEN TABLO'!D121 -> 0 | D108: ='DOLDURULMASI GEREKEN TABLO'!E121 -> 0 | E108: ='DOLDURULMASI GEREKEN TABLO'!F121 -> 0 | F108: ='DOLDURULMASI GEREKEN TABLO'!G121 -> 0 | G108: 0 | H108: ='DOLDURULMASI GEREKEN TABLO'!H121 -> 00:00:00 | I108: ='DOLDURULMASI GEREKEN TABLO'!Q121 -> 00:00:00 | J108: ='DOLDURULMASI GEREKEN TABLO'!S121 -> EVET | K108: 2022-12-31 | L108: TARİH UYUMLU | M108: ='DOLDURULMASI GEREKEN TABLO'!J121 -> 0 | N108: ='DOLDURULMASI GEREKEN TABLO'!K121 -> 0 | O108: ='DOLDURULMASI GEREKEN TABLO'!L121 -> 0 | P108: 44927 | Q108: 0 | R108: 0 | S108: 0 | T108: 0 | U108: ='DOLDURULMASI GEREKEN TABLO'!N121 -> 0 | V108: ='DOLDURULMASI GEREKEN TABLO'!P121 -> 0 | W108: ='DOLDURULMASI GEREKEN TABLO'!Q121 -> 0 | X108: 0 | Y108: 0 | Z108: 0 | AA108: ='DOLDURULMASI GEREKEN TABLO'!T121 -> 0 | AB108: FALSE | AC108: =VLOOKUP(AB108,'Aylık Yİ-ÜFE'!$D$1:$E$229,2,0) ->  | AD108: 2022-12 | AE108: =VLOOKUP(AD108,'Aylık Yİ-ÜFE'!$D$1:$E$229,2,0) -> 2021.19 | AF108: 1 | AG108: =IF(OR('DOLDURULMASI GEREKEN TABLO'!Q121="EVET",'DOLDURULMASI GEREKEN TABLO'!S121="EVET"),MAX(X108*AF108,X108),X108) -> 0 | AH108: =IF(OR('DOLDURULMASI GEREKEN TABLO'!Q121="EVET",'DOLDURULMASI GEREKEN TABLO'!S121="EVET"),MAX(Y108*AF108,Y108),Y108) -> 0 | AI108: 0 | AJ108: 0 | AK108: 0 | AL108: 0 | AM108: 0 | AO108: YD YAPILABİLİR | AP108: ='DOLDURULMASI GEREKEN TABLO'!U121 -> 0 | AQ108: 00:00:00 | AR108: ='DOLDURULMASI GEREKEN TABLO'!V121 -> 2023-06-30 | AS108: 0 | AT108: 0 | AU108: 45107 | AV108: 124 | AW108: 123.5 | AX108: 0 | AY108: 0 | AZ108: 0 | BA108: 0 | BB108: =IF(E108="EVET",0,'DOLDURULMASI GEREKEN TABLO'!W121) -> 0.1895 | BC108: 0 | BD108: 0 | BE108: 0 | BF108: 0 | BG108: 0 | BH108: 0 | BI108: 0
B109: 102 | C109: ='DOLDURULMASI GEREKEN TABLO'!D122 -> 0 | D109: ='DOLDURULMASI GEREKEN TABLO'!E122 -> 0 | E109: ='DOLDURULMASI GEREKEN TABLO'!F122 -> 0 | F109: ='DOLDURULMASI GEREKEN TABLO'!G122 -> 0 | G109: 0 | H109: ='DOLDURULMASI GEREKEN TABLO'!H122 -> 00:00:00 | I109: ='DOLDURULMASI GEREKEN TABLO'!Q122 -> 00:00:00 | J109: ='DOLDURULMASI GEREKEN TABLO'!S122 -> EVET | K109: 2022-12-31 | L109: TARİH UYUMLU | M109: ='DOLDURULMASI GEREKEN TABLO'!J122 -> 0 | N109: ='DOLDURULMASI GEREKEN TABLO'!K122 -> 0 | O109: ='DOLDURULMASI GEREKEN TABLO'!L122 -> 0 | P109: 44927 | Q109: 0 | R109: 0 | S109: 0 | T109: 0 | U109: ='DOLDURULMASI GEREKEN TABLO'!N122 -> 0 | V109: ='DOLDURULMASI GEREKEN TABLO'!P122 -> 0 | W109: ='DOLDURULMASI GEREKEN TABLO'!Q122 -> 0 | X109: 0 | Y109: 0 | Z109: 0 | AA109: ='DOLDURULMASI GEREKEN TABLO'!T122 -> 0 | AB109: FALSE | AC109: =VLOOKUP(AB109,'Aylık Yİ-ÜFE'!$D$1:$E$229,2,0) ->  | AD109: 2022-12 | AE109: =VLOOKUP(AD109,'Aylık Yİ-ÜFE'!$D$1:$E$229,2,0) -> 2021.19 | AF109: 1 | AG109: =IF(OR('DOLDURULMASI GEREKEN TABLO'!Q122="EVET",'DOLDURULMASI GEREKEN TABLO'!S122="EVET"),MAX(X109*AF109,X109),X109) -> 0 | AH109: =IF(OR('DOLDURULMASI GEREKEN TABLO'!Q122="EVET",'DOLDURULMASI GEREKEN TABLO'!S122="EVET"),MAX(Y109*AF109,Y109),Y109) -> 0 | AI109: 0 | AJ109: 0 | AK109: 0 | AL109: 0 | AM109: 0 | AO109: YD YAPILABİLİR | AP109: ='DOLDURULMASI GEREKEN TABLO'!U122 -> 0 | AQ109: 00:00:00 | AR109: ='DOLDURULMASI GEREKEN TABLO'!V122 -> 2023-06-30 | AS109: 0 | AT109: 0 | AU109: 45107 | AV109: 124 | AW109: 123.5 | AX109: 0 | AY109: 0 | AZ109: 0 | BA109: 0 | BB109: =IF(E109="EVET",0,'DOLDURULMASI GEREKEN TABLO'!W122) -> 0.1895 | BC109: 0 | BD109: 0 | BE109: 0 | BF109: 0 | BG109: 0 | BH109: 0 | BI109: 0
